Workbook

Sheet Menu
Z1: 2
Z4: 2
A6: Far West Extension District - 6
D8: Budgets
D11: Forage Crops
D13: =+AlfalfaEstablish!A3 -> Alfalfa Establishment, Center Pivot Irrigated
D14: =AlfalfaHayPivot!A3 -> Alfalfa, Full Season, Baled - 7.5 Ton Goal, Center Pivot Irrigated
D15: =AlfalfaHayFlood!A3 -> Alfalfa, Full Season, Baled - 7.5 Ton Goal, Flood Irrigated
D16: =AlfalfaPivotDell!A3 -> Alfalfa, Full Season, Baled - 7.5 Ton Goal, Center Pivot Irrigated, Dell City
D17: =AlfalfaFloodDell!A3 -> Alfalfa, Full Season, Baled - 7.5 Ton Goal, Flood Irrigated, Dell City
B18: Comparative Returns | D18: =AlfalfaElPaso!A3 -> Alfalfa, Full Season, Baled - 7.5 Ton Goal, Flood Irrigated, El Paso Irrigation District
D19: =SorghumHayDryland!A3 -> Sorghum-Sudangrass for Hay, Dryland, 3 Ton Yield
B20: Links | D20: =SorghumHayIrrigated!A3 -> Sorghum-Sudangrass for Hay, Center Pivot Irrigated, 5 Ton Yield
D21: =SwitchgrassEstablish!A3 -> Alamo Switchgrass Establishment, Pivot Irrigated
D22: =SwitchgrassGraze!A3 -> Alamo Switchgrass, Full Season, Pivot Irrigated, Grazed
D23: =SwitchgrassHay!A3 -> Alamo Switchgrass, Full Season, Pivot Irrigated, Baled
D25: Field Crops
D27: =SLCottonDrip!A3 -> St. Lawrence Reduced Tillage Cotton, Drip Irrigated, 40 Inch Rows
D28: =SLXFCottonDrip!A3 -> St. Lawrence Auxin Technology Cotton, Drip Irrigated, 40 Inch Rows
D29: =SLCottonDrylandGM!A3 -> St. Lawrence Dryland Cotton, BIIFlex, 40 Inch Rows
D30: =SLXFCottonDryland!A3 -> St. Lawrence Dryland Auxin Technology Cotton, 40 Inch Rows
D31: =SLGSDrip!A3 -> St. Lawrence Early Planted Grain Sorghum, Drip Irrigated, 40 Inch Rows
D32: =TPCottonFurrow!A3 -> Trans Pecos Cotton, Furrow Irrigated, 40 Inch Rows
D33: =TPCottonPivot!A3 -> Trans Pecos Cotton, Center Pivot Irrigated, 40 Inch Rows
D34: =ElPasoCotton!A3 -> El Paso County Cotton, Canal Delivered Furrow Irrigated, 40 Inch Rows
D35: =WheatDryland!A3 -> Wheat, Dryland
D36: =WheatIrrigated!A3 -> Wheat, Center Pivot Irrigated, Trans Pecos
D38: Horticultural Crops
D40: =RedChile!A3 -> Red Chile Peppers, Dell City, Center Pivot Irrigated
D41: =Onions!A3 -> Spring Onions, Furrow Irrigated
D42: =Pecans!A3 -> Trans Pecos Flood Irrigated Pecans, Years 10-20
D44: Livestock
D46: =+CowCalfNative!A3 -> Cow-Calf Enterprise
D47: =+StockersSummer!A3 -> Stocker Steers - Summer Growth, 0.6 AU per Head
D48: =StockerWinter!A3 -> Stocker Steers - Winter Growth, 0.45 AU per Head
D49: =MeatGoats!A3 -> Trans Pecos Meat Goats, 6 Head per AU
D50: =Angoras!A3 -> Trans Pecos Angora Goats, 7 Head per AU
D51: =SheepWool!A3 -> Trans Pecos Wool Sheep, 5 Head per AU
D52: =SheepHair!A3 -> Trans Pecos Hair Sheep, 5 Head per AU
D54: Other Budgets
D56: ='Livestock Budget'!A3 -> Livestock Budget
D57: ='Crop Budget'!A3 -> Crop Enterprise
A71: Developed by Extension Agricultural Economists, Texas A&M AgriLife Extension, budgets@tamu.edu.

Sheet Links
B2: Texas Crop and Livestock Budgets
B3: A Program of the Texas A&M AgriLife Extension Service
B4: Agricultural Economics Department, The Texas A&M University System
B6: Developed by Texas A&M AgriLife Extension Service Economists and Other Specialists
B8: Contact Us | G8: Clickable Logos
B10: Resources
B12: Decision Aids (includes Machinery Cost Estimator)
B14: Custom Rate Survey
B16: Basis Data
B18: Master Marketer
B20: Extension Ag Economics
B22: Department of Agricultural Economics
B24: Menu Page

Sheet Pecans
A1: Projections for Planning Purposes Only -- Not to be Used without Updating
A2: 2026 Estimated Costs and Returns per Acre
A3: Trans Pecos Flood Irrigated Pecans, Years 10-20
A4: Enter your name for this budget in the cell above.
A5: Enter Your Values in the cells highlighed in MAROON.
E6: Your Acres | R6: Your
C7: Crop Acres | D7: 50 | L7: Your | Q7: Enterprise | R7: Enterprise
E8: Your | H8: Your | I8: Cash | J8: Your | K8: Landlord | L8: Landlord | N8: Your | P8: Your | Q8: Total | R8: Total
A9: REVENUE | D9: Quantity | E9: Quantity | F9: Units | G9: $/Unit | H9: $/Unit | I9: Total | J9: Total | K9: Share | L9: Share | M9: Landlord | N9: Landlord | O9: Tenant | P9: Tenant | Q9: (50 acres) | R9: ="(" & E7 & " acres)" -> ( acres)
B10: Pecans | D10: 1364 | F10: Pound | G10: 2 | I10: 2728 | J10: =E10*H10 -> 0 | K10: 0 | M10: 0 | N10: =J10*L10 -> 0 | O10: 2728 | P10: =+J10-N10 -> 0 | Q10: 136400 | R10: =+J10*E$7 -> 0
D11: 0 | G11: 0 | I11: 0 | J11: 0 | K11: 0 | M11: 0 | N11: 0 | O11: 0 | P11: =+J11-N11 -> 0 | Q11: 0 | R11: 0
D12: 0 | G12: 0 | I12: 0 | J12: 0 | K12: 0 | M12: 0 | N12: 0 | O12: 0 | P12: 0 | Q12: 0 | R12: 0
A13: Total Revenue | I13: 2728 | J13: =SUM(J10:J12) -> 0 | M13: 0 | N13: =SUM(N10:N12) -> 0 | O13: 2728 | P13: =SUM(P10:P12) -> 0 | Q13: 136400 | R13: =SUM(R10:R12) -> 0
Q14: Enterprise | R14: Enterprise
A15: VARIABLE COSTS | D15: Quantity | E15: Quantity | F15: Units | G15: $/Unit | H15: $/Unit | I15: Total | J15: Total | K15: Share | L15: Share | M15: Landlord | N15: Landlord | O15: Tenant | P15: Tenant | Q15: Total | R15: Total
A16: Production Costs
B17: Custom
C18: Hedging | D18: 0.33 | F18: Acre | G18: 100 | I18: 33 | J18: =E18*H18 -> 0 | K18: 0 | M18: 0 | N18: =J18*L18 -> 0 | O18: 33 | P18: =+J18-N18 -> 0 | Q18: 1650 | R18: =+J18*E$7 -> 0
B19: Fertilizer
C20: Fertilizer 11-52-0 | D20: 80 | F20: Pound | G20: 0.63 | I20: 50.4 | J20: 0 | K20: 0 | M20: 0 | N20: 0 | O20: 50.4 | P20: 0 | Q20: 2520 | R20: 0
C21: N-32 in Water | D21: 291.5 | F21: Pound | G21: 0.53 | I21: 154.495 | J21: 0 | K21: 0 | M21: 0 | N21: 0 | O21: 154.495 | P21: 0 | Q21: 7724.75 | R21: 0
C22: Zinc, Chelated 10% | D22: 24 | F22: Pint | G22: 1.34 | I22: 32.16 | J22: 0 | K22: 0 | M22: 0 | N22: 0 | O22: 32.16 | P22: 0 | Q22: 1608 | R22: 0
B23: Herbicide
C24: Glyphosate | D24: 16.98 | F24: Pint | G24: 2.125 | I24: 36.0825 | J24: 0 | K24: 0 | M24: 0 | N24: 0 | O24: 36.0825 | P24: 0 | Q24: 1804.125 | R24: 0
C25: Crop Oil Concentrate | D25: 16 | F25: Pint | G25: 2.175 | I25: 34.8 | J25: 0 | K25: 0 | M25: 0 | N25: 0 | O25: 34.8 | P25: 0 | Q25: 1740 | R25: 0
B26: Insecticide
C27: Confirm 2F | D27: 12 | F27: Ounce | G27: 1.54 | I27: 18.48 | J27: 0 | K27: 0 | M27: 0 | N27: 0 | O27: 18.48 | P27: 0 | Q27: 924 | R27: 0
C28: Pilot (Lorsban 4E) | D28: 4.5 | F28: Pint | G28: 3.6875 | I28: 16.59375 | J28: 0 | K28: 0 | M28: 0 | N28: 0 | O28: 16.59375 | P28: 0 | Q28: 829.6875 | R28: 0
B29: Other Labor
C30: Pecan Cleaning | D30: 4.092 | F30: Hour | G30: 8.5 | I30: 34.782 | J30: 0 | K30: 0 | M30: 0 | N30: 0 | O30: 34.782 | P30: 0 | Q30: 1739.1 | R30: 0
B31: Miscellaneous
C32: Electricity - Pecan Cleaning | D32: 920.7 | F32: kWh | G32: 0.17 | I32: 156.519 | J32: 0 | K32: 0 | M32: 0 | N32: 0 | O32: 156.519 | P32: 0 | Q32: 7825.95 | R32: 0
D33: 0 | G33: 0 | I33: 0 | J33: 0 | K33: 0 | M33: 0 | N33: 0 | O33: 0 | P33: 0 | Q33: 0 | R33: 0
D34: 0 | G34: 0 | I34: 0 | J34: 0 | K34: 0 | M34: 0 | N34: 0 | O34: 0 | P34: 0 | Q34: 0 | R34: 0
D35: 0 | G35: 0 | I35: 0 | J35: =E35*H35 -> 0 | K35: 0 | M35: 0 | N35: =J35*L35 -> 0 | O35: 0 | P35: =+J35-N35 -> 0 | Q35: 0 | R35: =+J35*E$7 -> 0
B36: Irrigation
C37: Energy Cost | D37: 35.2 | F37: Mcf | G37: 10 | I37: 352 | J37: =E37*H37 -> 0 | K37: 0 | M37: 0 | N37: =J37*L37 -> 0 | O37: 352 | P37: =+J37-N37 -> 0 | Q37: 17600 | R37: =+J37*E$7 -> 0
C38: Irrigation Labor | D38: 0.7784 | F38: Hour | G38: 17.5 | I38: 13.622 | J38: 0 | K38: 0 | M38: 0 | N38: 0 | O38: 13.622 | P38: 0 | Q38: 681.1 | R38: 0
B39: Machinery Labor
C40: Tractors/Self-Propelled | D40: 3.31 | F40: Hour | G40: 17.21 | I40: 56.9651 | J40: =E40*H40 -> 0 | K40: 0 | M40: 0 | N40: =J40*L40 -> 0 | O40: 56.9651 | P40: =+J40-N40 -> 0 | Q40: 2848.255 | R40: =+J40*E$7 -> 0
C41: Other Labor | D41: 0.75 | F41: Hour | G41: 17.21 | I41: 12.9075 | J41: =E41*H41 -> 0 | K41: 0 | M41: 0 | N41: =J41*L41 -> 0 | O41: 12.9075 | P41: =+J41-N41 -> 0 | Q41: 645.375 | R41: =+J41*E$7 -> 0
B43: Diesel Fuel
C44: Pickup/General Use Equipment | D44: 1 | F44: Acre | G44: 0 | I44: 0 | J44: =E44*H44 -> 0 | K44: 0 | M44: 0 | N44: =J44*L44 -> 0 | O44: 0 | P44: =+J44-N44 -> 0 | Q44: 0 | R44: =+J44*E$7 -> 0
C45: Tractors/Self-Propelled | D45: 16.33 | F45: Gallon | G45: 3.16 | I45: 51.6028 | J45: =E45*H45 -> 0 | K45: 0 | M45: 0 | N45: =J45*L45 -> 0 | O45: 51.6028 | P45: =+J45-N45 -> 0 | Q45: 2580.14 | R45: =+J45*E$7 -> 0
B47: Gasoline
C48: Pickup/General Use Equipment | D48: 1 | F48: Acre | G48: 18.77544 | I48: 18.77544 | J48: =E48*H48 -> 0 | K48: 0 | M48: 0 | N48: =J48*L48 -> 0 | O48: 18.77544 | P48: =+J48-N48 -> 0 | Q48: 938.772 | R48: =+J48*E$7 -> 0
C49: Tractors/Self-Propelled | D49: 0.818452381 | F49: Gallon | G49: 2.93 | I49: 2.398065476 | J49: =E49*H49 -> 0 | K49: 0 | M49: 0 | N49: =J49*L49 -> 0 | O49: 2.398065476 | P49: =+J49-N49 -> 0 | Q49: 119.9032738 | R49: =+J49*E$7 -> 0
B51: Repairs & Maintenance
C52: Pickup/General Use Equipment | D52: 1 | F52: Acre | G52: 234.4948 | I52: 234.4948 | J52: =E52*H52 -> 0 | K52: 0 | M52: 0 | N52: =J52*L52 -> 0 | O52: 234.4948 | P52: =+J52-N52 -> 0 | Q52: 11724.74 | R52: =+J52*E$7 -> 0
C53: Irrigation Equipment | D53: 1 | F53: Acre | G53: 16.39616 | I53: 16.39616 | J53: 0 | K53: 0 | M53: 0 | N53: 0 | O53: 16.39616 | P53: 0 | Q53: 819.808 | R53: 0
C54: Tractors/Self-Propelled | D54: 1 | F54: Acre | G54: 29.4099299 | I54: 29.4099299 | J54: 0 | K54: 0 | M54: 0 | N54: 0 | O54: 29.4099299 | P54: 0 | Q54: 1470.496495 | R54: 0
C55: Implements | D55: 1 | F55: Acre | G55: 10.33247433 | I55: 10.33247433 | J55: 0 | K55: 0 | M55: 0 | N55: 0 | O55: 10.33247433 | P55: 0 | Q55: 516.6237167 | R55: 0
I56: 0 | J56: 0 | K56: 0 | M56: 0 | N56: 0 | O56: 0 | P56: 0 | Q56: 0 | R56: 0
I57: 0 | J57: 0 | K57: 0 | M57: 0 | N57: 0 | O57: 0 | P57: 0 | Q57: 0 | R57: 0
B58: Interest on Credit Line | G58: 0.08 | I58: 54.30868878 | J58: =+SUM(J17:J57)/2*H58 -> 0 | M58: 0 | N58: =+SUM(N17:N57)/2*L58 -> 0 | O58: 54.30868878 | P58: =+SUM(P17:P57)/2*L58 -> 0 | Q58: 2715.434439 | R58: =+J58*E$7 -> 0
A59: Total Variable Costs | I59: 1420.525208 | J59: =SUM(J18:J58) -> 0 | M59: 0 | N59: =SUM(N18:N58) -> 0 | O59: 1420.525208 | P59: =SUM(P18:P58) -> 0 | Q59: 71026.26042 | R59: =SUM(R18:R58) -> 0
A60: Planned Returns Above Variable Costs: | I60: 1307.474792 | J60: =+J13-J59 -> 0 | M60: 0 | N60: =+N13-N59 -> 0 | O60: 1307.474792 | P60: =+P13-P59 -> 0 | Q60: 65373.73958 | R60: =+R13-R59 -> 0
B61: Breakeven Price to Cover Variable Costs | G61: 1.041440769 | H61: =IF(E10=0,"n/a",(YVarExp-(YTotExp+YTotRet-J10))/E10) -> n/a | I61: Pound
Q62: Enterprise | R62: Enterprise
A63: FIXED COSTS | D63: Quantity | E63: Quantity | F63: Units | G63: $/Unit | H63: $/Unit | I63: Total | J63: Total | K63: Share | L63: Share | M63: Landlord | N63: Landlord | O63: Tenant | P63: Tenant | Q63: Total | R63: Total
B64: Machinery Depreciation
C65: Pickup/General Use Equipment | D65: 1 | F65: Acre | G65: 104.53132 | I65: 104.53132 | J65: =E65*H65 -> 0 | K65: 0 | M65: 0 | N65: =J65*L65 -> 0 | O65: 104.53132 | P65: =+J65-N65 -> 0 | Q65: 5226.566 | R65: =+J65*E$7 -> 0
C66: Irrigation Equipment | D66: 1 | F66: Acre | G66: 48.6439868 | I66: 48.6439868 | J66: 0 | K66: 0 | M66: 0 | N66: =J66*L66 -> 0 | O66: 48.6439868 | P66: 0 | Q66: 2432.19934 | R66: 0
C67: Tractors/Self-Propelled | D67: 1 | F67: Acre | G67: 34.37181573 | I67: 34.37181573 | J67: 0 | K67: 0 | M67: 0 | N67: =J67*L67 -> 0 | O67: 34.37181573 | P67: 0 | Q67: 1718.590786 | R67: 0
C68: Implements | D68: 1 | F68: Acre | G68: 19.25850408 | I68: 19.25850408 | J68: 0 | K68: 0 | M68: 0 | N68: =J68*L68 -> 0 | O68: 19.25850408 | P68: 0 | Q68: 962.925204 | R68: 0
B69: Equipment Investment
C70: Pickup/General Use Equipment | D70: 1437.8073 | F70: Dollars | G70: 0.08 | I70: 115.024584 | J70: =E70*H70 -> 0 | K70: 0 | M70: 0 | N70: =J70*L70 -> 0 | O70: 115.024584 | P70: =+J70-N70 -> 0 | Q70: 5751.2292 | R70: =+J70*E$7 -> 0
C71: Irrigation Equipment | D71: 364.829901 | F71: Dollars | G71: 0.08 | I71: 29.18639208 | J71: 0 | K71: 0 | M71: 0 | N71: =J71*L71 -> 0 | O71: 29.18639208 | P71: 0 | Q71: 1459.319604 | R71: 0
C72: Tractors/Self-Propelled | D72: 289.6726026 | F72: Dollars | G72: 0.08 | I72: 23.17380821 | J72: 0 | K72: 0 | M72: 0 | N72: =J72*L72 -> 0 | O72: 23.17380821 | P72: 0 | Q72: 1158.69041 | R72: 0
C73: Implements | D73: 105.5155609 | F73: Dollars | G73: 0.08 | I73: 8.441244875 | J73: 0 | K73: 0 | M73: 0 | N73: =J73*L73 -> 0 | O73: 8.441244875 | P73: 0 | Q73: 422.0622437 | R73: 0
B74: Salaried Labor | D74: 1 | F74: Acre | G74: 0 | I74: 0 | J74: 0 | K74: 0 | M74: 0 | N74: =J74*L74 -> 0 | O74: 0 | P74: =+J74-N74 -> 0 | Q74: 0 | R74: =+J74*E$7 -> 0
B75: Management Fee, Owner/Operator Labor | D75: 1 | F75: Acre | G75: 0 | I75: 0 | J75: 0 | K75: 0 | M75: 0 | N75: 0 | O75: 0 | P75: 0 | Q75: 0 | R75: 0
B76: Allocated Establishment Cost | D76: 1 | F76: Acre | G76: 287.09 | I76: 287.09 | J76: 0 | K76: 0 | M76: 0 | N76: 0 | O76: 287.09 | P76: 0 | Q76: 14354.5 | R76: 0
B77: Trans Pecos Irrigated Land | D77: 1 | F77: Acre | G77: 50 | I77: 50 | J77: 0 | K77: 0 | M77: 0 | N77: 0 | O77: 50 | P77: 0 | Q77: 2500 | R77: 0
B78: Property Taxes | D78: 1 | F78: Acre | G78: 0 | I78: 0 | J78: 0 | K78: 0 | M78: 0 | N78: 0 | O78: 0 | P78: 0 | Q78: 0 | R78: 0
B79: Whole Farm Insurance | D79: 1 | F79: Acre | G79: 0 | I79: 0 | J79: 0 | K79: 0 | M79: 0 | N79: 0 | O79: 0 | P79: 0 | Q79: 0 | R79: 0
D80: 1 | G80: 0 | I80: 0 | J80: 0 | K80: 0 | M80: 0 | N80: 0 | O80: 0 | P80: 0 | Q80: 0 | R80: 0
D81: 1 | G81: 0 | I81: 0 | J81: =E81*H81 -> 0 | K81: 0 | M81: 0 | N81: 0 | O81: 0 | P81: 0 | Q81: 0 | R81: 0
A82: Total Fixed Costs | I82: 719.7216558 | J82: =+SUM(J65:J81) -> 0 | M82: 0 | N82: =+SUM(N65:N81) -> 0 | O82: 719.7216558 | P82: =+SUM(P65:P81) -> 0 | Q82: 35986.08279 | R82: =+SUM(R65:R81) -> 0
A83: Total Specified Costs | I83: 2140.246864 | J83: =+J59+J82 -> 0 | M83: 0 | N83: =+N59+N82 -> 0 | O83: 2140.246864 | P83: =+P59+P82 -> 0 | Q83: 107012.3432 | R83: =+R59+R82 -> 0
A85: Returns Above Specified Costs | I85: 587.7531357 | J85: =+J13-J83 -> 0 | M85: 0 | N85: =+N13-N83 -> 0 | O85: 587.7531357 | P85: =+P13-P83 -> 0 | Q85: 29387.65679 | R85: =+R13-R83 -> 0
A87: Breakeven Price to Cover Total Costs | G87: 1.569095942 | H87: =IF(E10=0,"n/a",(YTotExp-(YTotExp+YTotRet-J10))/E10) -> n/a | I87: Pound
D89: Example Breakeven Prices
B90: Example | C90: Example | D90: To Cover | G90: To Cover
B91: Yield | C91: Yield | D91: Variable | G91: Total
B92: Percent | C92: Pound | D92: Costs | G92: Costs
B93: 0.75 | C93: 1023 | D93: 1.388587692 | G93: 2.092127922
B94: 0.9 | C94: 1227.6 | D94: 1.15715641 | G94: 1.743439935
B95: 1 | C95: 1364 | D95: 1.041440769 | G95: 1.569095942
B96: 1.1 | C96: 1500.4 | D96: 0.9467643352 | G96: 1.426450856
B97: 1.25 | C97: 1705 | D97: 0.833152615 | G97: 1.255276753
A99: Developed by Extension Agricultural Economists, Texas A&M AgriLife Extension, budgets@tamu.edu.
A101: Information presented is prepared solely as a general guide and not intended to recognize or predict the costs and returns from any one operation. Brand names are mentioned only as examples and imply no endorsement.

Sheet RedChile
A1: Projections for Planning Purposes Only -- Not to be Used without Updating
A2: 2026 Estimated Costs and Returns per Acre
A3: Red Chile Peppers, Dell City, Center Pivot Irrigated
A4: Enter your name for this budget in the cell above.
A5: Enter Your Values in the cells highlighed in MAROON.
E6: Your Acres | R6: Your
C7: Crop Acres | D7: 122 | L7: Your | Q7: Enterprise | R7: Enterprise
E8: Your | H8: Your | I8: Cash | J8: Your | K8: Landlord | L8: Landlord | N8: Your | P8: Your | Q8: Total | R8: Total
A9: REVENUE | D9: Quantity | E9: Quantity | F9: Units | G9: $/Unit | H9: $/Unit | I9: Total | J9: Total | K9: Share | L9: Share | M9: Landlord | N9: Landlord | O9: Tenant | P9: Tenant | Q9: (122 acres) | R9: ="(" & E7 & " acres)" -> ( acres)
B10: Red Chiles | D10: 4000 | F10: Pound | G10: 0.95 | I10: 3800 | J10: =E10*H10 -> 0 | K10: 0 | M10: 0 | N10: =J10*L10 -> 0 | O10: 3800 | P10: =+J10-N10 -> 0 | Q10: 463600 | R10: =+J10*E$7 -> 0
D11: 0 | G11: 0 | I11: 0 | J11: 0 | K11: 0 | M11: 0 | N11: 0 | O11: 0 | P11: =+J11-N11 -> 0 | Q11: 0 | R11: 0
D12: 0 | G12: 0 | I12: 0 | J12: 0 | K12: 0 | M12: 0 | N12: 0 | O12: 0 | P12: 0 | Q12: 0 | R12: 0
A13: Total Revenue | I13: 3800 | J13: =SUM(J10:J12) -> 0 | M13: 0 | N13: =SUM(N10:N12) -> 0 | O13: 3800 | P13: =SUM(P10:P12) -> 0 | Q13: 463600 | R13: =SUM(R10:R12) -> 0
Q14: Enterprise | R14: Enterprise
A15: VARIABLE COSTS | D15: Quantity | E15: Quantity | F15: Units | G15: $/Unit | H15: $/Unit | I15: Total | J15: Total | K15: Share | L15: Share | M15: Landlord | N15: Landlord | O15: Tenant | P15: Tenant | Q15: Total | R15: Total
A16: Production Costs
B17: Fertilizer
C18: Urea, Solid (46% N) | D18: 1.97 | F18: CWT | G18: 31.15 | I18: 61.3655 | J18: =E18*H18 -> 0 | K18: 0 | M18: 0 | N18: =J18*L18 -> 0 | O18: 61.3655 | P18: =+J18-N18 -> 0 | Q18: 7486.591 | R18: =+J18*E$7 -> 0
C19: Fertilizer 18-46-0 | D19: 228 | F19: Pound | G19: 0.54 | I19: 123.12 | J19: 0 | K19: 0 | M19: 0 | N19: 0 | O19: 123.12 | P19: 0 | Q19: 15020.64 | R19: 0
C20: Fertilizer 0-0-22 Kmag | D20: 567 | F20: Pound | G20: 0.32 | I20: 181.44 | J20: 0 | K20: 0 | M20: 0 | N20: 0 | O20: 181.44 | P20: 0 | Q20: 22135.68 | R20: 0
B21: Herbicide
C22: Trifluralin | D22: 3 | F22: Pint | G22: 2.75 | I22: 8.25 | J22: 0 | K22: 0 | M22: 0 | N22: 0 | O22: 8.25 | P22: 0 | Q22: 1006.5 | R22: 0
B23: Seed
C24: Red Chile Seed Treated | D24: 10 | F24: Pound | G24: 30 | I24: 300 | J24: 0 | K24: 0 | M24: 0 | N24: 0 | O24: 300 | P24: 0 | Q24: 36600 | R24: 0
B25: Fungicides
C26: Quadris | D26: 15 | F26: Ounce | G26: 1.6409 | I26: 24.6135 | J26: 0 | K26: 0 | M26: 0 | N26: 0 | O26: 24.6135 | P26: 0 | Q26: 3002.847 | R26: 0
B27: Other Chemicals
C28: Ethephon 6 | D28: 16 | F28: Ounce | G28: 0.1554 | I28: 2.4864 | J28: 0 | K28: 0 | M28: 0 | N28: 0 | O28: 2.4864 | P28: 0 | Q28: 303.3408 | R28: 0
C29: Sodium Chlorate 5L | D29: 1 | F29: Gallon | G29: 6 | I29: 6 | J29: 0 | K29: 0 | M29: 0 | N29: 0 | O29: 6 | P29: 0 | Q29: 732 | R29: 0
D30: 0 | G30: 0 | I30: 0 | J30: 0 | K30: 0 | M30: 0 | N30: 0 | O30: 0 | P30: 0 | Q30: 0 | R30: 0
D31: 0 | G31: 0 | I31: 0 | J31: 0 | K31: 0 | M31: 0 | N31: 0 | O31: 0 | P31: 0 | Q31: 0 | R31: 0
D32: 0 | G32: 0 | I32: 0 | J32: =E32*H32 -> 0 | K32: 0 | M32: 0 | N32: =J32*L32 -> 0 | O32: 0 | P32: =+J32-N32 -> 0 | Q32: 0 | R32: =+J32*E$7 -> 0
B33: Irrigation
C34: Energy Cost | D34: 4.68 | F34: Mcf | G34: 10 | I34: 46.8 | J34: =E34*H34 -> 0 | K34: 0 | M34: 0 | N34: =J34*L34 -> 0 | O34: 46.8 | P34: =+J34-N34 -> 0 | Q34: 5709.6 | R34: =+J34*E$7 -> 0
C35: Irrigation Labor | D35: 0.0173 | F35: Hour | G35: 17.5 | I35: 0.30275 | J35: 0 | K35: 0 | M35: 0 | N35: 0 | O35: 0.30275 | P35: 0 | Q35: 36.9355 | R35: 0
B36: Machinery Labor
C37: Tractors/Self-Propelled | D37: 3.27 | F37: Hour | G37: 17.21 | I37: 56.2767 | J37: =E37*H37 -> 0 | K37: 0 | M37: 0 | N37: =J37*L37 -> 0 | O37: 56.2767 | P37: =+J37-N37 -> 0 | Q37: 6865.7574 | R37: =+J37*E$7 -> 0
C38: Other Labor | D38: 2.07 | F38: Hour | G38: 17.21 | I38: 35.6247 | J38: =E38*H38 -> 0 | K38: 0 | M38: 0 | N38: =J38*L38 -> 0 | O38: 35.6247 | P38: =+J38-N38 -> 0 | Q38: 4346.2134 | R38: =+J38*E$7 -> 0
B40: Diesel Fuel
C41: Pickup/General Use Equipment | D41: 1 | F41: Acre | G41: 0 | I41: 0 | J41: =E41*H41 -> 0 | K41: 0 | M41: 0 | N41: =J41*L41 -> 0 | O41: 0 | P41: =+J41-N41 -> 0 | Q41: 0 | R41: =+J41*E$7 -> 0
C42: Tractors/Self-Propelled | D42: 18.98 | F42: Gallon | G42: 3.16 | I42: 59.9768 | J42: =E42*H42 -> 0 | K42: 0 | M42: 0 | N42: =J42*L42 -> 0 | O42: 59.9768 | P42: =+J42-N42 -> 0 | Q42: 7317.1696 | R42: =+J42*E$7 -> 0
B44: Gasoline
C45: Pickup/General Use Equipment | D45: 1 | F45: Acre | G45: 9.424032787 | I45: 9.424032787 | J45: =E45*H45 -> 0 | K45: 0 | M45: 0 | N45: =J45*L45 -> 0 | O45: 9.424032787 | P45: =+J45-N45 -> 0 | Q45: 1149.732 | R45: =+J45*E$7 -> 0
C46: Tractors/Self-Propelled | D46: 0 | F46: Gallon | G46: 2.93 | I46: 0 | J46: =E46*H46 -> 0 | K46: 0 | M46: 0 | N46: =J46*L46 -> 0 | O46: 0 | P46: =+J46-N46 -> 0 | Q46: 0 | R46: =+J46*E$7 -> 0
B48: Repairs & Maintenance
C49: Pickup/General Use Equipment | D49: 1 | F49: Acre | G49: 1.608196721 | I49: 1.608196721 | J49: =E49*H49 -> 0 | K49: 0 | M49: 0 | N49: =J49*L49 -> 0 | O49: 1.608196721 | P49: =+J49-N49 -> 0 | Q49: 196.2 | R49: =+J49*E$7 -> 0
C50: Irrigation Equipment | D50: 1 | F50: Acre | G50: 7.970508 | I50: 7.970508 | J50: 0 | K50: 0 | M50: 0 | N50: 0 | O50: 7.970508 | P50: 0 | Q50: 972.401976 | R50: 0
C51: Tractors/Self-Propelled | D51: 1 | F51: Acre | G51: 57.21243785 | I51: 57.21243785 | J51: 0 | K51: 0 | M51: 0 | N51: 0 | O51: 57.21243785 | P51: 0 | Q51: 6979.917418 | R51: 0
C52: Implements | D52: 1 | F52: Acre | G52: 21.76087247 | I52: 21.76087247 | J52: 0 | K52: 0 | M52: 0 | N52: 0 | O52: 21.76087247 | P52: 0 | Q52: 2654.826441 | R52: 0
I53: 0 | J53: 0 | K53: 0 | M53: 0 | N53: 0 | O53: 0 | P53: 0 | Q53: 0 | R53: 0
I54: 0 | J54: 0 | K54: 0 | M54: 0 | N54: 0 | O54: 0 | P54: 0 | Q54: 0 | R54: 0
B55: Interest on Credit Line | G55: 0.08 | I55: 42.37762417 | J55: =+SUM(J17:J54)/2*H55 -> 0 | M55: 0 | N55: =+SUM(N17:N54)/2*L55 -> 0 | O55: 42.37762417 | P55: =+SUM(P17:P54)/2*L55 -> 0 | Q55: 5170.070149 | R55: =+J55*E$7 -> 0
A56: Total Variable Costs | I56: 1046.610022 | J56: =SUM(J18:J55) -> 0 | M56: 0 | N56: =SUM(N18:N55) -> 0 | O56: 1046.610022 | P56: =SUM(P18:P55) -> 0 | Q56: 127686.4227 | R56: =SUM(R18:R55) -> 0
A57: Planned Returns Above Variable Costs: | I57: 2753.389978 | J57: =+J13-J56 -> 0 | M57: 0 | N57: =+N13-N56 -> 0 | O57: 2753.389978 | P57: =+P13-P56 -> 0 | Q57: 335913.5773 | R57: =+R13-R56 -> 0
B58: Breakeven Price to Cover Variable Costs | G58: 0.2616525055 | H58: =IF(E10=0,"n/a",(YVarExp-(YTotExp+YTotRet-J10))/E10) -> n/a | I58: Pound
Q59: Enterprise | R59: Enterprise
A60: FIXED COSTS | D60: Quantity | E60: Quantity | F60: Units | G60: $/Unit | H60: $/Unit | I60: Total | J60: Total | K60: Share | L60: Share | M60: Landlord | N60: Landlord | O60: Tenant | P60: Tenant | Q60: Total | R60: Total
B61: Machinery Depreciation
C62: Pickup/General Use Equipment | D62: 1 | F62: Acre | G62: 6.030737705 | I62: 6.030737705 | J62: =E62*H62 -> 0 | K62: 0 | M62: 0 | N62: =J62*L62 -> 0 | O62: 6.030737705 | P62: =+J62-N62 -> 0 | Q62: 735.75 | R62: =+J62*E$7 -> 0
C63: Irrigation Equipment | D63: 1 | F63: Acre | G63: 45.37377049 | I63: 45.37377049 | J63: 0 | K63: 0 | M63: 0 | N63: =J63*L63 -> 0 | O63: 45.37377049 | P63: 0 | Q63: 5535.6 | R63: 0
C64: Tractors/Self-Propelled | D64: 1 | F64: Acre | G64: 86.33991358 | I64: 86.33991358 | J64: 0 | K64: 0 | M64: 0 | N64: =J64*L64 -> 0 | O64: 86.33991358 | P64: 0 | Q64: 10533.46946 | R64: 0
C65: Implements | D65: 1 | F65: Acre | G65: 28.74378734 | I65: 28.74378734 | J65: 0 | K65: 0 | M65: 0 | N65: =J65*L65 -> 0 | O65: 28.74378734 | P65: 0 | Q65: 3506.742056 | R65: 0
B66: Equipment Investment
C67: Pickup/General Use Equipment | D67: 25.12807377 | F67: Dollars | G67: 0.08 | I67: 2.010245902 | J67: =E67*H67 -> 0 | K67: 0 | M67: 0 | N67: =J67*L67 -> 0 | O67: 2.010245902 | P67: =+J67-N67 -> 0 | Q67: 245.25 | R67: =+J67*E$7 -> 0
C68: Irrigation Equipment | D68: 340.3032787 | F68: Dollars | G68: 0.08 | I68: 27.2242623 | J68: 0 | K68: 0 | M68: 0 | N68: =J68*L68 -> 0 | O68: 27.2242623 | P68: 0 | Q68: 3321.36 | R68: 0
C69: Tractors/Self-Propelled | D69: 801.1225291 | F69: Dollars | G69: 0.08 | I69: 64.08980233 | J69: 0 | K69: 0 | M69: 0 | N69: =J69*L69 -> 0 | O69: 64.08980233 | P69: 0 | Q69: 7818.955884 | R69: 0
C70: Implements | D70: 131.3972112 | F70: Dollars | G70: 0.08 | I70: 10.5117769 | J70: 0 | K70: 0 | M70: 0 | N70: =J70*L70 -> 0 | O70: 10.5117769 | P70: 0 | Q70: 1282.436781 | R70: 0
B71: Salaried Labor | D71: 1 | F71: Acre | G71: 0 | I71: 0 | J71: 0 | K71: 0 | M71: 0 | N71: =J71*L71 -> 0 | O71: 0 | P71: =+J71-N71 -> 0 | Q71: 0 | R71: =+J71*E$7 -> 0
B72: Management Fee, Owner/Operator Labor | D72: 1 | F72: Acre | G72: 0 | I72: 0 | J72: 0 | K72: 0 | M72: 0 | N72: 0 | O72: 0 | P72: 0 | Q72: 0 | R72: 0
B73: Allocated Establishment Cost | D73: 1 | F73: Acre | G73: 0 | I73: 0 | J73: 0 | K73: 0 | M73: 0 | N73: 0 | O73: 0 | P73: 0 | Q73: 0 | R73: 0
B74: Trans Pecos Irrigated Land | D74: 1 | F74: Acre | G74: 50 | I74: 50 | J74: 0 | K74: 0 | M74: 0 | N74: 0 | O74: 50 | P74: 0 | Q74: 6100 | R74: 0
B75: Property Taxes | D75: 1 | F75: Acre | G75: 0 | I75: 0 | J75: 0 | K75: 0 | M75: 0 | N75: 0 | O75: 0 | P75: 0 | Q75: 0 | R75: 0
B76: Whole Farm Insurance | D76: 1 | F76: Acre | G76: 0 | I76: 0 | J76: 0 | K76: 0 | M76: 0 | N76: 0 | O76: 0 | P76: 0 | Q76: 0 | R76: 0
D77: 1 | G77: 0 | I77: 0 | J77: 0 | K77: 0 | M77: 0 | N77: 0 | O77: 0 | P77: 0 | Q77: 0 | R77: 0
D78: 1 | G78: 0 | I78: 0 | J78: =E78*H78 -> 0 | K78: 0 | M78: 0 | N78: 0 | O78: 0 | P78: 0 | Q78: 0 | R78: 0
A79: Total Fixed Costs | I79: 320.3242965 | J79: =+SUM(J62:J78) -> 0 | M79: 0 | N79: =+SUM(N62:N78) -> 0 | O79: 320.3242965 | P79: =+SUM(P62:P78) -> 0 | Q79: 39079.56418 | R79: =+SUM(R62:R78) -> 0
A80: Total Specified Costs | I80: 1366.934319 | J80: =+J56+J79 -> 0 | M80: 0 | N80: =+N56+N79 -> 0 | O80: 1366.934319 | P80: =+P56+P79 -> 0 | Q80: 166765.9869 | R80: =+R56+R79 -> 0
A82: Returns Above Specified Costs | I82: 2433.065681 | J82: =+J13-J80 -> 0 | M82: 0 | N82: =+N13-N80 -> 0 | O82: 2433.065681 | P82: =+P13-P80 -> 0 | Q82: 296834.0131 | R82: =+R13-R80 -> 0
A84: Breakeven Price to Cover Total Costs | G84: 0.3417335796 | H84: =IF(E10=0,"n/a",(YTotExp-(YTotExp+YTotRet-J10))/E10) -> n/a | I84: Pound
D86: Example Breakeven Prices
B87: Example | C87: Example | D87: To Cover | G87: To Cover
B88: Yield | C88: Yield | D88: Variable | G88: Total
B89: Percent | C89: Pound | D89: Costs | G89: Costs
B90: 0.75 | C90: 3000 | D90: 0.3488700073 | G90: 0.4556447728
B91: 0.9 | C91: 3600 | D91: 0.2907250061 | G91: 0.3797039774
B92: 1 | C92: 4000 | D92: 0.2616525055 | G92: 0.3417335796
B93: 1.1 | C93: 4400 | D93: 0.2378659141 | G93: 0.3106668906
B94: 1.25 | C94: 5000 | D94: 0.2093220044 | G94: 0.2733868637
A96: Developed by Extension Agricultural Economists, Texas A&M AgriLife Extension, budgets@tamu.edu.
A98: Information presented is prepared solely as a general guide and not intended to recognize or predict the costs and returns from any one operation. Brand names are mentioned only as examples and imply no endorsement.

Sheet Onions
A1: Projections for Planning Purposes Only -- Not to be Used without Updating
A2: 2026 Estimated Costs and Returns per Acre
A3: Spring Onions, Furrow Irrigated
A4: Enter your name for this budget in the cell above.
A5: Enter Your Values in the cells highlighed in MAROON.
E6: Your Acres | R6: Your
C7: Crop Acres | D7: 122 | L7: Your | Q7: Enterprise | R7: Enterprise
E8: Your | H8: Your | I8: Cash | J8: Your | K8: Landlord | L8: Landlord | N8: Your | P8: Your | Q8: Total | R8: Total
A9: REVENUE | D9: Quantity | E9: Quantity | F9: Units | G9: $/Unit | H9: $/Unit | I9: Total | J9: Total | K9: Share | L9: Share | M9: Landlord | N9: Landlord | O9: Tenant | P9: Tenant | Q9: (122 acres) | R9: ="(" & E7 & " acres)" -> ( acres)
B10: Spring Onions | D10: 650 | F10: Bag | G10: 8 | I10: 5200 | J10: =E10*H10 -> 0 | K10: 0 | M10: 0 | N10: =J10*L10 -> 0 | O10: 5200 | P10: =+J10-N10 -> 0 | Q10: 634400 | R10: =+J10*E$7 -> 0
D11: 0 | G11: 0 | I11: 0 | J11: 0 | K11: 0 | M11: 0 | N11: 0 | O11: 0 | P11: =+J11-N11 -> 0 | Q11: 0 | R11: 0
D12: 0 | G12: 0 | I12: 0 | J12: 0 | K12: 0 | M12: 0 | N12: 0 | O12: 0 | P12: 0 | Q12: 0 | R12: 0
A13: Total Revenue | I13: 5200 | J13: =SUM(J10:J12) -> 0 | M13: 0 | N13: =SUM(N10:N12) -> 0 | O13: 5200 | P13: =SUM(P10:P12) -> 0 | Q13: 634400 | R13: =SUM(R10:R12) -> 0
Q14: Enterprise | R14: Enterprise
A15: VARIABLE COSTS | D15: Quantity | E15: Quantity | F15: Units | G15: $/Unit | H15: $/Unit | I15: Total | J15: Total | K15: Share | L15: Share | M15: Landlord | N15: Landlord | O15: Tenant | P15: Tenant | Q15: Total | R15: Total
A16: Production Costs
B17: Custom
C18: Custom Apply Fertilizer | D18: 1 | F18: Acre | G18: 6.39 | I18: 6.39 | J18: =E18*H18 -> 0 | K18: 0 | M18: 0 | N18: =J18*L18 -> 0 | O18: 6.39 | P18: =+J18-N18 -> 0 | Q18: 779.58 | R18: =+J18*E$7 -> 0
C19: Harvest, Pack, Market Onions | D19: 650 | F19: Bag | G19: 4.02 | I19: 2613 | J19: 0 | K19: 0 | M19: 0 | N19: 0 | O19: 2613 | P19: 0 | Q19: 318786 | R19: 0
B20: Fertilizer
C21: Fertilizer 18-46-0 | D21: 100 | F21: Pound | G21: 0.54 | I21: 54 | J21: 0 | K21: 0 | M21: 0 | N21: 0 | O21: 54 | P21: 0 | Q21: 6588 | R21: 0
C22: N-32 in Water | D22: 100 | F22: Pound | G22: 0.53 | I22: 53 | J22: 0 | K22: 0 | M22: 0 | N22: 0 | O22: 53 | P22: 0 | Q22: 6466 | R22: 0
B23: Herbicide
C24: Glyphosate | D24: 2 | F24: Pint | G24: 2.125 | I24: 4.25 | J24: 0 | K24: 0 | M24: 0 | N24: 0 | O24: 4.25 | P24: 0 | Q24: 518.5 | R24: 0
B25: Insecticide
C26: Mustang Max | D26: 31 | F26: Ounce | G26: 1.25 | I26: 38.75 | J26: 0 | K26: 0 | M26: 0 | N26: 0 | O26: 38.75 | P26: 0 | Q26: 4727.5 | R26: 0
B27: Seed
C28: Onion Seed | D28: 1.5 | F28: Pound | G28: 60 | I28: 90 | J28: 0 | K28: 0 | M28: 0 | N28: 0 | O28: 90 | P28: 0 | Q28: 10980 | R28: 0
B29: Fungicides
C30: Quadris | D30: 19 | F30: Ounce | G30: 1.6409 | I30: 31.1771 | J30: 0 | K30: 0 | M30: 0 | N30: 0 | O30: 31.1771 | P30: 0 | Q30: 3803.6062 | R30: 0
D31: 0 | G31: 0 | I31: 0 | J31: 0 | K31: 0 | M31: 0 | N31: 0 | O31: 0 | P31: 0 | Q31: 0 | R31: 0
D32: 0 | G32: 0 | I32: 0 | J32: 0 | K32: 0 | M32: 0 | N32: 0 | O32: 0 | P32: 0 | Q32: 0 | R32: 0
D33: 0 | G33: 0 | I33: 0 | J33: =E33*H33 -> 0 | K33: 0 | M33: 0 | N33: =J33*L33 -> 0 | O33: 0 | P33: =+J33-N33 -> 0 | Q33: 0 | R33: =+J33*E$7 -> 0
B34: Irrigation
C35: Energy Cost | D35: 2425.52 | F35: kWh | G35: 0.17 | I35: 412.3384 | J35: =E35*H35 -> 0 | K35: 0 | M35: 0 | N35: =J35*L35 -> 0 | O35: 412.3384 | P35: =+J35-N35 -> 0 | Q35: 50305.2848 | R35: =+J35*E$7 -> 0
C36: Irrigation Labor | D36: 7.6384 | F36: Hour | G36: 17.5 | I36: 133.672 | J36: 0 | K36: 0 | M36: 0 | N36: 0 | O36: 133.672 | P36: 0 | Q36: 16307.984 | R36: 0
B37: Machinery Labor
C38: Tractors/Self-Propelled | D38: 2.3 | F38: Hour | G38: 17.21 | I38: 39.583 | J38: =E38*H38 -> 0 | K38: 0 | M38: 0 | N38: =J38*L38 -> 0 | O38: 39.583 | P38: =+J38-N38 -> 0 | Q38: 4829.126 | R38: =+J38*E$7 -> 0
C39: Other Labor | D39: 0 | F39: Hour | G39: 17.21 | I39: 0 | J39: =E39*H39 -> 0 | K39: 0 | M39: 0 | N39: =J39*L39 -> 0 | O39: 0 | P39: =+J39-N39 -> 0 | Q39: 0 | R39: =+J39*E$7 -> 0
B41: Diesel Fuel
C42: Pickup/General Use Equipment | D42: 1 | F42: Acre | G42: 0 | I42: 0 | J42: =E42*H42 -> 0 | K42: 0 | M42: 0 | N42: =J42*L42 -> 0 | O42: 0 | P42: =+J42-N42 -> 0 | Q42: 0 | R42: =+J42*E$7 -> 0
C43: Tractors/Self-Propelled | D43: 18.31 | F43: Gallon | G43: 3.16 | I43: 57.8596 | J43: =E43*H43 -> 0 | K43: 0 | M43: 0 | N43: =J43*L43 -> 0 | O43: 57.8596 | P43: =+J43-N43 -> 0 | Q43: 7058.8712 | R43: =+J43*E$7 -> 0
B45: Gasoline
C46: Pickup/General Use Equipment | D46: 1 | F46: Acre | G46: 9.424032787 | I46: 9.424032787 | J46: =E46*H46 -> 0 | K46: 0 | M46: 0 | N46: =J46*L46 -> 0 | O46: 9.424032787 | P46: =+J46-N46 -> 0 | Q46: 1149.732 | R46: =+J46*E$7 -> 0
C47: Tractors/Self-Propelled | D47: 0 | F47: Gallon | G47: 2.93 | I47: 0 | J47: =E47*H47 -> 0 | K47: 0 | M47: 0 | N47: =J47*L47 -> 0 | O47: 0 | P47: =+J47-N47 -> 0 | Q47: 0 | R47: =+J47*E$7 -> 0
B49: Repairs & Maintenance
C50: Pickup/General Use Equipment | D50: 1 | F50: Acre | G50: 1.608196721 | I50: 1.608196721 | J50: =E50*H50 -> 0 | K50: 0 | M50: 0 | N50: =J50*L50 -> 0 | O50: 1.608196721 | P50: =+J50-N50 -> 0 | Q50: 196.2 | R50: =+J50*E$7 -> 0
C51: Irrigation Equipment | D51: 1 | F51: Acre | G51: 5.578696 | I51: 5.578696 | J51: 0 | K51: 0 | M51: 0 | N51: 0 | O51: 5.578696 | P51: 0 | Q51: 680.600912 | R51: 0
C52: Tractors/Self-Propelled | D52: 1 | F52: Acre | G52: 47.81939294 | I52: 47.81939294 | J52: 0 | K52: 0 | M52: 0 | N52: 0 | O52: 47.81939294 | P52: 0 | Q52: 5833.965939 | R52: 0
C53: Implements | D53: 1 | F53: Acre | G53: 26.4623379 | I53: 26.4623379 | J53: 0 | K53: 0 | M53: 0 | N53: 0 | O53: 26.4623379 | P53: 0 | Q53: 3228.405223 | R53: 0
I54: 0 | J54: 0 | K54: 0 | M54: 0 | N54: 0 | O54: 0 | P54: 0 | Q54: 0 | R54: 0
I55: 0 | J55: 0 | K55: 0 | M55: 0 | N55: 0 | O55: 0 | P55: 0 | Q55: 0 | R55: 0
B56: Interest on Credit Line | G56: 0.08 | I56: 52.1230145 | J56: =+SUM(J17:J55)/2*H56 -> 0 | M56: 0 | N56: =+SUM(N17:N55)/2*L56 -> 0 | O56: 52.1230145 | P56: =+SUM(P17:P55)/2*L56 -> 0 | Q56: 6359.007769 | R56: =+J56*E$7 -> 0
A57: Total Variable Costs | I57: 3677.035771 | J57: =SUM(J18:J56) -> 0 | M57: 0 | N57: =SUM(N18:N56) -> 0 | O57: 3677.035771 | P57: =SUM(P18:P56) -> 0 | Q57: 448598.364 | R57: =SUM(R18:R56) -> 0
A58: Planned Returns Above Variable Costs: | I58: 1522.964229 | J58: =+J13-J57 -> 0 | M58: 0 | N58: =+N13-N57 -> 0 | O58: 1522.964229 | P58: =+P13-P57 -> 0 | Q58: 185801.636 | R58: =+R13-R57 -> 0
B59: Breakeven Price to Cover Variable Costs | G59: 5.656978109 | H59: =IF(E10=0,"n/a",(YVarExp-(YTotExp+YTotRet-J10))/E10) -> n/a | I59: Bag
Q60: Enterprise | R60: Enterprise
A61: FIXED COSTS | D61: Quantity | E61: Quantity | F61: Units | G61: $/Unit | H61: $/Unit | I61: Total | J61: Total | K61: Share | L61: Share | M61: Landlord | N61: Landlord | O61: Tenant | P61: Tenant | Q61: Total | R61: Total
B62: Machinery Depreciation
C63: Pickup/General Use Equipment | D63: 1 | F63: Acre | G63: 6.030737705 | I63: 6.030737705 | J63: =E63*H63 -> 0 | K63: 0 | M63: 0 | N63: =J63*L63 -> 0 | O63: 6.030737705 | P63: =+J63-N63 -> 0 | Q63: 735.75 | R63: =+J63*E$7 -> 0
C64: Irrigation Equipment | D64: 1 | F64: Acre | G64: 21.58469945 | I64: 21.58469945 | J64: 0 | K64: 0 | M64: 0 | N64: =J64*L64 -> 0 | O64: 21.58469945 | P64: 0 | Q64: 2633.333333 | R64: 0
C65: Tractors/Self-Propelled | D65: 1 | F65: Acre | G65: 49.41337271 | I65: 49.41337271 | J65: 0 | K65: 0 | M65: 0 | N65: =J65*L65 -> 0 | O65: 49.41337271 | P65: 0 | Q65: 6028.43147 | R65: 0
C66: Implements | D66: 1 | F66: Acre | G66: 31.98926295 | I66: 31.98926295 | J66: 0 | K66: 0 | M66: 0 | N66: =J66*L66 -> 0 | O66: 31.98926295 | P66: 0 | Q66: 3902.69008 | R66: 0
B67: Equipment Investment
C68: Pickup/General Use Equipment | D68: 25.12807377 | F68: Dollars | G68: 0.08 | I68: 2.010245902 | J68: =E68*H68 -> 0 | K68: 0 | M68: 0 | N68: =J68*L68 -> 0 | O68: 2.010245902 | P68: =+J68-N68 -> 0 | Q68: 245.25 | R68: =+J68*E$7 -> 0
C69: Irrigation Equipment | D69: 161.8852459 | F69: Dollars | G69: 0.08 | I69: 12.95081967 | J69: 0 | K69: 0 | M69: 0 | N69: =J69*L69 -> 0 | O69: 12.95081967 | P69: 0 | Q69: 1580 | R69: 0
C70: Tractors/Self-Propelled | D70: 384.9461132 | F70: Dollars | G70: 0.08 | I70: 30.79568906 | J70: 0 | K70: 0 | M70: 0 | N70: =J70*L70 -> 0 | O70: 30.79568906 | P70: 0 | Q70: 3757.074065 | R70: 0
C71: Implements | D71: 136.8429582 | F71: Dollars | G71: 0.08 | I71: 10.94743665 | J71: 0 | K71: 0 | M71: 0 | N71: =J71*L71 -> 0 | O71: 10.94743665 | P71: 0 | Q71: 1335.587272 | R71: 0
B72: Salaried Labor | D72: 1 | F72: Acre | G72: 0 | I72: 0 | J72: 0 | K72: 0 | M72: 0 | N72: =J72*L72 -> 0 | O72: 0 | P72: =+J72-N72 -> 0 | Q72: 0 | R72: =+J72*E$7 -> 0
B73: Management Fee, Owner/Operator Labor | D73: 1 | F73: Acre | G73: 0 | I73: 0 | J73: 0 | K73: 0 | M73: 0 | N73: 0 | O73: 0 | P73: 0 | Q73: 0 | R73: 0
B74: Allocated Establishment Cost | D74: 1 | F74: Acre | G74: 0 | I74: 0 | J74: 0 | K74: 0 | M74: 0 | N74: 0 | O74: 0 | P74: 0 | Q74: 0 | R74: 0
B75: Trans Pecos Irrigated Land | D75: 1 | F75: Acre | G75: 50 | I75: 50 | J75: 0 | K75: 0 | M75: 0 | N75: 0 | O75: 50 | P75: 0 | Q75: 6100 | R75: 0
B76: Property Taxes | D76: 1 | F76: Acre | G76: 0 | I76: 0 | J76: 0 | K76: 0 | M76: 0 | N76: 0 | O76: 0 | P76: 0 | Q76: 0 | R76: 0
B77: Whole Farm Insurance | D77: 1 | F77: Acre | G77: 0 | I77: 0 | J77: 0 | K77: 0 | M77: 0 | N77: 0 | O77: 0 | P77: 0 | Q77: 0 | R77: 0
D78: 1 | G78: 0 | I78: 0 | J78: 0 | K78: 0 | M78: 0 | N78: 0 | O78: 0 | P78: 0 | Q78: 0 | R78: 0
D79: 1 | G79: 0 | I79: 0 | J79: =E79*H79 -> 0 | K79: 0 | M79: 0 | N79: 0 | O79: 0 | P79: 0 | Q79: 0 | R79: 0
A80: Total Fixed Costs | I80: 215.7222641 | J80: =+SUM(J63:J79) -> 0 | M80: 0 | N80: =+SUM(N63:N79) -> 0 | O80: 215.7222641 | P80: =+SUM(P63:P79) -> 0 | Q80: 26318.11622 | R80: =+SUM(R63:R79) -> 0
A81: Total Specified Costs | I81: 3892.758035 | J81: =+J57+J80 -> 0 | M81: 0 | N81: =+N57+N80 -> 0 | O81: 3892.758035 | P81: =+P57+P80 -> 0 | Q81: 474916.4803 | R81: =+R57+R80 -> 0
A83: Returns Above Specified Costs | I83: 1307.241965 | J83: =+J13-J81 -> 0 | M83: 0 | N83: =+N13-N81 -> 0 | O83: 1307.241965 | P83: =+P13-P81 -> 0 | Q83: 159483.5197 | R83: =+R13-R81 -> 0
A85: Breakeven Price to Cover Total Costs | G85: 5.988858515 | H85: =IF(E10=0,"n/a",(YTotExp-(YTotExp+YTotRet-J10))/E10) -> n/a | I85: Bag
D87: Example Breakeven Prices
B88: Example | C88: Example | D88: To Cover | G88: To Cover
B89: Yield | C89: Yield | D89: Variable | G89: Total
B90: Percent | C90: Bag | D90: Costs | G90: Costs
B91: 0.75 | C91: 487.5 | D91: 7.542637479 | G91: 7.985144687
B92: 0.9 | C92: 585 | D92: 6.285531232 | G92: 6.654287239
B93: 1 | C93: 650 | D93: 5.656978109 | G93: 5.988858515
B94: 1.1 | C94: 715 | D94: 5.142707372 | G94: 5.444416832
B95: 1.25 | C95: 812.5 | D95: 4.525582487 | G95: 4.791086812
A97: Developed by Extension Agricultural Economists, Texas A&M AgriLife Extension, budgets@tamu.edu.
A99: Information presented is prepared solely as a general guide and not intended to recognize or predict the costs and returns from any one operation. Brand names are mentioned only as examples and imply no endorsement.

Sheet SwitchgrassEstablish
A1: Projections for Planning Purposes Only -- Not to be Used without Updating
A2: 2026 Estimated Costs and Returns per Acre
A3: Alamo Switchgrass Establishment, Pivot Irrigated
A4: Enter your name for this budget in the cell above.
A5: Enter Your Values in the cells highlighed in MAROON.
E6: Your Acres | R6: Your
C7: Crop Acres | D7: 122 | L7: Your | Q7: Enterprise | R7: Enterprise
E8: Your | H8: Your | I8: Cash | J8: Your | K8: Landlord | L8: Landlord | N8: Your | P8: Your | Q8: Total | R8: Total
A9: REVENUE | D9: Quantity | E9: Quantity | F9: Units | G9: $/Unit | H9: $/Unit | I9: Total | J9: Total | K9: Share | L9: Share | M9: Landlord | N9: Landlord | O9: Tenant | P9: Tenant | Q9: (122 acres) | R9: ="(" & E7 & " acres)" -> ( acres)
B10: 0 | D10: 0 | G10: 0 | I10: 0 | J10: =E10*H10 -> 0 | K10: 0 | M10: 0 | N10: =J10*L10 -> 0 | O10: 0 | P10: =+J10-N10 -> 0 | Q10: 0 | R10: =+J10*E$7 -> 0
D11: 0 | G11: 0 | I11: 0 | J11: 0 | K11: 0 | M11: 0 | N11: 0 | O11: 0 | P11: =+J11-N11 -> 0 | Q11: 0 | R11: 0
D12: 0 | G12: 0 | I12: 0 | J12: 0 | K12: 0 | M12: 0 | N12: 0 | O12: 0 | P12: 0 | Q12: 0 | R12: 0
A13: Total Revenue | I13: 0 | J13: =SUM(J10:J12) -> 0 | M13: 0 | N13: =SUM(N10:N12) -> 0 | O13: 0 | P13: =SUM(P10:P12) -> 0 | Q13: 0 | R13: =SUM(R10:R12) -> 0
Q14: Enterprise | R14: Enterprise
A15: VARIABLE COSTS | D15: Quantity | E15: Quantity | F15: Units | G15: $/Unit | H15: $/Unit | I15: Total | J15: Total | K15: Share | L15: Share | M15: Landlord | N15: Landlord | O15: Tenant | P15: Tenant | Q15: Total | R15: Total
A16: Production Costs
B17: Fertilizer
C18: N-32 in Water | D18: 20 | F18: Pound | G18: 0.53 | I18: 10.6 | J18: =E18*H18 -> 0 | K18: 0 | M18: 0 | N18: =J18*L18 -> 0 | O18: 10.6 | P18: =+J18-N18 -> 0 | Q18: 1293.2 | R18: =+J18*E$7 -> 0
B19: Herbicide
C20: Glyphosate | D20: 8 | F20: Pint | G20: 2.125 | I20: 17 | J20: 0 | K20: 0 | M20: 0 | N20: 0 | O20: 17 | P20: 0 | Q20: 2074 | R20: 0
B21: Seed
C22: Switchgrass Seed | D22: 3 | F22: Pound | G22: 18 | I22: 54 | J22: 0 | K22: 0 | M22: 0 | N22: 0 | O22: 54 | P22: 0 | Q22: 6588 | R22: 0
D23: 0 | G23: 0 | I23: 0 | J23: 0 | K23: 0 | M23: 0 | N23: 0 | O23: 0 | P23: 0 | Q23: 0 | R23: 0
D24: 0 | G24: 0 | I24: 0 | J24: 0 | K24: 0 | M24: 0 | N24: 0 | O24: 0 | P24: 0 | Q24: 0 | R24: 0
D25: 0 | G25: 0 | I25: 0 | J25: =E25*H25 -> 0 | K25: 0 | M25: 0 | N25: =J25*L25 -> 0 | O25: 0 | P25: =+J25-N25 -> 0 | Q25: 0 | R25: =+J25*E$7 -> 0
B26: Irrigation
C27: Energy Cost | D27: 3.04 | F27: Mcf | G27: 10 | I27: 30.4 | J27: =E27*H27 -> 0 | K27: 0 | M27: 0 | N27: =J27*L27 -> 0 | O27: 30.4 | P27: =+J27-N27 -> 0 | Q27: 3708.8 | R27: =+J27*E$7 -> 0
C28: Irrigation Labor | D28: 0.0176 | F28: Hour | G28: 17.5 | I28: 0.308 | J28: 0 | K28: 0 | M28: 0 | N28: 0 | O28: 0.308 | P28: 0 | Q28: 37.576 | R28: 0
B29: Machinery Labor
C30: Tractors/Self-Propelled | D30: 1.28 | F30: Hour | G30: 17.21 | I30: 22.0288 | J30: =E30*H30 -> 0 | K30: 0 | M30: 0 | N30: =J30*L30 -> 0 | O30: 22.0288 | P30: =+J30-N30 -> 0 | Q30: 2687.5136 | R30: =+J30*E$7 -> 0
C31: Other Labor | D31: 0 | F31: Hour | G31: 17.21 | I31: 0 | J31: =E31*H31 -> 0 | K31: 0 | M31: 0 | N31: =J31*L31 -> 0 | O31: 0 | P31: =+J31-N31 -> 0 | Q31: 0 | R31: =+J31*E$7 -> 0
B33: Diesel Fuel
C34: Pickup/General Use Equipment | D34: 1 | F34: Acre | G34: 0 | I34: 0 | J34: =E34*H34 -> 0 | K34: 0 | M34: 0 | N34: =J34*L34 -> 0 | O34: 0 | P34: =+J34-N34 -> 0 | Q34: 0 | R34: =+J34*E$7 -> 0
C35: Tractors/Self-Propelled | D35: 6.86 | F35: Gallon | G35: 3.16 | I35: 21.6776 | J35: =E35*H35 -> 0 | K35: 0 | M35: 0 | N35: =J35*L35 -> 0 | O35: 21.6776 | P35: =+J35-N35 -> 0 | Q35: 2644.6672 | R35: =+J35*E$7 -> 0
B37: Gasoline
C38: Pickup/General Use Equipment | D38: 1 | F38: Acre | G38: 0 | I38: 0 | J38: =E38*H38 -> 0 | K38: 0 | M38: 0 | N38: =J38*L38 -> 0 | O38: 0 | P38: =+J38-N38 -> 0 | Q38: 0 | R38: =+J38*E$7 -> 0
C39: Tractors/Self-Propelled | D39: 0 | F39: Gallon | G39: 2.93 | I39: 0 | J39: =E39*H39 -> 0 | K39: 0 | M39: 0 | N39: =J39*L39 -> 0 | O39: 0 | P39: =+J39-N39 -> 0 | Q39: 0 | R39: =+J39*E$7 -> 0
B41: Repairs & Maintenance
C42: Pickup/General Use Equipment | D42: 1 | F42: Acre | G42: 0 | I42: 0 | J42: =E42*H42 -> 0 | K42: 0 | M42: 0 | N42: =J42*L42 -> 0 | O42: 0 | P42: =+J42-N42 -> 0 | Q42: 0 | R42: =+J42*E$7 -> 0
C43: Irrigation Equipment | D43: 1 | F43: Acre | G43: 8.011312 | I43: 8.011312 | J43: 0 | K43: 0 | M43: 0 | N43: 0 | O43: 8.011312 | P43: 0 | Q43: 977.380064 | R43: 0
C44: Tractors/Self-Propelled | D44: 1 | F44: Acre | G44: 16.71085348 | I44: 16.71085348 | J44: 0 | K44: 0 | M44: 0 | N44: 0 | O44: 16.71085348 | P44: 0 | Q44: 2038.724125 | R44: 0
C45: Implements | D45: 1 | F45: Acre | G45: 15.81236341 | I45: 15.81236341 | J45: 0 | K45: 0 | M45: 0 | N45: 0 | O45: 15.81236341 | P45: 0 | Q45: 1929.108336 | R45: 0
I46: 0 | J46: 0 | K46: 0 | M46: 0 | N46: 0 | O46: 0 | P46: 0 | Q46: 0 | R46: 0
I47: 0 | J47: 0 | K47: 0 | M47: 0 | N47: 0 | O47: 0 | P47: 0 | Q47: 0 | R47: 0
B48: Interest on Credit Line | G48: 0.08 | I48: 5.471027006 | J48: =+SUM(J17:J47)/2*H48 -> 0 | M48: 0 | N48: =+SUM(N17:N47)/2*L48 -> 0 | O48: 5.471027006 | P48: =+SUM(P17:P47)/2*L48 -> 0 | Q48: 667.4652948 | R48: =+J48*E$7 -> 0
A49: Total Variable Costs | I49: 202.0199559 | J49: =SUM(J18:J48) -> 0 | M49: 0 | N49: =SUM(N18:N48) -> 0 | O49: 202.0199559 | P49: =SUM(P18:P48) -> 0 | Q49: 24646.43462 | R49: =SUM(R18:R48) -> 0
A50: Planned Returns Above Variable Costs: | I50: -202.0199559 | J50: =+J13-J49 -> 0 | M50: 0 | N50: =+N13-N49 -> 0 | O50: -202.0199559 | P50: =+P13-P49 -> 0 | Q50: -24646.43462 | R50: =+R13-R49 -> 0
B51: Breakeven Price to Cover Variable Costs | G51: n/a | H51: =IF(E10=0,"n/a",(YVarExp-(YTotExp+YTotRet-J10))/E10) -> n/a
Q52: Enterprise | R52: Enterprise
A53: FIXED COSTS | D53: Quantity | E53: Quantity | F53: Units | G53: $/Unit | H53: $/Unit | I53: Total | J53: Total | K53: Share | L53: Share | M53: Landlord | N53: Landlord | O53: Tenant | P53: Tenant | Q53: Total | R53: Total
B54: Machinery Depreciation
C55: Irrigation Equipment | D55: 1 | F55: Acre | G55: 48.63725833 | I55: 48.63725833 | J55: =E55*H55 -> 0 | K55: 0 | M55: 0 | N55: =J55*L55 -> 0 | O55: 48.63725833 | P55: =+J55-N55 -> 0 | Q55: 5933.745516 | R55: =+J55*E$7 -> 0
C56: Tractors/Self-Propelled | D56: 1 | F56: Acre | G56: 17.08115747 | I56: 17.08115747 | J56: 0 | K56: 0 | M56: 0 | N56: =J56*L56 -> 0 | O56: 17.08115747 | P56: 0 | Q56: 2083.901211 | R56: 0
C57: Implements | D57: 1 | F57: Acre | G57: 19.79741776 | I57: 19.79741776 | J57: 0 | K57: 0 | M57: 0 | N57: =J57*L57 -> 0 | O57: 19.79741776 | P57: 0 | Q57: 2415.284967 | R57: 0
B58: Equipment Investment
C59: Irrigation Equipment | D59: 364.7794375 | F59: Dollars | G59: 0.08 | I59: 29.182355 | J59: =E59*H59 -> 0 | K59: 0 | M59: 0 | N59: =J59*L59 -> 0 | O59: 29.182355 | P59: =+J59-N59 -> 0 | Q59: 3560.24731 | R59: =+J59*E$7 -> 0
C60: Tractors/Self-Propelled | D60: 133.0677268 | F60: Dollars | G60: 0.08 | I60: 10.64541814 | J60: 0 | K60: 0 | M60: 0 | N60: =J60*L60 -> 0 | O60: 10.64541814 | P60: 0 | Q60: 1298.741013 | R60: 0
C61: Implements | D61: 84.68895376 | F61: Dollars | G61: 0.08 | I61: 6.775116301 | J61: 0 | K61: 0 | M61: 0 | N61: =J61*L61 -> 0 | O61: 6.775116301 | P61: 0 | Q61: 826.5641887 | R61: 0
B62: Salaried Labor | D62: 1 | F62: Acre | G62: 0 | I62: 0 | J62: 0 | K62: 0 | M62: 0 | N62: =J62*L62 -> 0 | O62: 0 | P62: =+J62-N62 -> 0 | Q62: 0 | R62: =+J62*E$7 -> 0
B63: Management Fee, Owner/Operator Labor | D63: 1 | F63: Acre | G63: 0 | I63: 0 | J63: 0 | K63: 0 | M63: 0 | N63: 0 | O63: 0 | P63: 0 | Q63: 0 | R63: 0
B64: Allocated Establishment Cost | D64: 1 | F64: Acre | G64: 0 | I64: 0 | J64: 0 | K64: 0 | M64: 0 | N64: 0 | O64: 0 | P64: 0 | Q64: 0 | R64: 0
B65: None | D65: 1 | F65: Acre | G65: 0 | I65: 0 | J65: 0 | K65: 0 | M65: 0 | N65: 0 | O65: 0 | P65: 0 | Q65: 0 | R65: 0
B66: Property Taxes | D66: 1 | F66: Acre | G66: 0 | I66: 0 | J66: 0 | K66: 0 | M66: 0 | N66: 0 | O66: 0 | P66: 0 | Q66: 0 | R66: 0
B67: Whole Farm Insurance | D67: 1 | F67: Acre | G67: 0 | I67: 0 | J67: 0 | K67: 0 | M67: 0 | N67: 0 | O67: 0 | P67: 0 | Q67: 0 | R67: 0
D68: 1 | G68: 0 | I68: 0 | J68: 0 | K68: 0 | M68: 0 | N68: 0 | O68: 0 | P68: 0 | Q68: 0 | R68: 0
D69: 1 | G69: 0 | I69: 0 | J69: =E69*H69 -> 0 | K69: 0 | M69: 0 | N69: 0 | O69: 0 | P69: 0 | Q69: 0 | R69: 0
A70: Total Fixed Costs | I70: 132.118723 | J70: =+SUM(J55:J69) -> 0 | M70: 0 | N70: =+SUM(N55:N69) -> 0 | O70: 132.118723 | P70: =+SUM(P55:P69) -> 0 | Q70: 16118.48421 | R70: =+SUM(R55:R69) -> 0
A71: Total Specified Costs | I71: 334.1386789 | J71: =+J49+J70 -> 0 | M71: 0 | N71: =+N49+N70 -> 0 | O71: 334.1386789 | P71: =+P49+P70 -> 0 | Q71: 40764.91882 | R71: =+R49+R70 -> 0
A73: Returns Above Specified Costs | I73: -334.1386789 | J73: =+J13-J71 -> 0 | M73: 0 | N73: =+N13-N71 -> 0 | O73: -334.1386789 | P73: =+P13-P71 -> 0 | Q73: -40764.91882 | R73: =+R13-R71 -> 0
A75: Breakeven Price to Cover Total Costs | G75: n/a | H75: =IF(E10=0,"n/a",(YTotExp-(YTotExp+YTotRet-J10))/E10) -> n/a
D77: Example Breakeven Prices
B78: Example | C78: Example | D78: To Cover | G78: To Cover
B79: Yield | C79: Yield | D79: Variable | G79: Total
B80: Percent | D80: Costs | G80: Costs
B81: 0.75 | C81: 0 | D81: 0 | G81: 0
B82: 0.9 | C82: 0 | D82: 0 | G82: 0
B83: 1 | C83: 0 | D83: 0 | G83: 0
B84: 1.1 | C84: 0 | D84: 0 | G84: 0
B85: 1.25 | C85: 0 | D85: 0 | G85: 0
A87: Developed by Extension Agricultural Economists, Texas A&M AgriLife Extension, budgets@tamu.edu.
A89: Information presented is prepared solely as a general guide and not intended to recognize or predict the costs and returns from any one operation. Brand names are mentioned only as examples and imply no endorsement.

Sheet SwitchgrassGraze
A1: Projections for Planning Purposes Only -- Not to be Used without Updating
A2: 2026 Estimated Costs and Returns per Acre
A3: Alamo Switchgrass, Full Season, Pivot Irrigated, Grazed
A4: Enter your name for this budget in the cell above.
A5: Enter Your Values in the cells highlighed in MAROON.
E6: Your Acres | R6: Your
C7: Crop Acres | D7: 122 | L7: Your | Q7: Enterprise | R7: Enterprise
E8: Your | H8: Your | I8: Cash | J8: Your | K8: Landlord | L8: Landlord | N8: Your | P8: Your | Q8: Total | R8: Total
A9: REVENUE | D9: Quantity | E9: Quantity | F9: Units | G9: $/Unit | H9: $/Unit | I9: Total | J9: Total | K9: Share | L9: Share | M9: Landlord | N9: Landlord | O9: Tenant | P9: Tenant | Q9: (122 acres) | R9: ="(" & E7 & " acres)" -> ( acres)
B10: AUM Grazing Lease | D10: 6.3 | F10: AUM | G10: 15.5 | I10: 97.65 | J10: =E10*H10 -> 0 | K10: 0 | M10: 0 | N10: =J10*L10 -> 0 | O10: 97.65 | P10: =+J10-N10 -> 0 | Q10: 11913.3 | R10: =+J10*E$7 -> 0
D11: 0 | G11: 0 | I11: 0 | J11: 0 | K11: 0 | M11: 0 | N11: 0 | O11: 0 | P11: =+J11-N11 -> 0 | Q11: 0 | R11: 0
D12: 0 | G12: 0 | I12: 0 | J12: 0 | K12: 0 | M12: 0 | N12: 0 | O12: 0 | P12: 0 | Q12: 0 | R12: 0
A13: Total Revenue | I13: 97.65 | J13: =SUM(J10:J12) -> 0 | M13: 0 | N13: =SUM(N10:N12) -> 0 | O13: 97.65 | P13: =SUM(P10:P12) -> 0 | Q13: 11913.3 | R13: =SUM(R10:R12) -> 0
Q14: Enterprise | R14: Enterprise
A15: VARIABLE COSTS | D15: Quantity | E15: Quantity | F15: Units | G15: $/Unit | H15: $/Unit | I15: Total | J15: Total | K15: Share | L15: Share | M15: Landlord | N15: Landlord | O15: Tenant | P15: Tenant | Q15: Total | R15: Total
A16: Production Costs
B17: Fertilizer
C18: N-32 in Water | D18: 20 | F18: Pound | G18: 0.53 | I18: 10.6 | J18: =E18*H18 -> 0 | K18: 0 | M18: 0 | N18: =J18*L18 -> 0 | O18: 10.6 | P18: =+J18-N18 -> 0 | Q18: 1293.2 | R18: =+J18*E$7 -> 0
C19: Urea, Solid (46% N) | D19: 0.45 | F19: CWT | G19: 31.15 | I19: 14.0175 | J19: 0 | K19: 0 | M19: 0 | N19: 0 | O19: 14.0175 | P19: 0 | Q19: 1710.135 | R19: 0
B20: Herbicide
C21: 2,4-D Amine 4 | D21: 40 | F21: Ounce | G21: 0.10078125 | I21: 4.03125 | J21: 0 | K21: 0 | M21: 0 | N21: 0 | O21: 4.03125 | P21: 0 | Q21: 491.8125 | R21: 0
B22: Other Labor
C23: Hand Labor | D23: 0.14 | F23: Hour | G23: 8.5 | I23: 1.19 | J23: 0 | K23: 0 | M23: 0 | N23: 0 | O23: 1.19 | P23: 0 | Q23: 145.18 | R23: 0
D24: 0 | G24: 0 | I24: 0 | J24: 0 | K24: 0 | M24: 0 | N24: 0 | O24: 0 | P24: 0 | Q24: 0 | R24: 0
D25: 0 | G25: 0 | I25: 0 | J25: 0 | K25: 0 | M25: 0 | N25: 0 | O25: 0 | P25: 0 | Q25: 0 | R25: 0
D26: 0 | G26: 0 | I26: 0 | J26: =E26*H26 -> 0 | K26: 0 | M26: 0 | N26: =J26*L26 -> 0 | O26: 0 | P26: =+J26-N26 -> 0 | Q26: 0 | R26: =+J26*E$7 -> 0
B27: Irrigation
C28: Energy Cost | D28: 4.56 | F28: Mcf | G28: 10 | I28: 45.6 | J28: =E28*H28 -> 0 | K28: 0 | M28: 0 | N28: =J28*L28 -> 0 | O28: 45.6 | P28: =+J28-N28 -> 0 | Q28: 5563.2 | R28: =+J28*E$7 -> 0
C29: Irrigation Labor | D29: 0.0264 | F29: Hour | G29: 17.5 | I29: 0.462 | J29: 0 | K29: 0 | M29: 0 | N29: 0 | O29: 0.462 | P29: 0 | Q29: 56.364 | R29: 0
B30: Machinery Labor
C31: Tractors/Self-Propelled | D31: 0.3 | F31: Hour | G31: 17.21 | I31: 5.163 | J31: =E31*H31 -> 0 | K31: 0 | M31: 0 | N31: =J31*L31 -> 0 | O31: 5.163 | P31: =+J31-N31 -> 0 | Q31: 629.886 | R31: =+J31*E$7 -> 0
C32: Other Labor | D32: 0 | F32: Hour | G32: 17.21 | I32: 0 | J32: =E32*H32 -> 0 | K32: 0 | M32: 0 | N32: =J32*L32 -> 0 | O32: 0 | P32: =+J32-N32 -> 0 | Q32: 0 | R32: =+J32*E$7 -> 0
B34: Diesel Fuel
C35: Pickup/General Use Equipment | D35: 1 | F35: Acre | G35: 0 | I35: 0 | J35: =E35*H35 -> 0 | K35: 0 | M35: 0 | N35: =J35*L35 -> 0 | O35: 0 | P35: =+J35-N35 -> 0 | Q35: 0 | R35: =+J35*E$7 -> 0
C36: Tractors/Self-Propelled | D36: 1.14 | F36: Gallon | G36: 3.16 | I36: 3.6024 | J36: =E36*H36 -> 0 | K36: 0 | M36: 0 | N36: =J36*L36 -> 0 | O36: 3.6024 | P36: =+J36-N36 -> 0 | Q36: 439.4928 | R36: =+J36*E$7 -> 0
B38: Gasoline
C39: Pickup/General Use Equipment | D39: 1 | F39: Acre | G39: 0 | I39: 0 | J39: =E39*H39 -> 0 | K39: 0 | M39: 0 | N39: =J39*L39 -> 0 | O39: 0 | P39: =+J39-N39 -> 0 | Q39: 0 | R39: =+J39*E$7 -> 0
C40: Tractors/Self-Propelled | D40: 0 | F40: Gallon | G40: 2.93 | I40: 0 | J40: =E40*H40 -> 0 | K40: 0 | M40: 0 | N40: =J40*L40 -> 0 | O40: 0 | P40: =+J40-N40 -> 0 | Q40: 0 | R40: =+J40*E$7 -> 0
B42: Repairs & Maintenance
C43: Pickup/General Use Equipment | D43: 1 | F43: Acre | G43: 0 | I43: 0 | J43: =E43*H43 -> 0 | K43: 0 | M43: 0 | N43: =J43*L43 -> 0 | O43: 0 | P43: =+J43-N43 -> 0 | Q43: 0 | R43: =+J43*E$7 -> 0
C44: Irrigation Equipment | D44: 1 | F44: Acre | G44: 12.016968 | I44: 12.016968 | J44: 0 | K44: 0 | M44: 0 | N44: 0 | O44: 12.016968 | P44: 0 | Q44: 1466.070096 | R44: 0
C45: Tractors/Self-Propelled | D45: 1 | F45: Acre | G45: 1.762215403 | I45: 1.762215403 | J45: 0 | K45: 0 | M45: 0 | N45: 0 | O45: 1.762215403 | P45: 0 | Q45: 214.9902792 | R45: 0
C46: Implements | D46: 1 | F46: Acre | G46: 0.3395167963 | I46: 0.3395167963 | J46: 0 | K46: 0 | M46: 0 | N46: 0 | O46: 0.3395167963 | P46: 0 | Q46: 41.42104915 | R46: 0
I47: 0 | J47: 0 | K47: 0 | M47: 0 | N47: 0 | O47: 0 | P47: 0 | Q47: 0 | R47: 0
I48: 0 | J48: 0 | K48: 0 | M48: 0 | N48: 0 | O48: 0 | P48: 0 | Q48: 0 | R48: 0
B49: Interest on Credit Line | G49: 0.08 | I49: 3.017895781 | J49: =+SUM(J17:J48)/2*H49 -> 0 | M49: 0 | N49: =+SUM(N17:N48)/2*L49 -> 0 | O49: 3.017895781 | P49: =+SUM(P17:P48)/2*L49 -> 0 | Q49: 368.1832852 | R49: =+J49*E$7 -> 0
A50: Total Variable Costs | I50: 101.802746 | J50: =SUM(J18:J49) -> 0 | M50: 0 | N50: =SUM(N18:N49) -> 0 | O50: 101.802746 | P50: =SUM(P18:P49) -> 0 | Q50: 12419.93501 | R50: =SUM(R18:R49) -> 0
A51: Planned Returns Above Variable Costs: | I51: -4.15274598 | J51: =+J13-J50 -> 0 | M51: 0 | N51: =+N13-N50 -> 0 | O51: -4.15274598 | P51: =+P13-P50 -> 0 | Q51: -506.6350096 | R51: =+R13-R50 -> 0
B52: Breakeven Price to Cover Variable Costs | G52: 16.15916603 | H52: =IF(E10=0,"n/a",(YVarExp-(YTotExp+YTotRet-J10))/E10) -> n/a | I52: AUM
Q53: Enterprise | R53: Enterprise
A54: FIXED COSTS | D54: Quantity | E54: Quantity | F54: Units | G54: $/Unit | H54: $/Unit | I54: Total | J54: Total | K54: Share | L54: Share | M54: Landlord | N54: Landlord | O54: Tenant | P54: Tenant | Q54: Total | R54: Total
B55: Machinery Depreciation
C56: Irrigation Equipment | D56: 1 | F56: Acre | G56: 48.63725833 | I56: 48.63725833 | J56: =E56*H56 -> 0 | K56: 0 | M56: 0 | N56: =J56*L56 -> 0 | O56: 48.63725833 | P56: =+J56-N56 -> 0 | Q56: 5933.745516 | R56: =+J56*E$7 -> 0
C57: Tractors/Self-Propelled | D57: 1 | F57: Acre | G57: 1.716714078 | I57: 1.716714078 | J57: 0 | K57: 0 | M57: 0 | N57: =J57*L57 -> 0 | O57: 1.716714078 | P57: 0 | Q57: 209.4391175 | R57: 0
C58: Implements | D58: 1 | F58: Acre | G58: 0.4039188949 | I58: 0.4039188949 | J58: 0 | K58: 0 | M58: 0 | N58: =J58*L58 -> 0 | O58: 0.4039188949 | P58: 0 | Q58: 49.27810518 | R58: 0
B59: Equipment Investment
C60: Irrigation Equipment | D60: 364.7794375 | F60: Dollars | G60: 0.08 | I60: 29.182355 | J60: =E60*H60 -> 0 | K60: 0 | M60: 0 | N60: =J60*L60 -> 0 | O60: 29.182355 | P60: =+J60-N60 -> 0 | Q60: 3560.24731 | R60: =+J60*E$7 -> 0
C61: Tractors/Self-Propelled | D61: 13.37375645 | F61: Dollars | G61: 0.08 | I61: 1.069900516 | J61: 0 | K61: 0 | M61: 0 | N61: =J61*L61 -> 0 | O61: 1.069900516 | P61: 0 | Q61: 130.5278629 | R61: 0
C62: Implements | D62: 4.820880477 | F62: Dollars | G62: 0.08 | I62: 0.3856704381 | J62: 0 | K62: 0 | M62: 0 | N62: =J62*L62 -> 0 | O62: 0.3856704381 | P62: 0 | Q62: 47.05179345 | R62: 0
B63: Salaried Labor | D63: 1 | F63: Acre | G63: 0 | I63: 0 | J63: 0 | K63: 0 | M63: 0 | N63: =J63*L63 -> 0 | O63: 0 | P63: =+J63-N63 -> 0 | Q63: 0 | R63: =+J63*E$7 -> 0
B64: Management Fee, Owner/Operator Labor | D64: 1 | F64: Acre | G64: 0 | I64: 0 | J64: 0 | K64: 0 | M64: 0 | N64: 0 | O64: 0 | P64: 0 | Q64: 0 | R64: 0
B65: Allocated Establishment Cost | D65: 1 | F65: Acre | G65: 47.705 | I65: 47.705 | J65: 0 | K65: 0 | M65: 0 | N65: 0 | O65: 47.705 | P65: 0 | Q65: 5820.01 | R65: 0
B66: Trans Pecos Irrigated Land | D66: 1 | F66: Acre | G66: 50 | I66: 50 | J66: 0 | K66: 0 | M66: 0 | N66: 0 | O66: 50 | P66: 0 | Q66: 6100 | R66: 0
B67: Property Taxes | D67: 1 | F67: Acre | G67: 0 | I67: 0 | J67: 0 | K67: 0 | M67: 0 | N67: 0 | O67: 0 | P67: 0 | Q67: 0 | R67: 0
B68: Whole Farm Insurance | D68: 1 | F68: Acre | G68: 0 | I68: 0 | J68: 0 | K68: 0 | M68: 0 | N68: 0 | O68: 0 | P68: 0 | Q68: 0 | R68: 0
D69: 1 | G69: 0 | I69: 0 | J69: 0 | K69: 0 | M69: 0 | N69: 0 | O69: 0 | P69: 0 | Q69: 0 | R69: 0
D70: 1 | G70: 0 | I70: 0 | J70: =E70*H70 -> 0 | K70: 0 | M70: 0 | N70: 0 | O70: 0 | P70: 0 | Q70: 0 | R70: 0
A71: Total Fixed Costs | I71: 179.1008173 | J71: =+SUM(J56:J70) -> 0 | M71: 0 | N71: =+SUM(N56:N70) -> 0 | O71: 179.1008173 | P71: =+SUM(P56:P70) -> 0 | Q71: 21850.2997 | R71: =+SUM(R56:R70) -> 0
A72: Total Specified Costs | I72: 280.9035632 | J72: =+J50+J71 -> 0 | M72: 0 | N72: =+N50+N71 -> 0 | O72: 280.9035632 | P72: =+P50+P71 -> 0 | Q72: 34270.23471 | R72: =+R50+R71 -> 0
A74: Returns Above Specified Costs | I74: -183.2535632 | J74: =+J13-J72 -> 0 | M74: 0 | N74: =+N13-N72 -> 0 | O74: -183.2535632 | P74: =+P13-P72 -> 0 | Q74: -22356.93471 | R74: =+R13-R72 -> 0
A76: Breakeven Price to Cover Total Costs | G76: 44.58786718 | H76: =IF(E10=0,"n/a",(YTotExp-(YTotExp+YTotRet-J10))/E10) -> n/a | I76: AUM
D78: Example Breakeven Prices
B79: Example | C79: Example | D79: To Cover | G79: To Cover
B80: Yield | C80: Yield | D80: Variable | G80: Total
B81: Percent | C81: AUM | D81: Costs | G81: Costs
B82: 0.75 | C82: 4.725 | D82: 21.5455547 | G82: 59.45048957
B83: 0.9 | C83: 5.67 | D83: 17.95462892 | G83: 49.54207464
B84: 1 | C84: 6.3 | D84: 16.15916603 | G84: 44.58786718
B85: 1.1 | C85: 6.93 | D85: 14.69015094 | G85: 40.53442471
B86: 1.25 | C86: 7.875 | D86: 12.92733282 | G86: 35.67029374
A88: Developed by Extension Agricultural Economists, Texas A&M AgriLife Extension, budgets@tamu.edu.
A90: Information presented is prepared solely as a general guide and not intended to recognize or predict the costs and returns from any one operation. Brand names are mentioned only as examples and imply no endorsement.

Sheet SwitchgrassHay
A1: Projections for Planning Purposes Only -- Not to be Used without Updating
A2: 2026 Estimated Costs and Returns per Acre
A3: Alamo Switchgrass, Full Season, Pivot Irrigated, Baled
A4: Enter your name for this budget in the cell above.
A5: Enter Your Values in the cells highlighed in MAROON.
E6: Your Acres | R6: Your
C7: Crop Acres | D7: 122 | L7: Your | Q7: Enterprise | R7: Enterprise
E8: Your | H8: Your | I8: Cash | J8: Your | K8: Landlord | L8: Landlord | N8: Your | P8: Your | Q8: Total | R8: Total
A9: REVENUE | D9: Quantity | E9: Quantity | F9: Units | G9: $/Unit | H9: $/Unit | I9: Total | J9: Total | K9: Share | L9: Share | M9: Landlord | N9: Landlord | O9: Tenant | P9: Tenant | Q9: (122 acres) | R9: ="(" & E7 & " acres)" -> ( acres)
B10: Switchgrass | D10: 3.17 | F10: Ton | G10: 65 | I10: 206.05 | J10: =E10*H10 -> 0 | K10: 0 | M10: 0 | N10: =J10*L10 -> 0 | O10: 206.05 | P10: =+J10-N10 -> 0 | Q10: 25138.1 | R10: =+J10*E$7 -> 0
D11: 0 | G11: 0 | I11: 0 | J11: 0 | K11: 0 | M11: 0 | N11: 0 | O11: 0 | P11: =+J11-N11 -> 0 | Q11: 0 | R11: 0
D12: 0 | G12: 0 | I12: 0 | J12: 0 | K12: 0 | M12: 0 | N12: 0 | O12: 0 | P12: 0 | Q12: 0 | R12: 0
A13: Total Revenue | I13: 206.05 | J13: =SUM(J10:J12) -> 0 | M13: 0 | N13: =SUM(N10:N12) -> 0 | O13: 206.05 | P13: =SUM(P10:P12) -> 0 | Q13: 25138.1 | R13: =SUM(R10:R12) -> 0
Q14: Enterprise | R14: Enterprise
A15: VARIABLE COSTS | D15: Quantity | E15: Quantity | F15: Units | G15: $/Unit | H15: $/Unit | I15: Total | J15: Total | K15: Share | L15: Share | M15: Landlord | N15: Landlord | O15: Tenant | P15: Tenant | Q15: Total | R15: Total
A16: Production Costs
B17: Fertilizer
C18: N-32 in Water | D18: 20 | F18: Pound | G18: 0.53 | I18: 10.6 | J18: =E18*H18 -> 0 | K18: 0 | M18: 0 | N18: =J18*L18 -> 0 | O18: 10.6 | P18: =+J18-N18 -> 0 | Q18: 1293.2 | R18: =+J18*E$7 -> 0
C19: Urea, Solid (46% N) | D19: 0.45 | F19: CWT | G19: 31.15 | I19: 14.0175 | J19: 0 | K19: 0 | M19: 0 | N19: 0 | O19: 14.0175 | P19: 0 | Q19: 1710.135 | R19: 0
B20: Herbicide
C21: 2,4-D Amine 4 | D21: 40 | F21: Ounce | G21: 0.10078125 | I21: 4.03125 | J21: 0 | K21: 0 | M21: 0 | N21: 0 | O21: 4.03125 | P21: 0 | Q21: 491.8125 | R21: 0
B22: Other Labor
C23: Hand Labor | D23: 0.14 | F23: Hour | G23: 8.5 | I23: 1.19 | J23: 0 | K23: 0 | M23: 0 | N23: 0 | O23: 1.19 | P23: 0 | Q23: 145.18 | R23: 0
D24: 0 | G24: 0 | I24: 0 | J24: 0 | K24: 0 | M24: 0 | N24: 0 | O24: 0 | P24: 0 | Q24: 0 | R24: 0
D25: 0 | G25: 0 | I25: 0 | J25: 0 | K25: 0 | M25: 0 | N25: 0 | O25: 0 | P25: 0 | Q25: 0 | R25: 0
D26: 0 | G26: 0 | I26: 0 | J26: =E26*H26 -> 0 | K26: 0 | M26: 0 | N26: =J26*L26 -> 0 | O26: 0 | P26: =+J26-N26 -> 0 | Q26: 0 | R26: =+J26*E$7 -> 0
B27: Irrigation
C28: Energy Cost | D28: 4.56 | F28: Mcf | G28: 10 | I28: 45.6 | J28: =E28*H28 -> 0 | K28: 0 | M28: 0 | N28: =J28*L28 -> 0 | O28: 45.6 | P28: =+J28-N28 -> 0 | Q28: 5563.2 | R28: =+J28*E$7 -> 0
C29: Irrigation Labor | D29: 0.0264 | F29: Hour | G29: 17.5 | I29: 0.462 | J29: 0 | K29: 0 | M29: 0 | N29: 0 | O29: 0.462 | P29: 0 | Q29: 56.364 | R29: 0
B30: Machinery Labor
C31: Tractors/Self-Propelled | D31: 2.89 | F31: Hour | G31: 17.21 | I31: 49.7369 | J31: =E31*H31 -> 0 | K31: 0 | M31: 0 | N31: =J31*L31 -> 0 | O31: 49.7369 | P31: =+J31-N31 -> 0 | Q31: 6067.9018 | R31: =+J31*E$7 -> 0
C32: Other Labor | D32: 0 | F32: Hour | G32: 17.21 | I32: 0 | J32: =E32*H32 -> 0 | K32: 0 | M32: 0 | N32: =J32*L32 -> 0 | O32: 0 | P32: =+J32-N32 -> 0 | Q32: 0 | R32: =+J32*E$7 -> 0
B34: Diesel Fuel
C35: Pickup/General Use Equipment | D35: 1 | F35: Acre | G35: 0 | I35: 0 | J35: =E35*H35 -> 0 | K35: 0 | M35: 0 | N35: =J35*L35 -> 0 | O35: 0 | P35: =+J35-N35 -> 0 | Q35: 0 | R35: =+J35*E$7 -> 0
C36: Tractors/Self-Propelled | D36: 16.78 | F36: Gallon | G36: 3.16 | I36: 53.0248 | J36: =E36*H36 -> 0 | K36: 0 | M36: 0 | N36: =J36*L36 -> 0 | O36: 53.0248 | P36: =+J36-N36 -> 0 | Q36: 6469.0256 | R36: =+J36*E$7 -> 0
B38: Gasoline
C39: Pickup/General Use Equipment | D39: 1 | F39: Acre | G39: 0 | I39: 0 | J39: =E39*H39 -> 0 | K39: 0 | M39: 0 | N39: =J39*L39 -> 0 | O39: 0 | P39: =+J39-N39 -> 0 | Q39: 0 | R39: =+J39*E$7 -> 0
C40: Tractors/Self-Propelled | D40: 0 | F40: Gallon | G40: 2.93 | I40: 0 | J40: =E40*H40 -> 0 | K40: 0 | M40: 0 | N40: =J40*L40 -> 0 | O40: 0 | P40: =+J40-N40 -> 0 | Q40: 0 | R40: =+J40*E$7 -> 0
B42: Repairs & Maintenance
C43: Pickup/General Use Equipment | D43: 1 | F43: Acre | G43: 0 | I43: 0 | J43: =E43*H43 -> 0 | K43: 0 | M43: 0 | N43: =J43*L43 -> 0 | O43: 0 | P43: =+J43-N43 -> 0 | Q43: 0 | R43: =+J43*E$7 -> 0
C44: Irrigation Equipment | D44: 1 | F44: Acre | G44: 12.016968 | I44: 12.016968 | J44: 0 | K44: 0 | M44: 0 | N44: 0 | O44: 12.016968 | P44: 0 | Q44: 1466.070096 | R44: 0
C45: Tractors/Self-Propelled | D45: 1 | F45: Acre | G45: 21.51230391 | I45: 21.51230391 | J45: 0 | K45: 0 | M45: 0 | N45: 0 | O45: 21.51230391 | P45: 0 | Q45: 2624.501077 | R45: 0
C46: Implements | D46: 1 | F46: Acre | G46: 1.967128024 | I46: 1.967128024 | J46: 0 | K46: 0 | M46: 0 | N46: 0 | O46: 1.967128024 | P46: 0 | Q46: 239.9896189 | R46: 0
I47: 0 | J47: 0 | K47: 0 | M47: 0 | N47: 0 | O47: 0 | P47: 0 | Q47: 0 | R47: 0
I48: 0 | J48: 0 | K48: 0 | M48: 0 | N48: 0 | O48: 0 | P48: 0 | Q48: 0 | R48: 0
B49: Interest on Credit Line | G49: 0.08 | I49: 5.916368602 | J49: =+SUM(J17:J48)/2*H49 -> 0 | M49: 0 | N49: =+SUM(N17:N48)/2*L49 -> 0 | O49: 5.916368602 | P49: =+SUM(P17:P48)/2*L49 -> 0 | Q49: 721.7969695 | R49: =+J49*E$7 -> 0
A50: Total Variable Costs | I50: 220.0752185 | J50: =SUM(J18:J49) -> 0 | M50: 0 | N50: =SUM(N18:N49) -> 0 | O50: 220.0752185 | P50: =SUM(P18:P49) -> 0 | Q50: 26849.17666 | R50: =SUM(R18:R49) -> 0
A51: Planned Returns Above Variable Costs: | I51: -14.02521853 | J51: =+J13-J50 -> 0 | M51: 0 | N51: =+N13-N50 -> 0 | O51: -14.02521853 | P51: =+P13-P50 -> 0 | Q51: -1711.076661 | R51: =+R13-R50 -> 0
B52: Breakeven Price to Cover Variable Costs | G52: 69.42435916 | H52: =IF(E10=0,"n/a",(YVarExp-(YTotExp+YTotRet-J10))/E10) -> n/a | I52: Ton
Q53: Enterprise | R53: Enterprise
A54: FIXED COSTS | D54: Quantity | E54: Quantity | F54: Units | G54: $/Unit | H54: $/Unit | I54: Total | J54: Total | K54: Share | L54: Share | M54: Landlord | N54: Landlord | O54: Tenant | P54: Tenant | Q54: Total | R54: Total
B55: Machinery Depreciation
C56: Irrigation Equipment | D56: 1 | F56: Acre | G56: 48.63725833 | I56: 48.63725833 | J56: =E56*H56 -> 0 | K56: 0 | M56: 0 | N56: =J56*L56 -> 0 | O56: 48.63725833 | P56: =+J56-N56 -> 0 | Q56: 5933.745516 | R56: =+J56*E$7 -> 0
C57: Tractors/Self-Propelled | D57: 1 | F57: Acre | G57: 28.00626985 | I57: 28.00626985 | J57: 0 | K57: 0 | M57: 0 | N57: =J57*L57 -> 0 | O57: 28.00626985 | P57: 0 | Q57: 3416.764922 | R57: 0
C58: Implements | D58: 1 | F58: Acre | G58: 4.352149178 | I58: 4.352149178 | J58: 0 | K58: 0 | M58: 0 | N58: =J58*L58 -> 0 | O58: 4.352149178 | P58: 0 | Q58: 530.9621998 | R58: 0
B59: Equipment Investment
C60: Irrigation Equipment | D60: 364.7794375 | F60: Dollars | G60: 0.08 | I60: 29.182355 | J60: =E60*H60 -> 0 | K60: 0 | M60: 0 | N60: =J60*L60 -> 0 | O60: 29.182355 | P60: =+J60-N60 -> 0 | Q60: 3560.24731 | R60: =+J60*E$7 -> 0
C61: Tractors/Self-Propelled | D61: 204.2784627 | F61: Dollars | G61: 0.08 | I61: 16.34227702 | J61: 0 | K61: 0 | M61: 0 | N61: =J61*L61 -> 0 | O61: 16.34227702 | P61: 0 | Q61: 1993.757796 | R61: 0
C62: Implements | D62: 34.57570111 | F62: Dollars | G62: 0.08 | I62: 2.766056088 | J62: 0 | K62: 0 | M62: 0 | N62: =J62*L62 -> 0 | O62: 2.766056088 | P62: 0 | Q62: 337.4588428 | R62: 0
B63: Salaried Labor | D63: 1 | F63: Acre | G63: 0 | I63: 0 | J63: 0 | K63: 0 | M63: 0 | N63: =J63*L63 -> 0 | O63: 0 | P63: =+J63-N63 -> 0 | Q63: 0 | R63: =+J63*E$7 -> 0
B64: Management Fee, Owner/Operator Labor | D64: 1 | F64: Acre | G64: 0 | I64: 0 | J64: 0 | K64: 0 | M64: 0 | N64: 0 | O64: 0 | P64: 0 | Q64: 0 | R64: 0
B65: Allocated Establishment Cost | D65: 1 | F65: Acre | G65: 47.705 | I65: 47.705 | J65: 0 | K65: 0 | M65: 0 | N65: 0 | O65: 47.705 | P65: 0 | Q65: 5820.01 | R65: 0
B66: Trans Pecos Irrigated Land | D66: 1 | F66: Acre | G66: 50 | I66: 50 | J66: 0 | K66: 0 | M66: 0 | N66: 0 | O66: 50 | P66: 0 | Q66: 6100 | R66: 0
B67: Property Taxes | D67: 1 | F67: Acre | G67: 0 | I67: 0 | J67: 0 | K67: 0 | M67: 0 | N67: 0 | O67: 0 | P67: 0 | Q67: 0 | R67: 0
B68: Whole Farm Insurance | D68: 1 | F68: Acre | G68: 0 | I68: 0 | J68: 0 | K68: 0 | M68: 0 | N68: 0 | O68: 0 | P68: 0 | Q68: 0 | R68: 0
D69: 1 | G69: 0 | I69: 0 | J69: 0 | K69: 0 | M69: 0 | N69: 0 | O69: 0 | P69: 0 | Q69: 0 | R69: 0
D70: 1 | G70: 0 | I70: 0 | J70: =E70*H70 -> 0 | K70: 0 | M70: 0 | N70: 0 | O70: 0 | P70: 0 | Q70: 0 | R70: 0
A71: Total Fixed Costs | I71: 226.9913655 | J71: =+SUM(J56:J70) -> 0 | M71: 0 | N71: =+SUM(N56:N70) -> 0 | O71: 226.9913655 | P71: =+SUM(P56:P70) -> 0 | Q71: 27692.94659 | R71: =+SUM(R56:R70) -> 0
A72: Total Specified Costs | I72: 447.066584 | J72: =+J50+J71 -> 0 | M72: 0 | N72: =+N50+N71 -> 0 | O72: 447.066584 | P72: =+P50+P71 -> 0 | Q72: 54542.12325 | R72: =+R50+R71 -> 0
A74: Returns Above Specified Costs | I74: -241.016584 | J74: =+J13-J72 -> 0 | M74: 0 | N74: =+N13-N72 -> 0 | O74: -241.016584 | P74: =+P13-P72 -> 0 | Q74: -29404.02325 | R74: =+R13-R72 -> 0
A76: Breakeven Price to Cover Total Costs | G76: 141.0304681 | H76: =IF(E10=0,"n/a",(YTotExp-(YTotExp+YTotRet-J10))/E10) -> n/a | I76: Ton
D78: Example Breakeven Prices
B79: Example | C79: Example | D79: To Cover | G79: To Cover
B80: Yield | C80: Yield | D80: Variable | G80: Total
B81: Percent | C81: Ton | D81: Costs | G81: Costs
B82: 0.75 | C82: 2.3775 | D82: 92.56581221 | G82: 188.0406242
B83: 0.9 | C83: 2.853 | D83: 77.13817684 | G83: 156.7005202
B84: 1 | C84: 3.17 | D84: 69.42435916 | G84: 141.0304681
B85: 1.1 | C85: 3.487 | D85: 63.11305378 | G85: 128.2095165
B86: 1.25 | C86: 3.9625 | D86: 55.53948733 | G86: 112.8243745
A88: Developed by Extension Agricultural Economists, Texas A&M AgriLife Extension, budgets@tamu.edu.
A90: Information presented is prepared solely as a general guide and not intended to recognize or predict the costs and returns from any one operation. Brand names are mentioned only as examples and imply no endorsement.

Sheet AlfalfaEstablish
A1: Projections for Planning Purposes Only -- Not to be Used without Updating
A2: 2026 Estimated Costs and Returns per Acre
A3: Alfalfa Establishment, Center Pivot Irrigated
A4: Enter your name for this budget in the cell above.
A5: Enter Your Values in the cells highlighed in MAROON.
E6: Your Acres | R6: Your
C7: Crop Acres | D7: 122 | L7: Your | Q7: Enterprise | R7: Enterprise
E8: Your | H8: Your | I8: Cash | J8: Your | K8: Landlord | L8: Landlord | N8: Your | P8: Your | Q8: Total | R8: Total
A9: REVENUE | D9: Quantity | E9: Quantity | F9: Units | G9: $/Unit | H9: $/Unit | I9: Total | J9: Total | K9: Share | L9: Share | M9: Landlord | N9: Landlord | O9: Tenant | P9: Tenant | Q9: (122 acres) | R9: ="(" & E7 & " acres)" -> ( acres)
B10: 0 | D10: 0 | G10: 0 | I10: 0 | J10: =E10*H10 -> 0 | K10: 0 | M10: 0 | N10: =J10*L10 -> 0 | O10: 0 | P10: =+J10-N10 -> 0 | Q10: 0 | R10: =+J10*E$7 -> 0
D11: 0 | G11: 0 | I11: 0 | J11: 0 | K11: 0 | M11: 0 | N11: 0 | O11: 0 | P11: 0 | Q11: 0 | R11: 0
D12: 0 | G12: 0 | I12: 0 | J12: 0 | K12: 0 | M12: 0 | N12: 0 | O12: 0 | P12: 0 | Q12: 0 | R12: 0
A13: Total Revenue | I13: 0 | J13: =SUM(J10:J12) -> 0 | M13: 0 | N13: =SUM(N10:N12) -> 0 | O13: 0 | P13: =SUM(P10:P12) -> 0 | Q13: 0 | R13: =SUM(R10:R12) -> 0
Q14: Enterprise | R14: Enterprise
A15: VARIABLE COSTS | D15: Quantity | E15: Quantity | F15: Units | G15: $/Unit | H15: $/Unit | I15: Total | J15: Total | K15: Share | L15: Share | M15: Landlord | N15: Landlord | O15: Tenant | P15: Tenant | Q15: Total | R15: Total
A16: Production Costs
B17: Custom
C18: Custom Apply Fertilizer | D18: 1 | F18: Acre | G18: 6.39 | I18: 6.39 | J18: =E18*H18 -> 0 | K18: 0 | M18: 0 | N18: =J18*L18 -> 0 | O18: 6.39 | P18: =+J18-N18 -> 0 | Q18: 779.58 | R18: =+J18*E$7 -> 0
B19: Fertilizer
C20: Fertilizer 11-52-0 | D20: 38 | F20: Pound | G20: 0.63 | I20: 23.94 | J20: 0 | K20: 0 | M20: 0 | N20: 0 | O20: 23.94 | P20: 0 | Q20: 2920.68 | R20: 0
B21: Herbicide
C22: Glyphosate | D22: 2 | F22: Pint | G22: 2.125 | I22: 4.25 | J22: 0 | K22: 0 | M22: 0 | N22: 0 | O22: 4.25 | P22: 0 | Q22: 518.5 | R22: 0
B23: Seed
C24: Alfalfa Seed Innoculated RR | D24: 32 | F24: Pound | G24: 8.5 | I24: 272 | J24: 0 | K24: 0 | M24: 0 | N24: 0 | O24: 272 | P24: 0 | Q24: 33184 | R24: 0
D25: 0 | G25: 0 | I25: 0 | J25: 0 | K25: 0 | M25: 0 | N25: 0 | O25: 0 | P25: 0 | Q25: 0 | R25: 0
D26: 0 | G26: 0 | I26: 0 | J26: 0 | K26: 0 | M26: 0 | N26: 0 | O26: 0 | P26: 0 | Q26: 0 | R26: 0
D27: 0 | G27: 0 | I27: 0 | J27: =E27*H27 -> 0 | K27: 0 | M27: 0 | N27: =J27*L27 -> 0 | O27: 0 | P27: =+J27-N27 -> 0 | Q27: 0 | R27: =+J27*E$7 -> 0
B28: Irrigation
C29: Energy Cost | D29: 3.04 | F29: AcreInch | G29: 10 | I29: 30.4 | J29: =E29*H29 -> 0 | K29: 0 | M29: 0 | N29: =J29*L29 -> 0 | O29: 30.4 | P29: =+J29-N29 -> 0 | Q29: 3708.8 | R29: =+J29*E$7 -> 0
C30: Irrigation Labor | D30: 0.0176 | F30: Hour | G30: 17.5 | I30: 0.308 | J30: 0 | K30: 0 | M30: 0 | N30: 0 | O30: 0.308 | P30: 0 | Q30: 37.576 | R30: 0
B31: Machinery Labor
C32: Tractors/Self-Propelled | D32: 0.4 | F32: Hour | G32: 17.21 | I32: 6.884 | J32: =E32*H32 -> 0 | K32: 0 | M32: 0 | N32: =J32*L32 -> 0 | O32: 6.884 | P32: =+J32-N32 -> 0 | Q32: 839.848 | R32: =+J32*E$7 -> 0
C33: Other Labor | D33: 0 | F33: Hour | G33: 17.21 | I33: 0 | J33: =E33*H33 -> 0 | K33: 0 | M33: 0 | N33: =J33*L33 -> 0 | O33: 0 | P33: =+J33-N33 -> 0 | Q33: 0 | R33: =+J33*E$7 -> 0
B35: Diesel Fuel
C36: Pickup/General Use Equipment | D36: 1 | F36: Acre | G36: 0 | I36: 0 | J36: =E36*H36 -> 0 | K36: 0 | M36: 0 | N36: =J36*L36 -> 0 | O36: 0 | P36: =+J36-N36 -> 0 | Q36: 0 | R36: =+J36*E$7 -> 0
C37: Tractors/Self-Propelled | D37: 3.91 | F37: Gallon | G37: 3.16 | I37: 12.3556 | J37: =E37*H37 -> 0 | K37: 0 | M37: 0 | N37: =J37*L37 -> 0 | O37: 12.3556 | P37: =+J37-N37 -> 0 | Q37: 1507.3832 | R37: =+J37*E$7 -> 0
B39: Gasoline
C40: Pickup/General Use Equipment | D40: 1 | F40: Acre | G40: 4.712016393 | I40: 4.712016393 | J40: =E40*H40 -> 0 | K40: 0 | M40: 0 | N40: =J40*L40 -> 0 | O40: 4.712016393 | P40: =+J40-N40 -> 0 | Q40: 574.866 | R40: =+J40*E$7 -> 0
C41: Tractors/Self-Propelled | D41: 0 | F41: Gallon | G41: 2.93 | I41: 0 | J41: =E41*H41 -> 0 | K41: 0 | M41: 0 | N41: =J41*L41 -> 0 | O41: 0 | P41: =+J41-N41 -> 0 | Q41: 0 | R41: =+J41*E$7 -> 0
B43: Repairs & Maintenance
C44: Pickup/General Use Equipment | D44: 1 | F44: Acre | G44: 0.8040983607 | I44: 0.8040983607 | J44: =E44*H44 -> 0 | K44: 0 | M44: 0 | N44: =J44*L44 -> 0 | O44: 0.8040983607 | P44: =+J44-N44 -> 0 | Q44: 98.1 | R44: =+J44*E$7 -> 0
C45: Irrigation Equipment | D45: 1 | F45: Acre | G45: 8.011312 | I45: 8.011312 | J45: 0 | K45: 0 | M45: 0 | N45: 0 | O45: 8.011312 | P45: 0 | Q45: 977.380064 | R45: 0
C46: Tractors/Self-Propelled | D46: 1 | F46: Acre | G46: 9.999495585 | I46: 9.999495585 | J46: 0 | K46: 0 | M46: 0 | N46: 0 | O46: 9.999495585 | P46: 0 | Q46: 1219.938461 | R46: 0
C47: Implements | D47: 1 | F47: Acre | G47: 12.49962479 | I47: 12.49962479 | J47: 0 | K47: 0 | M47: 0 | N47: 0 | O47: 12.49962479 | P47: 0 | Q47: 1524.954224 | R47: 0
I48: 0 | J48: 0 | K48: 0 | M48: 0 | N48: 0 | O48: 0 | P48: 0 | Q48: 0 | R48: =+J48*E$7 -> 0
I49: 0 | J49: 0 | K49: 0 | M49: 0 | N49: 0 | O49: 0 | P49: 0 | Q49: 0 | R49: 0
B50: Interest on Credit Line | G50: 0.08 | I50: 10.74768613 | J50: =+SUM(J17:J49)/2*H50 -> 0 | M50: 0 | N50: =+SUM(N17:N49)/2*L50 -> 0 | O50: 10.74768613 | P50: =+SUM(P17:P49)/2*L50 -> 0 | Q50: 1311.217708 | R50: =+J50*E$7 -> 0
A51: Total Variable Costs | I51: 403.3018333 | J51: =SUM(J18:J50) -> 0 | M51: 0 | N51: =SUM(N18:N50) -> 0 | O51: 403.3018333 | P51: =SUM(P18:P50) -> 0 | Q51: 49202.82366 | R51: =SUM(R18:R50) -> 0
A52: Planned Returns Above Variable Costs: | I52: -403.3018333 | J52: =+J13-J51 -> 0 | M52: 0 | N52: =+N13-N51 -> 0 | O52: -403.3018333 | P52: =+P13-P51 -> 0 | Q52: -49202.82366 | R52: =+R13-R51 -> 0
B53: Breakeven Price to Cover Variable Costs | G53: n/a | H53: =IF(E10=0,"n/a",(YVarExp-(YTotExp+YTotRet-J10))/E10) -> n/a
Q54: Enterprise | R54: Enterprise
A55: FIXED COSTS | D55: Quantity | E55: Quantity | F55: Units | G55: $/Unit | H55: $/Unit | J55: Total | K55: Share | L55: Share | M55: Landlord | N55: Landlord | O55: Tenant | P55: Tenant | Q55: Total | R55: Total
B56: Machinery Depreciation
C57: Pickup/General Use Equipment | D57: 1 | F57: Acre | G57: 3.015368852 | I57: 3.015368852 | J57: =E57*H57 -> 0 | K57: 0 | M57: 0 | N57: =J57*L57 -> 0 | O57: 3.015368852 | P57: =+J57-N57 -> 0 | Q57: 367.875 | R57: =+J57*E$7 -> 0
C58: Irrigation Equipment | D58: 1 | F58: Acre | G58: 45.01442623 | I58: 45.01442623 | J58: 0 | K58: 0 | M58: 0 | N58: =J58*L58 -> 0 | O58: 45.01442623 | P58: 0 | Q58: 5491.76 | R58: 0
C59: Tractors/Self-Propelled | D59: 1 | F59: Acre | G59: 11.41851581 | I59: 11.41851581 | J59: 0 | K59: 0 | M59: 0 | N59: =J59*L59 -> 0 | O59: 11.41851581 | P59: 0 | Q59: 1393.058928 | R59: 0
C60: Implements | D60: 1 | F60: Acre | G60: 15.64492825 | I60: 15.64492825 | J60: 0 | K60: 0 | M60: 0 | N60: =J60*L60 -> 0 | O60: 15.64492825 | P60: 0 | Q60: 1908.681247 | R60: 0
B61: Equipment Investment
C62: Pickup/General Use Equipment | D62: 12.56403689 | F62: Dollars | G62: 0.08 | I62: 1.005122951 | J62: =E62*H62 -> 0 | K62: 0 | M62: 0 | N62: =J62*L62 -> 0 | O62: 1.005122951 | P62: =+J62-N62 -> 0 | Q62: 122.625 | R62: =+J62*E$7 -> 0
C63: Irrigation Equipment | D63: 337.6081967 | F63: Dollars | G63: 0.08 | I63: 27.00865574 | J63: 0 | K63: 0 | M63: 0 | N63: =J63*L63 -> 0 | O63: 27.00865574 | P63: 0 | Q63: 3295.056 | R63: 0
C64: Tractors/Self-Propelled | D64: 88.44946612 | F64: Dollars | G64: 0.08 | I64: 7.07595729 | J64: 0 | K64: 0 | M64: 0 | N64: =J64*L64 -> 0 | O64: 7.07595729 | P64: 0 | Q64: 863.2667893 | R64: 0
C65: Implements | D65: 66.92552642 | F65: Dollars | G65: 0.08 | I65: 5.354042114 | J65: 0 | K65: 0 | M65: 0 | N65: =J65*L65 -> 0 | O65: 5.354042114 | P65: 0 | Q65: 653.1931379 | R65: 0
B66: Salaried Labor | D66: 1 | F66: Acre | G66: 0 | I66: 0 | J66: 0 | K66: 0 | M66: 0 | N66: =J66*L66 -> 0 | O66: 0 | P66: =+J66-N66 -> 0 | Q66: 0 | R66: =+J66*E$7 -> 0
B67: Management Fee, Owner/Operator Labor | D67: 1 | F67: Acre | G67: 0 | I67: 0 | J67: 0 | K67: 0 | M67: 0 | N67: 0 | O67: 0 | P67: 0 | Q67: 0 | R67: 0
B68: Allocated Establishment Cost | D68: 1 | F68: Acre | G68: 0 | I68: 0 | J68: 0 | K68: 0 | M68: 0 | N68: 0 | O68: 0 | P68: 0 | Q68: 0 | R68: 0
B69: None | D69: 1 | F69: Acre | G69: 0 | I69: 0 | J69: 0 | K69: 0 | M69: 0 | N69: 0 | O69: 0 | P69: 0 | Q69: 0 | R69: 0
B70: Property Taxes | D70: 1 | F70: Acre | G70: 0 | I70: 0 | J70: =E70*H70 -> 0 | K70: 0 | M70: 0 | N70: 0 | O70: 0 | P70: 0 | Q70: 0 | R70: =+J70*E$7 -> 0
B71: Whole Farm Insurance | D71: 1 | F71: Acre | G71: 0 | I71: 0 | J71: 0 | K71: 0 | M71: 0 | N71: 0 | O71: 0 | P71: 0 | Q71: 0 | R71: 0
D72: 1 | G72: 0 | I72: 0 | J72: 0 | K72: 0 | M72: 0 | N72: 0 | O72: 0 | P72: 0 | Q72: 0 | R72: 0
D73: 1 | G73: 0 | I73: 0 | J73: 0 | K73: 0 | M73: 0 | N73: 0 | O73: 0 | P73: 0 | Q73: 0 | R73: 0
A74: Total Fixed Costs | I74: 115.5370172 | J74: =+SUM(J57:J73) -> 0 | M74: 0 | N74: =+SUM(N57:N73) -> 0 | O74: 115.5370172 | P74: =+SUM(P57:P73) -> 0 | Q74: 14095.5161 | R74: =+SUM(R57:R73) -> 0
A75: Total Specified Costs | I75: 518.8388505 | J75: =+J51+J74 -> 0 | M75: 0 | N75: =+N51+N74 -> 0 | O75: 518.8388505 | P75: =+P51+P74 -> 0 | Q75: 63298.33976 | R75: =+R51+R74 -> 0
A77: Returns Above Specified Costs | I77: -518.8388505 | J77: =+J13-J75 -> 0 | M77: 0 | N77: =+N13-N75 -> 0 | O77: -518.8388505 | P77: =+P13-P75 -> 0 | Q77: -63298.33976 | R77: =+R13-R75 -> 0
A79: Breakeven Price to Cover Total Costs | G79: n/a | H79: =IF(E10=0,"n/a",(YTotExp-(YTotExp+YTotRet-J10))/E10) -> n/a
D81: Example Breakeven Prices
B82: Example | C82: Example | D82: To Cover | G82: To Cover
B83: Yield | C83: Yield | D83: Variable | G83: Total
B84: Percent | D84: Costs | G84: Costs
B85: 0.75 | C85: 0 | D85: 0 | G85: 0
B86: 0.9 | C86: 0 | D86: 0 | G86: 0
B87: 1 | C87: 0 | D87: 0 | G87: 0
B88: 1.1 | C88: 0 | D88: 0 | G88: 0
B89: 1.25 | C89: 0 | D89: 0 | G89: 0
A91: Developed by Extension Agricultural Economists, Texas A&M AgriLife Extension, budgets@tamu.edu.
A93: Information presented is prepared solely as a general guide and not intended to recognize or predict the costs and returns from any one operation. Brand names are mentioned only as examples and imply no endorsement.

Sheet AlfalfaHayPivot
A1: Projections for Planning Purposes Only -- Not to be Used without Updating
A2: 2026 Estimated Costs and Returns per Acre
A3: Alfalfa, Full Season, Baled - 7.5 Ton Goal, Center Pivot Irrigated
A4: Enter your name for this budget in the cell above.
A5: Enter Your Values in the cells highlighed in MAROON.
E6: Your Acres | R6: Your
C7: Crop Acres | D7: 122 | L7: Your | Q7: Enterprise | R7: Enterprise
E8: Your | H8: Your | I8: Cash | J8: Your | K8: Landlord | L8: Landlord | N8: Your | P8: Your | Q8: Total | R8: Total
A9: REVENUE | D9: Quantity | E9: Quantity | F9: Units | G9: $/Unit | H9: $/Unit | I9: Total | J9: Total | K9: Share | L9: Share | M9: Landlord | N9: Landlord | O9: Tenant | P9: Tenant | Q9: (122 acres) | R9: ="(" & E7 & " acres)" -> ( acres)
B10: Alfalfa Hay - 3X4 | D10: 7.5 | F10: Ton | G10: 250 | I10: 1875 | J10: =E10*H10 -> 0 | K10: 0 | M10: 0 | N10: =J10*L10 -> 0 | O10: 1875 | P10: =+J10-N10 -> 0 | Q10: 228750 | R10: =+J10*E$7 -> 0
D11: 0 | G11: 0 | I11: 0 | J11: 0 | K11: 0 | M11: 0 | N11: 0 | O11: 0 | P11: =+J11-N11 -> 0 | Q11: 0 | R11: 0
D12: 0 | G12: 0 | I12: 0 | J12: 0 | K12: 0 | M12: 0 | N12: 0 | O12: 0 | P12: 0 | Q12: 0 | R12: 0
A13: Total Revenue | I13: 1875 | J13: =SUM(J10:J12) -> 0 | M13: 0 | N13: =SUM(N10:N12) -> 0 | O13: 1875 | P13: =SUM(P10:P12) -> 0 | Q13: 228750 | R13: =SUM(R10:R12) -> 0
Q14: Enterprise | R14: Enterprise
A15: VARIABLE COSTS | D15: Quantity | E15: Quantity | F15: Units | G15: $/Unit | H15: $/Unit | I15: Total | J15: Total | K15: Share | L15: Share | M15: Landlord | N15: Landlord | O15: Tenant | P15: Tenant | Q15: Total | R15: Total
A16: Production Costs
B17: Custom
C18: Soil Test | D18: 0.5 | F18: Each | G18: 5 | I18: 2.5 | J18: =E18*H18 -> 0 | K18: 0 | M18: 0 | N18: =J18*L18 -> 0 | O18: 2.5 | P18: =+J18-N18 -> 0 | Q18: 305 | R18: =+J18*E$7 -> 0
C19: Custom Apply Fertilizer | D19: 1 | F19: Acre | G19: 6.39 | I19: 6.39 | J19: 0 | K19: 0 | M19: 0 | N19: 0 | O19: 6.39 | P19: 0 | Q19: 779.58 | R19: 0
B20: Fertilizer
C21: Fertilizer 11-52-0 | D21: 73 | F21: Pound | G21: 0.63 | I21: 45.99 | J21: 0 | K21: 0 | M21: 0 | N21: 0 | O21: 45.99 | P21: 0 | Q21: 5610.78 | R21: 0
B22: Herbicide
C23: Trifluralin | D23: 2 | F23: Pint | G23: 2.75 | I23: 5.5 | J23: 0 | K23: 0 | M23: 0 | N23: 0 | O23: 5.5 | P23: 0 | Q23: 671 | R23: 0
C24: Pursuit | D24: 5 | F24: Ounce | G24: 3.3453125 | I24: 16.7265625 | J24: 0 | K24: 0 | M24: 0 | N24: 0 | O24: 16.7265625 | P24: 0 | Q24: 2040.640625 | R24: 0
C25: Crop Oil Concentrate | D25: 5 | F25: Pint | G25: 2.175 | I25: 10.875 | J25: 0 | K25: 0 | M25: 0 | N25: 0 | O25: 10.875 | P25: 0 | Q25: 1326.75 | R25: 0
B26: Insecticide
C27: Warrior Z | D27: 7.04 | F27: Ounce | G27: 1.25 | I27: 8.8 | J27: 0 | K27: 0 | M27: 0 | N27: 0 | O27: 8.8 | P27: 0 | Q27: 1073.6 | R27: 0
C28: Intrepid | D28: 2.31 | F28: Ounce | G28: 2.03906 | I28: 4.7102286 | J28: 0 | K28: 0 | M28: 0 | N28: 0 | O28: 4.7102286 | P28: 0 | Q28: 574.6478892 | R28: 0
D29: 0 | G29: 0 | I29: 0 | J29: 0 | K29: 0 | M29: 0 | N29: 0 | O29: 0 | P29: 0 | Q29: 0 | R29: 0
D30: 0 | G30: 0 | I30: 0 | J30: 0 | K30: 0 | M30: 0 | N30: 0 | O30: 0 | P30: 0 | Q30: 0 | R30: 0
D31: 0 | G31: 0 | I31: 0 | J31: =E31*H31 -> 0 | K31: 0 | M31: 0 | N31: =J31*L31 -> 0 | O31: 0 | P31: =+J31-N31 -> 0 | Q31: 0 | R31: =+J31*E$7 -> 0
B32: Irrigation
C33: Energy Cost | D33: 50.22 | F33: Mcf | G33: 10 | I33: 502.2 | J33: =E33*H33 -> 0 | K33: 0 | M33: 0 | N33: =J33*L33 -> 0 | O33: 502.2 | P33: =+J33-N33 -> 0 | Q33: 61268.4 | R33: =+J33*E$7 -> 0
C34: Irrigation Labor | D34: 0.2888 | F34: Hour | G34: 17.5 | I34: 5.054 | J34: 0 | K34: 0 | M34: 0 | N34: 0 | O34: 5.054 | P34: 0 | Q34: 616.588 | R34: 0
B35: Machinery Labor
C36: Tractors/Self-Propelled | D36: 7.84 | F36: Hour | G36: 17.21 | I36: 134.9264 | J36: =E36*H36 -> 0 | K36: 0 | M36: 0 | N36: =J36*L36 -> 0 | O36: 134.9264 | P36: =+J36-N36 -> 0 | Q36: 16461.0208 | R36: =+J36*E$7 -> 0
C37: Other Labor | D37: 0 | F37: Hour | G37: 17.21 | I37: 0 | J37: =E37*H37 -> 0 | K37: 0 | M37: 0 | N37: =J37*L37 -> 0 | O37: 0 | P37: =+J37-N37 -> 0 | Q37: 0 | R37: =+J37*E$7 -> 0
B39: Diesel Fuel
C40: Pickup/General Use Equipment | D40: 1 | F40: Acre | G40: 0 | I40: 0 | J40: =E40*H40 -> 0 | K40: 0 | M40: 0 | N40: =J40*L40 -> 0 | O40: 0 | P40: =+J40-N40 -> 0 | Q40: 0 | R40: =+J40*E$7 -> 0
C41: Tractors/Self-Propelled | D41: 37.51 | F41: Gallon | G41: 3.16 | I41: 118.5316 | J41: =E41*H41 -> 0 | K41: 0 | M41: 0 | N41: =J41*L41 -> 0 | O41: 118.5316 | P41: =+J41-N41 -> 0 | Q41: 14460.8552 | R41: =+J41*E$7 -> 0
B43: Gasoline
C44: Pickup/General Use Equipment | D44: 1 | F44: Acre | G44: 9.424032787 | I44: 9.424032787 | J44: =E44*H44 -> 0 | K44: 0 | M44: 0 | N44: =J44*L44 -> 0 | O44: 9.424032787 | P44: =+J44-N44 -> 0 | Q44: 1149.732 | R44: =+J44*E$7 -> 0
C45: Tractors/Self-Propelled | D45: 0 | F45: Gallon | G45: 2.93 | I45: 0 | J45: =E45*H45 -> 0 | K45: 0 | M45: 0 | N45: =J45*L45 -> 0 | O45: 0 | P45: =+J45-N45 -> 0 | Q45: 0 | R45: =+J45*E$7 -> 0
B47: Repairs & Maintenance
C48: Pickup/General Use Equipment | D48: 1 | F48: Acre | G48: 1.608196721 | I48: 1.608196721 | J48: =E48*H48 -> 0 | K48: 0 | M48: 0 | N48: =J48*L48 -> 0 | O48: 1.608196721 | P48: =+J48-N48 -> 0 | Q48: 196.2 | R48: =+J48*E$7 -> 0
C49: Irrigation Equipment | D49: 1 | F49: Acre | G49: 132.344766 | I49: 132.344766 | J49: 0 | K49: 0 | M49: 0 | N49: 0 | O49: 132.344766 | P49: 0 | Q49: 16146.06145 | R49: 0
C50: Tractors/Self-Propelled | D50: 1 | F50: Acre | G50: 67.9254652 | I50: 67.9254652 | J50: 0 | K50: 0 | M50: 0 | N50: 0 | O50: 67.9254652 | P50: 0 | Q50: 8286.906755 | R50: 0
C51: Implements | D51: 1 | F51: Acre | G51: 3.035796655 | I51: 3.035796655 | J51: 0 | K51: 0 | M51: 0 | N51: 0 | O51: 3.035796655 | P51: 0 | Q51: 370.3671919 | R51: 0
I52: 0 | J52: 0 | K52: 0 | M52: 0 | N52: 0 | O52: 0 | P52: 0 | Q52: 0 | R52: 0
I53: 0 | J53: 0 | K53: 0 | M53: 0 | N53: 0 | O53: 0 | P53: 0 | Q53: 0 | R53: 0
B54: Interest on Credit Line | G54: 0.08 | I54: 28.3830356 | J54: =+SUM(J17:J53)/2*H54 -> 0 | M54: 0 | N54: =+SUM(N17:N53)/2*L54 -> 0 | O54: 28.3830356 | P54: =+SUM(P17:P53)/2*L54 -> 0 | Q54: 3462.730343 | R54: =+J54*E$7 -> 0
A55: Total Variable Costs | I55: 1104.925084 | J55: =SUM(J18:J54) -> 0 | M55: 0 | N55: =SUM(N18:N54) -> 0 | O55: 1104.925084 | P55: =SUM(P18:P54) -> 0 | Q55: 134800.8603 | R55: =SUM(R18:R54) -> 0
A56: Planned Returns Above Variable Costs: | I56: 770.0749159 | J56: =+J13-J55 -> 0 | M56: 0 | N56: =+N13-N55 -> 0 | O56: 770.0749159 | P56: =+P13-P55 -> 0 | Q56: 93949.13974 | R56: =+R13-R55 -> 0
B57: Breakeven Price to Cover Variable Costs | G57: 147.3233445 | H57: =IF(E10=0,"n/a",(YVarExp-(YTotExp+YTotRet-J10))/E10) -> n/a | I57: Ton
Q58: Enterprise | R58: Enterprise
A59: FIXED COSTS | D59: Quantity | E59: Quantity | F59: Units | G59: $/Unit | H59: $/Unit | I59: Total | J59: Total | K59: Share | L59: Share | M59: Landlord | N59: Landlord | O59: Tenant | P59: Tenant | Q59: Total | R59: Total
B60: Machinery Depreciation
C61: Pickup/General Use Equipment | D61: 1 | F61: Acre | G61: 6.030737705 | I61: 6.030737705 | J61: =E61*H61 -> 0 | K61: 0 | M61: 0 | N61: =J61*L61 -> 0 | O61: 6.030737705 | P61: =+J61-N61 -> 0 | Q61: 735.75 | R61: =+J61*E$7 -> 0
C62: Irrigation Equipment | D62: 1 | F62: Acre | G62: 45.01442623 | I62: 45.01442623 | J62: 0 | K62: 0 | M62: 0 | N62: =J62*L62 -> 0 | O62: 45.01442623 | P62: 0 | Q62: 5491.76 | R62: 0
C63: Tractors/Self-Propelled | D63: 1 | F63: Acre | G63: 91.23669573 | I63: 91.23669573 | J63: 0 | K63: 0 | M63: 0 | N63: =J63*L63 -> 0 | O63: 91.23669573 | P63: 0 | Q63: 11130.87688 | R63: 0
C64: Implements | D64: 1 | F64: Acre | G64: 7.369838647 | I64: 7.369838647 | J64: 0 | K64: 0 | M64: 0 | N64: =J64*L64 -> 0 | O64: 7.369838647 | P64: 0 | Q64: 899.1203149 | R64: 0
B65: Equipment Investment
C66: Pickup/General Use Equipment | D66: 25.12807377 | F66: Dollars | G66: 0.08 | I66: 2.010245902 | J66: =E66*H66 -> 0 | K66: 0 | M66: 0 | N66: =J66*L66 -> 0 | O66: 2.010245902 | P66: =+J66-N66 -> 0 | Q66: 245.25 | R66: =+J66*E$7 -> 0
C67: Irrigation Equipment | D67: 337.6081967 | F67: Dollars | G67: 0.08 | I67: 27.00865574 | J67: 0 | K67: 0 | M67: 0 | N67: =J67*L67 -> 0 | O67: 27.00865574 | P67: 0 | Q67: 3295.056 | R67: 0
C68: Tractors/Self-Propelled | D68: 678.7623501 | F68: Dollars | G68: 0.08 | I68: 54.30098801 | J68: 0 | K68: 0 | M68: 0 | N68: =J68*L68 -> 0 | O68: 54.30098801 | P68: 0 | Q68: 6624.720537 | R68: 0
C69: Implements | D69: 53.36571886 | F69: Dollars | G69: 0.08 | I69: 4.269257509 | J69: 0 | K69: 0 | M69: 0 | N69: =J69*L69 -> 0 | O69: 4.269257509 | P69: 0 | Q69: 520.8494161 | R69: 0
B70: Salaried Labor | D70: 1 | F70: Acre | G70: 0 | I70: 0 | J70: 0 | K70: 0 | M70: 0 | N70: =J70*L70 -> 0 | O70: 0 | P70: =+J70-N70 -> 0 | Q70: 0 | R70: =+J70*E$7 -> 0
B71: Management Fee, Owner/Operator Labor | D71: 1 | F71: Acre | G71: 0 | I71: 0 | J71: 0 | K71: 0 | M71: 0 | N71: 0 | O71: 0 | P71: 0 | Q71: 0 | R71: 0
B72: Allocated Establishment Cost | D72: 1 | F72: Acre | G72: 117.8325 | I72: 117.8325 | J72: 0 | K72: 0 | M72: 0 | N72: 0 | O72: 117.8325 | P72: 0 | Q72: 14375.565 | R72: 0
B73: Trans Pecos Irrigated Land | D73: 1 | F73: Acre | G73: 50 | I73: 50 | J73: 0 | K73: 0 | M73: 0 | N73: 0 | O73: 50 | P73: 0 | Q73: 6100 | R73: 0
B74: Property Taxes | D74: 1 | F74: Acre | G74: 0 | I74: 0 | J74: 0 | K74: 0 | M74: 0 | N74: 0 | O74: 0 | P74: 0 | Q74: 0 | R74: 0
B75: Whole Farm Insurance | D75: 1 | F75: Acre | G75: 0 | I75: 0 | J75: 0 | K75: 0 | M75: 0 | N75: 0 | O75: 0 | P75: 0 | Q75: 0 | R75: 0
D76: 1 | G76: 0 | I76: 0 | J76: 0 | K76: 0 | M76: 0 | N76: 0 | O76: 0 | P76: 0 | Q76: 0 | R76: 0
D77: 1 | G77: 0 | I77: 0 | J77: =E77*H77 -> 0 | K77: 0 | M77: 0 | N77: 0 | O77: 0 | P77: 0 | Q77: 0 | R77: 0
A78: Total Fixed Costs | I78: 405.0733455 | J78: =+SUM(J61:J77) -> 0 | M78: 0 | N78: =+SUM(N61:N77) -> 0 | O78: 405.0733455 | P78: =+SUM(P61:P77) -> 0 | Q78: 49418.94815 | R78: =+SUM(R61:R77) -> 0
A79: Total Specified Costs | I79: 1509.99843 | J79: =+J55+J78 -> 0 | M79: 0 | N79: =+N55+N78 -> 0 | O79: 1509.99843 | P79: =+P55+P78 -> 0 | Q79: 184219.8084 | R79: =+R55+R78 -> 0
A81: Returns Above Specified Costs | I81: 365.0015705 | J81: =+J13-J79 -> 0 | M81: 0 | N81: =+N13-N79 -> 0 | O81: 365.0015705 | P81: =+P13-P79 -> 0 | Q81: 44530.1916 | R81: =+R13-R79 -> 0
A83: Breakeven Price to Cover Total Costs | G83: 201.3331239 | H83: =IF(E10=0,"n/a",(YTotExp-(YTotExp+YTotRet-J10))/E10) -> n/a | I83: Ton
D85: Example Breakeven Prices
B86: Example | C86: Example | D86: To Cover | G86: To Cover
B87: Yield | C87: Yield | D87: Variable | G87: Total
B88: Percent | C88: Ton | D88: Costs | G88: Costs
B89: 0.75 | C89: 5.625 | D89: 196.4311261 | G89: 268.4441652
B90: 0.9 | C90: 6.75 | D90: 163.692605 | G90: 223.703471
B91: 1 | C91: 7.5 | D91: 147.3233445 | G91: 201.3331239
B92: 1.1 | C92: 8.25 | D92: 133.9303132 | G92: 183.0301127
B93: 1.25 | C93: 9.375 | D93: 117.8586756 | G93: 161.0664991
A95: Developed by Extension Agricultural Economists, Texas A&M AgriLife Extension, budgets@tamu.edu.
A97: Information presented is prepared solely as a general guide and not intended to recognize or predict the costs and returns from any one operation. Brand names are mentioned only as examples and imply no endorsement.

Sheet AlfalfaHayFlood
A1: Projections for Planning Purposes Only -- Not to be Used without Updating
A2: 2026 Estimated Costs and Returns per Acre
A3: Alfalfa, Full Season, Baled - 7.5 Ton Goal, Flood Irrigated
A4: Enter your name for this budget in the cell above.
A5: Enter Your Values in the cells highlighed in MAROON.
E6: Your Acres | R6: Your
C7: Crop Acres | D7: 122 | L7: Your | Q7: Enterprise | R7: Enterprise
E8: Your | H8: Your | I8: Cash | J8: Your | K8: Landlord | L8: Landlord | N8: Your | P8: Your | Q8: Total | R8: Total
A9: REVENUE | D9: Quantity | E9: Quantity | F9: Units | G9: $/Unit | H9: $/Unit | I9: Total | J9: Total | K9: Share | L9: Share | M9: Landlord | N9: Landlord | O9: Tenant | P9: Tenant | Q9: (122 acres) | R9: ="(" & E7 & " acres)" -> ( acres)
B10: Alfalfa Hay - 3X4 | D10: 7.5 | F10: Ton | G10: 250 | I10: 1875 | J10: =E10*H10 -> 0 | K10: 0 | M10: 0 | N10: =J10*L10 -> 0 | O10: 1875 | P10: =+J10-N10 -> 0 | Q10: 228750 | R10: =+J10*E$7 -> 0
D11: 0 | G11: 0 | I11: 0 | J11: 0 | K11: 0 | M11: 0 | N11: 0 | O11: 0 | P11: =+J11-N11 -> 0 | Q11: 0 | R11: 0
D12: 0 | G12: 0 | I12: 0 | J12: 0 | K12: 0 | M12: 0 | N12: 0 | O12: 0 | P12: 0 | Q12: 0 | R12: 0
A13: Total Revenue | I13: 1875 | J13: =SUM(J10:J12) -> 0 | M13: 0 | N13: =SUM(N10:N12) -> 0 | O13: 1875 | P13: =SUM(P10:P12) -> 0 | Q13: 228750 | R13: =SUM(R10:R12) -> 0
Q14: Enterprise | R14: Enterprise
A15: VARIABLE COSTS | D15: Quantity | E15: Quantity | F15: Units | G15: $/Unit | H15: $/Unit | I15: Total | J15: Total | K15: Share | L15: Share | M15: Landlord | N15: Landlord | O15: Tenant | P15: Tenant | Q15: Total | R15: Total
A16: Production Costs
B17: Custom
C18: Soil Test | D18: 0.5 | F18: Each | G18: 5 | I18: 2.5 | J18: =E18*H18 -> 0 | K18: 0 | M18: 0 | N18: =J18*L18 -> 0 | O18: 2.5 | P18: =+J18-N18 -> 0 | Q18: 305 | R18: =+J18*E$7 -> 0
C19: Custom Apply Fertilizer | D19: 1 | F19: Acre | G19: 6.39 | I19: 6.39 | J19: 0 | K19: 0 | M19: 0 | N19: 0 | O19: 6.39 | P19: 0 | Q19: 779.58 | R19: 0
B20: Fertilizer
C21: Fertilizer 11-52-0 | D21: 73 | F21: Pound | G21: 0.63 | I21: 45.99 | J21: 0 | K21: 0 | M21: 0 | N21: 0 | O21: 45.99 | P21: 0 | Q21: 5610.78 | R21: 0
B22: Herbicide
C23: Trifluralin | D23: 2 | F23: Pint | G23: 2.75 | I23: 5.5 | J23: 0 | K23: 0 | M23: 0 | N23: 0 | O23: 5.5 | P23: 0 | Q23: 671 | R23: 0
C24: Pursuit | D24: 5 | F24: Ounce | G24: 3.3453125 | I24: 16.7265625 | J24: 0 | K24: 0 | M24: 0 | N24: 0 | O24: 16.7265625 | P24: 0 | Q24: 2040.640625 | R24: 0
C25: Crop Oil Concentrate | D25: 5 | F25: Pint | G25: 2.175 | I25: 10.875 | J25: 0 | K25: 0 | M25: 0 | N25: 0 | O25: 10.875 | P25: 0 | Q25: 1326.75 | R25: 0
B26: Insecticide
C27: Warrior Z | D27: 7.04 | F27: Ounce | G27: 1.25 | I27: 8.8 | J27: 0 | K27: 0 | M27: 0 | N27: 0 | O27: 8.8 | P27: 0 | Q27: 1073.6 | R27: 0
C28: Intrepid | D28: 2.31 | F28: Ounce | G28: 2.03906 | I28: 4.7102286 | J28: 0 | K28: 0 | M28: 0 | N28: 0 | O28: 4.7102286 | P28: 0 | Q28: 574.6478892 | R28: 0
D29: 0 | G29: 0 | I29: 0 | J29: 0 | K29: 0 | M29: 0 | N29: 0 | O29: 0 | P29: 0 | Q29: 0 | R29: 0
D30: 0 | G30: 0 | I30: 0 | J30: 0 | K30: 0 | M30: 0 | N30: 0 | O30: 0 | P30: 0 | Q30: 0 | R30: 0
D31: 0 | G31: 0 | I31: 0 | J31: =E31*H31 -> 0 | K31: 0 | M31: 0 | N31: =J31*L31 -> 0 | O31: 0 | P31: =+J31-N31 -> 0 | Q31: 0 | R31: =+J31*E$7 -> 0
B32: Irrigation
C33: Energy Cost | D33: 40.76 | F33: Mcf | G33: 10 | I33: 407.6 | J33: =E33*H33 -> 0 | K33: 0 | M33: 0 | N33: =J33*L33 -> 0 | O33: 407.6 | P33: =+J33-N33 -> 0 | Q33: 49727.2 | R33: =+J33*E$7 -> 0
C34: Irrigation Labor | D34: 0.905 | F34: Hour | G34: 17.5 | I34: 15.8375 | J34: 0 | K34: 0 | M34: 0 | N34: 0 | O34: 15.8375 | P34: 0 | Q34: 1932.175 | R34: 0
B35: Machinery Labor
C36: Tractors/Self-Propelled | D36: 7.82 | F36: Hour | G36: 17.21 | I36: 134.5822 | J36: =E36*H36 -> 0 | K36: 0 | M36: 0 | N36: =J36*L36 -> 0 | O36: 134.5822 | P36: =+J36-N36 -> 0 | Q36: 16419.0284 | R36: =+J36*E$7 -> 0
C37: Other Labor | D37: 0 | F37: Hour | G37: 17.21 | I37: 0 | J37: =E37*H37 -> 0 | K37: 0 | M37: 0 | N37: =J37*L37 -> 0 | O37: 0 | P37: =+J37-N37 -> 0 | Q37: 0 | R37: =+J37*E$7 -> 0
B39: Diesel Fuel
C40: Pickup/General Use Equipment | D40: 1 | F40: Acre | G40: 0 | I40: 0 | J40: =E40*H40 -> 0 | K40: 0 | M40: 0 | N40: =J40*L40 -> 0 | O40: 0 | P40: =+J40-N40 -> 0 | Q40: 0 | R40: =+J40*E$7 -> 0
C41: Tractors/Self-Propelled | D41: 37.28 | F41: Gallon | G41: 3.16 | I41: 117.8048 | J41: =E41*H41 -> 0 | K41: 0 | M41: 0 | N41: =J41*L41 -> 0 | O41: 117.8048 | P41: =+J41-N41 -> 0 | Q41: 14372.1856 | R41: =+J41*E$7 -> 0
B43: Gasoline
C44: Pickup/General Use Equipment | D44: 1 | F44: Acre | G44: 9.424032787 | I44: 9.424032787 | J44: =E44*H44 -> 0 | K44: 0 | M44: 0 | N44: =J44*L44 -> 0 | O44: 9.424032787 | P44: =+J44-N44 -> 0 | Q44: 1149.732 | R44: =+J44*E$7 -> 0
C45: Tractors/Self-Propelled | D45: 0 | F45: Gallon | G45: 2.93 | I45: 0 | J45: =E45*H45 -> 0 | K45: 0 | M45: 0 | N45: =J45*L45 -> 0 | O45: 0 | P45: =+J45-N45 -> 0 | Q45: 0 | R45: =+J45*E$7 -> 0
B47: Repairs & Maintenance
C48: Pickup/General Use Equipment | D48: 1 | F48: Acre | G48: 1.608196721 | I48: 1.608196721 | J48: =E48*H48 -> 0 | K48: 0 | M48: 0 | N48: =J48*L48 -> 0 | O48: 1.608196721 | P48: =+J48-N48 -> 0 | Q48: 196.2 | R48: =+J48*E$7 -> 0
C49: Irrigation Equipment | D49: 1 | F49: Acre | G49: 18.977856 | I49: 18.977856 | J49: 0 | K49: 0 | M49: 0 | N49: 0 | O49: 18.977856 | P49: 0 | Q49: 2315.298432 | R49: 0
C50: Tractors/Self-Propelled | D50: 1 | F50: Acre | G50: 67.62664767 | I50: 67.62664767 | J50: 0 | K50: 0 | M50: 0 | N50: 0 | O50: 67.62664767 | P50: 0 | Q50: 8250.451016 | R50: 0
C51: Implements | D51: 1 | F51: Acre | G51: 3.035796655 | I51: 3.035796655 | J51: 0 | K51: 0 | M51: 0 | N51: 0 | O51: 3.035796655 | P51: 0 | Q51: 370.3671919 | R51: 0
I52: 0 | J52: 0 | K52: 0 | M52: 0 | N52: 0 | O52: 0 | P52: 0 | Q52: 0 | R52: 0
I53: 0 | J53: 0 | K53: 0 | M53: 0 | N53: 0 | O53: 0 | P53: 0 | Q53: 0 | R53: 0
B54: Interest on Credit Line | G54: 0.08 | I54: 23.32417084 | J54: =+SUM(J17:J53)/2*H54 -> 0 | M54: 0 | N54: =+SUM(N17:N53)/2*L54 -> 0 | O54: 23.32417084 | P54: =+SUM(P17:P53)/2*L54 -> 0 | Q54: 2845.548843 | R54: =+J54*E$7 -> 0
A55: Total Variable Costs | I55: 901.3129918 | J55: =SUM(J18:J54) -> 0 | M55: 0 | N55: =SUM(N18:N54) -> 0 | O55: 901.3129918 | P55: =SUM(P18:P54) -> 0 | Q55: 109960.185 | R55: =SUM(R18:R54) -> 0
A56: Planned Returns Above Variable Costs: | I56: 973.6870082 | J56: =+J13-J55 -> 0 | M56: 0 | N56: =+N13-N55 -> 0 | O56: 973.6870082 | P56: =+P13-P55 -> 0 | Q56: 118789.815 | R56: =+R13-R55 -> 0
B57: Breakeven Price to Cover Variable Costs | G57: 120.1750656 | H57: =IF(E10=0,"n/a",(YVarExp-(YTotExp+YTotRet-J10))/E10) -> n/a | I57: Ton
Q58: Enterprise | R58: Enterprise
A59: FIXED COSTS | D59: Quantity | E59: Quantity | F59: Units | G59: $/Unit | H59: $/Unit | I59: Total | J59: Total | K59: Share | L59: Share | M59: Landlord | N59: Landlord | O59: Tenant | P59: Tenant | Q59: Total | R59: Total
B60: Machinery Depreciation
C61: Pickup/General Use Equipment | D61: 1 | F61: Acre | G61: 6.030737705 | I61: 6.030737705 | J61: =E61*H61 -> 0 | K61: 0 | M61: 0 | N61: =J61*L61 -> 0 | O61: 6.030737705 | P61: =+J61-N61 -> 0 | Q61: 735.75 | R61: =+J61*E$7 -> 0
C62: Irrigation Equipment | D62: 1 | F62: Acre | G62: 24.82240437 | I62: 24.82240437 | J62: 0 | K62: 0 | M62: 0 | N62: =J62*L62 -> 0 | O62: 24.82240437 | P62: 0 | Q62: 3028.333333 | R62: 0
C63: Tractors/Self-Propelled | D63: 1 | F63: Acre | G63: 89.84221391 | I63: 89.84221391 | J63: 0 | K63: 0 | M63: 0 | N63: =J63*L63 -> 0 | O63: 89.84221391 | P63: 0 | Q63: 10960.7501 | R63: 0
C64: Implements | D64: 1 | F64: Acre | G64: 7.369838647 | I64: 7.369838647 | J64: 0 | K64: 0 | M64: 0 | N64: =J64*L64 -> 0 | O64: 7.369838647 | P64: 0 | Q64: 899.1203149 | R64: 0
B65: Equipment Investment
C66: Pickup/General Use Equipment | D66: 25.12807377 | F66: Dollars | G66: 0.08 | I66: 2.010245902 | J66: =E66*H66 -> 0 | K66: 0 | M66: 0 | N66: =J66*L66 -> 0 | O66: 2.010245902 | P66: =+J66-N66 -> 0 | Q66: 245.25 | R66: =+J66*E$7 -> 0
C67: Irrigation Equipment | D67: 186.1680328 | F67: Dollars | G67: 0.08 | I67: 14.89344262 | J67: 0 | K67: 0 | M67: 0 | N67: =J67*L67 -> 0 | O67: 14.89344262 | P67: 0 | Q67: 1817 | R67: 0
C68: Tractors/Self-Propelled | D68: 668.4033423 | F68: Dollars | G68: 0.08 | I68: 53.47226738 | J68: 0 | K68: 0 | M68: 0 | N68: =J68*L68 -> 0 | O68: 53.47226738 | P68: 0 | Q68: 6523.616621 | R68: 0
C69: Implements | D69: 53.36571886 | F69: Dollars | G69: 0.08 | I69: 4.269257509 | J69: 0 | K69: 0 | M69: 0 | N69: =J69*L69 -> 0 | O69: 4.269257509 | P69: 0 | Q69: 520.8494161 | R69: 0
B70: Salaried Labor | D70: 1 | F70: Acre | G70: 0 | I70: 0 | J70: 0 | K70: 0 | M70: 0 | N70: =J70*L70 -> 0 | O70: 0 | P70: =+J70-N70 -> 0 | Q70: 0 | R70: =+J70*E$7 -> 0
B71: Management Fee, Owner/Operator Labor | D71: 1 | F71: Acre | G71: 0 | I71: 0 | J71: 0 | K71: 0 | M71: 0 | N71: 0 | O71: 0 | P71: 0 | Q71: 0 | R71: 0
B72: Allocated Establishment Cost | D72: 1 | F72: Acre | G72: 109.5 | I72: 109.5 | J72: 0 | K72: 0 | M72: 0 | N72: 0 | O72: 109.5 | P72: 0 | Q72: 13359 | R72: 0
B73: Trans Pecos Irrigated Land | D73: 1 | F73: Acre | G73: 50 | I73: 50 | J73: 0 | K73: 0 | M73: 0 | N73: 0 | O73: 50 | P73: 0 | Q73: 6100 | R73: 0
B74: Property Taxes | D74: 1 | F74: Acre | G74: 0 | I74: 0 | J74: 0 | K74: 0 | M74: 0 | N74: 0 | O74: 0 | P74: 0 | Q74: 0 | R74: 0
B75: Whole Farm Insurance | D75: 1 | F75: Acre | G75: 0 | I75: 0 | J75: 0 | K75: 0 | M75: 0 | N75: 0 | O75: 0 | P75: 0 | Q75: 0 | R75: 0
D76: 1 | G76: 0 | I76: 0 | J76: 0 | K76: 0 | M76: 0 | N76: 0 | O76: 0 | P76: 0 | Q76: 0 | R76: 0
D77: 1 | G77: 0 | I77: 0 | J77: =E77*H77 -> 0 | K77: 0 | M77: 0 | N77: 0 | O77: 0 | P77: 0 | Q77: 0 | R77: 0
A78: Total Fixed Costs | I78: 362.210408 | J78: =+SUM(J61:J77) -> 0 | M78: 0 | N78: =+SUM(N61:N77) -> 0 | O78: 362.210408 | P78: =+SUM(P61:P77) -> 0 | Q78: 44189.66978 | R78: =+SUM(R61:R77) -> 0
A79: Total Specified Costs | I79: 1263.5234 | J79: =+J55+J78 -> 0 | M79: 0 | N79: =+N55+N78 -> 0 | O79: 1263.5234 | P79: =+P55+P78 -> 0 | Q79: 154149.8548 | R79: =+R55+R78 -> 0
A81: Returns Above Specified Costs | I81: 611.4766002 | J81: =+J13-J79 -> 0 | M81: 0 | N81: =+N13-N79 -> 0 | O81: 611.4766002 | P81: =+P13-P79 -> 0 | Q81: 74600.14522 | R81: =+R13-R79 -> 0
A83: Breakeven Price to Cover Total Costs | G83: 168.4697866 | H83: =IF(E10=0,"n/a",(YTotExp-(YTotExp+YTotRet-J10))/E10) -> n/a | I83: Ton
D85: Example Breakeven Prices
B86: Example | C86: Example | D86: To Cover | G86: To Cover
B87: Yield | C87: Yield | D87: Variable | G87: Total
B88: Percent | C88: Ton | D88: Costs | G88: Costs
B89: 0.75 | C89: 5.625 | D89: 160.2334208 | G89: 224.6263822
B90: 0.9 | C90: 6.75 | D90: 133.5278506 | G90: 187.1886518
B91: 1 | C91: 7.5 | D91: 120.1750656 | G91: 168.4697866
B92: 1.1 | C92: 8.25 | D92: 109.2500596 | G92: 153.1543515
B93: 1.25 | C93: 9.375 | D93: 96.14005246 | G93: 134.7758293
A95: Developed by Extension Agricultural Economists, Texas A&M AgriLife Extension, budgets@tamu.edu.
A97: Information presented is prepared solely as a general guide and not intended to recognize or predict the costs and returns from any one operation. Brand names are mentioned only as examples and imply no endorsement.

Sheet AlfalfaPivotDell
A1: Projections for Planning Purposes Only -- Not to be Used without Updating
A2: 2026 Estimated Costs and Returns per Acre
A3: Alfalfa, Full Season, Baled - 7.5 Ton Goal, Center Pivot Irrigated, Dell City
A4: Enter your name for this budget in the cell above.
A5: Enter Your Values in the cells highlighed in MAROON.
E6: Your Acres | R6: Your
C7: Crop Acres | D7: 122 | L7: Your | Q7: Enterprise | R7: Enterprise
E8: Your | H8: Your | I8: Cash | J8: Your | K8: Landlord | L8: Landlord | N8: Your | P8: Your | Q8: Total | R8: Total
A9: REVENUE | D9: Quantity | E9: Quantity | F9: Units | G9: $/Unit | H9: $/Unit | I9: Total | J9: Total | K9: Share | L9: Share | M9: Landlord | N9: Landlord | O9: Tenant | P9: Tenant | Q9: (122 acres) | R9: ="(" & E7 & " acres)" -> ( acres)
B10: Alfalfa Hay - 3X4 | D10: 7.5 | F10: Ton | G10: 250 | I10: 1875 | J10: =E10*H10 -> 0 | K10: 0 | M10: 0 | N10: =J10*L10 -> 0 | O10: 1875 | P10: =+J10-N10 -> 0 | Q10: 228750 | R10: =+J10*E$7 -> 0
D11: 0 | G11: 0 | I11: 0 | J11: 0 | K11: 0 | M11: 0 | N11: 0 | O11: 0 | P11: =+J11-N11 -> 0 | Q11: 0 | R11: 0
D12: 0 | G12: 0 | I12: 0 | J12: 0 | K12: 0 | M12: 0 | N12: 0 | O12: 0 | P12: 0 | Q12: 0 | R12: 0
A13: Total Revenue | I13: 1875 | J13: =SUM(J10:J12) -> 0 | M13: 0 | N13: =SUM(N10:N12) -> 0 | O13: 1875 | P13: =SUM(P10:P12) -> 0 | Q13: 228750 | R13: =SUM(R10:R12) -> 0
Q14: Enterprise | R14: Enterprise
A15: VARIABLE COSTS | D15: Quantity | E15: Quantity | F15: Units | G15: $/Unit | H15: $/Unit | I15: Total | J15: Total | K15: Share | L15: Share | M15: Landlord | N15: Landlord | O15: Tenant | P15: Tenant | Q15: Total | R15: Total
A16: Production Costs
B17: Herbicide
C18: Trifluralin | D18: 2 | F18: Pint | G18: 2.75 | I18: 5.5 | J18: =E18*H18 -> 0 | K18: 0 | M18: 0 | N18: =J18*L18 -> 0 | O18: 5.5 | P18: =+J18-N18 -> 0 | Q18: 671 | R18: =+J18*E$7 -> 0
C19: Pursuit | D19: 5 | F19: Ounce | G19: 3.3453125 | I19: 16.7265625 | J19: 0 | K19: 0 | M19: 0 | N19: 0 | O19: 16.7265625 | P19: 0 | Q19: 2040.640625 | R19: 0
C20: Crop Oil Concentrate | D20: 5 | F20: Pint | G20: 2.175 | I20: 10.875 | J20: 0 | K20: 0 | M20: 0 | N20: 0 | O20: 10.875 | P20: 0 | Q20: 1326.75 | R20: 0
B21: Custom
C22: Soil Test | D22: 0.5 | F22: Each | G22: 5 | I22: 2.5 | J22: 0 | K22: 0 | M22: 0 | N22: 0 | O22: 2.5 | P22: 0 | Q22: 305 | R22: 0
C23: Custom Apply Fertilizer | D23: 1 | F23: Acre | G23: 6.39 | I23: 6.39 | J23: 0 | K23: 0 | M23: 0 | N23: 0 | O23: 6.39 | P23: 0 | Q23: 779.58 | R23: 0
B24: Fertilizer
C25: Fertilizer 11-52-0 | D25: 73 | F25: Pound | G25: 0.63 | I25: 45.99 | J25: 0 | K25: 0 | M25: 0 | N25: 0 | O25: 45.99 | P25: 0 | Q25: 5610.78 | R25: 0
B26: Insecticide
C27: Warrior Z | D27: 7.04 | F27: Ounce | G27: 1.25 | I27: 8.8 | J27: 0 | K27: 0 | M27: 0 | N27: 0 | O27: 8.8 | P27: 0 | Q27: 1073.6 | R27: 0
C28: Intrepid | D28: 2.31 | F28: Ounce | G28: 2.03906 | I28: 4.7102286 | J28: 0 | K28: 0 | M28: 0 | N28: 0 | O28: 4.7102286 | P28: 0 | Q28: 574.6478892 | R28: 0
D29: 0 | G29: 0 | I29: 0 | J29: 0 | K29: 0 | M29: 0 | N29: 0 | O29: 0 | P29: 0 | Q29: 0 | R29: 0
D30: 0 | G30: 0 | I30: 0 | J30: 0 | K30: 0 | M30: 0 | N30: 0 | O30: 0 | P30: 0 | Q30: 0 | R30: 0
D31: 0 | G31: 0 | I31: 0 | J31: =E31*H31 -> 0 | K31: 0 | M31: 0 | N31: =J31*L31 -> 0 | O31: 0 | P31: =+J31-N31 -> 0 | Q31: 0 | R31: =+J31*E$7 -> 0
B32: Irrigation
C33: Energy Cost | D33: 25.71 | F33: Mcf | G33: 10 | I33: 257.1 | J33: =E33*H33 -> 0 | K33: 0 | M33: 0 | N33: =J33*L33 -> 0 | O33: 257.1 | P33: =+J33-N33 -> 0 | Q33: 31366.2 | R33: =+J33*E$7 -> 0
C34: Irrigation Labor | D34: 0.0955 | F34: Hour | G34: 17.5 | I34: 1.67125 | J34: 0 | K34: 0 | M34: 0 | N34: 0 | O34: 1.67125 | P34: 0 | Q34: 203.8925 | R34: 0
B35: Machinery Labor
C36: Tractors/Self-Propelled | D36: 7.82 | F36: Hour | G36: 17.21 | I36: 134.5822 | J36: =E36*H36 -> 0 | K36: 0 | M36: 0 | N36: =J36*L36 -> 0 | O36: 134.5822 | P36: =+J36-N36 -> 0 | Q36: 16419.0284 | R36: =+J36*E$7 -> 0
C37: Other Labor | D37: 0 | F37: Hour | G37: 17.21 | I37: 0 | J37: =E37*H37 -> 0 | K37: 0 | M37: 0 | N37: =J37*L37 -> 0 | O37: 0 | P37: =+J37-N37 -> 0 | Q37: 0 | R37: =+J37*E$7 -> 0
B39: Diesel Fuel
C40: Pickup/General Use Equipment | D40: 1 | F40: Acre | G40: 0 | I40: 0 | J40: =E40*H40 -> 0 | K40: 0 | M40: 0 | N40: =J40*L40 -> 0 | O40: 0 | P40: =+J40-N40 -> 0 | Q40: 0 | R40: =+J40*E$7 -> 0
C41: Tractors/Self-Propelled | D41: 37.28 | F41: Gallon | G41: 3.16 | I41: 117.8048 | J41: =E41*H41 -> 0 | K41: 0 | M41: 0 | N41: =J41*L41 -> 0 | O41: 117.8048 | P41: =+J41-N41 -> 0 | Q41: 14372.1856 | R41: =+J41*E$7 -> 0
B43: Gasoline
C44: Pickup/General Use Equipment | D44: 1 | F44: Acre | G44: 9.424032787 | I44: 9.424032787 | J44: =E44*H44 -> 0 | K44: 0 | M44: 0 | N44: =J44*L44 -> 0 | O44: 9.424032787 | P44: =+J44-N44 -> 0 | Q44: 1149.732 | R44: =+J44*E$7 -> 0
C45: Tractors/Self-Propelled | D45: 0 | F45: Gallon | G45: 2.93 | I45: 0 | J45: =E45*H45 -> 0 | K45: 0 | M45: 0 | N45: =J45*L45 -> 0 | O45: 0 | P45: =+J45-N45 -> 0 | Q45: 0 | R45: =+J45*E$7 -> 0
B47: Repairs & Maintenance
C48: Pickup/General Use Equipment | D48: 1 | F48: Acre | G48: 1.608196721 | I48: 1.608196721 | J48: =E48*H48 -> 0 | K48: 0 | M48: 0 | N48: =J48*L48 -> 0 | O48: 1.608196721 | P48: =+J48-N48 -> 0 | Q48: 196.2 | R48: =+J48*E$7 -> 0
C49: Irrigation Equipment | D49: 1 | F49: Acre | G49: 43.796985 | I49: 43.796985 | J49: 0 | K49: 0 | M49: 0 | N49: 0 | O49: 43.796985 | P49: 0 | Q49: 5343.23217 | R49: 0
C50: Tractors/Self-Propelled | D50: 1 | F50: Acre | G50: 67.62664767 | I50: 67.62664767 | J50: 0 | K50: 0 | M50: 0 | N50: 0 | O50: 67.62664767 | P50: 0 | Q50: 8250.451016 | R50: 0
C51: Implements | D51: 1 | F51: Acre | G51: 3.035796655 | I51: 3.035796655 | J51: 0 | K51: 0 | M51: 0 | N51: 0 | O51: 3.035796655 | P51: 0 | Q51: 370.3671919 | R51: 0
I52: 0 | J52: 0 | K52: 0 | M52: 0 | N52: 0 | O52: 0 | P52: 0 | Q52: 0 | R52: 0
I53: 0 | J53: 0 | K53: 0 | M53: 0 | N53: 0 | O53: 0 | P53: 0 | Q53: 0 | R53: 0
B54: Interest on Credit Line | G54: 0.08 | I54: 19.9775556 | J54: =+SUM(J17:J53)/2*H54 -> 0 | M54: 0 | N54: =+SUM(N17:N53)/2*L54 -> 0 | O54: 19.9775556 | P54: =+SUM(P17:P53)/2*L54 -> 0 | Q54: 2437.261784 | R54: =+J54*E$7 -> 0
A55: Total Variable Costs | I55: 758.1192555 | J55: =SUM(J18:J54) -> 0 | M55: 0 | N55: =SUM(N18:N54) -> 0 | O55: 758.1192555 | P55: =SUM(P18:P54) -> 0 | Q55: 92490.54918 | R55: =SUM(R18:R54) -> 0
A56: Planned Returns Above Variable Costs: | I56: 1116.880744 | J56: =+J13-J55 -> 0 | M56: 0 | N56: =+N13-N55 -> 0 | O56: 1116.880744 | P56: =+P13-P55 -> 0 | Q56: 136259.4508 | R56: =+R13-R55 -> 0
B57: Breakeven Price to Cover Variable Costs | G57: 101.0825674 | H57: =IF(E10=0,"n/a",(YVarExp-(YTotExp+YTotRet-J10))/E10) -> n/a | I57: Ton
Q58: Enterprise | R58: Enterprise
A59: FIXED COSTS | D59: Quantity | E59: Quantity | F59: Units | G59: $/Unit | H59: $/Unit | I59: Total | J59: Total | K59: Share | L59: Share | M59: Landlord | N59: Landlord | O59: Tenant | P59: Tenant | Q59: Total | R59: Total
B60: Machinery Depreciation
C61: Pickup/General Use Equipment | D61: 1 | F61: Acre | G61: 6.030737705 | I61: 6.030737705 | J61: =E61*H61 -> 0 | K61: 0 | M61: 0 | N61: =J61*L61 -> 0 | O61: 6.030737705 | P61: =+J61-N61 -> 0 | Q61: 735.75 | R61: =+J61*E$7 -> 0
C62: Irrigation Equipment | D62: 1 | F62: Acre | G62: 57.3247679 | I62: 57.3247679 | J62: 0 | K62: 0 | M62: 0 | N62: =J62*L62 -> 0 | O62: 57.3247679 | P62: 0 | Q62: 6993.621684 | R62: 0
C63: Tractors/Self-Propelled | D63: 1 | F63: Acre | G63: 89.84221391 | I63: 89.84221391 | J63: 0 | K63: 0 | M63: 0 | N63: =J63*L63 -> 0 | O63: 89.84221391 | P63: 0 | Q63: 10960.7501 | R63: 0
C64: Implements | D64: 1 | F64: Acre | G64: 7.369838647 | I64: 7.369838647 | J64: 0 | K64: 0 | M64: 0 | N64: =J64*L64 -> 0 | O64: 7.369838647 | P64: 0 | Q64: 899.1203149 | R64: 0
B65: Equipment Investment
C66: Pickup/General Use Equipment | D66: 25.12807377 | F66: Dollars | G66: 0.08 | I66: 2.010245902 | J66: =E66*H66 -> 0 | K66: 0 | M66: 0 | N66: =J66*L66 -> 0 | O66: 2.010245902 | P66: =+J66-N66 -> 0 | Q66: 245.25 | R66: =+J66*E$7 -> 0
C67: Irrigation Equipment | D67: 429.9357593 | F67: Dollars | G67: 0.08 | I67: 34.39486074 | J67: 0 | K67: 0 | M67: 0 | N67: =J67*L67 -> 0 | O67: 34.39486074 | P67: 0 | Q67: 4196.17301 | R67: 0
C68: Tractors/Self-Propelled | D68: 668.4033423 | F68: Dollars | G68: 0.08 | I68: 53.47226738 | J68: 0 | K68: 0 | M68: 0 | N68: =J68*L68 -> 0 | O68: 53.47226738 | P68: 0 | Q68: 6523.616621 | R68: 0
C69: Implements | D69: 53.36571886 | F69: Dollars | G69: 0.08 | I69: 4.269257509 | J69: 0 | K69: 0 | M69: 0 | N69: =J69*L69 -> 0 | O69: 4.269257509 | P69: 0 | Q69: 520.8494161 | R69: 0
B70: Salaried Labor | D70: 1 | F70: Acre | G70: 0 | I70: 0 | J70: 0 | K70: 0 | M70: 0 | N70: =J70*L70 -> 0 | O70: 0 | P70: =+J70-N70 -> 0 | Q70: 0 | R70: =+J70*E$7 -> 0
B71: Management Fee, Owner/Operator Labor | D71: 1 | F71: Acre | G71: 0 | I71: 0 | J71: 0 | K71: 0 | M71: 0 | N71: 0 | O71: 0 | P71: 0 | Q71: 0 | R71: 0
B72: Allocated Establishment Cost | D72: 1 | F72: Acre | G72: 117.8325 | I72: 117.8325 | J72: 0 | K72: 0 | M72: 0 | N72: 0 | O72: 117.8325 | P72: 0 | Q72: 14375.565 | R72: 0
B73: Trans Pecos Irrigated Land | D73: 1 | F73: Acre | G73: 50 | I73: 50 | J73: 0 | K73: 0 | M73: 0 | N73: 0 | O73: 50 | P73: 0 | Q73: 6100 | R73: 0
B74: Property Taxes | D74: 1 | F74: Acre | G74: 0 | I74: 0 | J74: 0 | K74: 0 | M74: 0 | N74: 0 | O74: 0 | P74: 0 | Q74: 0 | R74: 0
B75: Whole Farm Insurance | D75: 1 | F75: Acre | G75: 0 | I75: 0 | J75: 0 | K75: 0 | M75: 0 | N75: 0 | O75: 0 | P75: 0 | Q75: 0 | R75: 0
D76: 1 | G76: 0 | I76: 0 | J76: 0 | K76: 0 | M76: 0 | N76: 0 | O76: 0 | P76: 0 | Q76: 0 | R76: 0
D77: 1 | G77: 0 | I77: 0 | J77: =E77*H77 -> 0 | K77: 0 | M77: 0 | N77: 0 | O77: 0 | P77: 0 | Q77: 0 | R77: 0
A78: Total Fixed Costs | I78: 422.5466897 | J78: =+SUM(J61:J77) -> 0 | M78: 0 | N78: =+SUM(N61:N77) -> 0 | O78: 422.5466897 | P78: =+SUM(P61:P77) -> 0 | Q78: 51550.69614 | R78: =+SUM(R61:R77) -> 0
A79: Total Specified Costs | I79: 1180.665945 | J79: =+J55+J78 -> 0 | M79: 0 | N79: =+N55+N78 -> 0 | O79: 1180.665945 | P79: =+P55+P78 -> 0 | Q79: 144041.2453 | R79: =+R55+R78 -> 0
A81: Returns Above Specified Costs | I81: 694.3340548 | J81: =+J13-J79 -> 0 | M81: 0 | N81: =+N13-N79 -> 0 | O81: 694.3340548 | P81: =+P13-P79 -> 0 | Q81: 84708.75468 | R81: =+R13-R79 -> 0
A83: Breakeven Price to Cover Total Costs | G83: 157.422126 | H83: =IF(E10=0,"n/a",(YTotExp-(YTotExp+YTotRet-J10))/E10) -> n/a | I83: Ton
D85: Example Breakeven Prices
B86: Example | C86: Example | D86: To Cover | G86: To Cover
B87: Yield | C87: Yield | D87: Variable | G87: Total
B88: Percent | C88: Ton | D88: Costs | G88: Costs
B89: 0.75 | C89: 5.625 | D89: 134.7767565 | G89: 209.896168
B90: 0.9 | C90: 6.75 | D90: 112.3139638 | G90: 174.9134734
B91: 1 | C91: 7.5 | D91: 101.0825674 | G91: 157.422126
B92: 1.1 | C92: 8.25 | D92: 91.8932431 | G92: 143.1110237
B93: 1.25 | C93: 9.375 | D93: 80.86605392 | G93: 125.9377008
A95: Developed by Extension Agricultural Economists, Texas A&M AgriLife Extension, budgets@tamu.edu.
A97: Information presented is prepared solely as a general guide and not intended to recognize or predict the costs and returns from any one operation. Brand names are mentioned only as examples and imply no endorsement.

Sheet AlfalfaFloodDell
A1: Projections for Planning Purposes Only -- Not to be Used without Updating
A2: 2026 Estimated Costs and Returns per Acre
A3: Alfalfa, Full Season, Baled - 7.5 Ton Goal, Flood Irrigated, Dell City
A4: Enter your name for this budget in the cell above.
A5: Enter Your Values in the cells highlighed in MAROON.
E6: Your Acres | R6: Your
C7: Crop Acres | D7: 122 | L7: Your | Q7: Enterprise | R7: Enterprise
E8: Your | H8: Your | I8: Cash | J8: Your | K8: Landlord | L8: Landlord | N8: Your | P8: Your | Q8: Total | R8: Total
A9: REVENUE | D9: Quantity | E9: Quantity | F9: Units | G9: $/Unit | H9: $/Unit | I9: Total | J9: Total | K9: Share | L9: Share | M9: Landlord | N9: Landlord | O9: Tenant | P9: Tenant | Q9: (122 acres) | R9: ="(" & E7 & " acres)" -> ( acres)
B10: Alfalfa Hay - 3X4 | D10: 7.5 | F10: Ton | G10: 250 | I10: 1875 | J10: =E10*H10 -> 0 | K10: 0 | M10: 0 | N10: =J10*L10 -> 0 | O10: 1875 | P10: =+J10-N10 -> 0 | Q10: 228750 | R10: =+J10*E$7 -> 0
D11: 0 | G11: 0 | I11: 0 | J11: 0 | K11: 0 | M11: 0 | N11: 0 | O11: 0 | P11: =+J11-N11 -> 0 | Q11: 0 | R11: 0
D12: 0 | G12: 0 | I12: 0 | J12: 0 | K12: 0 | M12: 0 | N12: 0 | O12: 0 | P12: 0 | Q12: 0 | R12: 0
A13: Total Revenue | I13: 1875 | J13: =SUM(J10:J12) -> 0 | M13: 0 | N13: =SUM(N10:N12) -> 0 | O13: 1875 | P13: =SUM(P10:P12) -> 0 | Q13: 228750 | R13: =SUM(R10:R12) -> 0
Q14: Enterprise | R14: Enterprise
A15: VARIABLE COSTS | D15: Quantity | E15: Quantity | F15: Units | G15: $/Unit | H15: $/Unit | I15: Total | J15: Total | K15: Share | L15: Share | M15: Landlord | N15: Landlord | O15: Tenant | P15: Tenant | Q15: Total | R15: Total
A16: Production Costs
B17: Fertilizer
C18: Fertilizer 11-52-0 | D18: 73 | F18: Pound | G18: 0.63 | I18: 45.99 | J18: =E18*H18 -> 0 | K18: 0 | M18: 0 | N18: =J18*L18 -> 0 | O18: 45.99 | P18: =+J18-N18 -> 0 | Q18: 5610.78 | R18: =+J18*E$7 -> 0
B19: Custom
C20: Soil Test | D20: 0.5 | F20: Each | G20: 5 | I20: 2.5 | J20: 0 | K20: 0 | M20: 0 | N20: 0 | O20: 2.5 | P20: 0 | Q20: 305 | R20: 0
C21: Custom Apply Fertilizer | D21: 1 | F21: Acre | G21: 6.39 | I21: 6.39 | J21: 0 | K21: 0 | M21: 0 | N21: 0 | O21: 6.39 | P21: 0 | Q21: 779.58 | R21: 0
B22: Herbicide
C23: Trifluralin | D23: 2 | F23: Pint | G23: 2.75 | I23: 5.5 | J23: 0 | K23: 0 | M23: 0 | N23: 0 | O23: 5.5 | P23: 0 | Q23: 671 | R23: 0
C24: Pursuit | D24: 5 | F24: Ounce | G24: 3.3453125 | I24: 16.7265625 | J24: 0 | K24: 0 | M24: 0 | N24: 0 | O24: 16.7265625 | P24: 0 | Q24: 2040.640625 | R24: 0
C25: Crop Oil Concentrate | D25: 5 | F25: Pint | G25: 2.175 | I25: 10.875 | J25: 0 | K25: 0 | M25: 0 | N25: 0 | O25: 10.875 | P25: 0 | Q25: 1326.75 | R25: 0
B26: Insecticide
C27: Warrior Z | D27: 7.04 | F27: Ounce | G27: 1.25 | I27: 8.8 | J27: 0 | K27: 0 | M27: 0 | N27: 0 | O27: 8.8 | P27: 0 | Q27: 1073.6 | R27: 0
C28: Intrepid | D28: 2.31 | F28: Ounce | G28: 2.03906 | I28: 4.7102286 | J28: 0 | K28: 0 | M28: 0 | N28: 0 | O28: 4.7102286 | P28: 0 | Q28: 574.6478892 | R28: 0
D29: 0 | G29: 0 | I29: 0 | J29: 0 | K29: 0 | M29: 0 | N29: 0 | O29: 0 | P29: 0 | Q29: 0 | R29: 0
D30: 0 | G30: 0 | I30: 0 | J30: 0 | K30: 0 | M30: 0 | N30: 0 | O30: 0 | P30: 0 | Q30: 0 | R30: 0
D31: 0 | G31: 0 | I31: 0 | J31: =E31*H31 -> 0 | K31: 0 | M31: 0 | N31: =J31*L31 -> 0 | O31: 0 | P31: =+J31-N31 -> 0 | Q31: 0 | R31: =+J31*E$7 -> 0
B32: Irrigation
C33: Energy Cost | D33: 21.52 | F33: Mcf | G33: 10 | I33: 215.2 | J33: =E33*H33 -> 0 | K33: 0 | M33: 0 | N33: =J33*L33 -> 0 | O33: 215.2 | P33: =+J33-N33 -> 0 | Q33: 26254.4 | R33: =+J33*E$7 -> 0
C34: Irrigation Labor | D34: 0.2988 | F34: Hour | G34: 17.5 | I34: 5.229 | J34: 0 | K34: 0 | M34: 0 | N34: 0 | O34: 5.229 | P34: 0 | Q34: 637.938 | R34: 0
B35: Machinery Labor
C36: Tractors/Self-Propelled | D36: 7.82 | F36: Hour | G36: 17.21 | I36: 134.5822 | J36: =E36*H36 -> 0 | K36: 0 | M36: 0 | N36: =J36*L36 -> 0 | O36: 134.5822 | P36: =+J36-N36 -> 0 | Q36: 16419.0284 | R36: =+J36*E$7 -> 0
C37: Other Labor | D37: 0 | F37: Hour | G37: 17.21 | I37: 0 | J37: =E37*H37 -> 0 | K37: 0 | M37: 0 | N37: =J37*L37 -> 0 | O37: 0 | P37: =+J37-N37 -> 0 | Q37: 0 | R37: =+J37*E$7 -> 0
B39: Diesel Fuel
C40: Pickup/General Use Equipment | D40: 1 | F40: Acre | G40: 0 | I40: 0 | J40: =E40*H40 -> 0 | K40: 0 | M40: 0 | N40: =J40*L40 -> 0 | O40: 0 | P40: =+J40-N40 -> 0 | Q40: 0 | R40: =+J40*E$7 -> 0
C41: Tractors/Self-Propelled | D41: 37.28 | F41: Gallon | G41: 3.16 | I41: 117.8048 | J41: =E41*H41 -> 0 | K41: 0 | M41: 0 | N41: =J41*L41 -> 0 | O41: 117.8048 | P41: =+J41-N41 -> 0 | Q41: 14372.1856 | R41: =+J41*E$7 -> 0
B43: Gasoline
C44: Pickup/General Use Equipment | D44: 1 | F44: Acre | G44: 9.424032787 | I44: 9.424032787 | J44: =E44*H44 -> 0 | K44: 0 | M44: 0 | N44: =J44*L44 -> 0 | O44: 9.424032787 | P44: =+J44-N44 -> 0 | Q44: 1149.732 | R44: =+J44*E$7 -> 0
C45: Tractors/Self-Propelled | D45: 0 | F45: Gallon | G45: 2.93 | I45: 0 | J45: =E45*H45 -> 0 | K45: 0 | M45: 0 | N45: =J45*L45 -> 0 | O45: 0 | P45: =+J45-N45 -> 0 | Q45: 0 | R45: =+J45*E$7 -> 0
B47: Repairs & Maintenance
C48: Pickup/General Use Equipment | D48: 1 | F48: Acre | G48: 1.608196721 | I48: 1.608196721 | J48: =E48*H48 -> 0 | K48: 0 | M48: 0 | N48: =J48*L48 -> 0 | O48: 1.608196721 | P48: =+J48-N48 -> 0 | Q48: 196.2 | R48: =+J48*E$7 -> 0
C49: Irrigation Equipment | D49: 1 | F49: Acre | G49: 28.477416 | I49: 28.477416 | J49: 0 | K49: 0 | M49: 0 | N49: 0 | O49: 28.477416 | P49: 0 | Q49: 3474.244752 | R49: 0
C50: Tractors/Self-Propelled | D50: 1 | F50: Acre | G50: 67.62664767 | I50: 67.62664767 | J50: 0 | K50: 0 | M50: 0 | N50: 0 | O50: 67.62664767 | P50: 0 | Q50: 8250.451016 | R50: 0
C51: Implements | D51: 1 | F51: Acre | G51: 3.035796655 | I51: 3.035796655 | J51: 0 | K51: 0 | M51: 0 | N51: 0 | O51: 3.035796655 | P51: 0 | Q51: 370.3671919 | R51: 0
I52: 0 | J52: 0 | K52: 0 | M52: 0 | N52: 0 | O52: 0 | P52: 0 | Q52: 0 | R52: 0
I53: 0 | J53: 0 | K53: 0 | M53: 0 | N53: 0 | O53: 0 | P53: 0 | Q53: 0 | R53: 0
B54: Interest on Credit Line | G54: 0.08 | I54: 18.82476876 | J54: =+SUM(J17:J53)/2*H54 -> 0 | M54: 0 | N54: =+SUM(N17:N53)/2*L54 -> 0 | O54: 18.82476876 | P54: =+SUM(P17:P53)/2*L54 -> 0 | Q54: 2296.621789 | R54: =+J54*E$7 -> 0
A55: Total Variable Costs | I55: 703.3046497 | J55: =SUM(J18:J54) -> 0 | M55: 0 | N55: =SUM(N18:N54) -> 0 | O55: 703.3046497 | P55: =SUM(P18:P54) -> 0 | Q55: 85803.16726 | R55: =SUM(R18:R54) -> 0
A56: Planned Returns Above Variable Costs: | I56: 1171.69535 | J56: =+J13-J55 -> 0 | M56: 0 | N56: =+N13-N55 -> 0 | O56: 1171.69535 | P56: =+P13-P55 -> 0 | Q56: 142946.8327 | R56: =+R13-R55 -> 0
B57: Breakeven Price to Cover Variable Costs | G57: 93.77395329 | H57: =IF(E10=0,"n/a",(YVarExp-(YTotExp+YTotRet-J10))/E10) -> n/a | I57: Ton
Q58: Enterprise | R58: Enterprise
A59: FIXED COSTS | D59: Quantity | E59: Quantity | F59: Units | G59: $/Unit | H59: $/Unit | I59: Total | J59: Total | K59: Share | L59: Share | M59: Landlord | N59: Landlord | O59: Tenant | P59: Tenant | Q59: Total | R59: Total
B60: Machinery Depreciation
C61: Pickup/General Use Equipment | D61: 1 | F61: Acre | G61: 6.030737705 | I61: 6.030737705 | J61: =E61*H61 -> 0 | K61: 0 | M61: 0 | N61: =J61*L61 -> 0 | O61: 6.030737705 | P61: =+J61-N61 -> 0 | Q61: 735.75 | R61: =+J61*E$7 -> 0
C62: Irrigation Equipment | D62: 1 | F62: Acre | G62: 37.28144262 | I62: 37.28144262 | J62: 0 | K62: 0 | M62: 0 | N62: =J62*L62 -> 0 | O62: 37.28144262 | P62: 0 | Q62: 4548.336 | R62: 0
C63: Tractors/Self-Propelled | D63: 1 | F63: Acre | G63: 89.84221391 | I63: 89.84221391 | J63: 0 | K63: 0 | M63: 0 | N63: =J63*L63 -> 0 | O63: 89.84221391 | P63: 0 | Q63: 10960.7501 | R63: 0
C64: Implements | D64: 1 | F64: Acre | G64: 7.369838647 | I64: 7.369838647 | J64: 0 | K64: 0 | M64: 0 | N64: =J64*L64 -> 0 | O64: 7.369838647 | P64: 0 | Q64: 899.1203149 | R64: 0
B65: Equipment Investment
C66: Pickup/General Use Equipment | D66: 25.12807377 | F66: Dollars | G66: 0.08 | I66: 2.010245902 | J66: =E66*H66 -> 0 | K66: 0 | M66: 0 | N66: =J66*L66 -> 0 | O66: 2.010245902 | P66: =+J66-N66 -> 0 | Q66: 245.25 | R66: =+J66*E$7 -> 0
C67: Irrigation Equipment | D67: 279.6108197 | F67: Dollars | G67: 0.08 | I67: 22.36886557 | J67: 0 | K67: 0 | M67: 0 | N67: =J67*L67 -> 0 | O67: 22.36886557 | P67: 0 | Q67: 2729.0016 | R67: 0
C68: Tractors/Self-Propelled | D68: 668.4033423 | F68: Dollars | G68: 0.08 | I68: 53.47226738 | J68: 0 | K68: 0 | M68: 0 | N68: =J68*L68 -> 0 | O68: 53.47226738 | P68: 0 | Q68: 6523.616621 | R68: 0
C69: Implements | D69: 53.36571886 | F69: Dollars | G69: 0.08 | I69: 4.269257509 | J69: 0 | K69: 0 | M69: 0 | N69: =J69*L69 -> 0 | O69: 4.269257509 | P69: 0 | Q69: 520.8494161 | R69: 0
B70: Salaried Labor | D70: 1 | F70: Acre | G70: 0 | I70: 0 | J70: 0 | K70: 0 | M70: 0 | N70: =J70*L70 -> 0 | O70: 0 | P70: =+J70-N70 -> 0 | Q70: 0 | R70: =+J70*E$7 -> 0
B71: Management Fee, Owner/Operator Labor | D71: 1 | F71: Acre | G71: 0 | I71: 0 | J71: 0 | K71: 0 | M71: 0 | N71: 0 | O71: 0 | P71: 0 | Q71: 0 | R71: 0
B72: Allocated Establishment Cost | D72: 1 | F72: Acre | G72: 109.5 | I72: 109.5 | J72: 0 | K72: 0 | M72: 0 | N72: 0 | O72: 109.5 | P72: 0 | Q72: 13359 | R72: 0
B73: Trans Pecos Irrigated Land | D73: 1 | F73: Acre | G73: 50 | I73: 50 | J73: 0 | K73: 0 | M73: 0 | N73: 0 | O73: 50 | P73: 0 | Q73: 6100 | R73: 0
B74: Property Taxes | D74: 1 | F74: Acre | G74: 0 | I74: 0 | J74: 0 | K74: 0 | M74: 0 | N74: 0 | O74: 0 | P74: 0 | Q74: 0 | R74: 0
B75: Whole Farm Insurance | D75: 1 | F75: Acre | G75: 0 | I75: 0 | J75: 0 | K75: 0 | M75: 0 | N75: 0 | O75: 0 | P75: 0 | Q75: 0 | R75: 0
D76: 1 | G76: 0 | I76: 0 | J76: 0 | K76: 0 | M76: 0 | N76: 0 | O76: 0 | P76: 0 | Q76: 0 | R76: 0
D77: 1 | G77: 0 | I77: 0 | J77: =E77*H77 -> 0 | K77: 0 | M77: 0 | N77: 0 | O77: 0 | P77: 0 | Q77: 0 | R77: 0
A78: Total Fixed Costs | I78: 382.1448693 | J78: =+SUM(J61:J77) -> 0 | M78: 0 | N78: =+SUM(N61:N77) -> 0 | O78: 382.1448693 | P78: =+SUM(P61:P77) -> 0 | Q78: 46621.67405 | R78: =+SUM(R61:R77) -> 0
A79: Total Specified Costs | I79: 1085.449519 | J79: =+J55+J78 -> 0 | M79: 0 | N79: =+N55+N78 -> 0 | O79: 1085.449519 | P79: =+P55+P78 -> 0 | Q79: 132424.8413 | R79: =+R55+R78 -> 0
A81: Returns Above Specified Costs | I81: 789.5504811 | J81: =+J13-J79 -> 0 | M81: 0 | N81: =+N13-N79 -> 0 | O81: 789.5504811 | P81: =+P13-P79 -> 0 | Q81: 96325.15869 | R81: =+R13-R79 -> 0
A83: Breakeven Price to Cover Total Costs | G83: 144.7266025 | H83: =IF(E10=0,"n/a",(YTotExp-(YTotExp+YTotRet-J10))/E10) -> n/a | I83: Ton
D85: Example Breakeven Prices
B86: Example | C86: Example | D86: To Cover | G86: To Cover
B87: Yield | C87: Yield | D87: Variable | G87: Total
B88: Percent | C88: Ton | D88: Costs | G88: Costs
B89: 0.75 | C89: 5.625 | D89: 125.0319377 | G89: 192.9688034
B90: 0.9 | C90: 6.75 | D90: 104.1932814 | G90: 160.8073361
B91: 1 | C91: 7.5 | D91: 93.77395329 | G91: 144.7266025
B92: 1.1 | C92: 8.25 | D92: 85.24904845 | G92: 131.5696387
B93: 1.25 | C93: 9.375 | D93: 75.01916263 | G93: 115.781282
A95: Developed by Extension Agricultural Economists, Texas A&M AgriLife Extension, budgets@tamu.edu.
A97: Information presented is prepared solely as a general guide and not intended to recognize or predict the costs and returns from any one operation. Brand names are mentioned only as examples and imply no endorsement.

Sheet AlfalfaElPaso
A1: Projections for Planning Purposes Only -- Not to be Used without Updating
A2: 2026 Estimated Costs and Returns per Acre
A3: Alfalfa, Full Season, Baled - 7.5 Ton Goal, Flood Irrigated, El Paso Irrigation District
A4: Enter your name for this budget in the cell above.
A5: Enter Your Values in the cells highlighed in MAROON.
E6: Your Acres | R6: Your
C7: Crop Acres | D7: 122 | L7: Your | Q7: Enterprise | R7: Enterprise
E8: Your | H8: Your | I8: Cash | J8: Your | K8: Landlord | L8: Landlord | N8: Your | P8: Your | Q8: Total | R8: Total
A9: REVENUE | D9: Quantity | E9: Quantity | F9: Units | G9: $/Unit | H9: $/Unit | I9: Total | J9: Total | K9: Share | L9: Share | M9: Landlord | N9: Landlord | O9: Tenant | P9: Tenant | Q9: (122 acres) | R9: ="(" & E7 & " acres)" -> ( acres)
B10: Alfalfa Hay - 3X4 | D10: 7.5 | F10: Ton | G10: 250 | I10: 1875 | J10: =E10*H10 -> 0 | K10: 0 | M10: 0 | N10: =J10*L10 -> 0 | O10: 1875 | P10: =+J10-N10 -> 0 | Q10: 228750 | R10: =+J10*E$7 -> 0
D11: 0 | G11: 0 | I11: 0 | J11: 0 | K11: 0 | M11: 0 | N11: 0 | O11: 0 | P11: =+J11-N11 -> 0 | Q11: 0 | R11: 0
D12: 0 | G12: 0 | I12: 0 | J12: 0 | K12: 0 | M12: 0 | N12: 0 | O12: 0 | P12: 0 | Q12: 0 | R12: 0
A13: Total Revenue | I13: 1875 | J13: =SUM(J10:J12) -> 0 | M13: 0 | N13: =SUM(N10:N12) -> 0 | O13: 1875 | P13: =SUM(P10:P12) -> 0 | Q13: 228750 | R13: =SUM(R10:R12) -> 0
Q14: Enterprise | R14: Enterprise
A15: VARIABLE COSTS | D15: Quantity | E15: Quantity | F15: Units | G15: $/Unit | H15: $/Unit | I15: Total | J15: Total | K15: Share | L15: Share | M15: Landlord | N15: Landlord | O15: Tenant | P15: Tenant | Q15: Total | R15: Total
A16: Production Costs
B17: Herbicide
C18: Trifluralin | D18: 2 | F18: Pint | G18: 2.75 | I18: 5.5 | J18: =E18*H18 -> 0 | K18: 0 | M18: 0 | N18: =J18*L18 -> 0 | O18: 5.5 | P18: =+J18-N18 -> 0 | Q18: 671 | R18: =+J18*E$7 -> 0
C19: Pursuit | D19: 5 | F19: Ounce | G19: 3.3453125 | I19: 16.7265625 | J19: 0 | K19: 0 | M19: 0 | N19: 0 | O19: 16.7265625 | P19: 0 | Q19: 2040.640625 | R19: 0
C20: Crop Oil Concentrate | D20: 5 | F20: Pint | G20: 2.175 | I20: 10.875 | J20: 0 | K20: 0 | M20: 0 | N20: 0 | O20: 10.875 | P20: 0 | Q20: 1326.75 | R20: 0
B21: Fertilizer
C22: Fertilizer 11-52-0 | D22: 73 | F22: Pound | G22: 0.63 | I22: 45.99 | J22: 0 | K22: 0 | M22: 0 | N22: 0 | O22: 45.99 | P22: 0 | Q22: 5610.78 | R22: 0
B23: Custom
C24: Soil Test | D24: 0.5 | F24: Each | G24: 5 | I24: 2.5 | J24: 0 | K24: 0 | M24: 0 | N24: 0 | O24: 2.5 | P24: 0 | Q24: 305 | R24: 0
C25: Custom Apply Fertilizer | D25: 1 | F25: Acre | G25: 6.39 | I25: 6.39 | J25: 0 | K25: 0 | M25: 0 | N25: 0 | O25: 6.39 | P25: 0 | Q25: 779.58 | R25: 0
B26: Insecticide
C27: Warrior Z | D27: 7.04 | F27: Ounce | G27: 1.25 | I27: 8.8 | J27: 0 | K27: 0 | M27: 0 | N27: 0 | O27: 8.8 | P27: 0 | Q27: 1073.6 | R27: 0
C28: Intrepid | D28: 2.31 | F28: Ounce | G28: 2.03906 | I28: 4.7102286 | J28: 0 | K28: 0 | M28: 0 | N28: 0 | O28: 4.7102286 | P28: 0 | Q28: 574.6478892 | R28: 0
D29: 0 | G29: 0 | I29: 0 | J29: 0 | K29: 0 | M29: 0 | N29: 0 | O29: 0 | P29: 0 | Q29: 0 | R29: 0
D30: 0 | G30: 0 | I30: 0 | J30: 0 | K30: 0 | M30: 0 | N30: 0 | O30: 0 | P30: 0 | Q30: 0 | R30: 0
D31: 0 | G31: 0 | I31: 0 | J31: =E31*H31 -> 0 | K31: 0 | M31: 0 | N31: =J31*L31 -> 0 | O31: 0 | P31: =+J31-N31 -> 0 | Q31: 0 | R31: =+J31*E$7 -> 0
B32: Irrigation
C33: Water Cost | D33: 48 | F33: AcreInch | G33: 1.75 | I33: 84 | J33: =E33*H33 -> 0 | K33: 0 | M33: 0 | N33: =J33*L33 -> 0 | O33: 84 | P33: =+J33-N33 -> 0 | Q33: 10248 | R33: =+J33*E$7 -> 0
B34: Machinery Labor
C35: Tractors/Self-Propelled | D35: 7.82 | F35: Hour | G35: 17.21 | I35: 134.5822 | J35: =E35*H35 -> 0 | K35: 0 | M35: 0 | N35: =J35*L35 -> 0 | O35: 134.5822 | P35: =+J35-N35 -> 0 | Q35: 16419.0284 | R35: =+J35*E$7 -> 0
C36: Other Labor | D36: 0 | F36: Hour | G36: 17.21 | I36: 0 | J36: =E36*H36 -> 0 | K36: 0 | M36: 0 | N36: =J36*L36 -> 0 | O36: 0 | P36: =+J36-N36 -> 0 | Q36: 0 | R36: =+J36*E$7 -> 0
B38: Diesel Fuel
C39: Pickup/General Use Equipment | D39: 1 | F39: Acre | G39: 0 | I39: 0 | J39: =E39*H39 -> 0 | K39: 0 | M39: 0 | N39: =J39*L39 -> 0 | O39: 0 | P39: =+J39-N39 -> 0 | Q39: 0 | R39: =+J39*E$7 -> 0
C40: Tractors/Self-Propelled | D40: 37.28 | F40: Gallon | G40: 3.16 | I40: 117.8048 | J40: =E40*H40 -> 0 | K40: 0 | M40: 0 | N40: =J40*L40 -> 0 | O40: 117.8048 | P40: =+J40-N40 -> 0 | Q40: 14372.1856 | R40: =+J40*E$7 -> 0
B42: Gasoline
C43: Pickup/General Use Equipment | D43: 1 | F43: Acre | G43: 9.424032787 | I43: 9.424032787 | J43: =E43*H43 -> 0 | K43: 0 | M43: 0 | N43: =J43*L43 -> 0 | O43: 9.424032787 | P43: =+J43-N43 -> 0 | Q43: 1149.732 | R43: =+J43*E$7 -> 0
C44: Tractors/Self-Propelled | D44: 0 | F44: Gallon | G44: 2.93 | I44: 0 | J44: =E44*H44 -> 0 | K44: 0 | M44: 0 | N44: =J44*L44 -> 0 | O44: 0 | P44: =+J44-N44 -> 0 | Q44: 0 | R44: =+J44*E$7 -> 0
B46: Repairs & Maintenance
C47: Pickup/General Use Equipment | D47: 1 | F47: Acre | G47: 1.608196721 | I47: 1.608196721 | J47: =E47*H47 -> 0 | K47: 0 | M47: 0 | N47: =J47*L47 -> 0 | O47: 1.608196721 | P47: =+J47-N47 -> 0 | Q47: 196.2 | R47: =+J47*E$7 -> 0
C48: Irrigation Equipment | D48: 1 | F48: Acre | G48: 0 | I48: 0 | J48: 0 | K48: 0 | M48: 0 | N48: 0 | O48: 0 | P48: 0 | Q48: 0 | R48: 0
C49: Tractors/Self-Propelled | D49: 1 | F49: Acre | G49: 67.62664767 | I49: 67.62664767 | J49: 0 | K49: 0 | M49: 0 | N49: 0 | O49: 67.62664767 | P49: 0 | Q49: 8250.451016 | R49: 0
C50: Implements | D50: 1 | F50: Acre | G50: 3.035796655 | I50: 3.035796655 | J50: 0 | K50: 0 | M50: 0 | N50: 0 | O50: 3.035796655 | P50: 0 | Q50: 370.3671919 | R50: 0
I51: 0 | J51: 0 | K51: 0 | M51: 0 | N51: 0 | O51: 0 | P51: 0 | Q51: 0 | R51: 0
I52: 0 | J52: 0 | K52: 0 | M52: 0 | N52: 0 | O52: 0 | P52: 0 | Q52: 0 | R52: 0
B53: Interest on Credit Line | G53: 0.08 | I53: 14.93850237 | J53: =+SUM(J17:J52)/2*H53 -> 0 | M53: 0 | N53: =+SUM(N17:N52)/2*L53 -> 0 | O53: 14.93850237 | P53: =+SUM(P17:P52)/2*L53 -> 0 | Q53: 1822.497289 | R53: =+J53*E$7 -> 0
A54: Total Variable Costs | I54: 534.5119673 | J54: =SUM(J18:J53) -> 0 | M54: 0 | N54: =SUM(N18:N53) -> 0 | O54: 534.5119673 | P54: =SUM(P18:P53) -> 0 | Q54: 65210.46001 | R54: =SUM(R18:R53) -> 0
A55: Planned Returns Above Variable Costs: | I55: 1340.488033 | J55: =+J13-J54 -> 0 | M55: 0 | N55: =+N13-N54 -> 0 | O55: 1340.488033 | P55: =+P13-P54 -> 0 | Q55: 163539.54 | R55: =+R13-R54 -> 0
B56: Breakeven Price to Cover Variable Costs | G56: 71.26826231 | H56: =IF(E10=0,"n/a",(YVarExp-(YTotExp+YTotRet-J10))/E10) -> n/a | I56: Ton
Q57: Enterprise | R57: Enterprise
A58: FIXED COSTS | D58: Quantity | E58: Quantity | F58: Units | G58: $/Unit | H58: $/Unit | I58: Total | J58: Total | K58: Share | L58: Share | M58: Landlord | N58: Landlord | O58: Tenant | P58: Tenant | Q58: Total | R58: Total
B59: Machinery Depreciation
C60: Pickup/General Use Equipment | D60: 1 | F60: Acre | G60: 6.030737705 | I60: 6.030737705 | J60: =E60*H60 -> 0 | K60: 0 | M60: 0 | N60: =J60*L60 -> 0 | O60: 6.030737705 | P60: =+J60-N60 -> 0 | Q60: 735.75 | R60: =+J60*E$7 -> 0
C61: Tractors/Self-Propelled | D61: 1 | F61: Acre | G61: 89.84221391 | I61: 89.84221391 | J61: 0 | K61: 0 | M61: 0 | N61: =J61*L61 -> 0 | O61: 89.84221391 | P61: 0 | Q61: 10960.7501 | R61: 0
C62: Implements | D62: 1 | F62: Acre | G62: 7.369838647 | I62: 7.369838647 | J62: 0 | K62: 0 | M62: 0 | N62: =J62*L62 -> 0 | O62: 7.369838647 | P62: 0 | Q62: 899.1203149 | R62: 0
B63: Equipment Investment
C64: Pickup/General Use Equipment | D64: 25.12807377 | F64: Dollars | G64: 0.08 | I64: 2.010245902 | J64: =E64*H64 -> 0 | K64: 0 | M64: 0 | N64: =J64*L64 -> 0 | O64: 2.010245902 | P64: =+J64-N64 -> 0 | Q64: 245.25 | R64: =+J64*E$7 -> 0
C65: Tractors/Self-Propelled | D65: 668.4033423 | F65: Dollars | G65: 0.08 | I65: 53.47226738 | J65: 0 | K65: 0 | M65: 0 | N65: =J65*L65 -> 0 | O65: 53.47226738 | P65: 0 | Q65: 6523.616621 | R65: 0
C66: Implements | D66: 53.36571886 | F66: Dollars | G66: 0.08 | I66: 4.269257509 | J66: 0 | K66: 0 | M66: 0 | N66: =J66*L66 -> 0 | O66: 4.269257509 | P66: 0 | Q66: 520.8494161 | R66: 0
B67: Salaried Labor | D67: 1 | F67: Acre | G67: 0 | I67: 0 | J67: 0 | K67: 0 | M67: 0 | N67: =J67*L67 -> 0 | O67: 0 | P67: =+J67-N67 -> 0 | Q67: 0 | R67: =+J67*E$7 -> 0
B68: Management Fee, Owner/Operator Labor | D68: 1 | F68: Acre | G68: 0 | I68: 0 | J68: 0 | K68: 0 | M68: 0 | N68: 0 | O68: 0 | P68: 0 | Q68: 0 | R68: 0
B69: Allocated Establishment Cost | D69: 1 | F69: Acre | G69: 109.5 | I69: 109.5 | J69: 0 | K69: 0 | M69: 0 | N69: 0 | O69: 109.5 | P69: 0 | Q69: 13359 | R69: 0
B70: Trans Pecos Irrigated Land | D70: 1 | F70: Acre | G70: 50 | I70: 50 | J70: 0 | K70: 0 | M70: 0 | N70: 0 | O70: 50 | P70: 0 | Q70: 6100 | R70: 0
B71: Property Taxes | D71: 1 | F71: Acre | G71: 0 | I71: 0 | J71: 0 | K71: 0 | M71: 0 | N71: 0 | O71: 0 | P71: 0 | Q71: 0 | R71: 0
B72: Whole Farm Insurance | D72: 1 | F72: Acre | G72: 0 | I72: 0 | J72: 0 | K72: 0 | M72: 0 | N72: 0 | O72: 0 | P72: 0 | Q72: 0 | R72: 0
D73: 1 | G73: 0 | I73: 0 | J73: 0 | K73: 0 | M73: 0 | N73: 0 | O73: 0 | P73: 0 | Q73: 0 | R73: 0
D74: 1 | G74: 0 | I74: 0 | J74: =E74*H74 -> 0 | K74: 0 | M74: 0 | N74: 0 | O74: 0 | P74: 0 | Q74: 0 | R74: 0
A75: Total Fixed Costs | I75: 322.4945611 | J75: =+SUM(J60:J74) -> 0 | M75: 0 | N75: =+SUM(N60:N74) -> 0 | O75: 322.4945611 | P75: =+SUM(P60:P74) -> 0 | Q75: 39344.33645 | R75: =+SUM(R60:R74) -> 0
A76: Total Specified Costs | I76: 857.0065284 | J76: =+J54+J75 -> 0 | M76: 0 | N76: =+N54+N75 -> 0 | O76: 857.0065284 | P76: =+P54+P75 -> 0 | Q76: 104554.7965 | R76: =+R54+R75 -> 0
A78: Returns Above Specified Costs | I78: 1017.993472 | J78: =+J13-J76 -> 0 | M78: 0 | N78: =+N13-N76 -> 0 | O78: 1017.993472 | P78: =+P13-P76 -> 0 | Q78: 124195.2035 | R78: =+R13-R76 -> 0
A80: Breakeven Price to Cover Total Costs | G80: 114.2675371 | H80: =IF(E10=0,"n/a",(YTotExp-(YTotExp+YTotRet-J10))/E10) -> n/a | I80: Ton
D82: Example Breakeven Prices
B83: Example | C83: Example | D83: To Cover | G83: To Cover
B84: Yield | C84: Yield | D84: Variable | G84: Total
B85: Percent | C85: Ton | D85: Costs | G85: Costs
B86: 0.75 | C86: 5.625 | D86: 95.02434974 | G86: 152.3567162
B87: 0.9 | C87: 6.75 | D87: 79.18695812 | G87: 126.9639301
B88: 1 | C88: 7.5 | D88: 71.26826231 | G88: 114.2675371
B89: 1.1 | C89: 8.25 | D89: 64.78932937 | G89: 103.8795792
B90: 1.25 | C90: 9.375 | D90: 57.01460985 | G90: 91.41402969
A92: Developed by Extension Agricultural Economists, Texas A&M AgriLife Extension, budgets@tamu.edu.
A94: Information presented is prepared solely as a general guide and not intended to recognize or predict the costs and returns from any one operation. Brand names are mentioned only as examples and imply no endorsement.

Sheet SLCottonDrip
A1: Projections for Planning Purposes Only -- Not to be Used without Updating
A2: 2026 Estimated Costs and Returns per Acre
A3: St. Lawrence Reduced Tillage Cotton, Drip Irrigated, 40 Inch Rows
A4: Enter your name for this budget in the cell above.
A5: Enter Your Values in the cells highlighed in MAROON.
E6: Your Acres | R6: Your
C7: Crop Acres | D7: 122 | L7: Your | Q7: Enterprise | R7: Enterprise
E8: Your | H8: Your | I8: Cash | J8: Your | K8: Landlord | L8: Landlord | N8: Your | P8: Your | Q8: Total | R8: Total
A9: REVENUE | D9: Quantity | E9: Quantity | F9: Units | G9: $/Unit | H9: $/Unit | I9: Total | J9: Total | K9: Share | L9: Share | M9: Landlord | N9: Landlord | O9: Tenant | P9: Tenant | Q9: (122 acres) | R9: ="(" & E7 & " acres)" -> ( acres)
B10: Cotton Lint | D10: 1500 | F10: Pound | G10: 0.69 | I10: 1035 | J10: =E10*H10 -> 0 | K10: 0 | M10: 0 | N10: =J10*L10 -> 0 | O10: 1035 | P10: =+J10-N10 -> 0 | Q10: 126270 | R10: =+J10*E$7 -> 0
B11: Cotton Seed | D11: 1.2 | F11: Ton | G11: 250 | I11: 300 | J11: 0 | K11: 0 | M11: 0 | N11: 0 | O11: 300 | P11: =+J11-N11 -> 0 | Q11: 36600 | R11: 0
D12: 0 | G12: 0 | I12: 0 | J12: 0 | K12: 0 | M12: 0 | N12: 0 | O12: 0 | P12: 0 | Q12: 0 | R12: 0
D13: 0 | G13: 0 | I13: 0 | J13: 0 | K13: 0 | M13: 0 | N13: 0 | O13: 0 | P13: 0 | Q13: 0 | R13: 0
A14: Total Revenue | I14: 1335 | J14: =SUM(J10:J13) -> 0 | M14: 0 | N14: =SUM(N10:N13) -> 0 | O14: 1335 | P14: =SUM(P10:P13) -> 0 | Q14: 162870 | R14: =SUM(R10:R13) -> 0
Q15: Enterprise | R15: Enterprise
A16: VARIABLE COSTS | D16: Quantity | E16: Quantity | F16: Units | G16: $/Unit | H16: $/Unit | I16: Total | J16: Total | K16: Share | L16: Share | M16: Landlord | N16: Landlord | O16: Tenant | P16: Tenant | Q16: Total | R16: Total
A17: Production Costs
B18: Herbicide
C19: Trifluralin Pint | D19: 1.5 | F19: Pint | G19: 2.75 | I19: 4.125 | J19: =E19*H19 -> 0 | K19: 0 | M19: 0 | N19: =J19*L19 -> 0 | O19: 4.125 | P19: =+J19-N19 -> 0 | Q19: 503.25 | R19: =+J19*E$7 -> 0
C20: Glyphosate Ounce Generic 4lb | D20: 32 | F20: Ounce | G20: 0.1328125 | I20: 4.25 | J20: 0 | K20: 0 | M20: 0 | N20: 0 | O20: 4.25 | P20: 0 | Q20: 518.5 | R20: 0
C21: 0-60-0 | D21: 32 | F21: Pound | G21: 1.29 | I21: 41.28 | J21: 0 | K21: 0 | M21: 0 | N21: 0 | O21: 41.28 | P21: 0 | Q21: 5036.16 | R21: 0
B22: Seed
C23: Cotton Seed BIIRRF - Irrigated | D23: 40 | F23: Thousand | G23: 1.6521739 | I23: 66.086956 | J23: 0 | K23: 0 | M23: 0 | N23: 0 | O23: 66.086956 | P23: 0 | Q23: 8062.608632 | R23: 0
B24: Fertilizer
C25: Nitrogen - Dry (Urea 45-0-0) | D25: 11 | F25: Pound | G25: 0.56 | I25: 6.16 | J25: 0 | K25: 0 | M25: 0 | N25: 0 | O25: 6.16 | P25: 0 | Q25: 751.52 | R25: 0
C26: Potash 0-0-60 | D26: 90 | F26: Pound | G26: 0.42 | I26: 37.8 | J26: 0 | K26: 0 | M26: 0 | N26: 0 | O26: 37.8 | P26: 0 | Q26: 4611.6 | R26: 0
C27: N-32 | D27: 140 | F27: Pound | G27: 0.53 | I27: 74.2 | J27: 0 | K27: 0 | M27: 0 | N27: 0 | O27: 74.2 | P27: 0 | Q27: 9052.4 | R27: 0
B28: Custom
C29: Soil Test-Irrigated | D29: 1 | F29: Acre | G29: 0.5 | I29: 0.5 | J29: 0 | K29: 0 | M29: 0 | N29: 0 | O29: 0.5 | P29: 0 | Q29: 61 | R29: 0
C30: Custom Spray | D30: 2 | F30: Acre | G30: 6.39 | I30: 12.78 | J30: 0 | K30: 0 | M30: 0 | N30: 0 | O30: 12.78 | P30: 0 | Q30: 1559.16 | R30: 0
C31: Bag, Tie | D31: 3 | F31: Bale | G31: 15 | I31: 45 | J31: 0 | K31: 0 | M31: 0 | N31: 0 | O31: 45 | P31: 0 | Q31: 5490 | R31: 0
C32: Gin and Haul | D32: 53.57 | F32: CWT | G32: 3.75 | I32: 200.8875 | J32: 0 | K32: 0 | M32: 0 | N32: 0 | O32: 200.8875 | P32: 0 | Q32: 24508.275 | R32: 0
B33: Miscellaneous
C34: IRR Cotton RP 70% ent, SE, Glasscock Co, | D34: 1 | F34: Acre | G34: 25.98 | I34: 25.98 | J34: 0 | K34: 0 | M34: 0 | N34: 0 | O34: 25.98 | P34: 0 | Q34: 3169.56 | R34: 0
B35: Other Chemicals
C36: Mepiquat Chloride-PGR | D36: 16 | F36: Ounce | G36: 0.0625 | I36: 1 | J36: 0 | K36: 0 | M36: 0 | N36: 0 | O36: 1 | P36: 0 | Q36: 122 | R36: 0
B37: Cotton Harvest
C38: Ethephon 6 Pint | D38: 1.5 | F38: Pint | G38: 3.8125 | I38: 5.71875 | J38: 0 | K38: 0 | M38: 0 | N38: 0 | O38: 5.71875 | P38: 0 | Q38: 697.6875 | R38: 0
C39: Firestorm (3lb Paraquat) | D39: 28 | F39: Ounce | G39: 0.1796875 | I39: 5.03125 | J39: 0 | K39: 0 | M39: 0 | N39: 0 | O39: 5.03125 | P39: 0 | Q39: 613.8125 | R39: 0
C40: Cutout | D40: 5 | F40: Ounce | G40: 0.921875 | I40: 4.609375 | J40: 0 | K40: 0 | M40: 0 | N40: 0 | O40: 4.609375 | P40: 0 | Q40: 562.34375 | R40: 0
D41: 0 | G41: 0 | I41: 0 | J41: 0 | K41: 0 | M41: 0 | N41: 0 | O41: 0 | P41: 0 | Q41: 0 | R41: 0
D42: 0 | G42: 0 | I42: 0 | J42: 0 | K42: 0 | M42: 0 | N42: 0 | O42: 0 | P42: 0 | Q42: 0 | R42: 0
D43: 0 | G43: 0 | I43: 0 | J43: =E43*H43 -> 0 | K43: 0 | M43: 0 | N43: =J43*L43 -> 0 | O43: 0 | P43: =+J43-N43 -> 0 | Q43: 0 | R43: =+J43*E$7 -> 0
B44: Irrigation
C45: Energy Cost | D45: 17.99 | F45: AcreInch | G45: 6.658167767 | I45: 119.7804381 | J45: =E45*H45 -> 0 | K45: 0 | M45: 0 | N45: =J45*L45 -> 0 | O45: 119.7804381 | P45: =+J45-N45 -> 0 | Q45: 14613.21345 | R45: =+J45*E$7 -> 0
C46: Irrigation Labor | D46: 3.0394 | F46: Hour | G46: 17.5 | I46: 53.1895 | J46: 0 | K46: 0 | M46: 0 | N46: 0 | O46: 53.1895 | P46: 0 | Q46: 6489.119 | R46: 0
B47: Machinery Labor
C48: Tractors/Self-Propelled | D48: 1.42 | F48: Hour | G48: 17.21 | I48: 24.4382 | J48: =E48*H48 -> 0 | K48: 0 | M48: 0 | N48: =J48*L48 -> 0 | O48: 24.4382 | P48: =+J48-N48 -> 0 | Q48: 2981.4604 | R48: =+J48*E$7 -> 0
C49: Other Labor | D49: 0.22 | F49: Hour | G49: 17.21 | I49: 3.7862 | J49: =E49*H49 -> 0 | K49: 0 | M49: 0 | N49: =J49*L49 -> 0 | O49: 3.7862 | P49: =+J49-N49 -> 0 | Q49: 461.9164 | R49: =+J49*E$7 -> 0
B51: Diesel Fuel
C52: Pickup/General Use Equipment | D52: 1 | F52: Acre | G52: 0 | I52: 0 | J52: =E52*H52 -> 0 | K52: 0 | M52: 0 | N52: =J52*L52 -> 0 | O52: 0 | P52: =+J52-N52 -> 0 | Q52: 0 | R52: =+J52*E$7 -> 0
C53: Tractors/Self-Propelled | D53: 13.33 | F53: Gallon | G53: 3.16 | I53: 42.1228 | J53: =E53*H53 -> 0 | K53: 0 | M53: 0 | N53: =J53*L53 -> 0 | O53: 42.1228 | P53: =+J53-N53 -> 0 | Q53: 5138.9816 | R53: =+J53*E$7 -> 0
B55: Gasoline
C56: Pickup/General Use Equipment | D56: 1 | F56: Acre | G56: 7.853360656 | I56: 7.853360656 | J56: =E56*H56 -> 0 | K56: 0 | M56: 0 | N56: =J56*L56 -> 0 | O56: 7.853360656 | P56: =+J56-N56 -> 0 | Q56: 958.11 | R56: =+J56*E$7 -> 0
C57: Tractors/Self-Propelled | D57: 0 | F57: Gallon | G57: 2.93 | I57: 0 | J57: =E57*H57 -> 0 | K57: 0 | M57: 0 | N57: =J57*L57 -> 0 | O57: 0 | P57: =+J57-N57 -> 0 | Q57: 0 | R57: =+J57*E$7 -> 0
B59: Repairs & Maintenance
C60: Pickup/General Use Equipment | D60: 1 | F60: Acre | G60: 1.728811475 | I60: 1.728811475 | J60: =E60*H60 -> 0 | K60: 0 | M60: 0 | N60: =J60*L60 -> 0 | O60: 1.728811475 | P60: =+J60-N60 -> 0 | Q60: 210.915 | R60: =+J60*E$7 -> 0
C61: Irrigation Equipment | D61: 1 | F61: Acre | G61: 9.684017 | I61: 9.684017 | J61: 0 | K61: 0 | M61: 0 | N61: 0 | O61: 9.684017 | P61: 0 | Q61: 1181.450074 | R61: 0
C62: Tractors/Self-Propelled | D62: 1 | F62: Acre | G62: 33.48350084 | I62: 33.48350084 | J62: 0 | K62: 0 | M62: 0 | N62: 0 | O62: 33.48350084 | P62: 0 | Q62: 4084.987103 | R62: 0
C63: Implements | D63: 1 | F63: Acre | G63: 14.30448946 | I63: 14.30448946 | J63: 0 | K63: 0 | M63: 0 | N63: 0 | O63: 14.30448946 | P63: 0 | Q63: 1745.147714 | R63: 0
I64: 0 | J64: 0 | K64: 0 | M64: 0 | N64: 0 | O64: 0 | P64: 0 | Q64: 0 | R64: 0
I65: 0 | J65: 0 | K65: 0 | M65: 0 | N65: 0 | O65: 0 | P65: 0 | Q65: 0 | R65: 0
B66: Interest on Credit Line | G66: 0.08 | I66: 17.73676692 | J66: =+SUM(J18:J65)/2*H66 -> 0 | M66: 0 | N66: =+SUM(N18:N65)/2*L66 -> 0 | O66: 17.73676692 | P66: =+SUM(P18:P65)/2*L66 -> 0 | Q66: 2163.885564 | R66: =+J66*E$7 -> 0
A67: Total Variable Costs | I67: 863.5169155 | J67: =SUM(J19:J66) -> 0 | M67: 0 | N67: =SUM(N19:N66) -> 0 | O67: 863.5169155 | P67: =SUM(P19:P66) -> 0 | Q67: 105349.0637 | R67: =SUM(R19:R66) -> 0
A68: Planned Returns Above Variable Costs: | I68: 471.4830845 | J68: =+J14-J67 -> 0 | M68: 0 | N68: =+N14-N67 -> 0 | O68: 471.4830845 | P68: =+P14-P67 -> 0 | Q68: 57520.93631 | R68: =+R14-R67 -> 0
B69: Breakeven Price to Cover Variable Costs | G69: 0.3756779437 | H69: =IF(E10=0,"n/a",(YVarExp-(YTotExp+YTotRet-J10))/E10) -> n/a | I69: Pound
Q70: Enterprise | R70: Enterprise
A71: FIXED COSTS | D71: Quantity | E71: Quantity | F71: Units | G71: $/Unit | H71: $/Unit | I71: Total | J71: Total | K71: Share | L71: Share | M71: Landlord | N71: Landlord | O71: Tenant | P71: Tenant | Q71: Total | R71: Total
B72: Machinery Depreciation
C73: Pickup/General Use Equipment | D73: 1 | F73: Acre | G73: 3.618442623 | I73: 3.618442623 | J73: =E73*H73 -> 0 | K73: 0 | M73: 0 | N73: =J73*L73 -> 0 | O73: 3.618442623 | P73: =+J73-N73 -> 0 | Q73: 441.45 | R73: =+J73*E$7 -> 0
C74: Irrigation Equipment | D74: 1 | F74: Acre | G74: 95.91963934 | I74: 95.91963934 | J74: 0 | K74: 0 | M74: 0 | N74: =J74*L74 -> 0 | O74: 95.91963934 | P74: 0 | Q74: 11702.196 | R74: 0
C75: Tractors/Self-Propelled | D75: 1 | F75: Acre | G75: 39.45147357 | I75: 39.45147357 | J75: 0 | K75: 0 | M75: 0 | N75: =J75*L75 -> 0 | O75: 39.45147357 | P75: 0 | Q75: 4813.079776 | R75: 0
C76: Implements | D76: 1 | F76: Acre | G76: 17.98766276 | I76: 17.98766276 | J76: 0 | K76: 0 | M76: 0 | N76: =J76*L76 -> 0 | O76: 17.98766276 | P76: 0 | Q76: 2194.494857 | R76: 0
B77: Equipment Investment
C78: Pickup/General Use Equipment | D78: 22.11270492 | F78: Dollars | G78: 0.08 | I78: 1.769016393 | J78: =E78*H78 -> 0 | K78: 0 | M78: 0 | N78: =J78*L78 -> 0 | O78: 1.769016393 | P78: =+J78-N78 -> 0 | Q78: 215.82 | R78: =+J78*E$7 -> 0
C79: Irrigation Equipment | D79: 978.5740984 | F79: Dollars | G79: 0.08 | I79: 78.28592787 | J79: 0 | K79: 0 | M79: 0 | N79: =J79*L79 -> 0 | O79: 78.28592787 | P79: 0 | Q79: 9550.8832 | R79: 0
C80: Tractors/Self-Propelled | D80: 339.8638763 | F80: Dollars | G80: 0.08 | I80: 27.18911011 | J80: 0 | K80: 0 | M80: 0 | N80: =J80*L80 -> 0 | O80: 27.18911011 | P80: 0 | Q80: 3317.071433 | R80: 0
C81: Implements | D81: 101.8741771 | F81: Dollars | G81: 0.08 | I81: 8.149934171 | J81: 0 | K81: 0 | M81: 0 | N81: =J81*L81 -> 0 | O81: 8.149934171 | P81: 0 | Q81: 994.2919689 | R81: 0
B82: Salaried Labor | D82: 1 | F82: Acre | G82: 0 | I82: 0 | J82: 0 | K82: 0 | M82: 0 | N82: =J82*L82 -> 0 | O82: 0 | P82: =+J82-N82 -> 0 | Q82: 0 | R82: =+J82*E$7 -> 0
B83: Management Fee, Owner/Operator Labor | D83: 1 | F83: Acre | G83: 0 | I83: 0 | J83: 0 | K83: 0 | M83: 0 | N83: 0 | O83: 0 | P83: 0 | Q83: 0 | R83: 0
B84: Allocated Establishment Cost | D84: 1 | F84: Acre | G84: 0 | I84: 0 | J84: 0 | K84: 0 | M84: 0 | N84: 0 | O84: 0 | P84: 0 | Q84: 0 | R84: 0
B85: Lease value - Drip | D85: 1 | F85: Acre | G85: 50 | I85: 50 | J85: 0 | K85: 0 | M85: 0 | N85: 0 | O85: 50 | P85: 0 | Q85: 6100 | R85: 0
B86: Property Taxes | D86: 1 | F86: Acre | G86: 0 | I86: 0 | J86: 0 | K86: 0 | M86: 0 | N86: 0 | O86: 0 | P86: 0 | Q86: 0 | R86: 0
B87: Whole Farm Insurance | D87: 1 | F87: Acre | G87: 0 | I87: 0 | J87: 0 | K87: 0 | M87: 0 | N87: 0 | O87: 0 | P87: 0 | Q87: 0 | R87: 0
D88: 1 | G88: 0 | I88: 0 | J88: 0 | K88: 0 | M88: 0 | N88: 0 | O88: 0 | P88: 0 | Q88: 0 | R88: 0
D89: 1 | G89: 0 | I89: 0 | J89: =E89*H89 -> 0 | K89: 0 | M89: 0 | N89: 0 | O89: 0 | P89: 0 | Q89: 0 | R89: 0
A90: Total Fixed Costs | I90: 322.3712068 | J90: =+SUM(J73:J89) -> 0 | M90: 0 | N90: =+SUM(N73:N89) -> 0 | O90: 322.3712068 | P90: =+SUM(P73:P89) -> 0 | Q90: 39329.28723 | R90: =+SUM(R73:R89) -> 0
A91: Total Specified Costs | I91: 1185.888122 | J91: =+J67+J90 -> 0 | M91: 0 | N91: =+N67+N90 -> 0 | O91: 1185.888122 | P91: =+P67+P90 -> 0 | Q91: 144678.3509 | R91: =+R67+R90 -> 0
A93: Returns Above Specified Costs | I93: 149.1118777 | J93: =+J14-J91 -> 0 | M93: 0 | N93: =+N14-N91 -> 0 | O93: 149.1118777 | P93: =+P14-P91 -> 0 | Q93: 18191.64908 | R93: =+R14-R91 -> 0
A95: Breakeven Price to Cover Total Costs | G95: 0.5905920815 | H95: =IF(E10=0,"n/a",(YTotExp-(YTotExp+YTotRet-J10))/E10) -> n/a | I95: Pound
D97: Example Breakeven Prices
B98: Example | C98: Example | D98: To Cover | G98: To Cover
B99: Yield | C99: Yield | D99: Variable | G99: Total
B100: Percent | C100: Pound | D100: Costs | G100: Costs
B101: 0.75 | C101: 1125 | D101: 0.5009039249 | G101: 0.7874561087
B102: 0.9 | C102: 1350 | D102: 0.4174199374 | G102: 0.6562134239
B103: 1 | C103: 1500 | D103: 0.3756779437 | G103: 0.5905920815
B104: 1.1 | C104: 1650 | D104: 0.3415254033 | G104: 0.5369018923
B105: 1.25 | C105: 1875 | D105: 0.3005423549 | G105: 0.4724736652
A107: Developed by Extension Agricultural Economists, Texas A&M AgriLife Extension, budgets@tamu.edu.
A109: Information presented is prepared solely as a general guide and not intended to recognize or predict the costs and returns from any one operation. Brand names are mentioned only as examples and imply no endorsement.

Sheet SLXFCottonDrip
A1: Projections for Planning Purposes Only -- Not to be Used without Updating
A2: 2026 Estimated Costs and Returns per Acre
A3: St. Lawrence Auxin Technology Cotton, Drip Irrigated, 40 Inch Rows
A4: Enter your name for this budget in the cell above.
A5: Enter Your Values in the cells highlighed in MAROON.
E6: Your Acres | R6: Your
C7: Crop Acres | D7: 122 | L7: Your | Q7: Enterprise | R7: Enterprise
E8: Your | H8: Your | I8: Cash | J8: Your | K8: Landlord | L8: Landlord | N8: Your | P8: Your | Q8: Total | R8: Total
A9: REVENUE | D9: Quantity | E9: Quantity | F9: Units | G9: $/Unit | H9: $/Unit | I9: Total | J9: Total | K9: Share | L9: Share | M9: Landlord | N9: Landlord | O9: Tenant | P9: Tenant | Q9: (122 acres) | R9: ="(" & E7 & " acres)" -> ( acres)
B10: Cotton Lint | D10: 1500 | F10: Pound | G10: 0.69 | I10: 1035 | J10: =E10*H10 -> 0 | K10: 0 | M10: 0 | N10: =J10*L10 -> 0 | O10: 1035 | P10: =+J10-N10 -> 0 | Q10: 126270 | R10: =+J10*E$7 -> 0
B11: Cotton Seed | D11: 1.2 | F11: Ton | G11: 250 | I11: 300 | J11: 0 | K11: 0 | M11: 0 | N11: 0 | O11: 300 | P11: =+J11-N11 -> 0 | Q11: 36600 | R11: 0
D12: 0 | G12: 0 | I12: 0 | J12: 0 | K12: 0 | M12: 0 | N12: 0 | O12: 0 | P12: 0 | Q12: 0 | R12: 0
D13: 0 | G13: 0 | I13: 0 | J13: 0 | K13: 0 | M13: 0 | N13: 0 | O13: 0 | P13: 0 | Q13: 0 | R13: 0
A14: Total Revenue | I14: 1335 | J14: =SUM(J10:J13) -> 0 | M14: 0 | N14: =SUM(N10:N13) -> 0 | O14: 1335 | P14: =SUM(P10:P13) -> 0 | Q14: 162870 | R14: =SUM(R10:R13) -> 0
Q15: Enterprise | R15: Enterprise
A16: VARIABLE COSTS | D16: Quantity | E16: Quantity | F16: Units | G16: $/Unit | H16: $/Unit | I16: Total | J16: Total | K16: Share | L16: Share | M16: Landlord | N16: Landlord | O16: Tenant | P16: Tenant | Q16: Total | R16: Total
A17: Production Costs
B18: Herbicide
C19: Trifluralin Pint | D19: 1.5 | F19: Pint | G19: 2.75 | I19: 4.125 | J19: =E19*H19 -> 0 | K19: 0 | M19: 0 | N19: =J19*L19 -> 0 | O19: 4.125 | P19: =+J19-N19 -> 0 | Q19: 503.25 | R19: =+J19*E$7 -> 0
C20: Glyphosate Ounce Generic | D20: 64 | F20: Ounce | G20: 0.1328125 | I20: 8.5 | J20: 0 | K20: 0 | M20: 0 | N20: 0 | O20: 8.5 | P20: 0 | Q20: 1037 | R20: 0
C21: Auxin based herbicide | D21: 44 | F21: Ounce | G21: 0.5 | I21: 22 | J21: 0 | K21: 0 | M21: 0 | N21: 0 | O21: 22 | P21: 0 | Q21: 2684 | R21: 0
B22: Seed
C23: Seed Cotton - B2XF | D23: 40 | F23: Thousand | G23: 1.786956522 | I23: 71.47826087 | J23: 0 | K23: 0 | M23: 0 | N23: 0 | O23: 71.47826087 | P23: 0 | Q23: 8720.347826 | R23: 0
B24: Fertilizer
C25: Nitrogen - Dry (Urea 46-0-0) | D25: 11 | F25: Pound | G25: 0.56 | I25: 6.16 | J25: 0 | K25: 0 | M25: 0 | N25: 0 | O25: 6.16 | P25: 0 | Q25: 751.52 | R25: 0
C26: 0-60-0 | D26: 90 | F26: Pound | G26: 1.29 | I26: 116.1 | J26: 0 | K26: 0 | M26: 0 | N26: 0 | O26: 116.1 | P26: 0 | Q26: 14164.2 | R26: 0
C27: N-32 | D27: 140 | F27: Pound | G27: 0.53 | I27: 74.2 | J27: 0 | K27: 0 | M27: 0 | N27: 0 | O27: 74.2 | P27: 0 | Q27: 9052.4 | R27: 0
B28: Custom
C29: Soil Test-Irrigated | D29: 1 | F29: Acre | G29: 0.5 | I29: 0.5 | J29: 0 | K29: 0 | M29: 0 | N29: 0 | O29: 0.5 | P29: 0 | Q29: 61 | R29: 0
C30: Custom Spray | D30: 2 | F30: Acre | G30: 6.39 | I30: 12.78 | J30: 0 | K30: 0 | M30: 0 | N30: 0 | O30: 12.78 | P30: 0 | Q30: 1559.16 | R30: 0
C31: Bag, Tie | D31: 3 | F31: Bale | G31: 15 | I31: 45 | J31: 0 | K31: 0 | M31: 0 | N31: 0 | O31: 45 | P31: 0 | Q31: 5490 | R31: 0
C32: Gin and Haul | D32: 53.57 | F32: CWT | G32: 3.75 | I32: 200.8875 | J32: 0 | K32: 0 | M32: 0 | N32: 0 | O32: 200.8875 | P32: 0 | Q32: 24508.275 | R32: 0
B33: Miscellaneous
C34: IRR Cotton RP 70% ent, SE, Glasscock Co, | D34: 1 | F34: Acre | G34: 25.98 | I34: 25.98 | J34: 0 | K34: 0 | M34: 0 | N34: 0 | O34: 25.98 | P34: 0 | Q34: 3169.56 | R34: 0
C35: Boll Weevil Eradication Program | D35: 3 | F35: Bale | G35: 1 | I35: 3 | J35: 0 | K35: 0 | M35: 0 | N35: 0 | O35: 3 | P35: 0 | Q35: 366 | R35: 0
B36: Other Chemicals
C37: Mepiquat Chloride-PGR | D37: 16 | F37: Ounce | G37: 0.0625 | I37: 1 | J37: 0 | K37: 0 | M37: 0 | N37: 0 | O37: 1 | P37: 0 | Q37: 122 | R37: 0
B38: Cotton Harvest
C39: Ethephon 6 Pint | D39: 1.5 | F39: Pint | G39: 3.8125 | I39: 5.71875 | J39: 0 | K39: 0 | M39: 0 | N39: 0 | O39: 5.71875 | P39: 0 | Q39: 697.6875 | R39: 0
C40: Firestorm (3lb Paraquat) | D40: 28 | F40: Ounce | G40: 0.1796875 | I40: 5.03125 | J40: 0 | K40: 0 | M40: 0 | N40: 0 | O40: 5.03125 | P40: 0 | Q40: 613.8125 | R40: 0
C41: Cutout | D41: 5 | F41: Ounce | G41: 0.921875 | I41: 4.609375 | J41: 0 | K41: 0 | M41: 0 | N41: 0 | O41: 4.609375 | P41: 0 | Q41: 562.34375 | R41: 0
D42: 0 | G42: 0 | I42: 0 | J42: 0 | K42: 0 | M42: 0 | N42: 0 | O42: 0 | P42: 0 | Q42: 0 | R42: 0
D43: 0 | G43: 0 | I43: 0 | J43: 0 | K43: 0 | M43: 0 | N43: 0 | O43: 0 | P43: 0 | Q43: 0 | R43: 0
D44: 0 | G44: 0 | I44: 0 | J44: =E44*H44 -> 0 | K44: 0 | M44: 0 | N44: =J44*L44 -> 0 | O44: 0 | P44: =+J44-N44 -> 0 | Q44: 0 | R44: =+J44*E$7 -> 0
B45: Irrigation
C46: Energy Cost | D46: 17.99 | F46: AcreInch | G46: 6.658167767 | I46: 119.7804381 | J46: =E46*H46 -> 0 | K46: 0 | M46: 0 | N46: =J46*L46 -> 0 | O46: 119.7804381 | P46: =+J46-N46 -> 0 | Q46: 14613.21345 | R46: =+J46*E$7 -> 0
C47: Irrigation Labor | D47: 3.0394 | F47: Hour | G47: 17.5 | I47: 53.1895 | J47: 0 | K47: 0 | M47: 0 | N47: 0 | O47: 53.1895 | P47: 0 | Q47: 6489.119 | R47: 0
B48: Machinery Labor
C49: Tractors/Self-Propelled | D49: 1.42 | F49: Hour | G49: 17.21 | I49: 24.4382 | J49: =E49*H49 -> 0 | K49: 0 | M49: 0 | N49: =J49*L49 -> 0 | O49: 24.4382 | P49: =+J49-N49 -> 0 | Q49: 2981.4604 | R49: =+J49*E$7 -> 0
C50: Other Labor | D50: 0.22 | F50: Hour | G50: 17.21 | I50: 3.7862 | J50: =E50*H50 -> 0 | K50: 0 | M50: 0 | N50: =J50*L50 -> 0 | O50: 3.7862 | P50: =+J50-N50 -> 0 | Q50: 461.9164 | R50: =+J50*E$7 -> 0
B52: Diesel Fuel
C53: Pickup/General Use Equipment | D53: 1 | F53: Acre | G53: 0 | I53: 0 | J53: =E53*H53 -> 0 | K53: 0 | M53: 0 | N53: =J53*L53 -> 0 | O53: 0 | P53: =+J53-N53 -> 0 | Q53: 0 | R53: =+J53*E$7 -> 0
C54: Tractors/Self-Propelled | D54: 13.33 | F54: Gallon | G54: 3.16 | I54: 42.1228 | J54: =E54*H54 -> 0 | K54: 0 | M54: 0 | N54: =J54*L54 -> 0 | O54: 42.1228 | P54: =+J54-N54 -> 0 | Q54: 5138.9816 | R54: =+J54*E$7 -> 0
B56: Gasoline
C57: Pickup/General Use Equipment | D57: 1 | F57: Acre | G57: 7.853360656 | I57: 7.853360656 | J57: =E57*H57 -> 0 | K57: 0 | M57: 0 | N57: =J57*L57 -> 0 | O57: 7.853360656 | P57: =+J57-N57 -> 0 | Q57: 958.11 | R57: =+J57*E$7 -> 0
C58: Tractors/Self-Propelled | D58: 0 | F58: Gallon | G58: 2.93 | I58: 0 | J58: =E58*H58 -> 0 | K58: 0 | M58: 0 | N58: =J58*L58 -> 0 | O58: 0 | P58: =+J58-N58 -> 0 | Q58: 0 | R58: =+J58*E$7 -> 0
B60: Repairs & Maintenance
C61: Pickup/General Use Equipment | D61: 1 | F61: Acre | G61: 1.728811475 | I61: 1.728811475 | J61: =E61*H61 -> 0 | K61: 0 | M61: 0 | N61: =J61*L61 -> 0 | O61: 1.728811475 | P61: =+J61-N61 -> 0 | Q61: 210.915 | R61: =+J61*E$7 -> 0
C62: Irrigation Equipment | D62: 1 | F62: Acre | G62: 9.684017 | I62: 9.684017 | J62: 0 | K62: 0 | M62: 0 | N62: 0 | O62: 9.684017 | P62: 0 | Q62: 1181.450074 | R62: 0
C63: Tractors/Self-Propelled | D63: 1 | F63: Acre | G63: 33.48350084 | I63: 33.48350084 | J63: 0 | K63: 0 | M63: 0 | N63: 0 | O63: 33.48350084 | P63: 0 | Q63: 4084.987103 | R63: 0
C64: Implements | D64: 1 | F64: Acre | G64: 14.30448946 | I64: 14.30448946 | J64: 0 | K64: 0 | M64: 0 | N64: 0 | O64: 14.30448946 | P64: 0 | Q64: 1745.147714 | R64: 0
I65: 0 | J65: 0 | K65: 0 | M65: 0 | N65: 0 | O65: 0 | P65: 0 | Q65: 0 | R65: 0
I66: 0 | J66: 0 | K66: 0 | M66: 0 | N66: 0 | O66: 0 | P66: 0 | Q66: 0 | R66: 0
B67: Interest on Credit Line | G67: 0.08 | I67: 21.51713411 | J67: =+SUM(J18:J66)/2*H67 -> 0 | M67: 0 | N67: =+SUM(N18:N66)/2*L67 -> 0 | O67: 21.51713411 | P67: =+SUM(P18:P66)/2*L67 -> 0 | Q67: 2625.090361 | R67: =+J67*E$7 -> 0
A68: Total Variable Costs | I68: 938.9585875 | J68: =SUM(J19:J67) -> 0 | M68: 0 | N68: =SUM(N19:N67) -> 0 | O68: 938.9585875 | P68: =SUM(P19:P67) -> 0 | Q68: 114552.9477 | R68: =SUM(R19:R67) -> 0
A69: Planned Returns Above Variable Costs: | I69: 396.0414125 | J69: =+J14-J68 -> 0 | M69: 0 | N69: =+N14-N68 -> 0 | O69: 396.0414125 | P69: =+P14-P68 -> 0 | Q69: 48317.05232 | R69: =+R14-R68 -> 0
B70: Breakeven Price to Cover Variable Costs | G70: 0.4259723917 | H70: =IF(E10=0,"n/a",(YVarExp-(YTotExp+YTotRet-J10))/E10) -> n/a | I70: Pound
Q71: Enterprise | R71: Enterprise
A72: FIXED COSTS | D72: Quantity | E72: Quantity | F72: Units | G72: $/Unit | H72: $/Unit | I72: Total | J72: Total | K72: Share | L72: Share | M72: Landlord | N72: Landlord | O72: Tenant | P72: Tenant | Q72: Total | R72: Total
B73: Machinery Depreciation
C74: Pickup/General Use Equipment | D74: 1 | F74: Acre | G74: 3.618442623 | I74: 3.618442623 | J74: =E74*H74 -> 0 | K74: 0 | M74: 0 | N74: =J74*L74 -> 0 | O74: 3.618442623 | P74: =+J74-N74 -> 0 | Q74: 441.45 | R74: =+J74*E$7 -> 0
C75: Irrigation Equipment | D75: 1 | F75: Acre | G75: 95.91963934 | I75: 95.91963934 | J75: 0 | K75: 0 | M75: 0 | N75: =J75*L75 -> 0 | O75: 95.91963934 | P75: 0 | Q75: 11702.196 | R75: 0
C76: Tractors/Self-Propelled | D76: 1 | F76: Acre | G76: 39.45147357 | I76: 39.45147357 | J76: 0 | K76: 0 | M76: 0 | N76: =J76*L76 -> 0 | O76: 39.45147357 | P76: 0 | Q76: 4813.079776 | R76: 0
C77: Implements | D77: 1 | F77: Acre | G77: 17.98766276 | I77: 17.98766276 | J77: 0 | K77: 0 | M77: 0 | N77: =J77*L77 -> 0 | O77: 17.98766276 | P77: 0 | Q77: 2194.494857 | R77: 0
B78: Equipment Investment
C79: Pickup/General Use Equipment | D79: 22.11270492 | F79: Dollars | G79: 0.08 | I79: 1.769016393 | J79: =E79*H79 -> 0 | K79: 0 | M79: 0 | N79: =J79*L79 -> 0 | O79: 1.769016393 | P79: =+J79-N79 -> 0 | Q79: 215.82 | R79: =+J79*E$7 -> 0
C80: Irrigation Equipment | D80: 978.5740984 | F80: Dollars | G80: 0.08 | I80: 78.28592787 | J80: 0 | K80: 0 | M80: 0 | N80: =J80*L80 -> 0 | O80: 78.28592787 | P80: 0 | Q80: 9550.8832 | R80: 0
C81: Tractors/Self-Propelled | D81: 339.8638763 | F81: Dollars | G81: 0.08 | I81: 27.18911011 | J81: 0 | K81: 0 | M81: 0 | N81: =J81*L81 -> 0 | O81: 27.18911011 | P81: 0 | Q81: 3317.071433 | R81: 0
C82: Implements | D82: 101.8741771 | F82: Dollars | G82: 0.08 | I82: 8.149934171 | J82: 0 | K82: 0 | M82: 0 | N82: =J82*L82 -> 0 | O82: 8.149934171 | P82: 0 | Q82: 994.2919689 | R82: 0
B83: Salaried Labor | D83: 1 | F83: Acre | G83: 0 | I83: 0 | J83: 0 | K83: 0 | M83: 0 | N83: =J83*L83 -> 0 | O83: 0 | P83: =+J83-N83 -> 0 | Q83: 0 | R83: =+J83*E$7 -> 0
B84: Management Fee, Owner/Operator Labor | D84: 1 | F84: Acre | G84: 0 | I84: 0 | J84: 0 | K84: 0 | M84: 0 | N84: 0 | O84: 0 | P84: 0 | Q84: 0 | R84: 0
B85: Allocated Establishment Cost | D85: 1 | F85: Acre | G85: 0 | I85: 0 | J85: 0 | K85: 0 | M85: 0 | N85: 0 | O85: 0 | P85: 0 | Q85: 0 | R85: 0
B86: Lease value - Drip | D86: 1 | F86: Acre | G86: 50 | I86: 50 | J86: 0 | K86: 0 | M86: 0 | N86: 0 | O86: 50 | P86: 0 | Q86: 6100 | R86: 0
B87: Property Taxes | D87: 1 | F87: Acre | G87: 0 | I87: 0 | J87: 0 | K87: 0 | M87: 0 | N87: 0 | O87: 0 | P87: 0 | Q87: 0 | R87: 0
B88: Whole Farm Insurance | D88: 1 | F88: Acre | G88: 0 | I88: 0 | J88: 0 | K88: 0 | M88: 0 | N88: 0 | O88: 0 | P88: 0 | Q88: 0 | R88: 0
D89: 1 | G89: 0 | I89: 0 | J89: 0 | K89: 0 | M89: 0 | N89: 0 | O89: 0 | P89: 0 | Q89: 0 | R89: 0
D90: 1 | G90: 0 | I90: 0 | J90: =E90*H90 -> 0 | K90: 0 | M90: 0 | N90: 0 | O90: 0 | P90: 0 | Q90: 0 | R90: 0
A91: Total Fixed Costs | I91: 322.3712068 | J91: =+SUM(J74:J90) -> 0 | M91: 0 | N91: =+SUM(N74:N90) -> 0 | O91: 322.3712068 | P91: =+SUM(P74:P90) -> 0 | Q91: 39329.28723 | R91: =+SUM(R74:R90) -> 0
A92: Total Specified Costs | I92: 1261.329794 | J92: =+J68+J91 -> 0 | M92: 0 | N92: =+N68+N91 -> 0 | O92: 1261.329794 | P92: =+P68+P91 -> 0 | Q92: 153882.2349 | R92: =+R68+R91 -> 0
A94: Returns Above Specified Costs | I94: 73.67020562 | J94: =+J14-J92 -> 0 | M94: 0 | N94: =+N14-N92 -> 0 | O94: 73.67020562 | P94: =+P14-P92 -> 0 | Q94: 8987.765085 | R94: =+R14-R92 -> 0
A96: Breakeven Price to Cover Total Costs | G96: 0.6408865296 | H96: =IF(E10=0,"n/a",(YTotExp-(YTotExp+YTotRet-J10))/E10) -> n/a | I96: Pound
D98: Example Breakeven Prices
B99: Example | C99: Example | D99: To Cover | G99: To Cover
B100: Yield | C100: Yield | D100: Variable | G100: Total
B101: Percent | C101: Pound | D101: Costs | G101: Costs
B102: 0.75 | C102: 1125 | D102: 0.5679631889 | G102: 0.8545153728
B103: 0.9 | C103: 1350 | D103: 0.4733026574 | G103: 0.712096144
B104: 1 | C104: 1500 | D104: 0.4259723917 | G104: 0.6408865296
B105: 1.1 | C105: 1650 | D105: 0.3872476288 | G105: 0.5826241178
B106: 1.25 | C106: 1875 | D106: 0.3407779134 | G106: 0.5127092237
A108: Developed by Extension Agricultural Economists, Texas A&M AgriLife Extension, budgets@tamu.edu.
A110: Information presented is prepared solely as a general guide and not intended to recognize or predict the costs and returns from any one operation. Brand names are mentioned only as examples and imply no endorsement.

Sheet SLCottonDrylandGM
A1: Projections for Planning Purposes Only -- Not to be Used without Updating
A2: 2026 Estimated Costs and Returns per Acre
A3: St. Lawrence Dryland Cotton, BIIFlex, 40 Inch Rows
A4: Enter your name for this budget in the cell above.
A5: Enter Your Values in the cells highlighed in MAROON.
E6: Your Acres | R6: Your
C7: Crop Acres | D7: 122 | L7: Your | Q7: Enterprise | R7: Enterprise
E8: Your | H8: Your | I8: Cash | J8: Your | K8: Landlord | L8: Landlord | N8: Your | P8: Your | Q8: Total | R8: Total
A9: REVENUE | D9: Quantity | E9: Quantity | F9: Units | G9: $/Unit | H9: $/Unit | I9: Total | J9: Total | K9: Share | L9: Share | M9: Landlord | N9: Landlord | O9: Tenant | P9: Tenant | Q9: (122 acres) | R9: ="(" & E7 & " acres)" -> ( acres)
B10: Cotton Lint | D10: 350 | F10: Pound | G10: 0.69 | I10: 241.5 | J10: =E10*H10 -> 0 | K10: 0 | M10: 0 | N10: =J10*L10 -> 0 | O10: 241.5 | P10: =+J10-N10 -> 0 | Q10: 29463 | R10: =+J10*E$7 -> 0
B11: Cotton Seed | D11: 0.2555 | F11: Ton | G11: 250 | I11: 63.875 | J11: 0 | K11: 0 | M11: 0 | N11: 0 | O11: 63.875 | P11: =+J11-N11 -> 0 | Q11: 7792.75 | R11: 0
D12: 0 | G12: 0 | I12: 0 | J12: 0 | K12: 0 | M12: 0 | N12: 0 | O12: 0 | P12: 0 | Q12: 0 | R12: 0
D13: 0 | G13: 0 | I13: 0 | J13: 0 | K13: 0 | M13: 0 | N13: 0 | O13: 0 | P13: 0 | Q13: 0 | R13: 0
A14: Total Revenue | I14: 305.375 | J14: =SUM(J10:J13) -> 0 | M14: 0 | N14: =SUM(N10:N13) -> 0 | O14: 305.375 | P14: =SUM(P10:P13) -> 0 | Q14: 37255.75 | R14: =SUM(R10:R13) -> 0
Q15: Enterprise | R15: Enterprise
A16: VARIABLE COSTS | D16: Quantity | E16: Quantity | F16: Units | G16: $/Unit | H16: $/Unit | I16: Total | J16: Total | K16: Share | L16: Share | M16: Landlord | N16: Landlord | O16: Tenant | P16: Tenant | Q16: Total | R16: Total
A17: Production Costs
B18: Seed
C19: Cotton Seed BIIRRF - Dryland | D19: 34 | F19: Thousand | G19: 1.451913043 | I19: 49.36504348 | J19: =E19*H19 -> 0 | K19: 0 | M19: 0 | N19: =J19*L19 -> 0 | O19: 49.36504348 | P19: =+J19-N19 -> 0 | Q19: 6022.535304 | R19: =+J19*E$7 -> 0
B20: Fertilizer
C21: Nitrogen - Dry (Urea 45-0-0) | D21: 45 | F21: Pound | G21: 0.56 | I21: 25.2 | J21: 0 | K21: 0 | M21: 0 | N21: 0 | O21: 25.2 | P21: 0 | Q21: 3074.4 | R21: 0
C22: Potash 0-0-60 | D22: 27 | F22: Pound | G22: 0.42 | I22: 11.34 | J22: 0 | K22: 0 | M22: 0 | N22: 0 | O22: 11.34 | P22: 0 | Q22: 1383.48 | R22: 0
B23: Custom
C24: Soil Test-Dryland | D24: 1 | F24: Acre | G24: 0.25 | I24: 0.25 | J24: 0 | K24: 0 | M24: 0 | N24: 0 | O24: 0.25 | P24: 0 | Q24: 30.5 | R24: 0
C25: Custom Spray | D25: 1 | F25: Acre | G25: 6.39 | I25: 6.39 | J25: 0 | K25: 0 | M25: 0 | N25: 0 | O25: 6.39 | P25: 0 | Q25: 779.58 | R25: 0
C26: Bag, Tie | D26: 0.9 | F26: Bale | G26: 15 | I26: 13.5 | J26: 0 | K26: 0 | M26: 0 | N26: 0 | O26: 13.5 | P26: 0 | Q26: 1647 | R26: 0
C27: Gin and Haul | D27: 14.28 | F27: CWT | G27: 3.75 | I27: 53.55 | J27: 0 | K27: 0 | M27: 0 | N27: 0 | O27: 53.55 | P27: 0 | Q27: 6533.1 | R27: 0
B28: Herbicide
C29: Trifluralin Pint | D29: 2 | F29: Pint | G29: 2.75 | I29: 5.5 | J29: 0 | K29: 0 | M29: 0 | N29: 0 | O29: 5.5 | P29: 0 | Q29: 671 | R29: 0
C30: Glyphosate Ounce Generic 4lb | D30: 64 | F30: Ounce | G30: 0.1328125 | I30: 8.5 | J30: 0 | K30: 0 | M30: 0 | N30: 0 | O30: 8.5 | P30: 0 | Q30: 1037 | R30: 0
B31: Miscellaneous
C32: NI Cotton 70%, ent, SE Classcock co | D32: 1 | F32: Acre | G32: 10.37 | I32: 10.37 | J32: 0 | K32: 0 | M32: 0 | N32: 0 | O32: 10.37 | P32: 0 | Q32: 1265.14 | R32: 0
C33: Boll Weevil Eradication Program | D33: 0.7 | F33: Bale | G33: 1 | I33: 0.7 | J33: 0 | K33: 0 | M33: 0 | N33: 0 | O33: 0.7 | P33: 0 | Q33: 85.4 | R33: 0
B34: Cotton Harvest
C35: Firestorm (3lb Paraquat) | D35: 28 | F35: Ounce | G35: 0.1796875 | I35: 5.03125 | J35: 0 | K35: 0 | M35: 0 | N35: 0 | O35: 5.03125 | P35: 0 | Q35: 613.8125 | R35: 0
D36: 0 | G36: 0 | I36: 0 | J36: 0 | K36: 0 | M36: 0 | N36: 0 | O36: 0 | P36: 0 | Q36: 0 | R36: 0
D37: 0 | G37: 0 | I37: 0 | J37: 0 | K37: 0 | M37: 0 | N37: 0 | O37: 0 | P37: 0 | Q37: 0 | R37: 0
D38: 0 | G38: 0 | I38: 0 | J38: =E38*H38 -> 0 | K38: 0 | M38: 0 | N38: =J38*L38 -> 0 | O38: 0 | P38: =+J38-N38 -> 0 | Q38: 0 | R38: =+J38*E$7 -> 0
B39: Machinery Labor
C40: Tractors/Self-Propelled | D40: 1.21 | F40: Hour | G40: 17.21 | I40: 20.8241 | J40: =E40*H40 -> 0 | K40: 0 | M40: 0 | N40: =J40*L40 -> 0 | O40: 20.8241 | P40: =+J40-N40 -> 0 | Q40: 2540.5402 | R40: =+J40*E$7 -> 0
C41: Other Labor | D41: 0 | F41: Hour | G41: 17.21 | I41: 0 | J41: =E41*H41 -> 0 | K41: 0 | M41: 0 | N41: =J41*L41 -> 0 | O41: 0 | P41: =+J41-N41 -> 0 | Q41: 0 | R41: =+J41*E$7 -> 0
B43: Diesel Fuel
C44: Pickup/General Use Equipment | D44: 1 | F44: Acre | G44: 0 | I44: 0 | J44: =E44*H44 -> 0 | K44: 0 | M44: 0 | N44: =J44*L44 -> 0 | O44: 0 | P44: =+J44-N44 -> 0 | Q44: 0 | R44: =+J44*E$7 -> 0
C45: Tractors/Self-Propelled | D45: 11.63 | F45: Gallon | G45: 3.16 | I45: 36.7508 | J45: =E45*H45 -> 0 | K45: 0 | M45: 0 | N45: =J45*L45 -> 0 | O45: 36.7508 | P45: =+J45-N45 -> 0 | Q45: 4483.5976 | R45: =+J45*E$7 -> 0
B47: Gasoline
C48: Pickup/General Use Equipment | D48: 1 | F48: Acre | G48: 7.853360656 | I48: 7.853360656 | J48: =E48*H48 -> 0 | K48: 0 | M48: 0 | N48: =J48*L48 -> 0 | O48: 7.853360656 | P48: =+J48-N48 -> 0 | Q48: 958.11 | R48: =+J48*E$7 -> 0
C49: Tractors/Self-Propelled | D49: 0 | F49: Gallon | G49: 2.93 | I49: 0 | J49: =E49*H49 -> 0 | K49: 0 | M49: 0 | N49: =J49*L49 -> 0 | O49: 0 | P49: =+J49-N49 -> 0 | Q49: 0 | R49: =+J49*E$7 -> 0
B51: Repairs & Maintenance
C52: Pickup/General Use Equipment | D52: 1 | F52: Acre | G52: 1.728811475 | I52: 1.728811475 | J52: =E52*H52 -> 0 | K52: 0 | M52: 0 | N52: =J52*L52 -> 0 | O52: 1.728811475 | P52: =+J52-N52 -> 0 | Q52: 210.915 | R52: =+J52*E$7 -> 0
C53: Irrigation Equipment | D53: 1 | F53: Acre | G53: 0 | I53: 0 | J53: 0 | K53: 0 | M53: 0 | N53: 0 | O53: 0 | P53: 0 | Q53: 0 | R53: 0
C54: Tractors/Self-Propelled | D54: 1 | F54: Acre | G54: 28.87399335 | I54: 28.87399335 | J54: 0 | K54: 0 | M54: 0 | N54: 0 | O54: 28.87399335 | P54: 0 | Q54: 3522.627189 | R54: 0
C55: Implements | D55: 1 | F55: Acre | G55: 12.04151276 | I55: 12.04151276 | J55: 0 | K55: 0 | M55: 0 | N55: 0 | O55: 12.04151276 | P55: 0 | Q55: 1469.064556 | R55: 0
I56: 0 | J56: 0 | K56: 0 | M56: 0 | N56: 0 | O56: 0 | P56: 0 | Q56: 0 | R56: 0
I57: 0 | J57: 0 | K57: 0 | M57: 0 | N57: 0 | O57: 0 | P57: 0 | Q57: 0 | R57: 0
B58: Interest on Credit Line | G58: 0.08 | I58: 7.583556938 | J58: =+SUM(J18:J57)/2*H58 -> 0 | M58: 0 | N58: =+SUM(N18:N57)/2*L58 -> 0 | O58: 7.583556938 | P58: =+SUM(P18:P57)/2*L58 -> 0 | Q58: 925.1939465 | R58: =+J58*E$7 -> 0
A59: Total Variable Costs | I59: 305.3524287 | J59: =SUM(J19:J58) -> 0 | M59: 0 | N59: =SUM(N19:N58) -> 0 | O59: 305.3524287 | P59: =SUM(P19:P58) -> 0 | Q59: 37252.9963 | R59: =SUM(R19:R58) -> 0
A60: Planned Returns Above Variable Costs: | I60: 0.02257134584 | J60: =+J14-J59 -> 0 | M60: 0 | N60: =+N14-N59 -> 0 | O60: 0.02257134584 | P60: =+P14-P59 -> 0 | Q60: 2.753704192 | R60: =+R14-R59 -> 0
B61: Breakeven Price to Cover Variable Costs | G61: 0.6899355104 | H61: =IF(E10=0,"n/a",(YVarExp-(YTotExp+YTotRet-J10))/E10) -> n/a | I61: Pound
Q62: Enterprise | R62: Enterprise
A63: FIXED COSTS | D63: Quantity | E63: Quantity | F63: Units | G63: $/Unit | H63: $/Unit | I63: Total | J63: Total | K63: Share | L63: Share | M63: Landlord | N63: Landlord | O63: Tenant | P63: Tenant | Q63: Total | R63: Total
B64: Machinery Depreciation
C65: Pickup/General Use Equipment | D65: 1 | F65: Acre | G65: 3.618442623 | I65: 3.618442623 | J65: =E65*H65 -> 0 | K65: 0 | M65: 0 | N65: =J65*L65 -> 0 | O65: 3.618442623 | P65: =+J65-N65 -> 0 | Q65: 441.45 | R65: =+J65*E$7 -> 0
C66: Tractors/Self-Propelled | D66: 1 | F66: Acre | G66: 35.78489914 | I66: 35.78489914 | J66: 0 | K66: 0 | M66: 0 | N66: =J66*L66 -> 0 | O66: 35.78489914 | P66: 0 | Q66: 4365.757695 | R66: 0
C67: Implements | D67: 1 | F67: Acre | G67: 15.67894657 | I67: 15.67894657 | J67: 0 | K67: 0 | M67: 0 | N67: =J67*L67 -> 0 | O67: 15.67894657 | P67: 0 | Q67: 1912.831482 | R67: 0
B68: Equipment Investment
C69: Pickup/General Use Equipment | D69: 22.11270492 | F69: Dollars | G69: 0.08 | I69: 1.769016393 | J69: =E69*H69 -> 0 | K69: 0 | M69: 0 | N69: =J69*L69 -> 0 | O69: 1.769016393 | P69: =+J69-N69 -> 0 | Q69: 215.82 | R69: =+J69*E$7 -> 0
C70: Tractors/Self-Propelled | D70: 310.7956233 | F70: Dollars | G70: 0.08 | I70: 24.86364987 | J70: 0 | K70: 0 | M70: 0 | N70: =J70*L70 -> 0 | O70: 24.86364987 | P70: 0 | Q70: 3033.365284 | R70: 0
C71: Implements | D71: 91.99800233 | F71: Dollars | G71: 0.08 | I71: 7.359840187 | J71: 0 | K71: 0 | M71: 0 | N71: =J71*L71 -> 0 | O71: 7.359840187 | P71: 0 | Q71: 897.9005028 | R71: 0
B72: Salaried Labor | D72: 1 | F72: Acre | G72: 0 | I72: 0 | J72: 0 | K72: 0 | M72: 0 | N72: =J72*L72 -> 0 | O72: 0 | P72: =+J72-N72 -> 0 | Q72: 0 | R72: =+J72*E$7 -> 0
B73: Management Fee, Owner/Operator Labor | D73: 1 | F73: Acre | G73: 0 | I73: 0 | J73: 0 | K73: 0 | M73: 0 | N73: 0 | O73: 0 | P73: 0 | Q73: 0 | R73: 0
B74: Allocated Establishment Cost | D74: 1 | F74: Acre | G74: 0 | I74: 0 | J74: 0 | K74: 0 | M74: 0 | N74: 0 | O74: 0 | P74: 0 | Q74: 0 | R74: 0
B75: West Texas Dryland | D75: 1 | F75: Acre | G75: 15 | I75: 15 | J75: 0 | K75: 0 | M75: 0 | N75: 0 | O75: 15 | P75: 0 | Q75: 1830 | R75: 0
B76: Property Taxes | D76: 1 | F76: Acre | G76: 0 | I76: 0 | J76: 0 | K76: 0 | M76: 0 | N76: 0 | O76: 0 | P76: 0 | Q76: 0 | R76: 0
B77: Whole Farm Insurance | D77: 1 | F77: Acre | G77: 0 | I77: 0 | J77: 0 | K77: 0 | M77: 0 | N77: 0 | O77: 0 | P77: 0 | Q77: 0 | R77: 0
D78: 1 | G78: 0 | I78: 0 | J78: 0 | K78: 0 | M78: 0 | N78: 0 | O78: 0 | P78: 0 | Q78: 0 | R78: 0
D79: 1 | G79: 0 | I79: 0 | J79: =E79*H79 -> 0 | K79: 0 | M79: 0 | N79: 0 | O79: 0 | P79: 0 | Q79: 0 | R79: 0
A80: Total Fixed Costs | I80: 104.0747948 | J80: =+SUM(J65:J79) -> 0 | M80: 0 | N80: =+SUM(N65:N79) -> 0 | O80: 104.0747948 | P80: =+SUM(P65:P79) -> 0 | Q80: 12697.12496 | R80: =+SUM(R65:R79) -> 0
A81: Total Specified Costs | I81: 409.4272234 | J81: =+J59+J80 -> 0 | M81: 0 | N81: =+N59+N80 -> 0 | O81: 409.4272234 | P81: =+P59+P80 -> 0 | Q81: 49950.12126 | R81: =+R59+R80 -> 0
A83: Returns Above Specified Costs | I83: -104.0522234 | J83: =+J14-J81 -> 0 | M83: 0 | N83: =+N14-N81 -> 0 | O83: -104.0522234 | P83: =+P14-P81 -> 0 | Q83: -12694.37126 | R83: =+R14-R81 -> 0
A85: Breakeven Price to Cover Total Costs | G85: 0.987292067 | H85: =IF(E10=0,"n/a",(YTotExp-(YTotExp+YTotRet-J10))/E10) -> n/a | I85: Pound
D87: Example Breakeven Prices
B88: Example | C88: Example | D88: To Cover | G88: To Cover
B89: Yield | C89: Yield | D89: Variable | G89: Total
B90: Percent | C90: Pound | D90: Costs | G90: Costs
B91: 0.75 | C91: 262.5 | D91: 0.9199140139 | G91: 1.316389423
B92: 0.9 | C92: 315 | D92: 0.7665950116 | G92: 1.096991186
B93: 1 | C93: 350 | D93: 0.6899355104 | G93: 0.987292067
B94: 1.1 | C94: 385 | D94: 0.6272141004 | G94: 0.8975382427
B95: 1.25 | C95: 437.5 | D95: 0.5519484084 | G95: 0.7898336536
A97: Developed by Extension Agricultural Economists, Texas A&M AgriLife Extension, budgets@tamu.edu.
A99: Information presented is prepared solely as a general guide and not intended to recognize or predict the costs and returns from any one operation. Brand names are mentioned only as examples and imply no endorsement.

Sheet SLXFCottonDryland
A1: Projections for Planning Purposes Only -- Not to be Used without Updating
A2: 2026 Estimated Costs and Returns per Acre
A3: St. Lawrence Dryland Auxin Technology Cotton, 40 Inch Rows
A4: Enter your name for this budget in the cell above.
A5: Enter Your Values in the cells highlighed in MAROON.
E6: Your Acres | R6: Your
C7: Crop Acres | D7: 122 | L7: Your | Q7: Enterprise | R7: Enterprise
E8: Your | H8: Your | I8: Cash | J8: Your | K8: Landlord | L8: Landlord | N8: Your | P8: Your | Q8: Total | R8: Total
A9: REVENUE | D9: Quantity | E9: Quantity | F9: Units | G9: $/Unit | H9: $/Unit | I9: Total | J9: Total | K9: Share | L9: Share | M9: Landlord | N9: Landlord | O9: Tenant | P9: Tenant | Q9: (122 acres) | R9: ="(" & E7 & " acres)" -> ( acres)
B10: Cotton Lint | D10: 350 | F10: Pound | G10: 0.69 | I10: 241.5 | J10: =E10*H10 -> 0 | K10: 0 | M10: 0 | N10: =J10*L10 -> 0 | O10: 241.5 | P10: =+J10-N10 -> 0 | Q10: 29463 | R10: =+J10*E$7 -> 0
B11: Cotton Seed | D11: 0.2555 | F11: Ton | G11: 250 | I11: 63.875 | J11: 0 | K11: 0 | M11: 0 | N11: 0 | O11: 63.875 | P11: =+J11-N11 -> 0 | Q11: 7792.75 | R11: 0
D12: 0 | G12: 0 | I12: 0 | J12: 0 | K12: 0 | M12: 0 | N12: 0 | O12: 0 | P12: 0 | Q12: 0 | R12: 0
D13: 0 | G13: 0 | I13: 0 | J13: 0 | K13: 0 | M13: 0 | N13: 0 | O13: 0 | P13: 0 | Q13: 0 | R13: 0
A14: Total Revenue | I14: 305.375 | J14: =SUM(J10:J13) -> 0 | M14: 0 | N14: =SUM(N10:N13) -> 0 | O14: 305.375 | P14: =SUM(P10:P13) -> 0 | Q14: 37255.75 | R14: =SUM(R10:R13) -> 0
Q15: Enterprise | R15: Enterprise
A16: VARIABLE COSTS | D16: Quantity | E16: Quantity | F16: Units | G16: $/Unit | H16: $/Unit | I16: Total | J16: Total | K16: Share | L16: Share | M16: Landlord | N16: Landlord | O16: Tenant | P16: Tenant | Q16: Total | R16: Total
A17: Production Costs
B18: Herbicide
C19: Trifluralin Pint | D19: 2 | F19: Pint | G19: 2.75 | I19: 5.5 | J19: =E19*H19 -> 0 | K19: 0 | M19: 0 | N19: =J19*L19 -> 0 | O19: 5.5 | P19: =+J19-N19 -> 0 | Q19: 671 | R19: =+J19*E$7 -> 0
C20: Glyphosate Ounce Generic 4lb | D20: 64 | F20: Ounce | G20: 0.1328125 | I20: 8.5 | J20: 0 | K20: 0 | M20: 0 | N20: 0 | O20: 8.5 | P20: 0 | Q20: 1037 | R20: 0
C21: Auxin based herbicide | D21: 44 | F21: Ounce | G21: 0.5 | I21: 22 | J21: 0 | K21: 0 | M21: 0 | N21: 0 | O21: 22 | P21: 0 | Q21: 2684 | R21: 0
B22: Seed
C23: Seed Cotton - B2 Auxin Tech, Dryland | D23: 34 | F23: Thousand | G23: 1.434782609 | I23: 48.7826087 | J23: 0 | K23: 0 | M23: 0 | N23: 0 | O23: 48.7826087 | P23: 0 | Q23: 5951.478261 | R23: 0
B24: Fertilizer
C25: Nitrogen - Dry (Urea 46-0-0) | D25: 45 | F25: Pound | G25: 0.56 | I25: 25.2 | J25: 0 | K25: 0 | M25: 0 | N25: 0 | O25: 25.2 | P25: 0 | Q25: 3074.4 | R25: 0
C26: Potash 0-0-60 | D26: 27 | F26: Pound | G26: 0.42 | I26: 11.34 | J26: 0 | K26: 0 | M26: 0 | N26: 0 | O26: 11.34 | P26: 0 | Q26: 1383.48 | R26: 0
B27: Custom
C28: Soil Test-Dryland | D28: 1 | F28: Acre | G28: 0.25 | I28: 0.25 | J28: 0 | K28: 0 | M28: 0 | N28: 0 | O28: 0.25 | P28: 0 | Q28: 30.5 | R28: 0
C29: Custom Spray | D29: 1 | F29: Acre | G29: 6.39 | I29: 6.39 | J29: 0 | K29: 0 | M29: 0 | N29: 0 | O29: 6.39 | P29: 0 | Q29: 779.58 | R29: 0
C30: Bag, Tie | D30: 0.9 | F30: Bale | G30: 15 | I30: 13.5 | J30: 0 | K30: 0 | M30: 0 | N30: 0 | O30: 13.5 | P30: 0 | Q30: 1647 | R30: 0
C31: Gin and Haul | D31: 14.28 | F31: CWT | G31: 3.75 | I31: 53.55 | J31: 0 | K31: 0 | M31: 0 | N31: 0 | O31: 53.55 | P31: 0 | Q31: 6533.1 | R31: 0
B32: Miscellaneous
C33: NI Cotton 70%, ent, SE Classcock co | D33: 1 | F33: Acre | G33: 10.37 | I33: 10.37 | J33: 0 | K33: 0 | M33: 0 | N33: 0 | O33: 10.37 | P33: 0 | Q33: 1265.14 | R33: 0
C34: Boll Weevil Eradication Program | D34: 0.7 | F34: Bale | G34: 1 | I34: 0.7 | J34: 0 | K34: 0 | M34: 0 | N34: 0 | O34: 0.7 | P34: 0 | Q34: 85.4 | R34: 0
B35: Cotton Harvest
C36: Firestorm (3lb Paraquat) | D36: 28 | F36: Ounce | G36: 0.1796875 | I36: 5.03125 | J36: 0 | K36: 0 | M36: 0 | N36: 0 | O36: 5.03125 | P36: 0 | Q36: 613.8125 | R36: 0
D37: 0 | G37: 0 | I37: 0 | J37: 0 | K37: 0 | M37: 0 | N37: 0 | O37: 0 | P37: 0 | Q37: 0 | R37: 0
D38: 0 | G38: 0 | I38: 0 | J38: 0 | K38: 0 | M38: 0 | N38: 0 | O38: 0 | P38: 0 | Q38: 0 | R38: 0
D39: 0 | G39: 0 | I39: 0 | J39: =E39*H39 -> 0 | K39: 0 | M39: 0 | N39: =J39*L39 -> 0 | O39: 0 | P39: =+J39-N39 -> 0 | Q39: 0 | R39: =+J39*E$7 -> 0
B40: Machinery Labor
C41: Tractors/Self-Propelled | D41: 1.18 | F41: Hour | G41: 17.21 | I41: 20.3078 | J41: =E41*H41 -> 0 | K41: 0 | M41: 0 | N41: =J41*L41 -> 0 | O41: 20.3078 | P41: =+J41-N41 -> 0 | Q41: 2477.5516 | R41: =+J41*E$7 -> 0
C42: Other Labor | D42: 0.03 | F42: Hour | G42: 17.21 | I42: 0.5163 | J42: =E42*H42 -> 0 | K42: 0 | M42: 0 | N42: =J42*L42 -> 0 | O42: 0.5163 | P42: =+J42-N42 -> 0 | Q42: 62.9886 | R42: =+J42*E$7 -> 0
B44: Diesel Fuel
C45: Pickup/General Use Equipment | D45: 1 | F45: Acre | G45: 0 | I45: 0 | J45: =E45*H45 -> 0 | K45: 0 | M45: 0 | N45: =J45*L45 -> 0 | O45: 0 | P45: =+J45-N45 -> 0 | Q45: 0 | R45: =+J45*E$7 -> 0
C46: Tractors/Self-Propelled | D46: 11.63 | F46: Gallon | G46: 3.16 | I46: 36.7508 | J46: =E46*H46 -> 0 | K46: 0 | M46: 0 | N46: =J46*L46 -> 0 | O46: 36.7508 | P46: =+J46-N46 -> 0 | Q46: 4483.5976 | R46: =+J46*E$7 -> 0
B48: Gasoline
C49: Pickup/General Use Equipment | D49: 1 | F49: Acre | G49: 7.853360656 | I49: 7.853360656 | J49: =E49*H49 -> 0 | K49: 0 | M49: 0 | N49: =J49*L49 -> 0 | O49: 7.853360656 | P49: =+J49-N49 -> 0 | Q49: 958.11 | R49: =+J49*E$7 -> 0
C50: Tractors/Self-Propelled | D50: 0 | F50: Gallon | G50: 2.93 | I50: 0 | J50: =E50*H50 -> 0 | K50: 0 | M50: 0 | N50: =J50*L50 -> 0 | O50: 0 | P50: =+J50-N50 -> 0 | Q50: 0 | R50: =+J50*E$7 -> 0
B52: Repairs & Maintenance
C53: Pickup/General Use Equipment | D53: 1 | F53: Acre | G53: 1.728811475 | I53: 1.728811475 | J53: =E53*H53 -> 0 | K53: 0 | M53: 0 | N53: =J53*L53 -> 0 | O53: 1.728811475 | P53: =+J53-N53 -> 0 | Q53: 210.915 | R53: =+J53*E$7 -> 0
C54: Irrigation Equipment | D54: 1 | F54: Acre | G54: 0 | I54: 0 | J54: 0 | K54: 0 | M54: 0 | N54: 0 | O54: 0 | P54: 0 | Q54: 0 | R54: 0
C55: Tractors/Self-Propelled | D55: 1 | F55: Acre | G55: 28.87399335 | I55: 28.87399335 | J55: 0 | K55: 0 | M55: 0 | N55: 0 | O55: 28.87399335 | P55: 0 | Q55: 3522.627189 | R55: 0
C56: Implements | D56: 1 | F56: Acre | G56: 12.04151276 | I56: 12.04151276 | J56: 0 | K56: 0 | M56: 0 | N56: 0 | O56: 12.04151276 | P56: 0 | Q56: 1469.064556 | R56: 0
I57: 0 | J57: 0 | K57: 0 | M57: 0 | N57: 0 | O57: 0 | P57: 0 | Q57: 0 | R57: 0
I58: 0 | J58: 0 | K58: 0 | M58: 0 | N58: 0 | O58: 0 | P58: 0 | Q58: 0 | R58: 0
B59: Interest on Credit Line | G59: 0.08 | I59: 8.047096283 | J59: =+SUM(J18:J58)/2*H59 -> 0 | M59: 0 | N59: =+SUM(N18:N58)/2*L59 -> 0 | O59: 8.047096283 | P59: =+SUM(P18:P58)/2*L59 -> 0 | Q59: 981.7457465 | R59: =+J59*E$7 -> 0
A60: Total Variable Costs | I60: 327.2335332 | J60: =SUM(J19:J59) -> 0 | M60: 0 | N60: =SUM(N19:N59) -> 0 | O60: 327.2335332 | P60: =SUM(P19:P59) -> 0 | Q60: 39922.49105 | R60: =SUM(R19:R59) -> 0
A61: Planned Returns Above Variable Costs: | I61: -21.85853322 | J61: =+J14-J60 -> 0 | M61: 0 | N61: =+N14-N60 -> 0 | O61: -21.85853322 | P61: =+P14-P60 -> 0 | Q61: -2666.741052 | R61: =+R14-R60 -> 0
B62: Breakeven Price to Cover Variable Costs | G62: 0.752452952 | H62: =IF(E10=0,"n/a",(YVarExp-(YTotExp+YTotRet-J10))/E10) -> n/a | I62: Pound
Q63: Enterprise | R63: Enterprise
A64: FIXED COSTS | D64: Quantity | E64: Quantity | F64: Units | G64: $/Unit | H64: $/Unit | I64: Total | J64: Total | K64: Share | L64: Share | M64: Landlord | N64: Landlord | O64: Tenant | P64: Tenant | Q64: Total | R64: Total
B65: Machinery Depreciation
C66: Pickup/General Use Equipment | D66: 1 | F66: Acre | G66: 3.618442623 | I66: 3.618442623 | J66: =E66*H66 -> 0 | K66: 0 | M66: 0 | N66: =J66*L66 -> 0 | O66: 3.618442623 | P66: =+J66-N66 -> 0 | Q66: 441.45 | R66: =+J66*E$7 -> 0
C67: Tractors/Self-Propelled | D67: 1 | F67: Acre | G67: 35.78489914 | I67: 35.78489914 | J67: 0 | K67: 0 | M67: 0 | N67: =J67*L67 -> 0 | O67: 35.78489914 | P67: 0 | Q67: 4365.757695 | R67: 0
C68: Implements | D68: 1 | F68: Acre | G68: 15.67894657 | I68: 15.67894657 | J68: 0 | K68: 0 | M68: 0 | N68: =J68*L68 -> 0 | O68: 15.67894657 | P68: 0 | Q68: 1912.831482 | R68: 0
B69: Equipment Investment
C70: Pickup/General Use Equipment | D70: 22.11270492 | F70: Dollars | G70: 0.08 | I70: 1.769016393 | J70: =E70*H70 -> 0 | K70: 0 | M70: 0 | N70: =J70*L70 -> 0 | O70: 1.769016393 | P70: =+J70-N70 -> 0 | Q70: 215.82 | R70: =+J70*E$7 -> 0
C71: Tractors/Self-Propelled | D71: 310.7956233 | F71: Dollars | G71: 0.08 | I71: 24.86364987 | J71: 0 | K71: 0 | M71: 0 | N71: =J71*L71 -> 0 | O71: 24.86364987 | P71: 0 | Q71: 3033.365284 | R71: 0
C72: Implements | D72: 91.99800233 | F72: Dollars | G72: 0.08 | I72: 7.359840187 | J72: 0 | K72: 0 | M72: 0 | N72: =J72*L72 -> 0 | O72: 7.359840187 | P72: 0 | Q72: 897.9005028 | R72: 0
B73: Salaried Labor | D73: 1 | F73: Acre | G73: 0 | I73: 0 | J73: 0 | K73: 0 | M73: 0 | N73: =J73*L73 -> 0 | O73: 0 | P73: =+J73-N73 -> 0 | Q73: 0 | R73: =+J73*E$7 -> 0
B74: Management Fee, Owner/Operator Labor | D74: 1 | F74: Acre | G74: 0 | I74: 0 | J74: 0 | K74: 0 | M74: 0 | N74: 0 | O74: 0 | P74: 0 | Q74: 0 | R74: 0
B75: Allocated Establishment Cost | D75: 1 | F75: Acre | G75: 0 | I75: 0 | J75: 0 | K75: 0 | M75: 0 | N75: 0 | O75: 0 | P75: 0 | Q75: 0 | R75: 0
B76: West Texas Dryland | D76: 1 | F76: Acre | G76: 15 | I76: 15 | J76: 0 | K76: 0 | M76: 0 | N76: 0 | O76: 15 | P76: 0 | Q76: 1830 | R76: 0
B77: Property Taxes | D77: 1 | F77: Acre | G77: 0 | I77: 0 | J77: 0 | K77: 0 | M77: 0 | N77: 0 | O77: 0 | P77: 0 | Q77: 0 | R77: 0
B78: Whole Farm Insurance | D78: 1 | F78: Acre | G78: 0 | I78: 0 | J78: 0 | K78: 0 | M78: 0 | N78: 0 | O78: 0 | P78: 0 | Q78: 0 | R78: 0
D79: 1 | G79: 0 | I79: 0 | J79: 0 | K79: 0 | M79: 0 | N79: 0 | O79: 0 | P79: 0 | Q79: 0 | R79: 0
D80: 1 | G80: 0 | I80: 0 | J80: =E80*H80 -> 0 | K80: 0 | M80: 0 | N80: 0 | O80: 0 | P80: 0 | Q80: 0 | R80: 0
A81: Total Fixed Costs | I81: 104.0747948 | J81: =+SUM(J66:J80) -> 0 | M81: 0 | N81: =+SUM(N66:N80) -> 0 | O81: 104.0747948 | P81: =+SUM(P66:P80) -> 0 | Q81: 12697.12496 | R81: =+SUM(R66:R80) -> 0
A82: Total Specified Costs | I82: 431.308328 | J82: =+J60+J81 -> 0 | M82: 0 | N82: =+N60+N81 -> 0 | O82: 431.308328 | P82: =+P60+P81 -> 0 | Q82: 52619.61602 | R82: =+R60+R81 -> 0
A84: Returns Above Specified Costs | I84: -125.933328 | J84: =+J14-J82 -> 0 | M84: 0 | N84: =+N14-N82 -> 0 | O84: -125.933328 | P84: =+P14-P82 -> 0 | Q84: -15363.86602 | R84: =+R14-R82 -> 0
A86: Breakeven Price to Cover Total Costs | G86: 1.049809509 | H86: =IF(E10=0,"n/a",(YTotExp-(YTotExp+YTotRet-J10))/E10) -> n/a | I86: Pound
D88: Example Breakeven Prices
B89: Example | C89: Example | D89: To Cover | G89: To Cover
B90: Yield | C90: Yield | D90: Variable | G90: Total
B91: Percent | C91: Pound | D91: Costs | G91: Costs
B92: 0.75 | C92: 262.5 | D92: 1.003270603 | G92: 1.399746011
B93: 0.9 | C93: 315 | D93: 0.8360588356 | G93: 1.16645501
B94: 1 | C94: 350 | D94: 0.752452952 | G94: 1.049809509
B95: 1.1 | C95: 385 | D95: 0.6840481382 | G95: 0.9543722805
B96: 1.25 | C96: 437.5 | D96: 0.6019623616 | G96: 0.8398476069
A98: Developed by Extension Agricultural Economists, Texas A&M AgriLife Extension, budgets@tamu.edu.
A100: Information presented is prepared solely as a general guide and not intended to recognize or predict the costs and returns from any one operation. Brand names are mentioned only as examples and imply no endorsement.

Sheet SLGSDrip
A1: Projections for Planning Purposes Only -- Not to be Used without Updating
A2: 2026 Estimated Costs and Returns per Acre
A3: St. Lawrence Early Planted Grain Sorghum, Drip Irrigated, 40 Inch Rows
A4: Enter your name for this budget in the cell above.
A5: Enter Your Values in the cells highlighed in MAROON.
E6: Your Acres | R6: Your
C7: Crop Acres | D7: 40.6 | L7: Your | Q7: Enterprise | R7: Enterprise
E8: Your | H8: Your | I8: Cash | J8: Your | K8: Landlord | L8: Landlord | N8: Your | P8: Your | Q8: Total | R8: Total
A9: REVENUE | D9: Quantity | E9: Quantity | F9: Units | G9: $/Unit | H9: $/Unit | I9: Total | J9: Total | K9: Share | L9: Share | M9: Landlord | N9: Landlord | O9: Tenant | P9: Tenant | Q9: (40.6 acres) | R9: ="(" & E7 & " acres)" -> ( acres)
B10: Grain Sorghum | D10: 47.6 | F10: CWT | G10: 7.5 | I10: 357 | J10: =E10*H10 -> 0 | K10: 0 | M10: 0 | N10: =J10*L10 -> 0 | O10: 357 | P10: =+J10-N10 -> 0 | Q10: 14494.2 | R10: =+J10*E$7 -> 0
D11: 0 | G11: 0 | I11: 0 | J11: 0 | K11: 0 | M11: 0 | N11: 0 | O11: 0 | P11: =+J11-N11 -> 0 | Q11: 0 | R11: 0
D12: 0 | G12: 0 | I12: 0 | J12: 0 | K12: 0 | M12: 0 | N12: 0 | O12: 0 | P12: 0 | Q12: 0 | R12: 0
A13: Total Revenue | I13: 357 | J13: =SUM(J10:J12) -> 0 | M13: 0 | N13: =SUM(N10:N12) -> 0 | O13: 357 | P13: =SUM(P10:P12) -> 0 | Q13: 14494.2 | R13: =SUM(R10:R12) -> 0
Q14: Enterprise | R14: Enterprise
A15: VARIABLE COSTS | D15: Quantity | E15: Quantity | F15: Units | G15: $/Unit | H15: $/Unit | I15: Total | J15: Total | K15: Share | L15: Share | M15: Landlord | N15: Landlord | O15: Tenant | P15: Tenant | Q15: Total | R15: Total
A16: Production Costs
B17: Herbicide
C18: Atrazine | D18: 0.5 | F18: Quart | G18: 3.43 | I18: 1.715 | J18: =E18*H18 -> 0 | K18: 0 | M18: 0 | N18: =J18*L18 -> 0 | O18: 1.715 | P18: =+J18-N18 -> 0 | Q18: 69.629 | R18: =+J18*E$7 -> 0
C19: Husky | D19: 16 | F19: Ounce | G19: 0.8828 | I19: 14.1248 | J19: 0 | K19: 0 | M19: 0 | N19: 0 | O19: 14.1248 | P19: 0 | Q19: 573.46688 | R19: 0
B20: Seed
C21: Grain Sorghum Seed - Treated | D21: 8 | F21: pound | G21: 3.98 | I21: 31.84 | J21: 0 | K21: 0 | M21: 0 | N21: 0 | O21: 31.84 | P21: 0 | Q21: 1292.704 | R21: 0
B22: Fertilizer
C23: Potash 0-0-60 | D23: 60 | F23: Pound | G23: 0.42 | I23: 25.2 | J23: 0 | K23: 0 | M23: 0 | N23: 0 | O23: 25.2 | P23: 0 | Q23: 1023.12 | R23: 0
C24: N-32 | D24: 83.2 | F24: Pound | G24: 0.53 | I24: 44.096 | J24: 0 | K24: 0 | M24: 0 | N24: 0 | O24: 44.096 | P24: 0 | Q24: 1790.2976 | R24: 0
B25: Custom
C26: Soil Test-Irrigated | D26: 1 | F26: Acre | G26: 0.5 | I26: 0.5 | J26: 0 | K26: 0 | M26: 0 | N26: 0 | O26: 0.5 | P26: 0 | Q26: 20.3 | R26: 0
C27: Haul Grain | D27: 85 | F27: Bushel | G27: 0.27 | I27: 22.95 | J27: 0 | K27: 0 | M27: 0 | N27: 0 | O27: 22.95 | P27: 0 | Q27: 931.77 | R27: 0
B28: Miscellaneous
C29: IRR. G.S. RP 65%, ent, Glasscock co. | D29: 1 | F29: Acre | G29: 10.38 | I29: 10.38 | J29: 0 | K29: 0 | M29: 0 | N29: 0 | O29: 10.38 | P29: 0 | Q29: 421.428 | R29: 0
D30: 0 | G30: 0 | I30: 0 | J30: 0 | K30: 0 | M30: 0 | N30: 0 | O30: 0 | P30: 0 | Q30: 0 | R30: 0
D31: 0 | G31: 0 | I31: 0 | J31: 0 | K31: 0 | M31: 0 | N31: 0 | O31: 0 | P31: 0 | Q31: 0 | R31: 0
D32: 0 | G32: 0 | I32: 0 | J32: =E32*H32 -> 0 | K32: 0 | M32: 0 | N32: =J32*L32 -> 0 | O32: 0 | P32: =+J32-N32 -> 0 | Q32: 0 | R32: =+J32*E$7 -> 0
B33: Irrigation
C34: Energy Cost | D34: 8 | F34: AcreInch | G34: 6.658167767 | I34: 53.26534213 | J34: =E34*H34 -> 0 | K34: 0 | M34: 0 | N34: =J34*L34 -> 0 | O34: 53.26534213 | P34: =+J34-N34 -> 0 | Q34: 2162.572891 | R34: =+J34*E$7 -> 0
C35: Irrigation Labor | D35: 3.0394 | F35: Hour | G35: 17.5 | I35: 53.1895 | J35: 0 | K35: 0 | M35: 0 | N35: 0 | O35: 53.1895 | P35: 0 | Q35: 2159.4937 | R35: 0
B36: Machinery Labor
C37: Tractors/Self-Propelled | D37: 0.69 | F37: Hour | G37: 17.21 | I37: 11.8749 | J37: =E37*H37 -> 0 | K37: 0 | M37: 0 | N37: =J37*L37 -> 0 | O37: 11.8749 | P37: =+J37-N37 -> 0 | Q37: 482.12094 | R37: =+J37*E$7 -> 0
C38: Other Labor | D38: 0.02 | F38: Hour | G38: 17.21 | I38: 0.3442 | J38: =E38*H38 -> 0 | K38: 0 | M38: 0 | N38: =J38*L38 -> 0 | O38: 0.3442 | P38: =+J38-N38 -> 0 | Q38: 13.97452 | R38: =+J38*E$7 -> 0
B40: Diesel Fuel
C41: Pickup/General Use Equipment | D41: 1 | F41: Acre | G41: 0 | I41: 0 | J41: =E41*H41 -> 0 | K41: 0 | M41: 0 | N41: =J41*L41 -> 0 | O41: 0 | P41: =+J41-N41 -> 0 | Q41: 0 | R41: =+J41*E$7 -> 0
C42: Tractors/Self-Propelled | D42: 6.76 | F42: Gallon | G42: 3.16 | I42: 21.3616 | J42: =E42*H42 -> 0 | K42: 0 | M42: 0 | N42: =J42*L42 -> 0 | O42: 21.3616 | P42: =+J42-N42 -> 0 | Q42: 867.28096 | R42: =+J42*E$7 -> 0
B44: Gasoline
C45: Pickup/General Use Equipment | D45: 1 | F45: Acre | G45: 7.577586207 | I45: 7.577586207 | J45: =E45*H45 -> 0 | K45: 0 | M45: 0 | N45: =J45*L45 -> 0 | O45: 7.577586207 | P45: =+J45-N45 -> 0 | Q45: 307.65 | R45: =+J45*E$7 -> 0
C46: Tractors/Self-Propelled | D46: 0 | F46: Gallon | G46: 2.93 | I46: 0 | J46: =E46*H46 -> 0 | K46: 0 | M46: 0 | N46: =J46*L46 -> 0 | O46: 0 | P46: =+J46-N46 -> 0 | Q46: 0 | R46: =+J46*E$7 -> 0
B48: Repairs & Maintenance
C49: Pickup/General Use Equipment | D49: 1 | F49: Acre | G49: 1.668103448 | I49: 1.668103448 | J49: =E49*H49 -> 0 | K49: 0 | M49: 0 | N49: =J49*L49 -> 0 | O49: 1.668103448 | P49: =+J49-N49 -> 0 | Q49: 67.725 | R49: =+J49*E$7 -> 0
C50: Irrigation Equipment | D50: 1 | F50: Acre | G50: 3.52 | I50: 3.52 | J50: 0 | K50: 0 | M50: 0 | N50: 0 | O50: 3.52 | P50: 0 | Q50: 142.912 | R50: 0
C51: Tractors/Self-Propelled | D51: 1 | F51: Acre | G51: 26.73621856 | I51: 26.73621856 | J51: 0 | K51: 0 | M51: 0 | N51: 0 | O51: 26.73621856 | P51: 0 | Q51: 1085.490473 | R51: 0
C52: Implements | D52: 1 | F52: Acre | G52: 12.56704782 | I52: 12.56704782 | J52: 0 | K52: 0 | M52: 0 | N52: 0 | O52: 12.56704782 | P52: 0 | Q52: 510.2221414 | R52: 0
I53: 0 | J53: 0 | K53: 0 | M53: 0 | N53: 0 | O53: 0 | P53: 0 | Q53: 0 | R53: 0
I54: 0 | J54: 0 | K54: 0 | M54: 0 | N54: 0 | O54: 0 | P54: 0 | Q54: 0 | R54: 0
B55: Interest on Credit Line | G55: 0.08 | I55: 14.49596361 | J55: =+SUM(J17:J54)/2*H55 -> 0 | M55: 0 | N55: =+SUM(N17:N54)/2*L55 -> 0 | O55: 14.49596361 | P55: =+SUM(P17:P54)/2*L55 -> 0 | Q55: 588.5361227 | R55: =+J55*E$7 -> 0
A56: Total Variable Costs | I56: 357.4062618 | J56: =SUM(J18:J55) -> 0 | M56: 0 | N56: =SUM(N18:N55) -> 0 | O56: 357.4062618 | P56: =SUM(P18:P55) -> 0 | Q56: 14510.69423 | R56: =SUM(R18:R55) -> 0
A57: Planned Returns Above Variable Costs: | I57: -0.4062617757 | J57: =+J13-J56 -> 0 | M57: 0 | N57: =+N13-N56 -> 0 | O57: -0.4062617757 | P57: =+P13-P56 -> 0 | Q57: -16.49422809 | R57: =+R13-R56 -> 0
B58: Breakeven Price to Cover Variable Costs | G58: 7.508534911 | H58: =IF(E10=0,"n/a",(YVarExp-(YTotExp+YTotRet-J10))/E10) -> n/a | I58: CWT
Q59: Enterprise | R59: Enterprise
A60: FIXED COSTS | D60: Quantity | E60: Quantity | F60: Units | G60: $/Unit | H60: $/Unit | I60: Total | J60: Total | K60: Share | L60: Share | M60: Landlord | N60: Landlord | O60: Tenant | P60: Tenant | Q60: Total | R60: Total
B61: Machinery Depreciation
C62: Pickup/General Use Equipment | D62: 1 | F62: Acre | G62: 3.49137931 | I62: 3.49137931 | J62: =E62*H62 -> 0 | K62: 0 | M62: 0 | N62: =J62*L62 -> 0 | O62: 3.49137931 | P62: =+J62-N62 -> 0 | Q62: 141.75 | R62: =+J62*E$7 -> 0
C63: Irrigation Equipment | D63: 1 | F63: Acre | G63: 95.11637143 | I63: 95.11637143 | J63: 0 | K63: 0 | M63: 0 | N63: =J63*L63 -> 0 | O63: 95.11637143 | P63: 0 | Q63: 3861.72468 | R63: 0
C64: Tractors/Self-Propelled | D64: 1 | F64: Acre | G64: 26.5461155 | I64: 26.5461155 | J64: 0 | K64: 0 | M64: 0 | N64: =J64*L64 -> 0 | O64: 26.5461155 | P64: 0 | Q64: 1077.772289 | R64: 0
C65: Implements | D65: 1 | F65: Acre | G65: 16.04323892 | I65: 16.04323892 | J65: 0 | K65: 0 | M65: 0 | N65: =J65*L65 -> 0 | O65: 16.04323892 | P65: 0 | Q65: 651.3555 | R65: 0
B66: Equipment Investment
C67: Pickup/General Use Equipment | D67: 21.3362069 | F67: Dollars | G67: 0.08 | I67: 1.706896552 | J67: =E67*H67 -> 0 | K67: 0 | M67: 0 | N67: =J67*L67 -> 0 | O67: 1.706896552 | P67: =+J67-N67 -> 0 | Q67: 69.3 | R67: =+J67*E$7 -> 0
C68: Irrigation Equipment | D68: 970.3791429 | F68: Dollars | G68: 0.08 | I68: 77.63033143 | J68: 0 | K68: 0 | M68: 0 | N68: =J68*L68 -> 0 | O68: 77.63033143 | P68: 0 | Q68: 3151.791456 | R68: 0
C69: Tractors/Self-Propelled | D69: 202.0010828 | F69: Dollars | G69: 0.08 | I69: 16.16008662 | J69: 0 | K69: 0 | M69: 0 | N69: =J69*L69 -> 0 | O69: 16.16008662 | P69: 0 | Q69: 656.0995169 | R69: 0
C70: Implements | D70: 77.76393379 | F70: Dollars | G70: 0.08 | I70: 6.221114703 | J70: 0 | K70: 0 | M70: 0 | N70: =J70*L70 -> 0 | O70: 6.221114703 | P70: 0 | Q70: 252.577257 | R70: 0
B71: Salaried Labor | D71: 1 | F71: Acre | G71: 0 | I71: 0 | J71: 0 | K71: 0 | M71: 0 | N71: =J71*L71 -> 0 | O71: 0 | P71: =+J71-N71 -> 0 | Q71: 0 | R71: =+J71*E$7 -> 0
B72: Management Fee, Owner/Operator Labor | D72: 1 | F72: Acre | G72: 0 | I72: 0 | J72: 0 | K72: 0 | M72: 0 | N72: 0 | O72: 0 | P72: 0 | Q72: 0 | R72: 0
B73: Allocated Establishment Cost | D73: 1 | F73: Acre | G73: 0 | I73: 0 | J73: 0 | K73: 0 | M73: 0 | N73: 0 | O73: 0 | P73: 0 | Q73: 0 | R73: 0
B74: Lease value - Drip | D74: 1 | F74: Acre | G74: 50 | I74: 50 | J74: 0 | K74: 0 | M74: 0 | N74: 0 | O74: 50 | P74: 0 | Q74: 2030 | R74: 0
B75: Property Taxes | D75: 1 | F75: Acre | G75: 0 | I75: 0 | J75: 0 | K75: 0 | M75: 0 | N75: 0 | O75: 0 | P75: 0 | Q75: 0 | R75: 0
B76: Whole Farm Insurance | D76: 1 | F76: Acre | G76: 0 | I76: 0 | J76: 0 | K76: 0 | M76: 0 | N76: 0 | O76: 0 | P76: 0 | Q76: 0 | R76: 0
D77: 1 | G77: 0 | I77: 0 | J77: 0 | K77: 0 | M77: 0 | N77: 0 | O77: 0 | P77: 0 | Q77: 0 | R77: 0
D78: 1 | G78: 0 | I78: 0 | J78: =E78*H78 -> 0 | K78: 0 | M78: 0 | N78: 0 | O78: 0 | P78: 0 | Q78: 0 | R78: 0
A79: Total Fixed Costs | I79: 292.9155345 | J79: =+SUM(J62:J78) -> 0 | M79: 0 | N79: =+SUM(N62:N78) -> 0 | O79: 292.9155345 | P79: =+SUM(P62:P78) -> 0 | Q79: 11892.3707 | R79: =+SUM(R62:R78) -> 0
A80: Total Specified Costs | I80: 650.3217962 | J80: =+J56+J79 -> 0 | M80: 0 | N80: =+N56+N79 -> 0 | O80: 650.3217962 | P80: =+P56+P79 -> 0 | Q80: 26403.06493 | R80: =+R56+R79 -> 0
A82: Returns Above Specified Costs | I82: -293.3217962 | J82: =+J13-J80 -> 0 | M82: 0 | N82: =+N13-N80 -> 0 | O82: -293.3217962 | P82: =+P13-P80 -> 0 | Q82: -11908.86493 | R82: =+R13-R80 -> 0
A84: Breakeven Price to Cover Total Costs | G84: 13.66222261 | H84: =IF(E10=0,"n/a",(YTotExp-(YTotExp+YTotRet-J10))/E10) -> n/a | I84: CWT
D86: Example Breakeven Prices
B87: Example | C87: Example | D87: To Cover | G87: To Cover
B88: Yield | C88: Yield | D88: Variable | G88: Total
B89: Percent | C89: CWT | D89: Costs | G89: Costs
B90: 0.75 | C90: 35.7 | D90: 10.01137988 | G90: 18.21629681
B91: 0.9 | C91: 42.84 | D91: 8.342816568 | G91: 15.18024734
B92: 1 | C92: 47.6 | D92: 7.508534911 | G92: 13.66222261
B93: 1.1 | C93: 52.36 | D93: 6.825940828 | G93: 12.42020237
B94: 1.25 | C94: 59.5 | D94: 6.006827929 | G94: 10.92977809
A96: Developed by Extension Agricultural Economists, Texas A&M AgriLife Extension, budgets@tamu.edu.
A98: Information presented is prepared solely as a general guide and not intended to recognize or predict the costs and returns from any one operation. Brand names are mentioned only as examples and imply no endorsement.

Sheet TPCottonFurrow
A1: Projections for Planning Purposes Only -- Not to be Used without Updating
A2: 2026 Estimated Costs and Returns per Acre
A3: Trans Pecos Cotton, Furrow Irrigated, 40 Inch Rows
A4: Enter your name for this budget in the cell above.
A5: Enter Your Values in the cells highlighed in MAROON.
E6: Your Acres | R6: Your
C7: Crop Acres | D7: 122 | L7: Your | Q7: Enterprise | R7: Enterprise
E8: Your | H8: Your | I8: Cash | J8: Your | K8: Landlord | L8: Landlord | N8: Your | P8: Your | Q8: Total | R8: Total
A9: REVENUE | D9: Quantity | E9: Quantity | F9: Units | G9: $/Unit | H9: $/Unit | I9: Total | J9: Total | K9: Share | L9: Share | M9: Landlord | N9: Landlord | O9: Tenant | P9: Tenant | Q9: (122 acres) | R9: ="(" & E7 & " acres)" -> ( acres)
B10: Cotton Lint | D10: 1400 | F10: Pound | G10: 0.69 | I10: 966 | J10: =E10*H10 -> 0 | K10: 0 | M10: 0 | N10: =J10*L10 -> 0 | O10: 966 | P10: =+J10-N10 -> 0 | Q10: 117852 | R10: =+J10*E$7 -> 0
B11: Cotton Seed | D11: 1.0129 | F11: Ton | G11: 250 | I11: 253.225 | J11: 0 | K11: 0 | M11: 0 | N11: 0 | O11: 253.225 | P11: =+J11-N11 -> 0 | Q11: 30893.45 | R11: 0
D12: 0 | G12: 0 | I12: 0 | J12: 0 | K12: 0 | M12: 0 | N12: 0 | O12: 0 | P12: 0 | Q12: 0 | R12: 0
D13: 0 | G13: 0 | I13: 0 | J13: 0 | K13: 0 | M13: 0 | N13: 0 | O13: 0 | P13: 0 | Q13: 0 | R13: 0
A14: Total Revenue | I14: 1219.225 | J14: =SUM(J10:J13) -> 0 | M14: 0 | N14: =SUM(N10:N13) -> 0 | O14: 1219.225 | P14: =SUM(P10:P13) -> 0 | Q14: 148745.45 | R14: =SUM(R10:R13) -> 0
Q15: Enterprise | R15: Enterprise
A16: VARIABLE COSTS | D16: Quantity | E16: Quantity | F16: Units | G16: $/Unit | H16: $/Unit | I16: Total | J16: Total | K16: Share | L16: Share | M16: Landlord | N16: Landlord | O16: Tenant | P16: Tenant | Q16: Total | R16: Total
A17: Production Costs
B18: Herbicide
C19: Trifluralin Pint | D19: 2 | F19: Pint | G19: 2.75 | I19: 5.5 | J19: =E19*H19 -> 0 | K19: 0 | M19: 0 | N19: =J19*L19 -> 0 | O19: 5.5 | P19: =+J19-N19 -> 0 | Q19: 671 | R19: =+J19*E$7 -> 0
C20: Mepiquat Chloride-PGR | D20: 22 | F20: Ounce | G20: 0.0625 | I20: 1.375 | J20: 0 | K20: 0 | M20: 0 | N20: 0 | O20: 1.375 | P20: 0 | Q20: 167.75 | R20: 0
C21: Glyphosate Ounce Generic | D21: 64 | F21: Ounce | G21: 0.1328125 | I21: 8.5 | J21: 0 | K21: 0 | M21: 0 | N21: 0 | O21: 8.5 | P21: 0 | Q21: 1037 | R21: 0
B22: Seed
C23: Cotton Seed BIIRRF - Irrigated | D23: 40 | F23: Thousand | G23: 1.6521739 | I23: 66.086956 | J23: 0 | K23: 0 | M23: 0 | N23: 0 | O23: 66.086956 | P23: 0 | Q23: 8062.608632 | R23: 0
B24: Fertilizer
C25: Potash 0-0-60 | D25: 75 | F25: Pound | G25: 0.42 | I25: 31.5 | J25: 0 | K25: 0 | M25: 0 | N25: 0 | O25: 31.5 | P25: 0 | Q25: 3843 | R25: 0
C26: N-32 | D26: 140 | F26: Pound | G26: 0.53 | I26: 74.2 | J26: 0 | K26: 0 | M26: 0 | N26: 0 | O26: 74.2 | P26: 0 | Q26: 9052.4 | R26: 0
C27: Phosphoric Acid | D27: 32 | F27: Pound | G27: 0.41 | I27: 13.12 | J27: 0 | K27: 0 | M27: 0 | N27: 0 | O27: 13.12 | P27: 0 | Q27: 1600.64 | R27: 0
B28: Custom
C29: Custom Spray | D29: 2 | F29: Acre | G29: 6.39 | I29: 12.78 | J29: 0 | K29: 0 | M29: 0 | N29: 0 | O29: 12.78 | P29: 0 | Q29: 1559.16 | R29: 0
C30: Bag, Tie | D30: 3 | F30: Bale | G30: 15 | I30: 45 | J30: 0 | K30: 0 | M30: 0 | N30: 0 | O30: 45 | P30: 0 | Q30: 5490 | R30: 0
C31: Soil Test-Irrigated | D31: 1 | F31: Acre | G31: 0.5 | I31: 0.5 | J31: 0 | K31: 0 | M31: 0 | N31: 0 | O31: 0.5 | P31: 0 | Q31: 61 | R31: 0
B32: Miscellaneous
C33: Boll Weevil Eradication Program | D33: 2.8 | F33: Bale | G33: 1 | I33: 2.8 | J33: 0 | K33: 0 | M33: 0 | N33: 0 | O33: 2.8 | P33: 0 | Q33: 341.6 | R33: 0
C34: IRR Cotton RP, 70% Ent, SE, Pecos Co. | D34: 1 | F34: Acre | G34: 18.98 | I34: 18.98 | J34: 0 | K34: 0 | M34: 0 | N34: 0 | O34: 18.98 | P34: 0 | Q34: 2315.56 | R34: 0
B35: Other Labor
C36: Hand Labor TP | D36: 0.7764 | F36: Hour | G36: 10 | I36: 7.764 | J36: 0 | K36: 0 | M36: 0 | N36: 0 | O36: 7.764 | P36: 0 | Q36: 947.208 | R36: 0
B37: Other Chemicals
C38: Ethephon 6 Pint | D38: 1.5 | F38: Pint | G38: 3.8125 | I38: 5.71875 | J38: 0 | K38: 0 | M38: 0 | N38: 0 | O38: 5.71875 | P38: 0 | Q38: 697.6875 | R38: 0
C39: Firestorm (3lb Paraquat) | D39: 28 | F39: Ounce | G39: 0.1796875 | I39: 5.03125 | J39: 0 | K39: 0 | M39: 0 | N39: 0 | O39: 5.03125 | P39: 0 | Q39: 613.8125 | R39: 0
C40: Cutout | D40: 5 | F40: Ounce | G40: 0.921875 | I40: 4.609375 | J40: 0 | K40: 0 | M40: 0 | N40: 0 | O40: 4.609375 | P40: 0 | Q40: 562.34375 | R40: 0
D41: 0 | G41: 0 | I41: 0 | J41: 0 | K41: 0 | M41: 0 | N41: 0 | O41: 0 | P41: 0 | Q41: 0 | R41: 0
D42: 0 | G42: 0 | I42: 0 | J42: 0 | K42: 0 | M42: 0 | N42: 0 | O42: 0 | P42: 0 | Q42: 0 | R42: 0
D43: 0 | G43: 0 | I43: 0 | J43: =E43*H43 -> 0 | K43: 0 | M43: 0 | N43: =J43*L43 -> 0 | O43: 0 | P43: =+J43-N43 -> 0 | Q43: 0 | R43: =+J43*E$7 -> 0
B44: Irrigation
C45: Energy Cost | D45: 28 | F45: AcreInch | G45: 4.975151615 | I45: 139.3042452 | J45: =E45*H45 -> 0 | K45: 0 | M45: 0 | N45: =J45*L45 -> 0 | O45: 139.3042452 | P45: =+J45-N45 -> 0 | Q45: 16995.11792 | R45: =+J45*E$7 -> 0
C46: Irrigation Labor | D46: 1 | F46: Hour | G46: 17.5 | I46: 17.5 | J46: 0 | K46: 0 | M46: 0 | N46: 0 | O46: 17.5 | P46: 0 | Q46: 2135 | R46: 0
B47: Machinery Labor
C48: Tractors/Self-Propelled | D48: 1.62 | F48: Hour | G48: 17.21 | I48: 27.8802 | J48: =E48*H48 -> 0 | K48: 0 | M48: 0 | N48: =J48*L48 -> 0 | O48: 27.8802 | P48: =+J48-N48 -> 0 | Q48: 3401.3844 | R48: =+J48*E$7 -> 0
C49: Other Labor | D49: 0 | F49: Hour | G49: 17.21 | I49: 0 | J49: =E49*H49 -> 0 | K49: 0 | M49: 0 | N49: =J49*L49 -> 0 | O49: 0 | P49: =+J49-N49 -> 0 | Q49: 0 | R49: =+J49*E$7 -> 0
B51: Diesel Fuel
C52: Pickup/General Use Equipment | D52: 1 | F52: Acre | G52: 0 | I52: 0 | J52: =E52*H52 -> 0 | K52: 0 | M52: 0 | N52: =J52*L52 -> 0 | O52: 0 | P52: =+J52-N52 -> 0 | Q52: 0 | R52: =+J52*E$7 -> 0
C53: Tractors/Self-Propelled | D53: 12.72 | F53: Gallon | G53: 3.16 | I53: 40.1952 | J53: =E53*H53 -> 0 | K53: 0 | M53: 0 | N53: =J53*L53 -> 0 | O53: 40.1952 | P53: =+J53-N53 -> 0 | Q53: 4903.8144 | R53: =+J53*E$7 -> 0
B55: Gasoline
C56: Pickup/General Use Equipment | D56: 1 | F56: Acre | G56: 16.4992623 | I56: 16.4992623 | J56: =E56*H56 -> 0 | K56: 0 | M56: 0 | N56: =J56*L56 -> 0 | O56: 16.4992623 | P56: =+J56-N56 -> 0 | Q56: 2012.91 | R56: =+J56*E$7 -> 0
C57: Tractors/Self-Propelled | D57: 0 | F57: Gallon | G57: 2.93 | I57: 0 | J57: =E57*H57 -> 0 | K57: 0 | M57: 0 | N57: =J57*L57 -> 0 | O57: 0 | P57: =+J57-N57 -> 0 | Q57: 0 | R57: =+J57*E$7 -> 0
B59: Repairs & Maintenance
C60: Pickup/General Use Equipment | D60: 1 | F60: Acre | G60: 3.204221311 | I60: 3.204221311 | J60: =E60*H60 -> 0 | K60: 0 | M60: 0 | N60: =J60*L60 -> 0 | O60: 3.204221311 | P60: =+J60-N60 -> 0 | Q60: 390.915 | R60: =+J60*E$7 -> 0
C61: Irrigation Equipment | D61: 1 | F61: Acre | G61: 13.0452 | I61: 13.0452 | J61: 0 | K61: 0 | M61: 0 | N61: 0 | O61: 13.0452 | P61: 0 | Q61: 1591.5144 | R61: 0
C62: Tractors/Self-Propelled | D62: 1 | F62: Acre | G62: 32.76155252 | I62: 32.76155252 | J62: 0 | K62: 0 | M62: 0 | N62: 0 | O62: 32.76155252 | P62: 0 | Q62: 3996.909407 | R62: 0
C63: Implements | D63: 1 | F63: Acre | G63: 14.91843773 | I63: 14.91843773 | J63: 0 | K63: 0 | M63: 0 | N63: 0 | O63: 14.91843773 | P63: 0 | Q63: 1820.049403 | R63: 0
I64: 0 | J64: 0 | K64: 0 | M64: 0 | N64: 0 | O64: 0 | P64: 0 | Q64: 0 | R64: 0
I65: 0 | J65: 0 | K65: 0 | M65: 0 | N65: 0 | O65: 0 | P65: 0 | Q65: 0 | R65: 0
B66: Interest on Credit Line | G66: 0.08 | I66: 15.68884599 | J66: =+SUM(J18:J65)/2*H66 -> 0 | M66: 0 | N66: =+SUM(N18:N65)/2*L66 -> 0 | O66: 15.68884599 | P66: =+SUM(P18:P65)/2*L66 -> 0 | Q66: 1914.039211 | R66: =+J66*E$7 -> 0
A67: Total Variable Costs | I67: 624.4624961 | J67: =SUM(J19:J66) -> 0 | M67: 0 | N67: =SUM(N19:N66) -> 0 | O67: 624.4624961 | P67: =SUM(P19:P66) -> 0 | Q67: 76184.42452 | R67: =SUM(R19:R66) -> 0
A68: Planned Returns Above Variable Costs: | I68: 594.7625039 | J68: =+J14-J67 -> 0 | M68: 0 | N68: =+N14-N67 -> 0 | O68: 594.7625039 | P68: =+P14-P67 -> 0 | Q68: 72561.02548 | R68: =+R14-R67 -> 0
B69: Breakeven Price to Cover Variable Costs | G69: 0.2651696401 | H69: =IF(E10=0,"n/a",(YVarExp-(YTotExp+YTotRet-J10))/E10) -> n/a | I69: Pound
Q70: Enterprise | R70: Enterprise
A71: FIXED COSTS | D71: Quantity | E71: Quantity | F71: Units | G71: $/Unit | H71: $/Unit | I71: Total | J71: Total | K71: Share | L71: Share | M71: Landlord | N71: Landlord | O71: Tenant | P71: Tenant | Q71: Total | R71: Total
B72: Machinery Depreciation
C73: Pickup/General Use Equipment | D73: 1 | F73: Acre | G73: 9.151229508 | I73: 9.151229508 | J73: =E73*H73 -> 0 | K73: 0 | M73: 0 | N73: =J73*L73 -> 0 | O73: 9.151229508 | P73: =+J73-N73 -> 0 | Q73: 1116.45 | R73: =+J73*E$7 -> 0
C74: Irrigation Equipment | D74: 1 | F74: Acre | G74: 54.3715847 | I74: 54.3715847 | J74: 0 | K74: 0 | M74: 0 | N74: =J74*L74 -> 0 | O74: 54.3715847 | P74: 0 | Q74: 6633.333333 | R74: 0
C75: Tractors/Self-Propelled | D75: 1 | F75: Acre | G75: 36.5340529 | I75: 36.5340529 | J75: 0 | K75: 0 | M75: 0 | N75: =J75*L75 -> 0 | O75: 36.5340529 | P75: 0 | Q75: 4457.154454 | R75: 0
C76: Implements | D76: 1 | F76: Acre | G76: 18.55978826 | I76: 18.55978826 | J76: 0 | K76: 0 | M76: 0 | N76: =J76*L76 -> 0 | O76: 18.55978826 | P76: 0 | Q76: 2264.294168 | R76: 0
B77: Equipment Investment
C78: Pickup/General Use Equipment | D78: 45.16598361 | F78: Dollars | G78: 0.08 | I78: 3.613278689 | J78: =E78*H78 -> 0 | K78: 0 | M78: 0 | N78: =J78*L78 -> 0 | O78: 3.613278689 | P78: =+J78-N78 -> 0 | Q78: 440.82 | R78: =+J78*E$7 -> 0
C79: Irrigation Equipment | D79: 407.7868852 | F79: Dollars | G79: 0.08 | I79: 32.62295082 | J79: 0 | K79: 0 | M79: 0 | N79: =J79*L79 -> 0 | O79: 32.62295082 | P79: 0 | Q79: 3980 | R79: 0
C80: Tractors/Self-Propelled | D80: 318.145139 | F80: Dollars | G80: 0.08 | I80: 25.45161112 | J80: 0 | K80: 0 | M80: 0 | N80: =J80*L80 -> 0 | O80: 25.45161112 | P80: 0 | Q80: 3105.096557 | R80: 0
C81: Implements | D81: 104.3216029 | F81: Dollars | G81: 0.08 | I81: 8.345728232 | J81: 0 | K81: 0 | M81: 0 | N81: =J81*L81 -> 0 | O81: 8.345728232 | P81: 0 | Q81: 1018.178844 | R81: 0
B82: Salaried Labor | D82: 1 | F82: Acre | G82: 0 | I82: 0 | J82: 0 | K82: 0 | M82: 0 | N82: =J82*L82 -> 0 | O82: 0 | P82: =+J82-N82 -> 0 | Q82: 0 | R82: =+J82*E$7 -> 0
B83: Management Fee, Owner/Operator Labor | D83: 1 | F83: Acre | G83: 0 | I83: 0 | J83: 0 | K83: 0 | M83: 0 | N83: 0 | O83: 0 | P83: 0 | Q83: 0 | R83: 0
B84: Allocated Establishment Cost | D84: 1 | F84: Acre | G84: 0 | I84: 0 | J84: 0 | K84: 0 | M84: 0 | N84: 0 | O84: 0 | P84: 0 | Q84: 0 | R84: 0
B85: Trans Pecos Irrigated Land | D85: 1 | F85: Acre | G85: 50 | I85: 50 | J85: 0 | K85: 0 | M85: 0 | N85: 0 | O85: 50 | P85: 0 | Q85: 6100 | R85: 0
B86: Property Taxes | D86: 1 | F86: Acre | G86: 0 | I86: 0 | J86: 0 | K86: 0 | M86: 0 | N86: 0 | O86: 0 | P86: 0 | Q86: 0 | R86: 0
B87: Whole Farm Insurance | D87: 1 | F87: Acre | G87: 0 | I87: 0 | J87: 0 | K87: 0 | M87: 0 | N87: 0 | O87: 0 | P87: 0 | Q87: 0 | R87: 0
D88: 1 | G88: 0 | I88: 0 | J88: 0 | K88: 0 | M88: 0 | N88: 0 | O88: 0 | P88: 0 | Q88: 0 | R88: 0
D89: 1 | G89: 0 | I89: 0 | J89: =E89*H89 -> 0 | K89: 0 | M89: 0 | N89: 0 | O89: 0 | P89: 0 | Q89: 0 | R89: 0
A90: Total Fixed Costs | I90: 238.6502242 | J90: =+SUM(J73:J89) -> 0 | M90: 0 | N90: =+SUM(N73:N89) -> 0 | O90: 238.6502242 | P90: =+SUM(P73:P89) -> 0 | Q90: 29115.32736 | R90: =+SUM(R73:R89) -> 0
A91: Total Specified Costs | I91: 863.1127203 | J91: =+J67+J90 -> 0 | M91: 0 | N91: =+N67+N90 -> 0 | O91: 863.1127203 | P91: =+P67+P90 -> 0 | Q91: 105299.7519 | R91: =+R67+R90 -> 0
A93: Returns Above Specified Costs | I93: 356.1122797 | J93: =+J14-J91 -> 0 | M93: 0 | N93: =+N14-N91 -> 0 | O93: 356.1122797 | P93: =+P14-P91 -> 0 | Q93: 43445.69812 | R93: =+R14-R91 -> 0
A95: Breakeven Price to Cover Total Costs | G95: 0.4356340859 | H95: =IF(E10=0,"n/a",(YTotExp-(YTotExp+YTotRet-J10))/E10) -> n/a | I95: Pound
D97: Example Breakeven Prices
B98: Example | C98: Example | D98: To Cover | G98: To Cover
B99: Yield | C99: Yield | D99: Variable | G99: Total
B100: Percent | C100: Pound | D100: Costs | G100: Costs
B101: 0.75 | C101: 1050 | D101: 0.3535595201 | G101: 0.5808454479
B102: 0.9 | C102: 1260 | D102: 0.2946329334 | G102: 0.4840378733
B103: 1 | C103: 1400 | D103: 0.2651696401 | G103: 0.4356340859
B104: 1.1 | C104: 1540 | D104: 0.2410633091 | G104: 0.3960309872
B105: 1.25 | C105: 1750 | D105: 0.212135712 | G105: 0.3485072687
A107: Developed by Extension Agricultural Economists, Texas A&M AgriLife Extension, budgets@tamu.edu.
A109: Information presented is prepared solely as a general guide and not intended to recognize or predict the costs and returns from any one operation. Brand names are mentioned only as examples and imply no endorsement.

Sheet TPCottonPivot
A1: Projections for Planning Purposes Only -- Not to be Used without Updating
A2: 2026 Estimated Costs and Returns per Acre
A3: Trans Pecos Cotton, Center Pivot Irrigated, 40 Inch Rows
A4: Enter your name for this budget in the cell above.
A5: Enter Your Values in the cells highlighed in MAROON.
E6: Your Acres | R6: Your
C7: Crop Acres | D7: 122 | L7: Your | Q7: Enterprise | R7: Enterprise
E8: Your | H8: Your | I8: Cash | J8: Your | K8: Landlord | L8: Landlord | N8: Your | P8: Your | Q8: Total | R8: Total
A9: REVENUE | D9: Quantity | E9: Quantity | F9: Units | G9: $/Unit | H9: $/Unit | I9: Total | J9: Total | K9: Share | L9: Share | M9: Landlord | N9: Landlord | O9: Tenant | P9: Tenant | Q9: (122 acres) | R9: ="(" & E7 & " acres)" -> ( acres)
B10: Cotton Lint | D10: 1500 | F10: Pound | G10: 0.69 | I10: 1035 | J10: =E10*H10 -> 0 | K10: 0 | M10: 0 | N10: =J10*L10 -> 0 | O10: 1035 | P10: =+J10-N10 -> 0 | Q10: 126270 | R10: =+J10*E$7 -> 0
B11: Cotton Seed | D11: 1.4 | F11: Ton | G11: 250 | I11: 350 | J11: 0 | K11: 0 | M11: 0 | N11: 0 | O11: 350 | P11: =+J11-N11 -> 0 | Q11: 42700 | R11: 0
D12: 0 | G12: 0 | I12: 0 | J12: 0 | K12: 0 | M12: 0 | N12: 0 | O12: 0 | P12: 0 | Q12: 0 | R12: 0
D13: 0 | G13: 0 | I13: 0 | J13: 0 | K13: 0 | M13: 0 | N13: 0 | O13: 0 | P13: 0 | Q13: 0 | R13: 0
A14: Total Revenue | I14: 1385 | J14: =SUM(J10:J13) -> 0 | M14: 0 | N14: =SUM(N10:N13) -> 0 | O14: 1385 | P14: =SUM(P10:P13) -> 0 | Q14: 168970 | R14: =SUM(R10:R13) -> 0
Q15: Enterprise | R15: Enterprise
A16: VARIABLE COSTS | D16: Quantity | E16: Quantity | F16: Units | G16: $/Unit | H16: $/Unit | I16: Total | J16: Total | K16: Share | L16: Share | M16: Landlord | N16: Landlord | O16: Tenant | P16: Tenant | Q16: Total | R16: Total
A17: Production Costs
B18: Seed
C19: Cotton Seed BIIRRF - Irrigated | D19: 40 | F19: Thousand | G19: 1.6521739 | I19: 66.086956 | J19: =E19*H19 -> 0 | K19: 0 | M19: 0 | N19: =J19*L19 -> 0 | O19: 66.086956 | P19: =+J19-N19 -> 0 | Q19: 8062.608632 | R19: =+J19*E$7 -> 0
B20: Fertilizer
C21: Potash 0-0-60 | D21: 75 | F21: Pound | G21: 0.42 | I21: 31.5 | J21: 0 | K21: 0 | M21: 0 | N21: 0 | O21: 31.5 | P21: 0 | Q21: 3843 | R21: 0
C22: N-32 | D22: 140 | F22: Pound | G22: 0.53 | I22: 74.2 | J22: 0 | K22: 0 | M22: 0 | N22: 0 | O22: 74.2 | P22: 0 | Q22: 9052.4 | R22: 0
C23: Phosphoric Acid | D23: 32 | F23: Pound | G23: 0.41 | I23: 13.12 | J23: 0 | K23: 0 | M23: 0 | N23: 0 | O23: 13.12 | P23: 0 | Q23: 1600.64 | R23: 0
B24: Custom
C25: Soil Test-Irrigated | D25: 1 | F25: Acre | G25: 0.5 | I25: 0.5 | J25: 0 | K25: 0 | M25: 0 | N25: 0 | O25: 0.5 | P25: 0 | Q25: 61 | R25: 0
C26: Custom Spray | D26: 2 | F26: Acre | G26: 6.39 | I26: 12.78 | J26: 0 | K26: 0 | M26: 0 | N26: 0 | O26: 12.78 | P26: 0 | Q26: 1559.16 | R26: 0
C27: Bag, Tie | D27: 2.5 | F27: Bale | G27: 15 | I27: 37.5 | J27: 0 | K27: 0 | M27: 0 | N27: 0 | O27: 37.5 | P27: 0 | Q27: 4575 | R27: 0
C28: Gin and Haul | D28: 53.57 | F28: CWT | G28: 3.75 | I28: 200.8875 | J28: 0 | K28: 0 | M28: 0 | N28: 0 | O28: 200.8875 | P28: 0 | Q28: 24508.275 | R28: 0
B29: Herbicide
C30: Trifluralin Pint | D30: 2 | F30: Pint | G30: 2.75 | I30: 5.5 | J30: 0 | K30: 0 | M30: 0 | N30: 0 | O30: 5.5 | P30: 0 | Q30: 671 | R30: 0
C31: Caparol 4L Ounce | D31: 24 | F31: Ounce | G31: 0.2539 | I31: 6.0936 | J31: 0 | K31: 0 | M31: 0 | N31: 0 | O31: 6.0936 | P31: 0 | Q31: 743.4192 | R31: 0
C32: Glyphosate Ounce Generic | D32: 64 | F32: Ounce | G32: 0.1328125 | I32: 8.5 | J32: 0 | K32: 0 | M32: 0 | N32: 0 | O32: 8.5 | P32: 0 | Q32: 1037 | R32: 0
C33: Direx 4L | D33: 2 | F33: Pint | G33: 2.74 | I33: 5.48 | J33: 0 | K33: 0 | M33: 0 | N33: 0 | O33: 5.48 | P33: 0 | Q33: 668.56 | R33: 0
C34: Mepiquat Chloride-PGR | D34: 22 | F34: Ounce | G34: 0.0625 | I34: 1.375 | J34: 0 | K34: 0 | M34: 0 | N34: 0 | O34: 1.375 | P34: 0 | Q34: 167.75 | R34: 0
B35: Other Chemicals
C36: Ethephon 6 Pint | D36: 1.5 | F36: Pint | G36: 3.8125 | I36: 5.71875 | J36: 0 | K36: 0 | M36: 0 | N36: 0 | O36: 5.71875 | P36: 0 | Q36: 697.6875 | R36: 0
C37: Firestorm (3lb Paraquat) | D37: 28 | F37: Ounce | G37: 0.1796875 | I37: 5.03125 | J37: 0 | K37: 0 | M37: 0 | N37: 0 | O37: 5.03125 | P37: 0 | Q37: 613.8125 | R37: 0
C38: Cutout | D38: 5 | F38: Ounce | G38: 0.921875 | I38: 4.609375 | J38: 0 | K38: 0 | M38: 0 | N38: 0 | O38: 4.609375 | P38: 0 | Q38: 562.34375 | R38: 0
B39: Miscellaneous
C40: Boll Weevil Eradication Program | D40: 3 | F40: Bale | G40: 1 | I40: 3 | J40: 0 | K40: 0 | M40: 0 | N40: 0 | O40: 3 | P40: 0 | Q40: 366 | R40: 0
C41: IRR Cotton RP, 70% Ent, SE, Pecos Co. | D41: 1 | F41: Acre | G41: 18.98 | I41: 18.98 | J41: 0 | K41: 0 | M41: 0 | N41: 0 | O41: 18.98 | P41: 0 | Q41: 2315.56 | R41: 0
D42: 0 | G42: 0 | I42: 0 | J42: 0 | K42: 0 | M42: 0 | N42: 0 | O42: 0 | P42: 0 | Q42: 0 | R42: 0
D43: 0 | G43: 0 | I43: 0 | J43: 0 | K43: 0 | M43: 0 | N43: 0 | O43: 0 | P43: 0 | Q43: 0 | R43: 0
D44: 0 | G44: 0 | I44: 0 | J44: =E44*H44 -> 0 | K44: 0 | M44: 0 | N44: =J44*L44 -> 0 | O44: 0 | P44: =+J44-N44 -> 0 | Q44: 0 | R44: =+J44*E$7 -> 0
B45: Irrigation
C46: Energy Cost | D46: 27 | F46: AcreInch | G46: 6.562830651 | I46: 177.1964276 | J46: =E46*H46 -> 0 | K46: 0 | M46: 0 | N46: =J46*L46 -> 0 | O46: 177.1964276 | P46: =+J46-N46 -> 0 | Q46: 21617.96416 | R46: =+J46*E$7 -> 0
C47: Irrigation Labor | D47: 0.1182 | F47: Hour | G47: 17.5 | I47: 2.0685 | J47: 0 | K47: 0 | M47: 0 | N47: 0 | O47: 2.0685 | P47: 0 | Q47: 252.357 | R47: 0
B48: Machinery Labor
C49: Tractors/Self-Propelled | D49: 1.54 | F49: Hour | G49: 17.21 | I49: 26.5034 | J49: =E49*H49 -> 0 | K49: 0 | M49: 0 | N49: =J49*L49 -> 0 | O49: 26.5034 | P49: =+J49-N49 -> 0 | Q49: 3233.4148 | R49: =+J49*E$7 -> 0
C50: Other Labor | D50: 0 | F50: Hour | G50: 17.21 | I50: 0 | J50: =E50*H50 -> 0 | K50: 0 | M50: 0 | N50: =J50*L50 -> 0 | O50: 0 | P50: =+J50-N50 -> 0 | Q50: 0 | R50: =+J50*E$7 -> 0
B52: Diesel Fuel
C53: Pickup/General Use Equipment | D53: 1 | F53: Acre | G53: 0 | I53: 0 | J53: =E53*H53 -> 0 | K53: 0 | M53: 0 | N53: =J53*L53 -> 0 | O53: 0 | P53: =+J53-N53 -> 0 | Q53: 0 | R53: =+J53*E$7 -> 0
C54: Tractors/Self-Propelled | D54: 12.14 | F54: Gallon | G54: 3.16 | I54: 38.3624 | J54: =E54*H54 -> 0 | K54: 0 | M54: 0 | N54: =J54*L54 -> 0 | O54: 38.3624 | P54: =+J54-N54 -> 0 | Q54: 4680.2128 | R54: =+J54*E$7 -> 0
B56: Gasoline
C57: Pickup/General Use Equipment | D57: 1 | F57: Acre | G57: 16.4992623 | I57: 16.4992623 | J57: =E57*H57 -> 0 | K57: 0 | M57: 0 | N57: =J57*L57 -> 0 | O57: 16.4992623 | P57: =+J57-N57 -> 0 | Q57: 2012.91 | R57: =+J57*E$7 -> 0
C58: Tractors/Self-Propelled | D58: 0 | F58: Gallon | G58: 2.93 | I58: 0 | J58: =E58*H58 -> 0 | K58: 0 | M58: 0 | N58: =J58*L58 -> 0 | O58: 0 | P58: =+J58-N58 -> 0 | Q58: 0 | R58: =+J58*E$7 -> 0
B60: Repairs & Maintenance
C61: Pickup/General Use Equipment | D61: 1 | F61: Acre | G61: 3.204221311 | I61: 3.204221311 | J61: =E61*H61 -> 0 | K61: 0 | M61: 0 | N61: =J61*L61 -> 0 | O61: 3.204221311 | P61: =+J61-N61 -> 0 | Q61: 390.915 | R61: =+J61*E$7 -> 0
C62: Irrigation Equipment | D62: 1 | F62: Acre | G62: 71.2098 | I62: 71.2098 | J62: 0 | K62: 0 | M62: 0 | N62: 0 | O62: 71.2098 | P62: 0 | Q62: 8687.5956 | R62: 0
C63: Tractors/Self-Propelled | D63: 1 | F63: Acre | G63: 35.46213338 | I63: 35.46213338 | J63: 0 | K63: 0 | M63: 0 | N63: 0 | O63: 35.46213338 | P63: 0 | Q63: 4326.380272 | R63: 0
C64: Implements | D64: 1 | F64: Acre | G64: 13.65068757 | I64: 13.65068757 | J64: 0 | K64: 0 | M64: 0 | N64: 0 | O64: 13.65068757 | P64: 0 | Q64: 1665.383883 | R64: 0
I65: 0 | J65: 0 | K65: 0 | M65: 0 | N65: 0 | O65: 0 | P65: 0 | Q65: 0 | R65: 0
I66: 0 | J66: 0 | K66: 0 | M66: 0 | N66: 0 | O66: 0 | P66: 0 | Q66: 0 | R66: 0
B67: Interest on Credit Line | G67: 0.08 | I67: 18.36569858 | J67: =+SUM(J18:J66)/2*H67 -> 0 | M67: 0 | N67: =+SUM(N18:N66)/2*L67 -> 0 | O67: 18.36569858 | P67: =+SUM(P18:P66)/2*L67 -> 0 | Q67: 2240.615226 | R67: =+J67*E$7 -> 0
A68: Total Variable Costs | I68: 903.3849617 | J68: =SUM(J19:J67) -> 0 | M68: 0 | N68: =SUM(N19:N67) -> 0 | O68: 903.3849617 | P68: =SUM(P19:P67) -> 0 | Q68: 110212.9653 | R68: =SUM(R19:R67) -> 0
A69: Planned Returns Above Variable Costs: | I69: 481.6150383 | J69: =+J14-J68 -> 0 | M69: 0 | N69: =+N14-N68 -> 0 | O69: 481.6150383 | P69: =+P14-P68 -> 0 | Q69: 58757.03467 | R69: =+R14-R68 -> 0
B70: Breakeven Price to Cover Variable Costs | G70: 0.3689233078 | H70: =IF(E10=0,"n/a",(YVarExp-(YTotExp+YTotRet-J10))/E10) -> n/a | I70: Pound
Q71: Enterprise | R71: Enterprise
A72: FIXED COSTS | D72: Quantity | E72: Quantity | F72: Units | G72: $/Unit | H72: $/Unit | I72: Total | J72: Total | K72: Share | L72: Share | M72: Landlord | N72: Landlord | O72: Tenant | P72: Tenant | Q72: Total | R72: Total
B73: Machinery Depreciation
C74: Pickup/General Use Equipment | D74: 1 | F74: Acre | G74: 9.151229508 | I74: 9.151229508 | J74: =E74*H74 -> 0 | K74: 0 | M74: 0 | N74: =J74*L74 -> 0 | O74: 9.151229508 | P74: =+J74-N74 -> 0 | Q74: 1116.45 | R74: =+J74*E$7 -> 0
C75: Irrigation Equipment | D75: 1 | F75: Acre | G75: 59.2295082 | I75: 59.2295082 | J75: 0 | K75: 0 | M75: 0 | N75: =J75*L75 -> 0 | O75: 59.2295082 | P75: 0 | Q75: 7226 | R75: 0
C76: Tractors/Self-Propelled | D76: 1 | F76: Acre | G76: 39.23240193 | I76: 39.23240193 | J76: 0 | K76: 0 | M76: 0 | N76: =J76*L76 -> 0 | O76: 39.23240193 | P76: 0 | Q76: 4786.353035 | R76: 0
C77: Implements | D77: 1 | F77: Acre | G77: 17.13356933 | I77: 17.13356933 | J77: 0 | K77: 0 | M77: 0 | N77: =J77*L77 -> 0 | O77: 17.13356933 | P77: 0 | Q77: 2090.295458 | R77: 0
B78: Equipment Investment
C79: Pickup/General Use Equipment | D79: 45.16598361 | F79: Dollars | G79: 0.08 | I79: 3.613278689 | J79: =E79*H79 -> 0 | K79: 0 | M79: 0 | N79: =J79*L79 -> 0 | O79: 3.613278689 | P79: =+J79-N79 -> 0 | Q79: 440.82 | R79: =+J79*E$7 -> 0
C80: Irrigation Equipment | D80: 444.2213115 | F80: Dollars | G80: 0.08 | I80: 35.53770492 | J80: 0 | K80: 0 | M80: 0 | N80: =J80*L80 -> 0 | O80: 35.53770492 | P80: 0 | Q80: 4335.6 | R80: 0
C81: Tractors/Self-Propelled | D81: 338.0167283 | F81: Dollars | G81: 0.08 | I81: 27.04133826 | J81: 0 | K81: 0 | M81: 0 | N81: =J81*L81 -> 0 | O81: 27.04133826 | P81: 0 | Q81: 3299.043268 | R81: 0
C82: Implements | D82: 98.22055522 | F82: Dollars | G82: 0.08 | I82: 7.857644418 | J82: 0 | K82: 0 | M82: 0 | N82: =J82*L82 -> 0 | O82: 7.857644418 | P82: 0 | Q82: 958.632619 | R82: 0
B83: Salaried Labor | D83: 1 | F83: Acre | G83: 0 | I83: 0 | J83: 0 | K83: 0 | M83: 0 | N83: =J83*L83 -> 0 | O83: 0 | P83: =+J83-N83 -> 0 | Q83: 0 | R83: =+J83*E$7 -> 0
B84: Management Fee, Owner/Operator Labor | D84: 1 | F84: Acre | G84: 0 | I84: 0 | J84: 0 | K84: 0 | M84: 0 | N84: 0 | O84: 0 | P84: 0 | Q84: 0 | R84: 0
B85: Allocated Establishment Cost | D85: 1 | F85: Acre | G85: 0 | I85: 0 | J85: 0 | K85: 0 | M85: 0 | N85: 0 | O85: 0 | P85: 0 | Q85: 0 | R85: 0
B86: Trans Pecos Irrigated Land | D86: 1 | F86: Acre | G86: 50 | I86: 50 | J86: 0 | K86: 0 | M86: 0 | N86: 0 | O86: 50 | P86: 0 | Q86: 6100 | R86: 0
B87: Property Taxes | D87: 1 | F87: Acre | G87: 0 | I87: 0 | J87: 0 | K87: 0 | M87: 0 | N87: 0 | O87: 0 | P87: 0 | Q87: 0 | R87: 0
B88: Whole Farm Insurance | D88: 1 | F88: Acre | G88: 0 | I88: 0 | J88: 0 | K88: 0 | M88: 0 | N88: 0 | O88: 0 | P88: 0 | Q88: 0 | R88: 0
D89: 1 | G89: 0 | I89: 0 | J89: 0 | K89: 0 | M89: 0 | N89: 0 | O89: 0 | P89: 0 | Q89: 0 | R89: 0
D90: 1 | G90: 0 | I90: 0 | J90: =E90*H90 -> 0 | K90: 0 | M90: 0 | N90: 0 | O90: 0 | P90: 0 | Q90: 0 | R90: 0
A91: Total Fixed Costs | I91: 248.7966752 | J91: =+SUM(J74:J90) -> 0 | M91: 0 | N91: =+SUM(N74:N90) -> 0 | O91: 248.7966752 | P91: =+SUM(P74:P90) -> 0 | Q91: 30353.19438 | R91: =+SUM(R74:R90) -> 0
A92: Total Specified Costs | I92: 1152.181637 | J92: =+J68+J91 -> 0 | M92: 0 | N92: =+N68+N91 -> 0 | O92: 1152.181637 | P92: =+P68+P91 -> 0 | Q92: 140566.1597 | R92: =+R68+R91 -> 0
A94: Returns Above Specified Costs | I94: 232.8183631 | J94: =+J14-J92 -> 0 | M94: 0 | N94: =+N14-N92 -> 0 | O94: 232.8183631 | P94: =+P14-P92 -> 0 | Q94: 28403.84029 | R94: =+R14-R92 -> 0
A96: Breakeven Price to Cover Total Costs | G96: 0.534787758 | H96: =IF(E10=0,"n/a",(YTotExp-(YTotExp+YTotRet-J10))/E10) -> n/a | I96: Pound
D98: Example Breakeven Prices
B99: Example | C99: Example | D99: To Cover | G99: To Cover
B100: Yield | C100: Yield | D100: Variable | G100: Total
B101: Percent | C101: Pound | D101: Costs | G101: Costs
B102: 0.75 | C102: 1125 | D102: 0.4918977437 | G102: 0.713050344
B103: 0.9 | C103: 1350 | D103: 0.4099147864 | G103: 0.59420862
B104: 1 | C104: 1500 | D104: 0.3689233078 | G104: 0.534787758
B105: 1.1 | C105: 1650 | D105: 0.3353848253 | G105: 0.4861706891
B106: 1.25 | C106: 1875 | D106: 0.2951386462 | G106: 0.4278302064
A108: Developed by Extension Agricultural Economists, Texas A&M AgriLife Extension, budgets@tamu.edu.
A110: Information presented is prepared solely as a general guide and not intended to recognize or predict the costs and returns from any one operation. Brand names are mentioned only as examples and imply no endorsement.

Sheet ElPasoCotton
A1: Projections for Planning Purposes Only -- Not to be Used without Updating
A2: 2026 Estimated Costs and Returns per Acre
A3: El Paso County Cotton, Canal Delivered Furrow Irrigated, 40 Inch Rows
A4: Enter your name for this budget in the cell above.
A5: Enter Your Values in the cells highlighed in MAROON.
E6: Your Acres | R6: Your
C7: Crop Acres | D7: 122 | L7: Your | Q7: Enterprise | R7: Enterprise
E8: Your | H8: Your | I8: Cash | J8: Your | K8: Landlord | L8: Landlord | N8: Your | P8: Your | Q8: Total | R8: Total
A9: REVENUE | D9: Quantity | E9: Quantity | F9: Units | G9: $/Unit | H9: $/Unit | I9: Total | J9: Total | K9: Share | L9: Share | M9: Landlord | N9: Landlord | O9: Tenant | P9: Tenant | Q9: (122 acres) | R9: ="(" & E7 & " acres)" -> ( acres)
B10: Cotton Lint | D10: 1326 | F10: Pound | G10: 0.69 | I10: 914.94 | J10: =E10*H10 -> 0 | K10: 0 | M10: 0 | N10: =J10*L10 -> 0 | O10: 914.94 | P10: =+J10-N10 -> 0 | Q10: 111622.68 | R10: =+J10*E$7 -> 0
B11: Cotton Seed | D11: 1.061 | F11: Ton | G11: 250 | I11: 265.25 | J11: 0 | K11: 0 | M11: 0 | N11: 0 | O11: 265.25 | P11: =+J11-N11 -> 0 | Q11: 32360.5 | R11: 0
D12: 0 | G12: 0 | I12: 0 | J12: 0 | K12: 0 | M12: 0 | N12: 0 | O12: 0 | P12: 0 | Q12: 0 | R12: 0
D13: 0 | G13: 0 | I13: 0 | J13: 0 | K13: 0 | M13: 0 | N13: 0 | O13: 0 | P13: 0 | Q13: 0 | R13: 0
A14: Total Revenue | I14: 1180.19 | J14: =SUM(J10:J13) -> 0 | M14: 0 | N14: =SUM(N10:N13) -> 0 | O14: 1180.19 | P14: =SUM(P10:P13) -> 0 | Q14: 143983.18 | R14: =SUM(R10:R13) -> 0
Q15: Enterprise | R15: Enterprise
A16: VARIABLE COSTS | D16: Quantity | E16: Quantity | F16: Units | G16: $/Unit | H16: $/Unit | I16: Total | J16: Total | K16: Share | L16: Share | M16: Landlord | N16: Landlord | O16: Tenant | P16: Tenant | Q16: Total | R16: Total
A17: Production Costs
B18: Seed
C19: Tech Fee Erad Zn El Paso | D19: 1 | F19: Acre | G19: 20 | I19: 20 | J19: =E19*H19 -> 0 | K19: 0 | M19: 0 | N19: =J19*L19 -> 0 | O19: 20 | P19: =+J19-N19 -> 0 | Q19: 2440 | R19: =+J19*E$7 -> 0
C20: Cotton Seed BIIRRF - Irrigated | D20: 40 | F20: Thousand | G20: 1.6521739 | I20: 66.086956 | J20: 0 | K20: 0 | M20: 0 | N20: 0 | O20: 66.086956 | P20: 0 | Q20: 8062.608632 | R20: 0
B21: Fertilizer
C22: Fertilizer 10-34-0 | D22: 1.5 | F22: CWT | G22: 29.05 | I22: 43.575 | J22: 0 | K22: 0 | M22: 0 | N22: 0 | O22: 43.575 | P22: 0 | Q22: 5316.15 | R22: 0
C23: N-32 in Water | D23: 280 | F23: Pound | G23: 0.53 | I23: 148.4 | J23: 0 | K23: 0 | M23: 0 | N23: 0 | O23: 148.4 | P23: 0 | Q23: 18104.8 | R23: 0
B24: Custom
C25: Custom Spray | D25: 2 | F25: Acre | G25: 6.39 | I25: 12.78 | J25: 0 | K25: 0 | M25: 0 | N25: 0 | O25: 12.78 | P25: 0 | Q25: 1559.16 | R25: 0
C26: Gin, Bag, Tie | D26: 21.22 | F26: CWT | G26: 5 | I26: 106.1 | J26: 0 | K26: 0 | M26: 0 | N26: 0 | O26: 106.1 | P26: 0 | Q26: 12944.2 | R26: 0
B27: Herbicide
C28: Trifluralin | D28: 2 | F28: Pint | G28: 2.75 | I28: 5.5 | J28: 0 | K28: 0 | M28: 0 | N28: 0 | O28: 5.5 | P28: 0 | Q28: 671 | R28: 0
C29: Glyphosate | D29: 2 | F29: Pint | G29: 2.125 | I29: 4.25 | J29: 0 | K29: 0 | M29: 0 | N29: 0 | O29: 4.25 | P29: 0 | Q29: 518.5 | R29: 0
B30: Other Labor
C31: Hand Labor | D31: 0.7764 | F31: Hour | G31: 8.5 | I31: 6.5994 | J31: 0 | K31: 0 | M31: 0 | N31: 0 | O31: 6.5994 | P31: 0 | Q31: 805.1268 | R31: 0
B32: Other Chemicals
C33: Prep | D33: 16 | F33: Ounce | G33: 0.16 | I33: 2.56 | J33: 0 | K33: 0 | M33: 0 | N33: 0 | O33: 2.56 | P33: 0 | Q33: 312.32 | R33: 0
C34: Def 6 (Tribufos) | D34: 1 | F34: Pint | G34: 8.75 | I34: 8.75 | J34: 0 | K34: 0 | M34: 0 | N34: 0 | O34: 8.75 | P34: 0 | Q34: 1067.5 | R34: 0
C35: Gramoxone Inteon (2 lb paraquat) | D35: 20 | F35: Ounce | G35: 0.15625 | I35: 3.125 | J35: 0 | K35: 0 | M35: 0 | N35: 0 | O35: 3.125 | P35: 0 | Q35: 381.25 | R35: 0
C36: Aim | D36: 0.25 | F36: Ounce | G36: 4.84 | I36: 1.21 | J36: 0 | K36: 0 | M36: 0 | N36: 0 | O36: 1.21 | P36: 0 | Q36: 147.62 | R36: 0
D37: 0 | G37: 0 | I37: 0 | J37: 0 | K37: 0 | M37: 0 | N37: 0 | O37: 0 | P37: 0 | Q37: 0 | R37: 0
D38: 0 | G38: 0 | I38: 0 | J38: 0 | K38: 0 | M38: 0 | N38: 0 | O38: 0 | P38: 0 | Q38: 0 | R38: 0
D39: 0 | G39: 0 | I39: 0 | J39: =E39*H39 -> 0 | K39: 0 | M39: 0 | N39: =J39*L39 -> 0 | O39: 0 | P39: =+J39-N39 -> 0 | Q39: 0 | R39: =+J39*E$7 -> 0
B40: Irrigation
C41: Water Cost | D41: 24 | F41: AcreInch | G41: 1.75 | I41: 42 | J41: =E41*H41 -> 0 | K41: 0 | M41: 0 | N41: =J41*L41 -> 0 | O41: 42 | P41: =+J41-N41 -> 0 | Q41: 5124 | R41: =+J41*E$7 -> 0
B42: Machinery Labor
C43: Tractors/Self-Propelled | D43: 2.38 | F43: Hour | G43: 17.21 | I43: 40.9598 | J43: =E43*H43 -> 0 | K43: 0 | M43: 0 | N43: =J43*L43 -> 0 | O43: 40.9598 | P43: =+J43-N43 -> 0 | Q43: 4997.0956 | R43: =+J43*E$7 -> 0
C44: Other Labor | D44: 0 | F44: Hour | G44: 17.21 | I44: 0 | J44: =E44*H44 -> 0 | K44: 0 | M44: 0 | N44: =J44*L44 -> 0 | O44: 0 | P44: =+J44-N44 -> 0 | Q44: 0 | R44: =+J44*E$7 -> 0
B46: Diesel Fuel
C47: Pickup/General Use Equipment | D47: 1 | F47: Acre | G47: 0 | I47: 0 | J47: =E47*H47 -> 0 | K47: 0 | M47: 0 | N47: =J47*L47 -> 0 | O47: 0 | P47: =+J47-N47 -> 0 | Q47: 0 | R47: =+J47*E$7 -> 0
C48: Tractors/Self-Propelled | D48: 15.27 | F48: Gallon | G48: 3.16 | I48: 48.2532 | J48: =E48*H48 -> 0 | K48: 0 | M48: 0 | N48: =J48*L48 -> 0 | O48: 48.2532 | P48: =+J48-N48 -> 0 | Q48: 5886.8904 | R48: =+J48*E$7 -> 0
B50: Gasoline
C51: Pickup/General Use Equipment | D51: 1 | F51: Acre | G51: 9.424032787 | I51: 9.424032787 | J51: =E51*H51 -> 0 | K51: 0 | M51: 0 | N51: =J51*L51 -> 0 | O51: 9.424032787 | P51: =+J51-N51 -> 0 | Q51: 1149.732 | R51: =+J51*E$7 -> 0
C52: Tractors/Self-Propelled | D52: 0 | F52: Gallon | G52: 2.93 | I52: 0 | J52: =E52*H52 -> 0 | K52: 0 | M52: 0 | N52: =J52*L52 -> 0 | O52: 0 | P52: =+J52-N52 -> 0 | Q52: 0 | R52: =+J52*E$7 -> 0
B54: Repairs & Maintenance
C55: Pickup/General Use Equipment | D55: 1 | F55: Acre | G55: 1.608196721 | I55: 1.608196721 | J55: =E55*H55 -> 0 | K55: 0 | M55: 0 | N55: =J55*L55 -> 0 | O55: 1.608196721 | P55: =+J55-N55 -> 0 | Q55: 196.2 | R55: =+J55*E$7 -> 0
C56: Irrigation Equipment | D56: 1 | F56: Acre | G56: 0 | I56: 0 | J56: 0 | K56: 0 | M56: 0 | N56: 0 | O56: 0 | P56: 0 | Q56: 0 | R56: 0
C57: Tractors/Self-Propelled | D57: 1 | F57: Acre | G57: 31.99601266 | I57: 31.99601266 | J57: 0 | K57: 0 | M57: 0 | N57: 0 | O57: 31.99601266 | P57: 0 | Q57: 3903.513545 | R57: 0
C58: Implements | D58: 1 | F58: Acre | G58: 21.90283364 | I58: 21.90283364 | J58: 0 | K58: 0 | M58: 0 | N58: 0 | O58: 21.90283364 | P58: 0 | Q58: 2672.145703 | R58: 0
I59: 0 | J59: 0 | K59: 0 | M59: 0 | N59: 0 | O59: 0 | P59: 0 | Q59: 0 | R59: 0
I60: 0 | J60: 0 | K60: 0 | M60: 0 | N60: 0 | O60: 0 | P60: 0 | Q60: 0 | R60: 0
B61: Interest on Credit Line | G61: 0.08 | I61: 15.1771804 | J61: =+SUM(J18:J60)/2*H61 -> 0 | M61: 0 | N61: =+SUM(N18:N60)/2*L61 -> 0 | O61: 15.1771804 | P61: =+SUM(P18:P60)/2*L61 -> 0 | Q61: 1851.616009 | R61: =+J61*E$7 -> 0
A62: Total Variable Costs | I62: 640.2576122 | J62: =SUM(J19:J61) -> 0 | M62: 0 | N62: =SUM(N19:N61) -> 0 | O62: 640.2576122 | P62: =SUM(P19:P61) -> 0 | Q62: 78111.42869 | R62: =SUM(R19:R61) -> 0
A63: Planned Returns Above Variable Costs: | I63: 539.9323878 | J63: =+J14-J62 -> 0 | M63: 0 | N63: =+N14-N62 -> 0 | O63: 539.9323878 | P63: =+P14-P62 -> 0 | Q63: 65871.75131 | R63: =+R14-R62 -> 0
B64: Breakeven Price to Cover Variable Costs | G64: 0.2828111706 | H64: =IF(E10=0,"n/a",(YVarExp-(YTotExp+YTotRet-J10))/E10) -> n/a | I64: Pound
Q65: Enterprise | R65: Enterprise
A66: FIXED COSTS | D66: Quantity | E66: Quantity | F66: Units | G66: $/Unit | H66: $/Unit | I66: Total | J66: Total | K66: Share | L66: Share | M66: Landlord | N66: Landlord | O66: Tenant | P66: Tenant | Q66: Total | R66: Total
B67: Machinery Depreciation
C68: Pickup/General Use Equipment | D68: 1 | F68: Acre | G68: 6.030737705 | I68: 6.030737705 | J68: =E68*H68 -> 0 | K68: 0 | M68: 0 | N68: =J68*L68 -> 0 | O68: 6.030737705 | P68: =+J68-N68 -> 0 | Q68: 735.75 | R68: =+J68*E$7 -> 0
C69: Tractors/Self-Propelled | D69: 1 | F69: Acre | G69: 35.74299505 | I69: 35.74299505 | J69: 0 | K69: 0 | M69: 0 | N69: =J69*L69 -> 0 | O69: 35.74299505 | P69: 0 | Q69: 4360.645396 | R69: 0
C70: Implements | D70: 1 | F70: Acre | G70: 27.80063934 | I70: 27.80063934 | J70: 0 | K70: 0 | M70: 0 | N70: =J70*L70 -> 0 | O70: 27.80063934 | P70: 0 | Q70: 3391.678 | R70: 0
B71: Equipment Investment
C72: Pickup/General Use Equipment | D72: 25.12807377 | F72: Dollars | G72: 0.08 | I72: 2.010245902 | J72: =E72*H72 -> 0 | K72: 0 | M72: 0 | N72: =J72*L72 -> 0 | O72: 2.010245902 | P72: =+J72-N72 -> 0 | Q72: 245.25 | R72: =+J72*E$7 -> 0
C73: Tractors/Self-Propelled | D73: 311.9825431 | F73: Dollars | G73: 0.08 | I73: 24.95860345 | J73: 0 | K73: 0 | M73: 0 | N73: =J73*L73 -> 0 | O73: 24.95860345 | P73: 0 | Q73: 3044.949621 | R73: 0
C74: Implements | D74: 182.5300483 | F74: Dollars | G74: 0.08 | I74: 14.60240387 | J74: 0 | K74: 0 | M74: 0 | N74: =J74*L74 -> 0 | O74: 14.60240387 | P74: 0 | Q74: 1781.493272 | R74: 0
B75: Salaried Labor | D75: 1 | F75: Acre | G75: 0 | I75: 0 | J75: 0 | K75: 0 | M75: 0 | N75: =J75*L75 -> 0 | O75: 0 | P75: =+J75-N75 -> 0 | Q75: 0 | R75: =+J75*E$7 -> 0
B76: Management Fee, Owner/Operator Labor | D76: 1 | F76: Acre | G76: 0 | I76: 0 | J76: 0 | K76: 0 | M76: 0 | N76: 0 | O76: 0 | P76: 0 | Q76: 0 | R76: 0
B77: Allocated Establishment Cost | D77: 1 | F77: Acre | G77: 0 | I77: 0 | J77: 0 | K77: 0 | M77: 0 | N77: 0 | O77: 0 | P77: 0 | Q77: 0 | R77: 0
B78: Trans Pecos Irrigated Land | D78: 1 | F78: Acre | G78: 50 | I78: 50 | J78: 0 | K78: 0 | M78: 0 | N78: 0 | O78: 50 | P78: 0 | Q78: 6100 | R78: 0
B79: Property Taxes | D79: 1 | F79: Acre | G79: 0 | I79: 0 | J79: 0 | K79: 0 | M79: 0 | N79: 0 | O79: 0 | P79: 0 | Q79: 0 | R79: 0
B80: Whole Farm Insurance | D80: 1 | F80: Acre | G80: 0 | I80: 0 | J80: 0 | K80: 0 | M80: 0 | N80: 0 | O80: 0 | P80: 0 | Q80: 0 | R80: 0
D81: 1 | G81: 0 | I81: 0 | J81: 0 | K81: 0 | M81: 0 | N81: 0 | O81: 0 | P81: 0 | Q81: 0 | R81: 0
D82: 1 | G82: 0 | I82: 0 | J82: =E82*H82 -> 0 | K82: 0 | M82: 0 | N82: 0 | O82: 0 | P82: 0 | Q82: 0 | R82: 0
A83: Total Fixed Costs | I83: 161.1456253 | J83: =+SUM(J68:J82) -> 0 | M83: 0 | N83: =+SUM(N68:N82) -> 0 | O83: 161.1456253 | P83: =+SUM(P68:P82) -> 0 | Q83: 19659.76629 | R83: =+SUM(R68:R82) -> 0
A84: Total Specified Costs | I84: 801.4032375 | J84: =+J62+J83 -> 0 | M84: 0 | N84: =+N62+N83 -> 0 | O84: 801.4032375 | P84: =+P62+P83 -> 0 | Q84: 97771.19498 | R84: =+R62+R83 -> 0
A86: Returns Above Specified Costs | I86: 378.7867625 | J86: =+J14-J84 -> 0 | M86: 0 | N86: =+N14-N84 -> 0 | O86: 378.7867625 | P86: =+P14-P84 -> 0 | Q86: 46211.98502 | R86: =+R14-R84 -> 0
A88: Breakeven Price to Cover Total Costs | G88: 0.4043387915 | H88: =IF(E10=0,"n/a",(YTotExp-(YTotExp+YTotRet-J10))/E10) -> n/a | I88: Pound
D90: Example Breakeven Prices
B91: Example | C91: Example | D91: To Cover | G91: To Cover
B92: Yield | C92: Yield | D92: Variable | G92: Total
B93: Percent | C93: Pound | D93: Costs | G93: Costs
B94: 0.75 | C94: 994.5 | D94: 0.3770815608 | G94: 0.5391183887
B95: 0.9 | C95: 1193.4 | D95: 0.314234634 | G95: 0.4492653239
B96: 1 | C96: 1326 | D96: 0.2828111706 | G96: 0.4043387915
B97: 1.1 | C97: 1458.6 | D97: 0.2571010642 | G97: 0.3675807195
B98: 1.25 | C98: 1657.5 | D98: 0.2262489365 | G98: 0.3234710332
A100: Developed by Extension Agricultural Economists, Texas A&M AgriLife Extension, budgets@tamu.edu.
A102: Information presented is prepared solely as a general guide and not intended to recognize or predict the costs and returns from any one operation. Brand names are mentioned only as examples and imply no endorsement.

Sheet WheatDryland
A1: Projections for Planning Purposes Only -- Not to be Used without Updating
A2: 2026 Estimated Costs and Returns per Acre
A3: Wheat, Dryland
A4: Enter your name for this budget in the cell above.
A5: Enter Your Values in the cells highlighed in MAROON.
E6: Your Acres | R6: Your
C7: Crop Acres | D7: 122 | L7: Your | Q7: Enterprise | R7: Enterprise
E8: Your | H8: Your | I8: Cash | J8: Your | K8: Landlord | L8: Landlord | N8: Your | P8: Your | Q8: Total | R8: Total
A9: REVENUE | D9: Quantity | E9: Quantity | F9: Units | G9: $/Unit | H9: $/Unit | I9: Total | J9: Total | K9: Share | L9: Share | M9: Landlord | N9: Landlord | O9: Tenant | P9: Tenant | Q9: (122 acres) | R9: ="(" & E7 & " acres)" -> ( acres)
B10: Wheat | D10: 22 | F10: Bushel | G10: 5 | I10: 110 | J10: =E10*H10 -> 0 | K10: 0 | M10: 0 | N10: =J10*L10 -> 0 | O10: 110 | P10: =+J10-N10 -> 0 | Q10: 13420 | R10: =+J10*E$7 -> 0
D11: 0 | G11: 0 | I11: 0 | J11: 0 | K11: 0 | M11: 0 | N11: 0 | O11: 0 | P11: =+J11-N11 -> 0 | Q11: 0 | R11: 0
D12: 0 | G12: 0 | I12: 0 | J12: 0 | K12: 0 | M12: 0 | N12: 0 | O12: 0 | P12: 0 | Q12: 0 | R12: 0
A13: Total Revenue | I13: 110 | J13: =SUM(J10:J12) -> 0 | M13: 0 | N13: =SUM(N10:N12) -> 0 | O13: 110 | P13: =SUM(P10:P12) -> 0 | Q13: 13420 | R13: =SUM(R10:R12) -> 0
Q14: Enterprise | R14: Enterprise
A15: VARIABLE COSTS | D15: Quantity | E15: Quantity | F15: Units | G15: $/Unit | H15: $/Unit | I15: Total | J15: Total | K15: Share | L15: Share | M15: Landlord | N15: Landlord | O15: Tenant | P15: Tenant | Q15: Total | R15: Total
A16: Production Costs
B17: Fertilizer
C18: Nitrogen - Dry (Urea 45-0-0) | D18: 9 | F18: Pound | G18: 0.56 | I18: 5.04 | J18: =E18*H18 -> 0 | K18: 0 | M18: 0 | N18: =J18*L18 -> 0 | O18: 5.04 | P18: =+J18-N18 -> 0 | Q18: 614.88 | R18: =+J18*E$7 -> 0
C19: 0-60-0 | D19: 18 | F19: Pound | G19: 1.29 | I19: 23.22 | J19: 0 | K19: 0 | M19: 0 | N19: 0 | O19: 23.22 | P19: 0 | Q19: 2832.84 | R19: 0
C20: N-32 | D20: 17 | F20: Pound | G20: 0.53 | I20: 9.01 | J20: 0 | K20: 0 | M20: 0 | N20: 0 | O20: 9.01 | P20: 0 | Q20: 1099.22 | R20: 0
B21: Custom
C22: Soil Test-Dryland | D22: 1 | F22: Acre | G22: 0.25 | I22: 0.25 | J22: 0 | K22: 0 | M22: 0 | N22: 0 | O22: 0.25 | P22: 0 | Q22: 30.5 | R22: 0
C23: Haul Wheat | D23: 22 | F23: Bushel | G23: 0.25 | I23: 5.5 | J23: 0 | K23: 0 | M23: 0 | N23: 0 | O23: 5.5 | P23: 0 | Q23: 671 | R23: 0
B24: Insecticide
C25: Pilot (Lorsban 4E) | D25: 1 | F25: Pint | G25: 3.6875 | I25: 3.6875 | J25: 0 | K25: 0 | M25: 0 | N25: 0 | O25: 3.6875 | P25: 0 | Q25: 449.875 | R25: 0
B26: Seed
C27: Wheat Seed | D27: 50 | F27: Pound | G27: 0.27 | I27: 13.5 | J27: 0 | K27: 0 | M27: 0 | N27: 0 | O27: 13.5 | P27: 0 | Q27: 1647 | R27: 0
B28: Herbicide
C29: MCPA | D29: 1 | F29: Pint | G29: 3.06 | I29: 3.06 | J29: 0 | K29: 0 | M29: 0 | N29: 0 | O29: 3.06 | P29: 0 | Q29: 373.32 | R29: 0
C30: MSM (Ally) | D30: 0.14 | F30: Ounce | G30: 4.5 | I30: 0.63 | J30: 0 | K30: 0 | M30: 0 | N30: 0 | O30: 0.63 | P30: 0 | Q30: 76.86 | R30: 0
B31: Miscellaneous
C32: NI Wheat RP 65% ent, Glasscock co | D32: 1 | F32: Acre | G32: 4.53 | I32: 4.53 | J32: 0 | K32: 0 | M32: 0 | N32: 0 | O32: 4.53 | P32: 0 | Q32: 552.66 | R32: 0
B33: Fungicides
C34: Wheat Fungicide | D34: 8 | F34: Ounce | G34: 0.48 | I34: 3.84 | J34: 0 | K34: 0 | M34: 0 | N34: 0 | O34: 3.84 | P34: 0 | Q34: 468.48 | R34: 0
D35: 0 | G35: 0 | I35: 0 | J35: 0 | K35: 0 | M35: 0 | N35: 0 | O35: 0 | P35: 0 | Q35: 0 | R35: 0
D36: 0 | G36: 0 | I36: 0 | J36: 0 | K36: 0 | M36: 0 | N36: 0 | O36: 0 | P36: 0 | Q36: 0 | R36: 0
D37: 0 | G37: 0 | I37: 0 | J37: =E37*H37 -> 0 | K37: 0 | M37: 0 | N37: =J37*L37 -> 0 | O37: 0 | P37: =+J37-N37 -> 0 | Q37: 0 | R37: =+J37*E$7 -> 0
B38: Machinery Labor
C39: Tractors/Self-Propelled | D39: 0.64 | F39: Hour | G39: 17.21 | I39: 11.0144 | J39: =E39*H39 -> 0 | K39: 0 | M39: 0 | N39: =J39*L39 -> 0 | O39: 11.0144 | P39: =+J39-N39 -> 0 | Q39: 1343.7568 | R39: =+J39*E$7 -> 0
C40: Other Labor | D40: 0.2 | F40: Hour | G40: 17.21 | I40: 3.442 | J40: =E40*H40 -> 0 | K40: 0 | M40: 0 | N40: =J40*L40 -> 0 | O40: 3.442 | P40: =+J40-N40 -> 0 | Q40: 419.924 | R40: =+J40*E$7 -> 0
B42: Diesel Fuel
C43: Pickup/General Use Equipment | D43: 1 | F43: Acre | G43: 0 | I43: 0 | J43: =E43*H43 -> 0 | K43: 0 | M43: 0 | N43: =J43*L43 -> 0 | O43: 0 | P43: =+J43-N43 -> 0 | Q43: 0 | R43: =+J43*E$7 -> 0
C44: Tractors/Self-Propelled | D44: 6.84 | F44: Gallon | G44: 3.16 | I44: 21.6144 | J44: =E44*H44 -> 0 | K44: 0 | M44: 0 | N44: =J44*L44 -> 0 | O44: 21.6144 | P44: =+J44-N44 -> 0 | Q44: 2636.9568 | R44: =+J44*E$7 -> 0
B46: Gasoline
C47: Pickup/General Use Equipment | D47: 1 | F47: Acre | G47: 3.926680328 | I47: 3.926680328 | J47: =E47*H47 -> 0 | K47: 0 | M47: 0 | N47: =J47*L47 -> 0 | O47: 3.926680328 | P47: =+J47-N47 -> 0 | Q47: 479.055 | R47: =+J47*E$7 -> 0
C48: Tractors/Self-Propelled | D48: 0 | F48: Gallon | G48: 2.93 | I48: 0 | J48: =E48*H48 -> 0 | K48: 0 | M48: 0 | N48: =J48*L48 -> 0 | O48: 0 | P48: =+J48-N48 -> 0 | Q48: 0 | R48: =+J48*E$7 -> 0
B50: Repairs & Maintenance
C51: Pickup/General Use Equipment | D51: 1 | F51: Acre | G51: 0.8644057377 | I51: 0.8644057377 | J51: =E51*H51 -> 0 | K51: 0 | M51: 0 | N51: =J51*L51 -> 0 | O51: 0.8644057377 | P51: =+J51-N51 -> 0 | Q51: 105.4575 | R51: =+J51*E$7 -> 0
C52: Irrigation Equipment | D52: 1 | F52: Acre | G52: 0 | I52: 0 | J52: 0 | K52: 0 | M52: 0 | N52: 0 | O52: 0 | P52: 0 | Q52: 0 | R52: 0
C53: Tractors/Self-Propelled | D53: 1 | F53: Acre | G53: 26.34932069 | I53: 26.34932069 | J53: 0 | K53: 0 | M53: 0 | N53: 0 | O53: 26.34932069 | P53: 0 | Q53: 3214.617124 | R53: 0
C54: Implements | D54: 1 | F54: Acre | G54: 15.70827861 | I54: 15.70827861 | J54: 0 | K54: 0 | M54: 0 | N54: 0 | O54: 15.70827861 | P54: 0 | Q54: 1916.40999 | R54: 0
I55: 0 | J55: 0 | K55: 0 | M55: 0 | N55: 0 | O55: 0 | P55: 0 | Q55: 0 | R55: 0
I56: 0 | J56: 0 | K56: 0 | M56: 0 | N56: 0 | O56: 0 | P56: 0 | Q56: 0 | R56: 0
B57: Interest on Credit Line | G57: 0.08 | I57: 7.2143792 | J57: =+SUM(J17:J56)/2*H57 -> 0 | M57: 0 | N57: =+SUM(N17:N56)/2*L57 -> 0 | O57: 7.2143792 | P57: =+SUM(P17:P56)/2*L57 -> 0 | Q57: 880.1542624 | R57: =+J57*E$7 -> 0
A58: Total Variable Costs | I58: 162.4013646 | J58: =SUM(J18:J57) -> 0 | M58: 0 | N58: =SUM(N18:N57) -> 0 | O58: 162.4013646 | P58: =SUM(P18:P57) -> 0 | Q58: 19812.96648 | R58: =SUM(R18:R57) -> 0
A59: Planned Returns Above Variable Costs: | I59: -52.40136456 | J59: =+J13-J58 -> 0 | M59: 0 | N59: =+N13-N58 -> 0 | O59: -52.40136456 | P59: =+P13-P58 -> 0 | Q59: -6392.966477 | R59: =+R13-R58 -> 0
B60: Breakeven Price to Cover Variable Costs | G60: 7.381880207 | H60: =IF(E10=0,"n/a",(YVarExp-(YTotExp+YTotRet-J10))/E10) -> n/a | I60: Bushel
Q61: Enterprise | R61: Enterprise
A62: FIXED COSTS | D62: Quantity | E62: Quantity | F62: Units | G62: $/Unit | H62: $/Unit | I62: Total | J62: Total | K62: Share | L62: Share | M62: Landlord | N62: Landlord | O62: Tenant | P62: Tenant | Q62: Total | R62: Total
B63: Machinery Depreciation
C64: Pickup/General Use Equipment | D64: 1 | F64: Acre | G64: 1.809221311 | I64: 1.809221311 | J64: =E64*H64 -> 0 | K64: 0 | M64: 0 | N64: =J64*L64 -> 0 | O64: 1.809221311 | P64: =+J64-N64 -> 0 | Q64: 220.725 | R64: =+J64*E$7 -> 0
C65: Tractors/Self-Propelled | D65: 1 | F65: Acre | G65: 28.32431812 | I65: 28.32431812 | J65: 0 | K65: 0 | M65: 0 | N65: =J65*L65 -> 0 | O65: 28.32431812 | P65: 0 | Q65: 3455.566811 | R65: 0
C66: Implements | D66: 1 | F66: Acre | G66: 19.35774855 | I66: 19.35774855 | J66: 0 | K66: 0 | M66: 0 | N66: =J66*L66 -> 0 | O66: 19.35774855 | P66: 0 | Q66: 2361.645323 | R66: 0
B67: Equipment Investment
C68: Pickup/General Use Equipment | D68: 11.05635246 | F68: Dollars | G68: 0.08 | I68: 0.8845081967 | J68: =E68*H68 -> 0 | K68: 0 | M68: 0 | N68: =J68*L68 -> 0 | O68: 0.8845081967 | P68: =+J68-N68 -> 0 | Q68: 107.91 | R68: =+J68*E$7 -> 0
C69: Tractors/Self-Propelled | D69: 214.844944 | F69: Dollars | G69: 0.08 | I69: 17.18759552 | J69: 0 | K69: 0 | M69: 0 | N69: =J69*L69 -> 0 | O69: 17.18759552 | P69: 0 | Q69: 2096.886654 | R69: 0
C70: Implements | D70: 91.94266944 | F70: Dollars | G70: 0.08 | I70: 7.355413555 | J70: 0 | K70: 0 | M70: 0 | N70: =J70*L70 -> 0 | O70: 7.355413555 | P70: 0 | Q70: 897.3604538 | R70: 0
B71: Salaried Labor | D71: 1 | F71: Acre | G71: 0 | I71: 0 | J71: 0 | K71: 0 | M71: 0 | N71: =J71*L71 -> 0 | O71: 0 | P71: =+J71-N71 -> 0 | Q71: 0 | R71: =+J71*E$7 -> 0
B72: Management Fee, Owner/Operator Labor | D72: 1 | F72: Acre | G72: 0 | I72: 0 | J72: 0 | K72: 0 | M72: 0 | N72: 0 | O72: 0 | P72: 0 | Q72: 0 | R72: 0
B73: Allocated Establishment Cost | D73: 1 | F73: Acre | G73: 0 | I73: 0 | J73: 0 | K73: 0 | M73: 0 | N73: 0 | O73: 0 | P73: 0 | Q73: 0 | R73: 0
B74: West Texas Dryland | D74: 1 | F74: Acre | G74: 15 | I74: 15 | J74: 0 | K74: 0 | M74: 0 | N74: 0 | O74: 15 | P74: 0 | Q74: 1830 | R74: 0
B75: Property Taxes | D75: 1 | F75: Acre | G75: 0 | I75: 0 | J75: 0 | K75: 0 | M75: 0 | N75: 0 | O75: 0 | P75: 0 | Q75: 0 | R75: 0
B76: Whole Farm Insurance | D76: 1 | F76: Acre | G76: 0 | I76: 0 | J76: 0 | K76: 0 | M76: 0 | N76: 0 | O76: 0 | P76: 0 | Q76: 0 | R76: 0
D77: 1 | G77: 0 | I77: 0 | J77: 0 | K77: 0 | M77: 0 | N77: 0 | O77: 0 | P77: 0 | Q77: 0 | R77: 0
D78: 1 | G78: 0 | I78: 0 | J78: =E78*H78 -> 0 | K78: 0 | M78: 0 | N78: 0 | O78: 0 | P78: 0 | Q78: 0 | R78: 0
A79: Total Fixed Costs | I79: 89.91880526 | J79: =+SUM(J64:J78) -> 0 | M79: 0 | N79: =+SUM(N64:N78) -> 0 | O79: 89.91880526 | P79: =+SUM(P64:P78) -> 0 | Q79: 10970.09424 | R79: =+SUM(R64:R78) -> 0
A80: Total Specified Costs | I80: 252.3201698 | J80: =+J58+J79 -> 0 | M80: 0 | N80: =+N58+N79 -> 0 | O80: 252.3201698 | P80: =+P58+P79 -> 0 | Q80: 30783.06072 | R80: =+R58+R79 -> 0
A82: Returns Above Specified Costs | I82: -142.3201698 | J82: =+J13-J80 -> 0 | M82: 0 | N82: =+N13-N80 -> 0 | O82: -142.3201698 | P82: =+P13-P80 -> 0 | Q82: -17363.06072 | R82: =+R13-R80 -> 0
A84: Breakeven Price to Cover Total Costs | G84: 11.46909863 | H84: =IF(E10=0,"n/a",(YTotExp-(YTotExp+YTotRet-J10))/E10) -> n/a | I84: Bushel
D86: Example Breakeven Prices
B87: Example | C87: Example | D87: To Cover | G87: To Cover
B88: Yield | C88: Yield | D88: Variable | G88: Total
B89: Percent | C89: Bushel | D89: Costs | G89: Costs
B90: 0.75 | C90: 16.5 | D90: 9.842506943 | G90: 15.2921315
B91: 0.9 | C91: 19.8 | D91: 8.202089119 | G91: 12.74344292
B92: 1 | C92: 22 | D92: 7.381880207 | G92: 11.46909863
B93: 1.1 | C93: 24.2 | D93: 6.710800189 | G93: 10.4264533
B94: 1.25 | C94: 27.5 | D94: 5.905504166 | G94: 9.175278903
A96: Developed by Extension Agricultural Economists, Texas A&M AgriLife Extension, budgets@tamu.edu.
A98: Information presented is prepared solely as a general guide and not intended to recognize or predict the costs and returns from any one operation. Brand names are mentioned only as examples and imply no endorsement.

Sheet WheatIrrigated
A1: Projections for Planning Purposes Only -- Not to be Used without Updating
A2: 2026 Estimated Costs and Returns per Acre
A3: Wheat, Center Pivot Irrigated, Trans Pecos
A4: Enter your name for this budget in the cell above.
A5: Enter Your Values in the cells highlighed in MAROON.
E6: Your Acres | R6: Your
C7: Crop Acres | D7: 122 | L7: Your | Q7: Enterprise | R7: Enterprise
E8: Your | H8: Your | I8: Cash | J8: Your | K8: Landlord | L8: Landlord | N8: Your | P8: Your | Q8: Total | R8: Total
A9: REVENUE | D9: Quantity | E9: Quantity | F9: Units | G9: $/Unit | H9: $/Unit | I9: Total | J9: Total | K9: Share | L9: Share | M9: Landlord | N9: Landlord | O9: Tenant | P9: Tenant | Q9: (122 acres) | R9: ="(" & E7 & " acres)" -> ( acres)
B10: Wheat | D10: 50 | F10: Bushel | G10: 5 | I10: 250 | J10: =E10*H10 -> 0 | K10: 0 | M10: 0 | N10: =J10*L10 -> 0 | O10: 250 | P10: =+J10-N10 -> 0 | Q10: 30500 | R10: =+J10*E$7 -> 0
D11: 0 | G11: 0 | I11: 0 | J11: 0 | K11: 0 | M11: 0 | N11: 0 | O11: 0 | P11: =+J11-N11 -> 0 | Q11: 0 | R11: 0
D12: 0 | G12: 0 | I12: 0 | J12: 0 | K12: 0 | M12: 0 | N12: 0 | O12: 0 | P12: 0 | Q12: 0 | R12: 0
A13: Total Revenue | I13: 250 | J13: =SUM(J10:J12) -> 0 | M13: 0 | N13: =SUM(N10:N12) -> 0 | O13: 250 | P13: =SUM(P10:P12) -> 0 | Q13: 30500 | R13: =SUM(R10:R12) -> 0
Q14: Enterprise | R14: Enterprise
A15: VARIABLE COSTS | D15: Quantity | E15: Quantity | F15: Units | G15: $/Unit | H15: $/Unit | I15: Total | J15: Total | K15: Share | L15: Share | M15: Landlord | N15: Landlord | O15: Tenant | P15: Tenant | Q15: Total | R15: Total
A16: Production Costs
B17: Fertilizer
C18: Nitrogen - Dry (Urea 45-0-0) | D18: 80 | F18: Pound | G18: 0.56 | I18: 44.8 | J18: =E18*H18 -> 0 | K18: 0 | M18: 0 | N18: =J18*L18 -> 0 | O18: 44.8 | P18: =+J18-N18 -> 0 | Q18: 5465.6 | R18: =+J18*E$7 -> 0
B19: Custom
C20: Soil Test-Irrigated | D20: 1 | F20: Acre | G20: 0.5 | I20: 0.5 | J20: 0 | K20: 0 | M20: 0 | N20: 0 | O20: 0.5 | P20: 0 | Q20: 61 | R20: 0
C21: Haul Wheat | D21: 50 | F21: Bushel | G21: 0.25 | I21: 12.5 | J21: 0 | K21: 0 | M21: 0 | N21: 0 | O21: 12.5 | P21: 0 | Q21: 1525 | R21: 0
B22: Seed
C23: Wheat Seed | D23: 75 | F23: Pound | G23: 0.27 | I23: 20.25 | J23: 0 | K23: 0 | M23: 0 | N23: 0 | O23: 20.25 | P23: 0 | Q23: 2470.5 | R23: 0
B24: Miscellaneous
C25: IRR Wheat RP, 65%, Ent, Pecos Co. | D25: 1 | F25: Acre | G25: 4.61 | I25: 4.61 | J25: 0 | K25: 0 | M25: 0 | N25: 0 | O25: 4.61 | P25: 0 | Q25: 562.42 | R25: 0
B26: Insecticide
C27: Lannate LV | D27: 1 | F27: Pint | G27: 10.375 | I27: 10.375 | J27: 0 | K27: 0 | M27: 0 | N27: 0 | O27: 10.375 | P27: 0 | Q27: 1265.75 | R27: 0
B28: Fungicides
C29: Wheat Fungicide | D29: 4 | F29: Ounce | G29: 0.48 | I29: 1.92 | J29: 0 | K29: 0 | M29: 0 | N29: 0 | O29: 1.92 | P29: 0 | Q29: 234.24 | R29: 0
D30: 0 | G30: 0 | I30: 0 | J30: 0 | K30: 0 | M30: 0 | N30: 0 | O30: 0 | P30: 0 | Q30: 0 | R30: 0
D31: 0 | G31: 0 | I31: 0 | J31: 0 | K31: 0 | M31: 0 | N31: 0 | O31: 0 | P31: 0 | Q31: 0 | R31: 0
D32: 0 | G32: 0 | I32: 0 | J32: =E32*H32 -> 0 | K32: 0 | M32: 0 | N32: =J32*L32 -> 0 | O32: 0 | P32: =+J32-N32 -> 0 | Q32: 0 | R32: =+J32*E$7 -> 0
B33: Irrigation
C34: Energy Cost | D34: 16 | F34: AcreInch | G34: 5.20500362 | I34: 83.28005792 | J34: =E34*H34 -> 0 | K34: 0 | M34: 0 | N34: =J34*L34 -> 0 | O34: 83.28005792 | P34: =+J34-N34 -> 0 | Q34: 10160.16707 | R34: =+J34*E$7 -> 0
C35: Irrigation Labor | D35: 0.0462 | F35: Hour | G35: 17.5 | I35: 0.8085 | J35: 0 | K35: 0 | M35: 0 | N35: 0 | O35: 0.8085 | P35: 0 | Q35: 98.637 | R35: 0
B36: Machinery Labor
C37: Tractors/Self-Propelled | D37: 0.65 | F37: Hour | G37: 17.21 | I37: 11.1865 | J37: =E37*H37 -> 0 | K37: 0 | M37: 0 | N37: =J37*L37 -> 0 | O37: 11.1865 | P37: =+J37-N37 -> 0 | Q37: 1364.753 | R37: =+J37*E$7 -> 0
C38: Other Labor | D38: 0.26 | F38: Hour | G38: 17.21 | I38: 4.4746 | J38: =E38*H38 -> 0 | K38: 0 | M38: 0 | N38: =J38*L38 -> 0 | O38: 4.4746 | P38: =+J38-N38 -> 0 | Q38: 545.9012 | R38: =+J38*E$7 -> 0
B40: Diesel Fuel
C41: Pickup/General Use Equipment | D41: 1 | F41: Acre | G41: 0 | I41: 0 | J41: =E41*H41 -> 0 | K41: 0 | M41: 0 | N41: =J41*L41 -> 0 | O41: 0 | P41: =+J41-N41 -> 0 | Q41: 0 | R41: =+J41*E$7 -> 0
C42: Tractors/Self-Propelled | D42: 6.63 | F42: Gallon | G42: 3.16 | I42: 20.9508 | J42: =E42*H42 -> 0 | K42: 0 | M42: 0 | N42: =J42*L42 -> 0 | O42: 20.9508 | P42: =+J42-N42 -> 0 | Q42: 2555.9976 | R42: =+J42*E$7 -> 0
B44: Gasoline
C45: Pickup/General Use Equipment | D45: 1 | F45: Acre | G45: 3.926680328 | I45: 3.926680328 | J45: =E45*H45 -> 0 | K45: 0 | M45: 0 | N45: =J45*L45 -> 0 | O45: 3.926680328 | P45: =+J45-N45 -> 0 | Q45: 479.055 | R45: =+J45*E$7 -> 0
C46: Tractors/Self-Propelled | D46: 0 | F46: Gallon | G46: 2.93 | I46: 0 | J46: =E46*H46 -> 0 | K46: 0 | M46: 0 | N46: =J46*L46 -> 0 | O46: 0 | P46: =+J46-N46 -> 0 | Q46: 0 | R46: =+J46*E$7 -> 0
B48: Repairs & Maintenance
C49: Pickup/General Use Equipment | D49: 1 | F49: Acre | G49: 0.8644057377 | I49: 0.8644057377 | J49: =E49*H49 -> 0 | K49: 0 | M49: 0 | N49: =J49*L49 -> 0 | O49: 0.8644057377 | P49: =+J49-N49 -> 0 | Q49: 105.4575 | R49: =+J49*E$7 -> 0
C50: Irrigation Equipment | D50: 1 | F50: Acre | G50: 42.3392 | I50: 42.3392 | J50: 0 | K50: 0 | M50: 0 | N50: 0 | O50: 42.3392 | P50: 0 | Q50: 5165.3824 | R50: 0
C51: Tractors/Self-Propelled | D51: 1 | F51: Acre | G51: 26.74645921 | I51: 26.74645921 | J51: 0 | K51: 0 | M51: 0 | N51: 0 | O51: 26.74645921 | P51: 0 | Q51: 3263.068023 | R51: 0
C52: Implements | D52: 1 | F52: Acre | G52: 15.84248794 | I52: 15.84248794 | J52: 0 | K52: 0 | M52: 0 | N52: 0 | O52: 15.84248794 | P52: 0 | Q52: 1932.783529 | R52: 0
I53: 0 | J53: 0 | K53: 0 | M53: 0 | N53: 0 | O53: 0 | P53: 0 | Q53: 0 | R53: 0
I54: 0 | J54: 0 | K54: 0 | M54: 0 | N54: 0 | O54: 0 | P54: 0 | Q54: 0 | R54: 0
B55: Interest on Credit Line | G55: 0.08 | I55: 13.58562955 | J55: =+SUM(J17:J54)/2*H55 -> 0 | M55: 0 | N55: =+SUM(N17:N54)/2*L55 -> 0 | O55: 13.58562955 | P55: =+SUM(P17:P54)/2*L55 -> 0 | Q55: 1657.446805 | R55: =+J55*E$7 -> 0
A56: Total Variable Costs | I56: 318.9603207 | J56: =SUM(J18:J55) -> 0 | M56: 0 | N56: =SUM(N18:N55) -> 0 | O56: 318.9603207 | P56: =SUM(P18:P55) -> 0 | Q56: 38913.15912 | R56: =SUM(R18:R55) -> 0
A57: Planned Returns Above Variable Costs: | I57: -68.96032068 | J57: =+J13-J56 -> 0 | M57: 0 | N57: =+N13-N56 -> 0 | O57: -68.96032068 | P57: =+P13-P56 -> 0 | Q57: -8413.159122 | R57: =+R13-R56 -> 0
B58: Breakeven Price to Cover Variable Costs | G58: 6.379206414 | H58: =IF(E10=0,"n/a",(YVarExp-(YTotExp+YTotRet-J10))/E10) -> n/a | I58: Bushel
Q59: Enterprise | R59: Enterprise
A60: FIXED COSTS | D60: Quantity | E60: Quantity | F60: Units | G60: $/Unit | H60: $/Unit | I60: Total | J60: Total | K60: Share | L60: Share | M60: Landlord | N60: Landlord | O60: Tenant | P60: Tenant | Q60: Total | R60: Total
B61: Machinery Depreciation
C62: Pickup/General Use Equipment | D62: 1 | F62: Acre | G62: 1.809221311 | I62: 1.809221311 | J62: =E62*H62 -> 0 | K62: 0 | M62: 0 | N62: =J62*L62 -> 0 | O62: 1.809221311 | P62: =+J62-N62 -> 0 | Q62: 220.725 | R62: =+J62*E$7 -> 0
C63: Irrigation Equipment | D63: 1 | F63: Acre | G63: 44.89555261 | I63: 44.89555261 | J63: 0 | K63: 0 | M63: 0 | N63: =J63*L63 -> 0 | O63: 44.89555261 | P63: 0 | Q63: 5477.257418 | R63: 0
C64: Tractors/Self-Propelled | D64: 1 | F64: Acre | G64: 25.47758348 | I64: 25.47758348 | J64: 0 | K64: 0 | M64: 0 | N64: =J64*L64 -> 0 | O64: 25.47758348 | P64: 0 | Q64: 3108.265185 | R64: 0
C65: Implements | D65: 1 | F65: Acre | G65: 19.47853695 | I65: 19.47853695 | J65: 0 | K65: 0 | M65: 0 | N65: =J65*L65 -> 0 | O65: 19.47853695 | P65: 0 | Q65: 2376.381508 | R65: 0
B66: Equipment Investment
C67: Pickup/General Use Equipment | D67: 11.05635246 | F67: Dollars | G67: 0.08 | I67: 0.8845081967 | J67: =E67*H67 -> 0 | K67: 0 | M67: 0 | N67: =J67*L67 -> 0 | O67: 0.8845081967 | P67: =+J67-N67 -> 0 | Q67: 107.91 | R67: =+J67*E$7 -> 0
C68: Irrigation Equipment | D68: 336.7166445 | F68: Dollars | G68: 0.08 | I68: 26.93733156 | J68: 0 | K68: 0 | M68: 0 | N68: =J68*L68 -> 0 | O68: 26.93733156 | P68: 0 | Q68: 3286.354451 | R68: 0
C69: Tractors/Self-Propelled | D69: 194.1813291 | F69: Dollars | G69: 0.08 | I69: 15.53450633 | J69: 0 | K69: 0 | M69: 0 | N69: =J69*L69 -> 0 | O69: 15.53450633 | P69: 0 | Q69: 1895.209772 | R69: 0
C70: Implements | D70: 92.45937537 | F70: Dollars | G70: 0.08 | I70: 7.39675003 | J70: 0 | K70: 0 | M70: 0 | N70: =J70*L70 -> 0 | O70: 7.39675003 | P70: 0 | Q70: 902.4035036 | R70: 0
B71: Salaried Labor | D71: 1 | F71: Acre | G71: 0 | I71: 0 | J71: 0 | K71: 0 | M71: 0 | N71: =J71*L71 -> 0 | O71: 0 | P71: =+J71-N71 -> 0 | Q71: 0 | R71: =+J71*E$7 -> 0
B72: Management Fee, Owner/Operator Labor | D72: 1 | F72: Acre | G72: 0 | I72: 0 | J72: 0 | K72: 0 | M72: 0 | N72: 0 | O72: 0 | P72: 0 | Q72: 0 | R72: 0
B73: Allocated Establishment Cost | D73: 1 | F73: Acre | G73: 0 | I73: 0 | J73: 0 | K73: 0 | M73: 0 | N73: 0 | O73: 0 | P73: 0 | Q73: 0 | R73: 0
B74: Trans Pecos Irrigated Land | D74: 1 | F74: Acre | G74: 50 | I74: 50 | J74: 0 | K74: 0 | M74: 0 | N74: 0 | O74: 50 | P74: 0 | Q74: 6100 | R74: 0
B75: Property Taxes | D75: 1 | F75: Acre | G75: 0 | I75: 0 | J75: 0 | K75: 0 | M75: 0 | N75: 0 | O75: 0 | P75: 0 | Q75: 0 | R75: 0
B76: Whole Farm Insurance | D76: 1 | F76: Acre | G76: 0 | I76: 0 | J76: 0 | K76: 0 | M76: 0 | N76: 0 | O76: 0 | P76: 0 | Q76: 0 | R76: 0
D77: 1 | G77: 0 | I77: 0 | J77: 0 | K77: 0 | M77: 0 | N77: 0 | O77: 0 | P77: 0 | Q77: 0 | R77: 0
D78: 1 | G78: 0 | I78: 0 | J78: =E78*H78 -> 0 | K78: 0 | M78: 0 | N78: 0 | O78: 0 | P78: 0 | Q78: 0 | R78: 0
A79: Total Fixed Costs | I79: 192.4139905 | J79: =+SUM(J62:J78) -> 0 | M79: 0 | N79: =+SUM(N62:N78) -> 0 | O79: 192.4139905 | P79: =+SUM(P62:P78) -> 0 | Q79: 23474.50684 | R79: =+SUM(R62:R78) -> 0
A80: Total Specified Costs | I80: 511.3743111 | J80: =+J56+J79 -> 0 | M80: 0 | N80: =+N56+N79 -> 0 | O80: 511.3743111 | P80: =+P56+P79 -> 0 | Q80: 62387.66596 | R80: =+R56+R79 -> 0
A82: Returns Above Specified Costs | I82: -261.3743111 | J82: =+J13-J80 -> 0 | M82: 0 | N82: =+N13-N80 -> 0 | O82: -261.3743111 | P82: =+P13-P80 -> 0 | Q82: -31887.66596 | R82: =+R13-R80 -> 0
A84: Breakeven Price to Cover Total Costs | G84: 10.22748622 | H84: =IF(E10=0,"n/a",(YTotExp-(YTotExp+YTotRet-J10))/E10) -> n/a | I84: Bushel
D86: Example Breakeven Prices
B87: Example | C87: Example | D87: To Cover | G87: To Cover
B88: Yield | C88: Yield | D88: Variable | G88: Total
B89: Percent | C89: Bushel | D89: Costs | G89: Costs
B90: 0.75 | C90: 37.5 | D90: 8.505608551 | G90: 13.6366483
B91: 0.9 | C91: 45 | D91: 7.088007126 | G91: 11.36387358
B92: 1 | C92: 50 | D92: 6.379206414 | G92: 10.22748622
B93: 1.1 | C93: 55 | D93: 5.799278558 | G93: 9.297714748
B94: 1.25 | C94: 62.5 | D94: 5.103365131 | G94: 8.181988978
A96: Developed by Extension Agricultural Economists, Texas A&M AgriLife Extension, budgets@tamu.edu.
A98: Information presented is prepared solely as a general guide and not intended to recognize or predict the costs and returns from any one operation. Brand names are mentioned only as examples and imply no endorsement.

Sheet SorghumHayDryland
A1: Projections for Planning Purposes Only -- Not to be Used without Updating
A2: 2026 Estimated Costs and Returns per Acre
A3: Sorghum-Sudangrass for Hay, Dryland, 3 Ton Yield
A4: Enter your name for this budget in the cell above.
A5: Enter Your Values in the cells highlighed in MAROON.
E6: Your Acres | R6: Your
C7: Crop Acres | D7: 122 | L7: Your | Q7: Enterprise | R7: Enterprise
E8: Your | H8: Your | I8: Cash | J8: Your | K8: Landlord | L8: Landlord | N8: Your | P8: Your | Q8: Total | R8: Total
A9: REVENUE | D9: Quantity | E9: Quantity | F9: Units | G9: $/Unit | H9: $/Unit | I9: Total | J9: Total | K9: Share | L9: Share | M9: Landlord | N9: Landlord | O9: Tenant | P9: Tenant | Q9: (122 acres) | R9: ="(" & E7 & " acres)" -> ( acres)
B10: Sorghum Hay | D10: 3 | F10: Ton | G10: 75 | I10: 225 | J10: =E10*H10 -> 0 | K10: 0 | M10: 0 | N10: =J10*L10 -> 0 | O10: 225 | P10: =+J10-N10 -> 0 | Q10: 27450 | R10: =+J10*E$7 -> 0
D11: 0 | G11: 0 | I11: 0 | J11: 0 | K11: 0 | M11: 0 | N11: 0 | O11: 0 | P11: =+J11-N11 -> 0 | Q11: 0 | R11: 0
D12: 0 | G12: 0 | I12: 0 | J12: 0 | K12: 0 | M12: 0 | N12: 0 | O12: 0 | P12: 0 | Q12: 0 | R12: 0
A13: Total Revenue | I13: 225 | J13: =SUM(J10:J12) -> 0 | M13: 0 | N13: =SUM(N10:N12) -> 0 | O13: 225 | P13: =SUM(P10:P12) -> 0 | Q13: 27450 | R13: =SUM(R10:R12) -> 0
Q14: Enterprise | R14: Enterprise
A15: VARIABLE COSTS | D15: Quantity | E15: Quantity | F15: Units | G15: $/Unit | H15: $/Unit | I15: Total | J15: Total | K15: Share | L15: Share | M15: Landlord | N15: Landlord | O15: Tenant | P15: Tenant | Q15: Total | R15: Total
A16: Production Costs
B17: Fertilizer
C18: Urea, Solid (46% N) | D18: 0.89 | F18: CWT | G18: 31.15 | I18: 27.7235 | J18: =E18*H18 -> 0 | K18: 0 | M18: 0 | N18: =J18*L18 -> 0 | O18: 27.7235 | P18: =+J18-N18 -> 0 | Q18: 3382.267 | R18: =+J18*E$7 -> 0
B19: Seed
C20: Haygrazer Seed | D20: 15 | F20: Pound | G20: 1.79 | I20: 26.85 | J20: 0 | K20: 0 | M20: 0 | N20: 0 | O20: 26.85 | P20: 0 | Q20: 3275.7 | R20: 0
D21: 0 | G21: 0 | I21: 0 | J21: 0 | K21: 0 | M21: 0 | N21: 0 | O21: 0 | P21: 0 | Q21: 0 | R21: 0
D22: 0 | G22: 0 | I22: 0 | J22: 0 | K22: 0 | M22: 0 | N22: 0 | O22: 0 | P22: 0 | Q22: 0 | R22: 0
D23: 0 | G23: 0 | I23: 0 | J23: =E23*H23 -> 0 | K23: 0 | M23: 0 | N23: =J23*L23 -> 0 | O23: 0 | P23: =+J23-N23 -> 0 | Q23: 0 | R23: =+J23*E$7 -> 0
B24: Machinery Labor
C25: Tractors/Self-Propelled | D25: 1.9 | F25: Hour | G25: 17.21 | I25: 32.699 | J25: =E25*H25 -> 0 | K25: 0 | M25: 0 | N25: =J25*L25 -> 0 | O25: 32.699 | P25: =+J25-N25 -> 0 | Q25: 3989.278 | R25: =+J25*E$7 -> 0
C26: Other Labor | D26: 0 | F26: Hour | G26: 17.21 | I26: 0 | J26: =E26*H26 -> 0 | K26: 0 | M26: 0 | N26: =J26*L26 -> 0 | O26: 0 | P26: =+J26-N26 -> 0 | Q26: 0 | R26: =+J26*E$7 -> 0
B28: Diesel Fuel
C29: Pickup/General Use Equipment | D29: 1 | F29: Acre | G29: 0 | I29: 0 | J29: =E29*H29 -> 0 | K29: 0 | M29: 0 | N29: =J29*L29 -> 0 | O29: 0 | P29: =+J29-N29 -> 0 | Q29: 0 | R29: =+J29*E$7 -> 0
C30: Tractors/Self-Propelled | D30: 8.79 | F30: Gallon | G30: 3.16 | I30: 27.7764 | J30: =E30*H30 -> 0 | K30: 0 | M30: 0 | N30: =J30*L30 -> 0 | O30: 27.7764 | P30: =+J30-N30 -> 0 | Q30: 3388.7208 | R30: =+J30*E$7 -> 0
B32: Gasoline
C33: Pickup/General Use Equipment | D33: 1 | F33: Acre | G33: 4.712016393 | I33: 4.712016393 | J33: =E33*H33 -> 0 | K33: 0 | M33: 0 | N33: =J33*L33 -> 0 | O33: 4.712016393 | P33: =+J33-N33 -> 0 | Q33: 574.866 | R33: =+J33*E$7 -> 0
C34: Tractors/Self-Propelled | D34: 0 | F34: Gallon | G34: 2.93 | I34: 0 | J34: =E34*H34 -> 0 | K34: 0 | M34: 0 | N34: =J34*L34 -> 0 | O34: 0 | P34: =+J34-N34 -> 0 | Q34: 0 | R34: =+J34*E$7 -> 0
B36: Repairs & Maintenance
C37: Pickup/General Use Equipment | D37: 1 | F37: Acre | G37: 0.8040983607 | I37: 0.8040983607 | J37: =E37*H37 -> 0 | K37: 0 | M37: 0 | N37: =J37*L37 -> 0 | O37: 0.8040983607 | P37: =+J37-N37 -> 0 | Q37: 98.1 | R37: =+J37*E$7 -> 0
C38: Irrigation Equipment | D38: 1 | F38: Acre | G38: 0 | I38: 0 | J38: 0 | K38: 0 | M38: 0 | N38: 0 | O38: 0 | P38: 0 | Q38: 0 | R38: 0
C39: Tractors/Self-Propelled | D39: 1 | F39: Acre | G39: 16.14243049 | I39: 16.14243049 | J39: 0 | K39: 0 | M39: 0 | N39: 0 | O39: 16.14243049 | P39: 0 | Q39: 1969.37652 | R39: 0
C40: Implements | D40: 1 | F40: Acre | G40: 13.14488164 | I40: 13.14488164 | J40: 0 | K40: 0 | M40: 0 | N40: 0 | O40: 13.14488164 | P40: 0 | Q40: 1603.67556 | R40: 0
I41: 0 | J41: 0 | K41: 0 | M41: 0 | N41: 0 | O41: 0 | P41: 0 | Q41: 0 | R41: 0
I42: 0 | J42: 0 | K42: 0 | M42: 0 | N42: 0 | O42: 0 | P42: 0 | Q42: 0 | R42: 0
B43: Interest on Credit Line | G43: 0.08 | I43: 3.459968604 | J43: =+SUM(J17:J42)/2*H43 -> 0 | M43: 0 | N43: =+SUM(N17:N42)/2*L43 -> 0 | O43: 3.459968604 | P43: =+SUM(P17:P42)/2*L43 -> 0 | Q43: 422.1161697 | R43: =+J43*E$7 -> 0
A44: Total Variable Costs | I44: 153.3122955 | J44: =SUM(J18:J43) -> 0 | M44: 0 | N44: =SUM(N18:N43) -> 0 | O44: 153.3122955 | P44: =SUM(P18:P43) -> 0 | Q44: 18704.10005 | R44: =SUM(R18:R43) -> 0
A45: Planned Returns Above Variable Costs: | I45: 71.68770451 | J45: =+J13-J44 -> 0 | M45: 0 | N45: =+N13-N44 -> 0 | O45: 71.68770451 | P45: =+P13-P44 -> 0 | Q45: 8745.89995 | R45: =+R13-R44 -> 0
B46: Breakeven Price to Cover Variable Costs | G46: 51.1040985 | H46: =IF(E10=0,"n/a",(YVarExp-(YTotExp+YTotRet-J10))/E10) -> n/a | I46: Ton
Q47: Enterprise | R47: Enterprise
A48: FIXED COSTS | D48: Quantity | E48: Quantity | F48: Units | G48: $/Unit | H48: $/Unit | I48: Total | J48: Total | K48: Share | L48: Share | M48: Landlord | N48: Landlord | O48: Tenant | P48: Tenant | Q48: Total | R48: Total
B49: Machinery Depreciation
C50: Pickup/General Use Equipment | D50: 1 | F50: Acre | G50: 3.015368852 | I50: 3.015368852 | J50: =E50*H50 -> 0 | K50: 0 | M50: 0 | N50: =J50*L50 -> 0 | O50: 3.015368852 | P50: =+J50-N50 -> 0 | Q50: 367.875 | R50: =+J50*E$7 -> 0
C51: Tractors/Self-Propelled | D51: 1 | F51: Acre | G51: 18.67015465 | I51: 18.67015465 | J51: 0 | K51: 0 | M51: 0 | N51: =J51*L51 -> 0 | O51: 18.67015465 | P51: 0 | Q51: 2277.758867 | R51: 0
C52: Implements | D52: 1 | F52: Acre | G52: 16.98038142 | I52: 16.98038142 | J52: 0 | K52: 0 | M52: 0 | N52: =J52*L52 -> 0 | O52: 16.98038142 | P52: 0 | Q52: 2071.606534 | R52: 0
B53: Equipment Investment
C54: Pickup/General Use Equipment | D54: 12.56403689 | F54: Dollars | G54: 0.08 | I54: 1.005122951 | J54: =E54*H54 -> 0 | K54: 0 | M54: 0 | N54: =J54*L54 -> 0 | O54: 1.005122951 | P54: =+J54-N54 -> 0 | Q54: 122.625 | R54: =+J54*E$7 -> 0
C55: Tractors/Self-Propelled | D55: 140.8133894 | F55: Dollars | G55: 0.08 | I55: 11.26507116 | J55: 0 | K55: 0 | M55: 0 | N55: =J55*L55 -> 0 | O55: 11.26507116 | P55: 0 | Q55: 1374.338681 | R55: 0
C56: Implements | D56: 76.94485355 | F56: Dollars | G56: 0.08 | I56: 6.155588284 | J56: 0 | K56: 0 | M56: 0 | N56: =J56*L56 -> 0 | O56: 6.155588284 | P56: 0 | Q56: 750.9817706 | R56: 0
B57: Salaried Labor | D57: 1 | F57: Acre | G57: 0 | I57: 0 | J57: 0 | K57: 0 | M57: 0 | N57: =J57*L57 -> 0 | O57: 0 | P57: =+J57-N57 -> 0 | Q57: 0 | R57: =+J57*E$7 -> 0
B58: Management Fee, Owner/Operator Labor | D58: 1 | F58: Acre | G58: 0 | I58: 0 | J58: 0 | K58: 0 | M58: 0 | N58: 0 | O58: 0 | P58: 0 | Q58: 0 | R58: 0
B59: Allocated Establishment Cost | D59: 1 | F59: Acre | G59: 0 | I59: 0 | J59: 0 | K59: 0 | M59: 0 | N59: 0 | O59: 0 | P59: 0 | Q59: 0 | R59: 0
B60: West Texas Dryland | D60: 1 | F60: Acre | G60: 15 | I60: 15 | J60: 0 | K60: 0 | M60: 0 | N60: 0 | O60: 15 | P60: 0 | Q60: 1830 | R60: 0
B61: Property Taxes | D61: 1 | F61: Acre | G61: 0 | I61: 0 | J61: 0 | K61: 0 | M61: 0 | N61: 0 | O61: 0 | P61: 0 | Q61: 0 | R61: 0
B62: Whole Farm Insurance | D62: 1 | F62: Acre | G62: 0 | I62: 0 | J62: 0 | K62: 0 | M62: 0 | N62: 0 | O62: 0 | P62: 0 | Q62: 0 | R62: 0
D63: 1 | G63: 0 | I63: 0 | J63: 0 | K63: 0 | M63: 0 | N63: 0 | O63: 0 | P63: 0 | Q63: 0 | R63: 0
D64: 1 | G64: 0 | I64: 0 | J64: =E64*H64 -> 0 | K64: 0 | M64: 0 | N64: 0 | O64: 0 | P64: 0 | Q64: 0 | R64: 0
A65: Total Fixed Costs | I65: 72.09168731 | J65: =+SUM(J50:J64) -> 0 | M65: 0 | N65: =+SUM(N50:N64) -> 0 | O65: 72.09168731 | P65: =+SUM(P50:P64) -> 0 | Q65: 8795.185852 | R65: =+SUM(R50:R64) -> 0
A66: Total Specified Costs | I66: 225.4039828 | J66: =+J44+J65 -> 0 | M66: 0 | N66: =+N44+N65 -> 0 | O66: 225.4039828 | P66: =+P44+P65 -> 0 | Q66: 27499.2859 | R66: =+R44+R65 -> 0
A68: Returns Above Specified Costs | I68: -0.4039828025 | J68: =+J13-J66 -> 0 | M68: 0 | N68: =+N13-N66 -> 0 | O68: -0.4039828025 | P68: =+P13-P66 -> 0 | Q68: -49.28590191 | R68: =+R13-R66 -> 0
A70: Breakeven Price to Cover Total Costs | G70: 75.13466093 | H70: =IF(E10=0,"n/a",(YTotExp-(YTotExp+YTotRet-J10))/E10) -> n/a | I70: Ton
D72: Example Breakeven Prices
B73: Example | C73: Example | D73: To Cover | G73: To Cover
B74: Yield | C74: Yield | D74: Variable | G74: Total
B75: Percent | C75: Ton | D75: Costs | G75: Costs
B76: 0.75 | C76: 2.25 | D76: 68.13879799 | G76: 100.1795479
B77: 0.9 | C77: 2.7 | D77: 56.78233166 | G77: 83.48295659
B78: 1 | C78: 3 | D78: 51.1040985 | G78: 75.13466093
B79: 1.1 | C79: 3.3 | D79: 46.45827136 | G79: 68.30423721
B80: 1.25 | C80: 3.75 | D80: 40.8832788 | G80: 60.10772875
A82: Developed by Extension Agricultural Economists, Texas A&M AgriLife Extension, budgets@tamu.edu.
A84: Information presented is prepared solely as a general guide and not intended to recognize or predict the costs and returns from any one operation. Brand names are mentioned only as examples and imply no endorsement.

Sheet SorghumHayIrrigated
A1: Projections for Planning Purposes Only -- Not to be Used without Updating
A2: 2026 Estimated Costs and Returns per Acre
A3: Sorghum-Sudangrass for Hay, Center Pivot Irrigated, 5 Ton Yield
A4: Enter your name for this budget in the cell above.
A5: Enter Your Values in the cells highlighed in MAROON.
E6: Your Acres | R6: Your
C7: Crop Acres | D7: 122 | L7: Your | Q7: Enterprise | R7: Enterprise
E8: Your | H8: Your | I8: Cash | J8: Your | K8: Landlord | L8: Landlord | N8: Your | P8: Your | Q8: Total | R8: Total
A9: REVENUE | D9: Quantity | E9: Quantity | F9: Units | G9: $/Unit | H9: $/Unit | I9: Total | J9: Total | K9: Share | L9: Share | M9: Landlord | N9: Landlord | O9: Tenant | P9: Tenant | Q9: (122 acres) | R9: ="(" & E7 & " acres)" -> ( acres)
B10: Sorghum Hay | D10: 5 | F10: Ton | G10: 75 | I10: 375 | J10: =E10*H10 -> 0 | K10: 0 | M10: 0 | N10: =J10*L10 -> 0 | O10: 375 | P10: =+J10-N10 -> 0 | Q10: 45750 | R10: =+J10*E$7 -> 0
D11: 0 | G11: 0 | I11: 0 | J11: 0 | K11: 0 | M11: 0 | N11: 0 | O11: 0 | P11: =+J11-N11 -> 0 | Q11: 0 | R11: 0
D12: 0 | G12: 0 | I12: 0 | J12: 0 | K12: 0 | M12: 0 | N12: 0 | O12: 0 | P12: 0 | Q12: 0 | R12: 0
A13: Total Revenue | I13: 375 | J13: =SUM(J10:J12) -> 0 | M13: 0 | N13: =SUM(N10:N12) -> 0 | O13: 375 | P13: =SUM(P10:P12) -> 0 | Q13: 45750 | R13: =SUM(R10:R12) -> 0
Q14: Enterprise | R14: Enterprise
A15: VARIABLE COSTS | D15: Quantity | E15: Quantity | F15: Units | G15: $/Unit | H15: $/Unit | I15: Total | J15: Total | K15: Share | L15: Share | M15: Landlord | N15: Landlord | O15: Tenant | P15: Tenant | Q15: Total | R15: Total
A16: Production Costs
B17: Fertilizer
C18: Urea, Solid (46% N) | D18: 0.89 | F18: CWT | G18: 31.15 | I18: 27.7235 | J18: =E18*H18 -> 0 | K18: 0 | M18: 0 | N18: =J18*L18 -> 0 | O18: 27.7235 | P18: =+J18-N18 -> 0 | Q18: 3382.267 | R18: =+J18*E$7 -> 0
B19: Seed
C20: Haygrazer Seed | D20: 15 | F20: Pound | G20: 1.79 | I20: 26.85 | J20: 0 | K20: 0 | M20: 0 | N20: 0 | O20: 26.85 | P20: 0 | Q20: 3275.7 | R20: 0
D21: 0 | G21: 0 | I21: 0 | J21: 0 | K21: 0 | M21: 0 | N21: 0 | O21: 0 | P21: 0 | Q21: 0 | R21: 0
D22: 0 | G22: 0 | I22: 0 | J22: 0 | K22: 0 | M22: 0 | N22: 0 | O22: 0 | P22: 0 | Q22: 0 | R22: 0
D23: 0 | G23: 0 | I23: 0 | J23: =E23*H23 -> 0 | K23: 0 | M23: 0 | N23: =J23*L23 -> 0 | O23: 0 | P23: =+J23-N23 -> 0 | Q23: 0 | R23: =+J23*E$7 -> 0
B24: Irrigation
C25: Energy Cost | D25: 3.42 | F25: AcreInch | G25: 10 | I25: 34.2 | J25: =E25*H25 -> 0 | K25: 0 | M25: 0 | N25: =J25*L25 -> 0 | O25: 34.2 | P25: =+J25-N25 -> 0 | Q25: 4172.4 | R25: =+J25*E$7 -> 0
C26: Irrigation Labor | D26: 0.0198 | F26: Hour | G26: 17.5 | I26: 0.3465 | J26: 0 | K26: 0 | M26: 0 | N26: 0 | O26: 0.3465 | P26: 0 | Q26: 42.273 | R26: 0
B27: Machinery Labor
C28: Tractors/Self-Propelled | D28: 3.17 | F28: Hour | G28: 17.21 | I28: 54.5557 | J28: =E28*H28 -> 0 | K28: 0 | M28: 0 | N28: =J28*L28 -> 0 | O28: 54.5557 | P28: =+J28-N28 -> 0 | Q28: 6655.7954 | R28: =+J28*E$7 -> 0
C29: Other Labor | D29: 0 | F29: Hour | G29: 17.21 | I29: 0 | J29: =E29*H29 -> 0 | K29: 0 | M29: 0 | N29: =J29*L29 -> 0 | O29: 0 | P29: =+J29-N29 -> 0 | Q29: 0 | R29: =+J29*E$7 -> 0
B31: Diesel Fuel
C32: Pickup/General Use Equipment | D32: 1 | F32: Acre | G32: 0 | I32: 0 | J32: =E32*H32 -> 0 | K32: 0 | M32: 0 | N32: =J32*L32 -> 0 | O32: 0 | P32: =+J32-N32 -> 0 | Q32: 0 | R32: =+J32*E$7 -> 0
C33: Tractors/Self-Propelled | D33: 13.85 | F33: Gallon | G33: 3.16 | I33: 43.766 | J33: =E33*H33 -> 0 | K33: 0 | M33: 0 | N33: =J33*L33 -> 0 | O33: 43.766 | P33: =+J33-N33 -> 0 | Q33: 5339.452 | R33: =+J33*E$7 -> 0
B35: Gasoline
C36: Pickup/General Use Equipment | D36: 1 | F36: Acre | G36: 9.424032787 | I36: 9.424032787 | J36: =E36*H36 -> 0 | K36: 0 | M36: 0 | N36: =J36*L36 -> 0 | O36: 9.424032787 | P36: =+J36-N36 -> 0 | Q36: 1149.732 | R36: =+J36*E$7 -> 0
C37: Tractors/Self-Propelled | D37: 0 | F37: Gallon | G37: 2.93 | I37: 0 | J37: =E37*H37 -> 0 | K37: 0 | M37: 0 | N37: =J37*L37 -> 0 | O37: 0 | P37: =+J37-N37 -> 0 | Q37: 0 | R37: =+J37*E$7 -> 0
B39: Repairs & Maintenance
C40: Pickup/General Use Equipment | D40: 1 | F40: Acre | G40: 1.608196721 | I40: 1.608196721 | J40: =E40*H40 -> 0 | K40: 0 | M40: 0 | N40: =J40*L40 -> 0 | O40: 1.608196721 | P40: =+J40-N40 -> 0 | Q40: 196.2 | R40: =+J40*E$7 -> 0
C41: Irrigation Equipment | D41: 1 | F41: Acre | G41: 9.050346 | I41: 9.050346 | J41: 0 | K41: 0 | M41: 0 | N41: 0 | O41: 9.050346 | P41: 0 | Q41: 1104.142212 | R41: 0
C42: Tractors/Self-Propelled | D42: 1 | F42: Acre | G42: 22.53153965 | I42: 22.53153965 | J42: 0 | K42: 0 | M42: 0 | N42: 0 | O42: 22.53153965 | P42: 0 | Q42: 2748.847838 | R42: 0
C43: Implements | D43: 1 | F43: Acre | G43: 13.65084775 | I43: 13.65084775 | J43: 0 | K43: 0 | M43: 0 | N43: 0 | O43: 13.65084775 | P43: 0 | Q43: 1665.403426 | R43: 0
I44: 0 | J44: 0 | K44: 0 | M44: 0 | N44: 0 | O44: 0 | P44: 0 | Q44: 0 | R44: 0
I45: 0 | J45: 0 | K45: 0 | M45: 0 | N45: 0 | O45: 0 | P45: 0 | Q45: 0 | R45: 0
B46: Interest on Credit Line | G46: 0.08 | I46: 5.401120843 | J46: =+SUM(J17:J45)/2*H46 -> 0 | M46: 0 | N46: =+SUM(N17:N45)/2*L46 -> 0 | O46: 5.401120843 | P46: =+SUM(P17:P45)/2*L46 -> 0 | Q46: 658.9367429 | R46: =+J46*E$7 -> 0
A47: Total Variable Costs | I47: 249.1077838 | J47: =SUM(J18:J46) -> 0 | M47: 0 | N47: =SUM(N18:N46) -> 0 | O47: 249.1077838 | P47: =SUM(P18:P46) -> 0 | Q47: 30391.14962 | R47: =SUM(R18:R46) -> 0
A48: Planned Returns Above Variable Costs: | I48: 125.8922162 | J48: =+J13-J47 -> 0 | M48: 0 | N48: =+N13-N47 -> 0 | O48: 125.8922162 | P48: =+P13-P47 -> 0 | Q48: 15358.85038 | R48: =+R13-R47 -> 0
B49: Breakeven Price to Cover Variable Costs | G49: 49.82155675 | H49: =IF(E10=0,"n/a",(YVarExp-(YTotExp+YTotRet-J10))/E10) -> n/a | I49: Ton
Q50: Enterprise | R50: Enterprise
A51: FIXED COSTS | D51: Quantity | E51: Quantity | F51: Units | G51: $/Unit | H51: $/Unit | I51: Total | J51: Total | K51: Share | L51: Share | M51: Landlord | N51: Landlord | O51: Tenant | P51: Tenant | Q51: Total | R51: Total
B52: Machinery Depreciation
C53: Pickup/General Use Equipment | D53: 1 | F53: Acre | G53: 6.030737705 | I53: 6.030737705 | J53: =E53*H53 -> 0 | K53: 0 | M53: 0 | N53: =J53*L53 -> 0 | O53: 6.030737705 | P53: =+J53-N53 -> 0 | Q53: 735.75 | R53: =+J53*E$7 -> 0
C54: Irrigation Equipment | D54: 1 | F54: Acre | G54: 24.31862916 | I54: 24.31862916 | J54: 0 | K54: 0 | M54: 0 | N54: =J54*L54 -> 0 | O54: 24.31862916 | P54: 0 | Q54: 2966.872758 | R54: 0
C55: Tractors/Self-Propelled | D55: 1 | F55: Acre | G55: 27.27275687 | I55: 27.27275687 | J55: 0 | K55: 0 | M55: 0 | N55: =J55*L55 -> 0 | O55: 27.27275687 | P55: 0 | Q55: 3327.276338 | R55: 0
C56: Implements | D56: 1 | F56: Acre | G56: 18.20868787 | I56: 18.20868787 | J56: 0 | K56: 0 | M56: 0 | N56: =J56*L56 -> 0 | O56: 18.20868787 | P56: 0 | Q56: 2221.45992 | R56: 0
B57: Equipment Investment
C58: Pickup/General Use Equipment | D58: 25.12807377 | F58: Dollars | G58: 0.08 | I58: 2.010245902 | J58: =E58*H58 -> 0 | K58: 0 | M58: 0 | N58: =J58*L58 -> 0 | O58: 2.010245902 | P58: =+J58-N58 -> 0 | Q58: 245.25 | R58: =+J58*E$7 -> 0
C59: Irrigation Equipment | D59: 182.3897187 | F59: Dollars | G59: 0.08 | I59: 14.5911775 | J59: 0 | K59: 0 | M59: 0 | N59: =J59*L59 -> 0 | O59: 14.5911775 | P59: 0 | Q59: 1780.123655 | R59: 0
C60: Tractors/Self-Propelled | D60: 203.1972979 | F60: Dollars | G60: 0.08 | I60: 16.25578383 | J60: 0 | K60: 0 | M60: 0 | N60: =J60*L60 -> 0 | O60: 16.25578383 | P60: 0 | Q60: 1983.205628 | R60: 0
C61: Implements | D61: 85.83914003 | F61: Dollars | G61: 0.08 | I61: 6.867131202 | J61: 0 | K61: 0 | M61: 0 | N61: =J61*L61 -> 0 | O61: 6.867131202 | P61: 0 | Q61: 837.7900066 | R61: 0
B62: Salaried Labor | D62: 1 | F62: Acre | G62: 0 | I62: 0 | J62: 0 | K62: 0 | M62: 0 | N62: =J62*L62 -> 0 | O62: 0 | P62: =+J62-N62 -> 0 | Q62: 0 | R62: =+J62*E$7 -> 0
B63: Management Fee, Owner/Operator Labor | D63: 1 | F63: Acre | G63: 0 | I63: 0 | J63: 0 | K63: 0 | M63: 0 | N63: 0 | O63: 0 | P63: 0 | Q63: 0 | R63: 0
B64: Allocated Establishment Cost | D64: 1 | F64: Acre | G64: 0 | I64: 0 | J64: 0 | K64: 0 | M64: 0 | N64: 0 | O64: 0 | P64: 0 | Q64: 0 | R64: 0
B65: Trans Pecos Irrigated Land | D65: 1 | F65: Acre | G65: 50 | I65: 50 | J65: 0 | K65: 0 | M65: 0 | N65: 0 | O65: 50 | P65: 0 | Q65: 6100 | R65: 0
B66: Property Taxes | D66: 1 | F66: Acre | G66: 0 | I66: 0 | J66: 0 | K66: 0 | M66: 0 | N66: 0 | O66: 0 | P66: 0 | Q66: 0 | R66: 0
B67: Whole Farm Insurance | D67: 1 | F67: Acre | G67: 0 | I67: 0 | J67: 0 | K67: 0 | M67: 0 | N67: 0 | O67: 0 | P67: 0 | Q67: 0 | R67: 0
D68: 1 | G68: 0 | I68: 0 | J68: 0 | K68: 0 | M68: 0 | N68: 0 | O68: 0 | P68: 0 | Q68: 0 | R68: 0
D69: 1 | G69: 0 | I69: 0 | J69: =E69*H69 -> 0 | K69: 0 | M69: 0 | N69: 0 | O69: 0 | P69: 0 | Q69: 0 | R69: 0
A70: Total Fixed Costs | I70: 165.55515 | J70: =+SUM(J53:J69) -> 0 | M70: 0 | N70: =+SUM(N53:N69) -> 0 | O70: 165.55515 | P70: =+SUM(P53:P69) -> 0 | Q70: 20197.7283 | R70: =+SUM(R53:R69) -> 0
A71: Total Specified Costs | I71: 414.6629338 | J71: =+J47+J70 -> 0 | M71: 0 | N71: =+N47+N70 -> 0 | O71: 414.6629338 | P71: =+P47+P70 -> 0 | Q71: 50588.87792 | R71: =+R47+R70 -> 0
A73: Returns Above Specified Costs | I73: -39.66293379 | J73: =+J13-J71 -> 0 | M73: 0 | N73: =+N13-N71 -> 0 | O73: -39.66293379 | P73: =+P13-P71 -> 0 | Q73: -4838.877923 | R73: =+R13-R71 -> 0
A75: Breakeven Price to Cover Total Costs | G75: 82.93258676 | H75: =IF(E10=0,"n/a",(YTotExp-(YTotExp+YTotRet-J10))/E10) -> n/a | I75: Ton
D77: Example Breakeven Prices
B78: Example | C78: Example | D78: To Cover | G78: To Cover
B79: Yield | C79: Yield | D79: Variable | G79: Total
B80: Percent | C80: Ton | D80: Costs | G80: Costs
B81: 0.75 | C81: 3.75 | D81: 66.42874233 | G81: 110.5767823
B82: 0.9 | C82: 4.5 | D82: 55.35728528 | G82: 92.14731862
B83: 1 | C83: 5 | D83: 49.82155675 | G83: 82.93258676
B84: 1.1 | C84: 5.5 | D84: 45.29232432 | G84: 75.39326069
B85: 1.25 | C85: 6.25 | D85: 39.8572454 | G85: 66.34606941
A87: Developed by Extension Agricultural Economists, Texas A&M AgriLife Extension, budgets@tamu.edu.
A89: Information presented is prepared solely as a general guide and not intended to recognize or predict the costs and returns from any one operation. Brand names are mentioned only as examples and imply no endorsement.

Sheet CowCalfNative
A1: Projections for Planning Purposes Only -- Not to be Used without Updating
A2: 2026 Estimated Costs and Returns per Animal Unit
A3: Cow-Calf Enterprise
A4: Enter your name for this budget in the cell above.
A5: Enter Your Values in the cells highlighed in MAROON.
E6: Your Cows
B7: Animal Units (AU) | D7: 100 | F7: Animal Unit | N7: Your
B8: Breeding Females | D8: 100 | F8: Calf | G8: Your | M8: Enterprise | N8: Enterprise
E9: Your | F9: Quantity | G9: Quantity | J9: Your | L9: Your | M9: Total | N9: Total
A10: REVENUE | D10: Head | E10: Head | F10: Per Head | G10: Per Head | H10: Units | I10: $/Unit | J10: $/Unit | K10: Total | L10: Total | M10: ="(" & D7 & " AUs)" -> (100 AUs) | N10: ="(" & E7 & " AUs)" -> ( AUs)
B11: Steer | D11: 0.43 | F11: 5.5 | H11: CWT | I11: 240 | K11: 567.6 | L11: =+E11*G11*J11 -> 0 | M11: 56760 | N11: =+L11*E$7 -> 0
B12: Heifer | D12: 0.27 | F12: 5 | H12: CWT | I12: 375 | K12: 506.25 | L12: =+E12*G12*J12 -> 0 | M12: 50625 | N12: =+L12*E$7 -> 0
B13: Cull Cow | D13: 0.15 | F13: 12 | H13: CWT | I13: 165 | K13: 297 | L13: 0 | M13: 29700 | N13: 0
B14: Cull Bull | D14: 0.04 | F14: 18 | H14: CWT | I14: 205 | K14: 147.6 | L14: 0 | M14: 14760 | N14: 0
D15: 0 | F15: 0 | I15: 0 | K15: 0 | L15: 0 | M15: 0 | N15: 0
D16: 0 | F16: 0 | I16: 0 | K16: 0 | L16: 0 | M16: 0 | N16: 0
A17: Total Revenue | F17: 371.5 | K17: 1518.45 | L17: =+SUM(L11:L16) -> 0 | M17: 151845 | N17: =+SUM(N11:N16) -> 0
F18: 623.5
F19: 252 | M19: Enterprise | N19: Enterprise
A20: VARIABLE COSTS | F20: Quantity | G20: Quantity | H20: Units | I20: $/Unit | J20: $/Unit | K20: Total | L20: Total | M20: Total | N20: Total
A21: Production Costs
B22: Miscellaneous
C23: Trucking | F23: 1 | H23: AU | I23: 8.455 | K23: 8.455 | L23: =+J23*G23 -> 0 | M23: 845.5 | N23: =+L23*E$7 -> 0
F24: 1 | I24: 0 | K24: 0 | L24: 0 | M24: 0 | N24: 0
F25: 1 | I25: 0 | K25: 0 | L25: 0 | M25: 0 | N25: 0
B26: Marketing Expense | F26: 1 | H26: AU | I26: 17.965 | K26: 17.965 | L26: 0 | M26: 1796.5 | N26: 0
B27: Feed
C28: 12-12 Loose Mineral | F28: 50.04 | H28: Pound | I28: 0.6 | K28: 30.024 | L28: =+J28*G28 -> 0 | M28: 3002.4 | N28: =+L28*E$7 -> 0
C29: 20% Protein Cube | F29: 3.6 | H29: CWT | I29: 19.9 | K29: 71.64 | L29: 0 | M29: 7164 | N29: 0
F30: 0 | I30: 0 | K30: 0 | L30: 0 | M30: 0 | N30: 0
F31: 0 | I31: 0 | K31: 0 | L31: 0 | M31: 0 | N31: 0
F32: 0 | I32: 0 | K32: 0 | L32: 0 | M32: 0 | N32: 0
B33: Vet. Medicine
C34: Lepto 5-Vibro | F34: 2.08 | H34: Dose | I34: 0.7798 | K34: 1.621984 | L34: =+J34*G34 -> 0 | M34: 162.1984 | N34: =+L34*E$7 -> 0
C35: Dewormer-Avrmec Pour | F35: 15.185 | H35: CWT | I35: 0.26 | K35: 3.9481 | L35: 0 | M35: 394.81 | N35: 0
C36: 7way Clostr+Overeat | F36: 3.78 | H36: Dose | I36: 0.51 | K36: 1.9278 | L36: 0 | M36: 192.78 | N36: 0
C37: Bull Exam | F37: 0.04 | H37: Head | I37: 50 | K37: 2 | L37: 0 | M37: 200 | N37: 0
C38: Pregency Check | F38: 1 | H38: Head | I38: 5 | K38: 5 | L38: 0 | M38: 500 | N38: 0
C39: Fly Control | F39: 1 | H39: Head | I39: 0.16 | K39: 0.16 | L39: 0 | M39: 16 | N39: 0
C40: BRD-PI3-BRSV ML | F40: 1.7 | H40: Dose | I40: 1.32 | K40: 2.244 | L40: 0 | M40: 224.4 | N40: 0
C41: Implants-C | F41: 0.85 | H41: Dose | I41: 1.898 | K41: 1.6133 | L41: 0 | M41: 161.33 | N41: 0
C42: Dewormer-Albendazole | F42: 1.04 | H42: Dose | I42: 3.2 | K42: 3.328 | L42: 0 | M42: 332.8 | N42: 0
F43: 0 | I43: 0 | K43: 0 | L43: 0 | M43: 0 | N43: 0
F44: 0 | I44: 0 | K44: 0 | L44: 0 | M44: 0 | N44: 0
F45: 0 | I45: 0 | K45: 0 | L45: 0 | M45: 0 | N45: 0
B46: Fuel | F46: 1 | H46: AU | I46: 23.88 | K46: 23.88 | L46: 0 | M46: 2388 | N46: 0
B47: Lube (As a % of fuel) | F47: 0.1 | H47: Percent | I47: 23.88 | K47: 2.388 | L47: 0 | M47: 238.8 | N47: 0
B48: Repairs | F48: 1 | H48: AU | I48: 36.04768167 | K48: 36.04768167 | L48: 0 | M48: 3604.768167 | N48: 0
B49: Labor | F49: 0.4 | H49: Hours | I49: 15 | K49: 6 | L49: 0 | M49: 600 | N49: 0
B50: Utilities | F50: 1 | H50: AU | I50: 1 | K50: 1 | L50: 0 | M50: 100 | N50: 0
K51: 0 | L51: =+J51*G51 -> 0 | M51: 0 | N51: 0
B52: Purchase Breeding Female | F52: 1 | I52: 0 | K52: 0 | L52: 0 | M52: 0 | N52: 0
B53: Purchase Breeding Male | F53: 1 | I53: 0 | K53: 0 | L53: 0 | M53: 0 | N53: 0
B54: Purchase Older Repalcement Female | F54: 1 | I54: 0 | K54: 0 | L54: 0 | M54: 0 | N54: 0
B55: Purchase Younger Repalcement Female | F55: 1 | I55: 0 | K55: 0 | L55: 0 | M55: 0 | N55: 0
B56: Interest on Credit Line | I56: 0.08 | K56: 15.41173678 | L56: =+SUM(L21:L55)/2*J56 -> 0 | M56: 1541.173678 | N56: 0
A57: Total Variable Costs | K57: 234.6546024 | L57: =+SUM(L23:L56) -> 0 | M57: 23465.46024 | N57: =+SUM(N23:N56) -> 0
A59: Planned Returns Above Variable Costs: | K59: 1283.795398 | L59: =+L17-L57 -> 0 | M59: 128379.5398 | N59: =+N17-N57 -> 0
B60: Average Calf Breakeven Price to Cover Variable Costs | I60: -56.51289302 | J60: =IF((E11*G11+E12*G12)=0,"n/a",(L57-SUM(L13:L16))/(E11*G11+E12*G12)) -> n/a | K60: CWT
M61: Enterprise | N61: Enterprise
A62: FIXED COSTS | F62: Quantity | G62: Quantity | H62: Units | I62: $/Unit | J62: $/Unit | K62: Total | L62: Total | M62: Total | N62: Total
B63: Depreciation - Equipment | F63: 1 | H63: AU | I63: 92.0504381 | K63: 92.0504381 | L63: =+G63*J63 -> 0 | M63: 9205.04381 | N63: =+L63*E$7 -> 0
B64: Depreciation - Livestock | F64: 1 | H64: AU | I64: 146.0142857 | K64: 146.0142857 | L64: 0 | M64: 14601.42857 | N64: 0
B65: Equipment Investment | F65: 1477.45625 | H65: dollars | I65: 0.08 | K65: 118.1965 | L65: 0 | M65: 11819.65 | N65: 0
B66: Insurance | F66: 1 | H66: AU | I66: 0 | K66: 0 | L66: 0 | M66: 0 | N66: 0
B67: Management Fee, Owner/Operator Labor | F67: 1 | H67: AU | I67: 0 | K67: 0 | L67: =+J67*G67 -> 0 | M67: 0 | N67: 0
B68: Salaried Labor | F68: 1 | H68: AU | I68: 0 | K68: 0 | L68: =+J68*G68 -> 0 | M68: 0 | N68: 0
B69: Pasture Cost | F69: 1 | H69: Acres | I69: 186 | K69: 186 | L69: 0 | M69: 18600 | N69: 0
K70: 0 | L70: =+G70*J70 -> 0 | M70: 0 | N70: 0
K71: 0 | L71: 0 | M71: 0 | N71: 0
A72: Total Fixed Costs | K72: 542.2612238 | L72: =+SUM(L63:L69) -> 0 | M72: 54226.12238 | N72: =+SUM(N63:N69) -> 0
A73: Total Costs | K73: 776.9158263 | L73: =+L57+L72 -> 0 | M73: 77691.58263 | N73: =+N57+N72 -> 0
A74: Planned Returns to Management, Risk, and Profit: | K74: 741.5341737 | L74: =+L17-L73 -> 0 | M74: 74153.41737 | N74: =+N17-N73 -> 0
B75: Average Calf Breakeven Price to Cover Total Costs | I75: 89.45244314 | J75: =IF((E11*G11+E12*G12)=0,"n/a",(L73-SUM(L13:L16))/(E11*G11+E12*G12)) -> n/a | K75: CWT
C77: Sensitivity Analysis for Example
C78: Example Weaning Percent | D78: Example Gross Sales per Animal Unit | F78: Pounds Produced per Animal Unit | H78: Example Breakeven Calf Pay Weight to Cover Total Cost | K78: Example Average Breakeven Price to Cover Total Cost
C79: 0.91 | D79: 1594.251176 | F79: 649.7235294 | H79: 151.269938 | K79: 83.55447985
C80: 0.88 | D80: 1556.350588 | F80: 636.6117647 | H80: 157.4865108 | K80: 86.40292803
C81: 0.85 | D81: 1518.45 | F81: 623.5 | H81: 164.2359327 | K81: 89.45244314
C82: 0.82 | D82: 1480.549412 | F82: 610.3882353 | H82: 171.5897805 | K82: 92.7250935
C83: 0.79 | D83: 1442.648824 | F83: 597.2764706 | H83: 179.6330514 | K83: 96.24629958
D85: ="Example Male "&F8&" Price" -> Example Male Calf Price | K85: =+I11 -> 240
D86: ="Example Female "&F8&" Price" -> Example Female Calf Price | K86: =+I12 -> 375
D87: ="Example Weighted Average "&F8&" Price ($/cwt)" -> Example Weighted Average Calf Price ($/cwt) | K87: =+(K11+K12)/(D11*F11+D12*F12) -> 289.0578735
A89: Developed by Extension Agricultural Economists, Texas A&M AgriLife Extension, budgets@tamu.edu.
A91: Information presented is prepared solely as a general guide and not intended to recognize or predict the costs and returns from any one operation. Brand names are mentioned only as examples and imply no endorsement.

Sheet StockersSummer
A1: Projections for Planning Purposes Only -- Not to be Used without Updating
A2: 2026 Estimated Costs and Returns per Animal
A3: Stocker Steers - Summer Growth, 0.6 AU per Head
A4: Enter your name for this budget in the cell above.
A5: Enter Your Values in the cells highlighed in MAROON. | M5: Stocker
E6: Your Head | N6: Your
B7: Number of Head | D7: 100 | G7: Your | M7: Enterprise | N7: Enterprise
E8: Your | F8: Pay Weight | G8: Weight | J8: Your | L8: Your | M8: Total | N8: Total
A9: REVENUE | D9: Head | E9: Head | F9: or Amount | G9: or Amount | H9: Units | I9: $/Unit | J9: $/Unit | K9: Total | L9: Total | M9: ="(" & D7 & " Head)" -> (100 Head) | N9: ="(" & E7 & " Head)" -> ( Head)
B11: Stocker | D11: 0.95 | F11: 6.5 | H11: CWT | I11: 375 | K11: 2315.625 | L11: =+J11*G11*E11 -> 0 | M11: 231562.5 | N11: =+L11*E$7 -> 0
D12: 0.95 | F12: 0 | I12: 0 | K12: 0 | L12: 0 | M12: 0 | N12: 0
D13: 0.95 | F13: 0 | I13: 0 | K13: 0 | L13: 0 | M13: 0 | N13: 0
A14: Total Revenue | K14: 2315.625 | L14: =+L11 -> 0 | M14: 231562.5 | N14: 0
M15: Enterprise | N15: Enterprise
A16: VARIABLE COSTS | F16: Quantity | G16: Quantity | H16: Units | I16: $/Unit | J16: $/Unit | K16: Total | L16: Total | M16: Total | N16: Total
A17: Production Costs
B18: Stocker Purchase | F18: 5 | H18: CWT | I18: 410 | K18: 2050 | L18: =+J18*G18 -> 0 | M18: 205000 | N18: =+L18*E$7 -> 0
B19: Stocker Delivery | F19: 1 | H19: Head | I19: 0 | K19: 0 | L19: =+J19*G19 -> 0 | M19: 0 | N19: =+L19*E$7 -> 0
B20: Grazing
C21: Acre Lease | F21: 0.01 | H21: Acre | I21: 0 | K21: 0 | L21: 0 | M21: 0 | N21: =+L21*E$7 -> 0
C22: Grazing by Month | F22: 2.7 | H22: Month | I22: 18.75 | K22: 50.625 | L22: 0 | M22: 5062.5 | N22: 0
C23: Gain Contract | F23: 0 | H23: Pounds | I23: 0 | K23: 0 | L23: 0 | M23: 0 | N23: 0
C24: On Weight Per Month | F24: 0 | H24: Month | I24: 0 | K24: 0 | L24: =+G24*J24*G18 -> 0 | M24: 0 | N24: 0
B25: Health
C26: 7way Clostr+Overeat | F26: 1 | H26: Dose | I26: 0.51 | K26: 0.51 | L26: =+J26*G26 -> 0 | M26: 51 | N26: =+L26*E$7 -> 0
C27: BRD-PI3-BRSV ML | F27: 1 | H27: Dose | I27: 1.32 | K27: 1.32 | L27: 0 | M27: 132 | N27: 0
C28: Dewormer-Avrmec Pour | F28: 6 | H28: CWT | I28: 0.26 | K28: 1.56 | L28: 0 | M28: 156 | N28: 0
F29: 0 | I29: 0 | K29: 0 | L29: 0 | M29: 0 | N29: 0
F30: 0 | I30: 0 | K30: 0 | L30: 0 | M30: 0 | N30: 0
F31: 0 | I31: 0 | K31: 0 | L31: 0 | M31: 0 | N31: 0
B32: Feed
C33: 10-10 Loose Mineral | F33: 11.7 | H33: Pound | I33: 0.57 | K33: 6.669 | L33: 0 | M33: 666.9 | N33: 0
F34: 0 | I34: 0 | K34: 0 | L34: 0 | M34: 0 | N34: 0
F35: 0 | I35: 0 | K35: 0 | L35: 0 | M35: 0 | N35: 0
F36: 0 | I36: 0 | K36: 0 | L36: 0 | M36: 0 | N36: 0
B37: Miscellaneous
F38: 1 | I38: 0 | K38: 0 | L38: =+J38*G38 -> 0 | M38: 0 | N38: =+L38*E$7 -> 0
F39: 1 | I39: 0 | K39: 0 | L39: 0 | M39: 0 | N39: 0
B40: Fuel | F40: 1 | H40: Head | I40: 5.97 | K40: 5.97 | L40: 0 | M40: 597 | N40: 0
B41: Lube (As a % of fuel) | F41: 0.1 | H41: Percent | I41: 5.97 | K41: 0.597 | L41: 0 | M41: 59.7 | N41: 0
B42: Utilities | F42: 1 | H42: Head | I42: 0.6 | K42: 0.6 | L42: 0 | M42: 60 | N42: 0
B43: Repairs | F43: 1 | H43: Head | I43: 9.024670417 | K43: 9.024670417 | L43: 0 | M43: 902.4670417 | N43: 0
B44: Marketing | F44: 0.95 | H44: Head | I44: 29.67 | K44: 28.1865 | L44: 0 | M44: 2818.65 | N44: 0
B45: Labor | F45: 1 | H45: Head | I45: 121.2666667 | K45: 121.2666667 | L45: 0 | M45: 12126.66667 | N45: 0
K46: 0 | L46: =+J46*G46 -> 0 | M46: 0 | N46: =+L46*E$7 -> 0
K47: 0 | L47: =+J47*G47 -> 0 | M47: 0 | N47: =+L47*E$7 -> 0
B48: Interest on Credit Line | I48: 0.08 | K48: 65.54739946 | L48: =+SUM(L18:L45)*J48/2 -> 0 | M48: 6554.739946 | N48: 0
A49: Total Variable Costs | K49: 2341.876237 | L49: =+SUM(L18:L48) -> 0 | M49: 234187.6237 | N49: =+SUM(N18:N48) -> 0
A51: Planned Returns Above Variable Costs: | K51: -26.25123654 | L51: =+L14-L49 -> 0 | M51: -2625.123654 | N51: =+N14-N49 -> 0
B53: Breakeven Price to Cover Variable Costs | I53: 379.2512124 | J53: =+IF(G11=0,"n/a",(L49-SUM(L12:L13))/(G11*E11)) -> n/a | K53: CWT
M54: Enterprise | N54: Enterprise
A55: FIXED COSTS | F55: Quantity | G55: Quantity | H55: Units | I55: $/Unit | J55: $/Unit | K55: Total | L55: Total | M55: Total | N55: Total
B57: Depreciation | F57: 1 | H57: Head | I57: 23.04539524 | K57: 23.04539524 | L57: =+J57*G57 -> 0 | M57: 2304.539524 | N57: =+L57*E$7 -> 0
B58: Equipment Investment | F58: 369.5043125 | H58: dollars | I58: 0.08 | K58: 29.560345 | L58: 0 | M58: 2956.0345 | N58: 0
B59: Salaried Labor | F59: 1 | H59: Head | I59: 0 | K59: 0 | L59: 0 | M59: 0 | N59: 0
B60: Management Fee, Owner/Operator Labor | F60: 1 | H60: Head | I60: 0 | K60: 0 | L60: 0 | M60: 0 | N60: 0
B61: Insurance | F61: 1 | H61: Head | I61: 0 | K61: 0 | L61: 0 | M61: 0 | N61: 0
K62: 0 | L62: 0 | M62: 0 | N62: 0
K63: 0 | L63: 0 | M63: 0 | N63: 0
A64: Total Fixed Costs | K64: 52.60574024 | L64: =+SUM(L57:L61) -> 0 | M64: 5260.574024 | N64: =+SUM(N57:N61) -> 0
A66: Total Costs | K66: 2394.481977 | L66: =+L49+L64 -> 0 | M66: 239448.1977 | N66: =+N49+N64 -> 0
A68: Planned Returns to Management, Risk, and Profit: | K68: -78.85697678 | L68: =+L51-L64 -> 0 | M68: -7885.697678 | N68: =+N51-N64 -> 0
A70: Breakeven Price to Cover Total Costs | I70: 387.7703606 | J70: =+IF(G11=0,"n/a",(L66-SUM(L12:L13))/(G11*E11)) -> n/a | K70: CWT
C72: Example Breakeven Sensitivity Analysis
F73: Purchase Weight (Lbs/Hd): 500 | H73: Sales Price/Cwt of $Total
F74: Sales Price/Cwt 375.00 | H74: Purchase Price/Cwt 410.00
C75: ADG (Lbs/day) | D75: Net Pay Weight with Shrink | F75: Breakeven Purchase Price ($/CWT) | H75: Breakeven Sales Price ($/CWT)
C76: 1.036764706 | D76: 641 | F76: 387.8161046 | H76: 393.2148743
C77: 0.9503676471 | D77: 629.25 | F77: 379.4442296 | H77: 400.5573848
C78: 0.8639705882 | D78: 650 | F78: 394.2286046 | H78: 387.7703606
C79: 0.7775735294 | D79: 605.75 | F79: 362.7004796 | H79: 416.0969614
C80: 0.6911764706 | D80: 594 | F80: 354.3286046 | H80: 424.3278357
A82: Developed by Extension Agricultural Economists, Texas A&M AgriLife Extension, budgets@tamu.edu.
A84: Information presented is prepared solely as a general guide and not intended to recognize or predict the costs and returns from any one operation. Brand names are mentioned only as examples and imply no endorsement.

Sheet StockerWinter
A1: Projections for Planning Purposes Only -- Not to be Used without Updating
A2: 2026 Estimated Costs and Returns per Animal
A3: Stocker Steers - Winter Growth, 0.45 AU per Head
A4: Enter your name for this budget in the cell above.
A5: Enter Your Values in the cells highlighed in MAROON. | M5: Stocker
E6: Your Head | N6: Your
B7: Number of Head | D7: 100 | G7: Your | M7: Enterprise | N7: Enterprise
E8: Your | F8: Pay Weight | G8: Weight | J8: Your | L8: Your | M8: Total | N8: Total
A9: REVENUE | D9: Head | E9: Head | F9: or Amount | G9: or Amount | H9: Units | I9: $/Unit | J9: $/Unit | K9: Total | L9: Total | M9: ="(" & D7 & " Head)" -> (100 Head) | N9: ="(" & E7 & " Head)" -> ( Head)
B11: Stocker | D11: 0.95 | F11: 6 | H11: CWT | I11: 380 | K11: 2166 | L11: =+J11*G11*E11 -> 0 | M11: 216600 | N11: =+L11*E$7 -> 0
D12: 0.95 | F12: 0 | I12: 0 | K12: 0 | L12: 0 | M12: 0 | N12: 0
D13: 0.95 | F13: 0 | I13: 0 | K13: 0 | L13: 0 | M13: 0 | N13: 0
A14: Total Revenue | K14: 2166 | L14: =+L11 -> 0 | M14: 216600 | N14: 0
M15: Enterprise | N15: Enterprise
A16: VARIABLE COSTS | F16: Quantity | G16: Quantity | H16: Units | I16: $/Unit | J16: $/Unit | K16: Total | L16: Total | M16: Total | N16: Total
A17: Production Costs
B18: Stocker Purchase | F18: 4.5 | H18: CWT | I18: 440 | K18: 1980 | L18: =+J18*G18 -> 0 | M18: 198000 | N18: =+L18*E$7 -> 0
B19: Stocker Delivery | F19: 1 | H19: Head | I19: 0 | K19: 0 | L19: =+J19*G19 -> 0 | M19: 0 | N19: =+L19*E$7 -> 0
B20: Grazing
C21: Acre Lease | F21: 0.01 | H21: Acre | I21: 0 | K21: 0 | L21: 0 | M21: 0 | N21: =+L21*E$7 -> 0
C22: Grazing by Month | F22: 3.375 | H22: Month | I22: 18.75 | K22: 63.28125 | L22: 0 | M22: 6328.125 | N22: 0
C23: Gain Contract | F23: 0 | H23: Pounds | I23: 0 | K23: 0 | L23: 0 | M23: 0 | N23: 0
C24: On Weight Per Month | F24: 0 | H24: Month | I24: 0 | K24: 0 | L24: =+G24*J24*G18 -> 0 | M24: 0 | N24: 0
B25: Health
C26: 7way Clostr+Overeat | F26: 1 | H26: Dose | I26: 0.51 | K26: 0.51 | L26: =+J26*G26 -> 0 | M26: 51 | N26: =+L26*E$7 -> 0
C27: BRD-PI3-BRSV ML | F27: 1 | H27: Dose | I27: 1.32 | K27: 1.32 | L27: 0 | M27: 132 | N27: 0
C28: Dewormer-Avrmec Pour | F28: 4.5 | H28: CWT | I28: 0.26 | K28: 1.17 | L28: 0 | M28: 117 | N28: 0
F29: 0 | I29: 0 | K29: 0 | L29: 0 | M29: 0 | N29: 0
F30: 0 | I30: 0 | K30: 0 | L30: 0 | M30: 0 | N30: 0
F31: 0 | I31: 0 | K31: 0 | L31: 0 | M31: 0 | N31: 0
B32: Feed
C33: 10-10 Loose Mineral | F33: 14.3 | H33: Pound | I33: 0.57 | K33: 8.151 | L33: 0 | M33: 815.1 | N33: 0
F34: 0 | I34: 0 | K34: 0 | L34: 0 | M34: 0 | N34: 0
F35: 0 | I35: 0 | K35: 0 | L35: 0 | M35: 0 | N35: 0
F36: 0 | I36: 0 | K36: 0 | L36: 0 | M36: 0 | N36: 0
B37: Miscellaneous
F38: 1 | I38: 0 | K38: 0 | L38: =+J38*G38 -> 0 | M38: 0 | N38: =+L38*E$7 -> 0
F39: 1 | I39: 0 | K39: 0 | L39: 0 | M39: 0 | N39: 0
B40: Fuel | F40: 1 | H40: Head | I40: 5.97 | K40: 5.97 | L40: 0 | M40: 597 | N40: 0
B41: Lube (As a % of fuel) | F41: 0.1 | H41: Percent | I41: 5.97 | K41: 0.597 | L41: 0 | M41: 59.7 | N41: 0
B42: Utilities | F42: 1 | H42: Head | I42: 0.45 | K42: 0.45 | L42: 0 | M42: 45 | N42: 0
B43: Repairs | F43: 1 | H43: Head | I43: 9.024670417 | K43: 9.024670417 | L43: 0 | M43: 902.4670417 | N43: 0
B44: Marketing | F44: 0.95 | H44: Head | I44: 29.67 | K44: 28.1865 | L44: 0 | M44: 2818.65 | N44: 0
B45: Labor | F45: 1 | H45: Head | I45: 16.83333333 | K45: 16.83333333 | L45: 0 | M45: 1683.333333 | N45: 0
K46: 0 | L46: =+J46*G46 -> 0 | M46: 0 | N46: =+L46*E$7 -> 0
K47: 0 | L47: =+J47*G47 -> 0 | M47: 0 | N47: =+L47*E$7 -> 0
B48: Interest on Credit Line | I48: 0.08 | K48: 56.89984483 | L48: =+SUM(L18:L45)*J48/2 -> 0 | M48: 5689.984483 | N48: 0
A49: Total Variable Costs | K49: 2172.393599 | L49: =+SUM(L18:L48) -> 0 | M49: 217239.3599 | N49: =+SUM(N18:N48) -> 0
A51: Planned Returns Above Variable Costs: | K51: -6.39359858 | L51: =+L14-L49 -> 0 | M51: -639.359858 | N51: =+N14-N49 -> 0
B53: Breakeven Price to Cover Variable Costs | I53: 381.121684 | J53: =+IF(G11=0,"n/a",(L49-SUM(L12:L13))/(G11*E11)) -> n/a | K53: CWT
M54: Enterprise | N54: Enterprise
A55: FIXED COSTS | F55: Quantity | G55: Quantity | H55: Units | I55: $/Unit | J55: $/Unit | K55: Total | L55: Total | M55: Total | N55: Total
B57: Depreciation | F57: 1 | H57: Head | I57: 23.04539524 | K57: 23.04539524 | L57: =+J57*G57 -> 0 | M57: 2304.539524 | N57: =+L57*E$7 -> 0
B58: Equipment Investment | F58: 369.5043125 | H58: dollars | I58: 0.08 | K58: 29.560345 | L58: 0 | M58: 2956.0345 | N58: 0
B59: Salaried Labor | F59: 1 | H59: Head | I59: 0 | K59: 0 | L59: 0 | M59: 0 | N59: 0
B60: Management Fee, Owner/Operator Labor | F60: 1 | H60: Head | I60: 0 | K60: 0 | L60: 0 | M60: 0 | N60: 0
B61: Insurance | F61: 1 | H61: Head | I61: 0 | K61: 0 | L61: 0 | M61: 0 | N61: 0
K62: 0 | L62: 0 | M62: 0 | N62: 0
K63: 0 | L63: 0 | M63: 0 | N63: 0
A64: Total Fixed Costs | K64: 52.60574024 | L64: =+SUM(L57:L61) -> 0 | M64: 5260.574024 | N64: =+SUM(N57:N61) -> 0
A66: Total Costs | K66: 2224.999339 | L66: =+L49+L64 -> 0 | M66: 222499.9339 | N66: =+N49+N64 -> 0
A68: Planned Returns to Management, Risk, and Profit: | K68: -58.99933882 | L68: =+L51-L64 -> 0 | M68: -5899.933882 | N68: =+N51-N64 -> 0
A70: Breakeven Price to Cover Total Costs | I70: 390.3507612 | J70: =+IF(G11=0,"n/a",(L66-SUM(L12:L13))/(G11*E11)) -> n/a | K70: CWT
C72: Example Breakeven Sensitivity Analysis
F73: Purchase Weight (Lbs/Hd): 450 | H73: Sales Price/Cwt of $Total
F74: Sales Price/Cwt 380.00 | H74: Purchase Price/Cwt 440.00
C75: ADG (Lbs/day) | D75: Net Pay Weight with Shrink | F75: Breakeven Purchase Price ($/CWT) | H75: Breakeven Sales Price ($/CWT)
C76: 1.425742574 | D76: 628.2178218 | F76: 449.5259995 | H76: 372.8172755
C77: 1.306930693 | D77: 613.3663366 | F77: 437.6118081 | H77: 381.8443281
C78: 1.188118812 | D78: 600 | F78: 426.8890358 | H78: 390.3507612
C79: 1.069306931 | D79: 583.6633663 | F79: 413.7834253 | H79: 401.2766095
C80: 0.9504950495 | D80: 568.8118812 | F80: 401.8692338 | H80: 411.7538055
A82: Developed by Extension Agricultural Economists, Texas A&M AgriLife Extension, budgets@tamu.edu.
A84: Information presented is prepared solely as a general guide and not intended to recognize or predict the costs and returns from any one operation. Brand names are mentioned only as examples and imply no endorsement.

Sheet MeatGoats
A1: Projections for Planning Purposes Only -- Not to be Used without Updating
A2: 2026 Estimated Costs and Returns per Animal Unit
A3: Trans Pecos Meat Goats, 6 Head per AU
A4: Enter your name for this budget in the cell above.
A5: Enter Your Values in the cells highlighed in MAROON.
E6: Your Nannies
B7: Animal Units (AU) | D7: 100 | F7: Animal Unit | N7: Your
B8: Breeding Females | D8: 600 | F8: Kid | G8: Your | M8: Enterprise | N8: Enterprise
E9: Your | F9: Quantity | G9: Quantity | J9: Your | L9: Your | M9: Total | N9: Total
A10: REVENUE | D10: Head | E10: Head | F10: Per Head | G10: Per Head | H10: Units | I10: $/Unit | J10: $/Unit | K10: Total | L10: Total | M10: ="(" & D7 & " AUs)" -> (100 AUs) | N10: ="(" & E7 & " AUs)" -> ( AUs)
B11: Meat Goat Kid | D11: 3.6 | F11: 0.6 | H11: CWT | I11: 390 | K11: 842.4 | L11: =+E11*G11*J11 -> 0 | M11: 84240 | N11: =+L11*E$7 -> 0
B12: Meat Goat Kid | D12: 2.4 | F12: 0.6 | H12: CWT | I12: 390 | K12: 561.6 | L12: =+E12*G12*J12 -> 0 | M12: 56160 | N12: =+L12*E$7 -> 0
B13: Cull Nanny | D13: 1.2 | F13: 1.1 | H13: CWT | I13: 154.8 | K13: 204.336 | L13: 0 | M13: 20433.6 | N13: 0
B14: Cull Buck Goat | D14: 0 | F14: 1.7 | H14: CWT | I14: 161 | K14: 0 | L14: 0 | M14: 0 | N14: 0
D15: 0 | F15: 0 | I15: 0 | K15: 0 | L15: 0 | M15: 0 | N15: 0
D16: 0 | F16: 0 | I16: 0 | K16: 0 | L16: 0 | M16: 0 | N16: 0
A17: Total Revenue | F17: 360 | K17: 1608.336 | L17: =+SUM(L11:L16) -> 0 | M17: 160833.6 | N17: =+SUM(N11:N16) -> 0
F18: 492
F19: 132 | M19: Enterprise | N19: Enterprise
A20: VARIABLE COSTS | F20: Quantity | G20: Quantity | H20: Units | I20: $/Unit | J20: $/Unit | K20: Total | L20: Total | M20: Total | N20: Total
A21: Production Costs
B22: Miscellaneous
C23: Predator Control | F23: 1 | H23: AU | I23: 16.25 | K23: 16.25 | L23: =+J23*G23 -> 0 | M23: 1625 | N23: =+L23*E$7 -> 0
F24: 1 | I24: 0 | K24: 0 | L24: 0 | M24: 0 | N24: 0
F25: 1 | I25: 0 | K25: 0 | L25: 0 | M25: 0 | N25: 0
B26: Marketing Expense | F26: 1 | H26: AU | I26: 31.44 | K26: 31.44 | L26: 0 | M26: 3144 | N26: 0
B27: Feed
C28: Cottonseed - S&G | F28: 180 | H28: Pound | I28: 0.17 | K28: 30.6 | L28: =+J28*G28 -> 0 | M28: 3060 | N28: =+L28*E$7 -> 0
C29: 10-10 Loose Mineral | F29: 12.6 | H29: Pound | I29: 0.57 | K29: 7.182 | L29: 0 | M29: 718.2 | N29: 0
F30: 0 | I30: 0 | K30: 0 | L30: 0 | M30: 0 | N30: 0
F31: 0 | I31: 0 | K31: 0 | L31: 0 | M31: 0 | N31: 0
F32: 0 | I32: 0 | K32: 0 | L32: 0 | M32: 0 | N32: 0
B33: Vet. Medicine
C34: Clostridials S&G | F34: 6.24 | H34: Dose | I34: 0.51 | K34: 3.1824 | L34: 0 | M34: 318.24 | N34: =+L34*E$7 -> 0
C35: Deworm S&G-Ivomec | F35: 19.68 | H35: Dose | I35: 0.71 | K35: 13.9728 | L35: 0 | M35: 1397.28 | N35: 0
C36: Lice control - S&G | F36: 19.68 | H36: Dose | I36: 0.06 | K36: 1.1808 | L36: 0 | M36: 118.08 | N36: 0
F37: 0 | I37: 0 | K37: 0 | L37: 0 | M37: 0 | N37: 0
F38: 0 | I38: 0 | K38: 0 | L38: 0 | M38: 0 | N38: 0
F39: 0 | I39: 0 | K39: 0 | L39: 0 | M39: 0 | N39: 0
B40: Fuel | F40: 1 | H40: AU | I40: 23.88 | K40: 23.88 | L40: 0 | M40: 2388 | N40: 0
B41: Lube (As a % of fuel) | F41: 0.1 | H41: Percent | I41: 23.88 | K41: 2.388 | L41: 0 | M41: 238.8 | N41: 0
B42: Repairs | F42: 1 | H42: AU | I42: 36.04768167 | K42: 36.04768167 | L42: 0 | M42: 3604.768167 | N42: 0
B43: Labor | F43: 2.6000001 | H43: Hours | I43: 15 | K43: 39.0000015 | L43: 0 | M43: 3900.00015 | N43: 0
B44: Utilities | F44: 1 | H44: AU | I44: 24 | K44: 24 | L44: 0 | M44: 2400 | N44: 0
K45: 0 | L45: =+J45*G45 -> 0 | M45: 0 | N45: 0
B46: Purchase Breeding Female | F46: 1 | I46: 0 | K46: 0 | L46: =+J46*G46 -> 0 | M46: 0 | N46: 0
B47: Purchase Breeding Male | F47: 1 | I47: 0 | K47: 0 | L47: 0 | M47: 0 | N47: 0
B48: Purchase Older Repalcement Female | F48: 1 | I48: 0 | K48: 0 | L48: 0 | M48: 0 | N48: 0
B49: Purchase Younger Repalcement Female | F49: 1 | I49: 0 | K49: 0 | L49: 0 | M49: 0 | N49: 0
B50: Interest on Credit Line | I50: 0.08 | K50: 15.91911043 | L50: =+SUM(L21:L49)/2*J50 -> 0 | M50: 1591.911043 | N50: 0
A51: Total Variable Costs | K51: 245.0427936 | L51: =+SUM(L23:L50) -> 0 | M51: 24504.27936 | N51: =+SUM(N23:N50) -> 0
A53: Planned Returns Above Variable Costs: | K53: 1363.293206 | L53: =+L17-L51 -> 0 | M53: 136329.3206 | N53: =+N17-N51 -> 0
B54: Average Kid Breakeven Price to Cover Variable Costs | I54: 11.30744267 | J54: =IF((E11*G11+E12*G12)=0,"n/a",(L51-SUM(L13:L16))/(E11*G11+E12*G12)) -> n/a | K54: CWT
M55: Enterprise | N55: Enterprise
A56: FIXED COSTS | F56: Quantity | G56: Quantity | H56: Units | I56: $/Unit | J56: $/Unit | K56: Total | L56: Total | M56: Total | N56: Total
B57: Depreciation - Equipment | F57: 1 | H57: AU | I57: 92.0504381 | K57: 92.0504381 | L57: =+G57*J57 -> 0 | M57: 9205.04381 | N57: =+L57*E$7 -> 0
B58: Depreciation - Livestock | F58: 1 | H58: AU | I58: 76.04 | K58: 76.04 | L58: 0 | M58: 7604 | N58: 0
B59: Equipment Investment | F59: 1477.45625 | H59: dollars | I59: 0.08 | K59: 118.1965 | L59: 0 | M59: 11819.65 | N59: 0
B60: Insurance | F60: 1 | H60: AU | I60: 0 | K60: 0 | L60: 0 | M60: 0 | N60: 0
B61: Management Fee, Owner/Operator Labor | F61: 1 | H61: AU | I61: 0 | K61: 0 | L61: =+J61*G61 -> 0 | M61: 0 | N61: 0
B62: Salaried Labor | F62: 1 | H62: AU | I62: 0 | K62: 0 | L62: =+J62*G62 -> 0 | M62: 0 | N62: 0
B63: Pasture Cost | F63: 1 | H63: Acres | I63: 186 | K63: 186 | L63: 0 | M63: 18600 | N63: 0
K64: 0 | L64: 0 | M64: 0 | N64: 0
K65: 0 | L65: 0 | M65: 0 | N65: 0
A66: Total Fixed Costs | K66: 472.2869381 | L66: =+SUM(L57:L63) -> 0 | M66: 47228.69381 | N66: =+SUM(N57:N63) -> 0
A67: Total Costs | K67: 717.3297317 | L67: =+L51+L66 -> 0 | M67: 71732.97317 | N67: =+N51+N66 -> 0
A68: Planned Returns to Management, Risk, and Profit: | K68: 891.0062683 | L68: =+L17-L67 -> 0 | M68: 89100.62683 | N68: =+N17-N67 -> 0
B69: Average Kid Breakeven Price to Cover Total Costs | I69: 142.4982588 | J69: =IF((E11*G11+E12*G12)=0,"n/a",(L67-SUM(L13:L16))/(E11*G11+E12*G12)) -> n/a | K69: CWT
C71: Sensitivity Analysis for Example
C72: Example Weaning Percent | D72: Example Gross Sales per Animal Unit | F72: Pounds Produced per Animal Unit | H72: Example Breakeven Kid Pay Weight to Cover Total Cost | K72: Example Average Breakeven Price to Cover Total Cost
C73: 1.4 | D73: 1842.336 | F73: 552 | H73: 18.26900754 | K73: 122.1413647
C74: 1.3 | D74: 1725.336 | F74: 522 | H74: 19.92982641 | K74: 131.5368543
C75: 1.2 | D75: 1608.336 | F75: 492 | H75: 21.92280905 | K75: 142.4982588
C76: 1.1 | D76: 1491.336 | F76: 462 | H76: 24.35867672 | K76: 155.452646
C77: 1 | D77: 1374.336 | F77: 432 | H77: 27.40351131 | K77: 170.9979106
D79: ="Example Male "&F8&" Price" -> Example Male Kid Price | K79: =+I11 -> 390
D80: ="Example Female "&F8&" Price" -> Example Female Kid Price | K80: =+I12 -> 390
D81: ="Example Weighted Average "&F8&" Price ($/cwt)" -> Example Weighted Average Kid Price ($/cwt) | K81: =+(K11+K12)/(D11*F11+D12*F12) -> 390
A83: Developed by Extension Agricultural Economists, Texas A&M AgriLife Extension, budgets@tamu.edu.
A85: Information presented is prepared solely as a general guide and not intended to recognize or predict the costs and returns from any one operation. Brand names are mentioned only as examples and imply no endorsement.

Sheet Angoras
A1: Projections for Planning Purposes Only -- Not to be Used without Updating
A2: 2026 Estimated Costs and Returns per Animal Unit
A3: Trans Pecos Angora Goats, 7 Head per AU
A4: Enter your name for this budget in the cell above.
A5: Enter Your Values in the cells highlighed in MAROON.
E6: Your Nannies
B7: Animal Units (AU) | D7: 100 | F7: Animal Unit | N7: Your
B8: Breeding Females | D8: 700 | F8: Kid | G8: Your | M8: Enterprise | N8: Enterprise
E9: Your | F9: Quantity | G9: Quantity | J9: Your | L9: Your | M9: Total | N9: Total
A10: REVENUE | D10: Head | E10: Head | F10: Per Head | G10: Per Head | H10: Units | I10: $/Unit | J10: $/Unit | K10: Total | L10: Total | M10: ="(" & D7 & " AUs)" -> (100 AUs) | N10: ="(" & E7 & " AUs)" -> ( AUs)
B11: Angora Kid | D11: 2.63 | F11: 0.65 | H11: CWT | I11: 315 | K11: 538.4925 | L11: =+E11*G11*J11 -> 0 | M11: 53849.25 | N11: =+L11*E$7 -> 0
B12: Angora Kid | D12: 1.22 | F12: 0.65 | H12: CWT | I12: 315 | K12: 249.795 | L12: =+E12*G12*J12 -> 0 | M12: 24979.5 | N12: =+L12*E$7 -> 0
B13: Cull Angora Doe | D13: 1.66 | F13: 1.1 | H13: CWT | I13: 154.8 | K13: 282.6648 | L13: 0 | M13: 28266.48 | N13: 0
B14: Cull Buck Goat | D14: 0 | F14: 1.7 | H14: CWT | I14: 161 | K14: 0 | L14: 0 | M14: 0 | N14: 0
B15: Adult Mohair | D15: 7 | F15: 6.86 | H15: Pound | I15: 10 | K15: 480.2 | L15: 0 | M15: 48020 | N15: 0
